Workbook

Sheet User Guide
C3: Bridgelux® Product Simulator
C4: User Guide
C6: What does it do?
C8: Use this tool to select the most suitable Bridgelux® LED Array for an application. You can choose the array based on either the DRIVE CURRENT you want to use or the LUMEN OUTPUT you require.
C10: What products are supported?
C12: This tool will help you select Bridgelux® Gen. 7 Vero® Series, V Series™ and V Series™ HD arrays.
C14: How do I use the Product Simulator?
C16: 1. Enter basic information about your application in Section 1 of the Simulator
C17: · Select the required CCT and CRI from the drop down menu:
C18: · Enter the operating Case Temperature in degrees Celsius:
C24: 2. If you are designing to a fixed DRIVE CURRENT go to Section 2 and enter the required drive
D25: current
C31: · The Simulator will show product options for Gen. 7 Vero, V Series
D32: and HD Series products.
C53: 3. If you are designing to meet a required LUMEN target, use Section 3 of the Simulator and
D54: enter required lumen value:
C60: · The Simulator will show product options and required drive currents for Gen. 7 Vero and V Series products
C61: · The Simulator will show product options for Gen. 7 Vero, V Series
D62: and V Series HD products.
C83: Note: typical lumen tested under pulsed condition (10ms pulse width) at nominal test current where Tj (junction temperature) = Tc (case temperature) = 25°C
C86: How do I read the Part Number?
C88: For product nomenclature refer to product datasheets.
C90: As an example, the part number designation for Bridgelux Gen. 7 Vero LED arrays is explained as follows:
C92: BXRC – AB C DEFG – H – IJ
C94: Where:
C96: BXRC – Designates product family
C97: AB – Designates the nominal color temperature; 27 = 2700K, 30 = 3000K, etc.
C98: C – Designates minimum CRI; H = 97 typical
C99: DEFG – Designates nominal flux; 2000 = 2,000lm, 4000 = 4,000 lm, 10K0 = 10,000 lm, etc.
C100: H – Designates array configuration
C101: IJ – Designates CCT Bin options
D102: 72 = 2 SDCM
D103: 73 = 3 SDCM
C105: Disclaimer
C106: Please note that the Product Simulator is solely intended to help ease your selection of Bridgelux LED array products based upon your selection of attribute options for each of the criteria provided in the Product Simulator. The Product Simulator is NOT intended as a design tool for luminaire or fixture products nor intended for the selection of LED array products to be used as a component in a particular luminaire or fixture application. Bridgelux disclaims all liability for the results of any product selection through the use of the Product Simulator.
C108: 1. Calculated values in the Product Simulator are measured under stabilized direct current conditions to more accurately represent the COB performance in a typical fixture application. Please refer to the appropriate COB Datasheet and Product Selection Guide for pulsed measurement specifications.

Sheet Simulator
D1: Bridgelux Product Simulator
U2: Rev 14
U3: 44196
D4: Enter color and temperature values: | U4: Section 1
H6: Color Temperature and CRI: | I6: 3000K, 80 CRI | L6: =IFERROR(INDEX(CCT_CRI32354[],MATCH(I6,CCT_CRI32354[CCT/CRI],0),2),"-") -> 30E
H8: Case Temperature (°C): | I8: 25
D10: Case
D13: Lumen Output at Required Drive Current | N13: Section 2
D14: Calculate lumens for selected drive current | M14: ENTER DRIVE CURRENT in mA: | N14: 240
D15: V Series HD, Gen 7 V Series, Gen 7 Vero Series
D16: Product | E16: Part Number | F16: Config | G16: Max Drive Current (mA) | H16: Nominal Current (mA) | I16: Drive Current (mA) | J16: Voltage (V) | K16: Power (W) | L16: ="Lumen DC @ "&$D$10&" = "&$I$8&"°C" -> Lumen DC @ Case = 25°C | M16: ="Min. Lumen DC @ "&$D$10&" = "&$I$8&"°C" -> Min. Lumen DC @ Case = 25°C | N16: ="Efficacy DC @ "&$D$10&" = "&$I$8&"°C" -> Efficacy DC @ Case = 25°C | O16: Nominal Pulsed Lumens @ Case=25°C | P16: Nominal Pulsed Efficacy @ Case=25°C | Q16: ="Tj"&" " &"(°C)" -> Tj (°C) | R16: umol/s/lm | S16: PPF (umol/s) | T16: Photon efficiency (umol/J)
A17: =D17&"-"&F17&"-"&L$6 -> V6-AF-30E | D17: V6 | E17: =IFERROR(INDEX(MasterTable[],MATCH(A17,MasterTable[PF+CR],0),7),"-") -> - | F17: AF | G17: =IFERROR(INDEX(MasterTable[],MATCH(A17,MasterTable[PF+CR],0),COLUMN(MasterTable[Max Current])),"-") -> - | H17: =IFERROR(INDEX(MasterTable[],MATCH(Simulator!E17,MasterTable[P/N],0),COLUMN(MasterTable[Typical Current])),"-") -> - | I17: =IF(E17="-","-",(IF(G17<N$14,"-",N$14))) -> - | J17: =IFERROR(IF(I17,Calculations!AX6,"-"),"-") -> - | K17: =IFERROR(I17*J17/1000,"-") -> - | L17: =IF(AND(Simulator!$I$8=25,Simulator!$N$14=Simulator!H17),O17,IFERROR(MROUND(IF(I17=$N$14,Calculations!AD6,"-"),1),"-")) -> - | N17: =IFERROR(L17/K17,"-") -> - | O17: =IFERROR(INDEX(MasterTable[],MATCH(Simulator!E17,MasterTable[P/N],0),COLUMN(MasterTable[Typical Lumens])),"-") -> - | P17: =IFERROR(INDEX(MasterTable[],MATCH(Simulator!E17,MasterTable[P/N],0),COLUMN(MasterTable[Typical Efficacy])),"-") -> - | Q17: =IFERROR(IF(I17,Calculations!F6,"-"),"-") -> -
A18: V6-BC-30E | D18: V6 | E18: =IFERROR(INDEX(MasterTable[],MATCH(A18,MasterTable[PF+CR],0),7),"-") -> - | F18: BC | G18: =IFERROR(INDEX(MasterTable[],MATCH(A18,MasterTable[PF+CR],0),COLUMN(MasterTable[Max Current])),"-") -> - | H18: =IFERROR(INDEX(MasterTable[],MATCH(Simulator!E18,MasterTable[P/N],0),COLUMN(MasterTable[Typical Current])),"-") -> - | I18: - | J18: =IFERROR(IF(I18,Calculations!AX7,"-"),"-") -> - | K18: - | L18: =IF(AND(Simulator!$I$8=25,Simulator!$N$14=Simulator!H18),O18,IFERROR(MROUND(IF(I18=$N$14,Calculations!AD7,"-"),1),"-")) -> - | N18: - | O18: =IFERROR(INDEX(MasterTable[],MATCH(Simulator!E18,MasterTable[P/N],0),COLUMN(MasterTable[Typical Lumens])),"-") -> - | P18: =IFERROR(INDEX(MasterTable[],MATCH(Simulator!E18,MasterTable[P/N],0),COLUMN(MasterTable[Typical Efficacy])),"-") -> - | Q18: =IFERROR(IF(I18,Calculations!F7,"-"),"-") -> -
A19: V8-AH-30E | D19: V8 | E19: =IFERROR(INDEX(MasterTable[],MATCH(A19,MasterTable[PF+CR],0),7),"-") -> - | F19: AH | G19: =IFERROR(INDEX(MasterTable[],MATCH(A19,MasterTable[PF+CR],0),COLUMN(MasterTable[Max Current])),"-") -> - | H19: =IFERROR(INDEX(MasterTable[],MATCH(Simulator!E19,MasterTable[P/N],0),COLUMN(MasterTable[Typical Current])),"-") -> - | I19: - | J19: =IFERROR(IF(I19,Calculations!AX8,"-"),"-") -> - | K19: - | L19: =IF(AND(Simulator!$I$8=25,Simulator!$N$14=Simulator!H19),O19,IFERROR(MROUND(IF(I19=$N$14,Calculations!AD8,"-"),1),"-")) -> - | N19: - | O19: =IFERROR(INDEX(MasterTable[],MATCH(Simulator!E19,MasterTable[P/N],0),COLUMN(MasterTable[Typical Lumens])),"-") -> - | P19: =IFERROR(INDEX(MasterTable[],MATCH(Simulator!E19,MasterTable[P/N],0),COLUMN(MasterTable[Typical Efficacy])),"-") -> - | Q19: =IFERROR(IF(I19,Calculations!F8,"-"),"-") -> -
A20: V8-AL-30E | D20: V8 | E20: =IFERROR(INDEX(MasterTable[],MATCH(A20,MasterTable[PF+CR],0),7),"-") -> - | F20: AL | G20: =IFERROR(INDEX(MasterTable[],MATCH(A20,MasterTable[PF+CR],0),COLUMN(MasterTable[Max Current])),"-") -> - | H20: =IFERROR(INDEX(MasterTable[],MATCH(Simulator!E20,MasterTable[P/N],0),COLUMN(MasterTable[Typical Current])),"-") -> - | I20: - | J20: =IFERROR(IF(I20,Calculations!AX9,"-"),"-") -> - | K20: - | L20: =IF(AND(Simulator!$I$8=25,Simulator!$N$14=Simulator!H20),O20,IFERROR(MROUND(IF(I20=$N$14,Calculations!AD9,"-"),1),"-")) -> - | N20: - | O20: =IFERROR(INDEX(MasterTable[],MATCH(Simulator!E20,MasterTable[P/N],0),COLUMN(MasterTable[Typical Lumens])),"-") -> - | P20: =IFERROR(INDEX(MasterTable[],MATCH(Simulator!E20,MasterTable[P/N],0),COLUMN(MasterTable[Typical Efficacy])),"-") -> - | Q20: =IFERROR(IF(I20,Calculations!F9,"-"),"-") -> -
A21: V8-BF-30E | D21: V8 | E21: =IFERROR(INDEX(MasterTable[],MATCH(A21,MasterTable[PF+CR],0),7),"-") -> - | F21: BF | G21: =IFERROR(INDEX(MasterTable[],MATCH(A21,MasterTable[PF+CR],0),COLUMN(MasterTable[Max Current])),"-") -> - | H21: =IFERROR(INDEX(MasterTable[],MATCH(Simulator!E21,MasterTable[P/N],0),COLUMN(MasterTable[Typical Current])),"-") -> - | I21: - | J21: =IFERROR(IF(I21,Calculations!AX10,"-"),"-") -> - | K21: - | L21: =IF(AND(Simulator!$I$8=25,Simulator!$N$14=Simulator!H21),O21,IFERROR(MROUND(IF(I21=$N$14,Calculations!AD10,"-"),1),"-")) -> - | N21: - | O21: =IFERROR(INDEX(MasterTable[],MATCH(Simulator!E21,MasterTable[P/N],0),COLUMN(MasterTable[Typical Lumens])),"-") -> - | P21: =IFERROR(INDEX(MasterTable[],MATCH(Simulator!E21,MasterTable[P/N],0),COLUMN(MasterTable[Typical Efficacy])),"-") -> - | Q21: =IFERROR(IF(I21,Calculations!F10,"-"),"-") -> -
A22: V10-BI-30E | D22: V10 | E22: =IFERROR(INDEX(MasterTable[],MATCH(A22,MasterTable[PF+CR],0),7),"-") -> - | F22: BI | G22: =IFERROR(INDEX(MasterTable[],MATCH(A22,MasterTable[PF+CR],0),COLUMN(MasterTable[Max Current])),"-") -> - | H22: =IFERROR(INDEX(MasterTable[],MATCH(Simulator!E22,MasterTable[P/N],0),COLUMN(MasterTable[Typical Current])),"-") -> - | I22: - | J22: =IFERROR(IF(I22,Calculations!AX11,"-"),"-") -> - | K22: - | L22: =IF(AND(Simulator!$I$8=25,Simulator!$N$14=Simulator!H22),O22,IFERROR(MROUND(IF(I22=$N$14,Calculations!AD11,"-"),1),"-")) -> - | N22: - | O22: =IFERROR(INDEX(MasterTable[],MATCH(Simulator!E22,MasterTable[P/N],0),COLUMN(MasterTable[Typical Lumens])),"-") -> - | P22: =IFERROR(INDEX(MasterTable[],MATCH(Simulator!E22,MasterTable[P/N],0),COLUMN(MasterTable[Typical Efficacy])),"-") -> - | Q22: =IFERROR(IF(I22,Calculations!F11,"-"),"-") -> -
A23: V13-C-30E | D23: V13 | E23: =IFERROR(INDEX(MasterTable[],MATCH(A23,MasterTable[PF+CR],0),7),"-") -> - | F23: C | G23: =IFERROR(INDEX(MasterTable[],MATCH(A23,MasterTable[PF+CR],0),COLUMN(MasterTable[Max Current])),"-") -> - | H23: =IFERROR(INDEX(MasterTable[],MATCH(Simulator!E23,MasterTable[P/N],0),COLUMN(MasterTable[Typical Current])),"-") -> - | I23: - | J23: =IFERROR(IF(I23,Calculations!AX12,"-"),"-") -> - | K23: - | L23: =IF(AND(Simulator!$I$8=25,Simulator!$N$14=Simulator!H23),O23,IFERROR(MROUND(IF(I23=$N$14,Calculations!AD12,"-"),1),"-")) -> - | N23: - | O23: =IFERROR(INDEX(MasterTable[],MATCH(Simulator!E23,MasterTable[P/N],0),COLUMN(MasterTable[Typical Lumens])),"-") -> - | P23: =IFERROR(INDEX(MasterTable[],MATCH(Simulator!E23,MasterTable[P/N],0),COLUMN(MasterTable[Typical Efficacy])),"-") -> - | Q23: =IFERROR(IF(I23,Calculations!F12,"-"),"-") -> -
A24: V15-DL-30E | D24: V15 | E24: =IFERROR(INDEX(MasterTable[],MATCH(A24,MasterTable[PF+CR],0),7),"-") -> - | F24: DL | G24: =IFERROR(INDEX(MasterTable[],MATCH(A24,MasterTable[PF+CR],0),COLUMN(MasterTable[Max Current])),"-") -> - | H24: =IFERROR(INDEX(MasterTable[],MATCH(Simulator!E24,MasterTable[P/N],0),COLUMN(MasterTable[Typical Current])),"-") -> - | I24: - | J24: =IFERROR(IF(I24,Calculations!AX13,"-"),"-") -> - | K24: - | L24: =IF(AND(Simulator!$I$8=25,Simulator!$N$14=Simulator!H24),O24,IFERROR(MROUND(IF(I24=$N$14,Calculations!AD13,"-"),1),"-")) -> - | N24: - | O24: =IFERROR(INDEX(MasterTable[],MATCH(Simulator!E24,MasterTable[P/N],0),COLUMN(MasterTable[Typical Lumens])),"-") -> - | P24: =IFERROR(INDEX(MasterTable[],MATCH(Simulator!E24,MasterTable[P/N],0),COLUMN(MasterTable[Typical Efficacy])),"-") -> - | Q24: =IFERROR(IF(I24,Calculations!F13,"-"),"-") -> -
A25: V18-F-30E | D25: V18 | E25: =IFERROR(INDEX(MasterTable[],MATCH(A25,MasterTable[PF+CR],0),7),"-") -> - | F25: F | G25: =IFERROR(INDEX(MasterTable[],MATCH(A25,MasterTable[PF+CR],0),COLUMN(MasterTable[Max Current])),"-") -> - | H25: =IFERROR(INDEX(MasterTable[],MATCH(Simulator!E25,MasterTable[P/N],0),COLUMN(MasterTable[Typical Current])),"-") -> - | I25: - | J25: =IFERROR(IF(I25,Calculations!AX14,"-"),"-") -> - | K25: - | L25: =IF(AND(Simulator!$I$8=25,Simulator!$N$14=Simulator!H25),O25,IFERROR(MROUND(IF(I25=$N$14,Calculations!AD14,"-"),1),"-")) -> - | N25: - | O25: =IFERROR(INDEX(MasterTable[],MATCH(Simulator!E25,MasterTable[P/N],0),COLUMN(MasterTable[Typical Lumens])),"-") -> - | P25: =IFERROR(INDEX(MasterTable[],MATCH(Simulator!E25,MasterTable[P/N],0),COLUMN(MasterTable[Typical Efficacy])),"-") -> - | Q25: =IFERROR(IF(I25,Calculations!F14,"-"),"-") -> -
A26: V22-G-30E | D26: V22 | E26: =IFERROR(INDEX(MasterTable[],MATCH(A26,MasterTable[PF+CR],0),7),"-") -> - | F26: G | G26: =IFERROR(INDEX(MasterTable[],MATCH(A26,MasterTable[PF+CR],0),COLUMN(MasterTable[Max Current])),"-") -> - | H26: =IFERROR(INDEX(MasterTable[],MATCH(Simulator!E26,MasterTable[P/N],0),COLUMN(MasterTable[Typical Current])),"-") -> - | I26: - | J26: =IFERROR(IF(I26,Calculations!AX15,"-"),"-") -> - | K26: - | L26: =IF(AND(Simulator!$I$8=25,Simulator!$N$14=Simulator!H26),O26,IFERROR(MROUND(IF(I26=$N$14,Calculations!AD15,"-"),1),"-")) -> - | N26: - | O26: =IFERROR(INDEX(MasterTable[],MATCH(Simulator!E26,MasterTable[P/N],0),COLUMN(MasterTable[Typical Lumens])),"-") -> - | P26: =IFERROR(INDEX(MasterTable[],MATCH(Simulator!E26,MasterTable[P/N],0),COLUMN(MasterTable[Typical Efficacy])),"-") -> - | Q26: =IFERROR(IF(I26,Calculations!F15,"-"),"-") -> -
A28: =D28&C28&"-"&L$6&F28 -> Vero 10-30EB | D28: Vero 10 | E28: =IFERROR(INDEX(MasterTable[],MATCH(A28,MasterTable[PF+CR],0),7),"-") -> - | F28: B | G28: =IFERROR(INDEX(MasterTable[],MATCH(A28,MasterTable[PF+CR],0),COLUMN(MasterTable[Max Current])),"-") -> - | H28: =IFERROR(INDEX(MasterTable[],MATCH(Simulator!E28,MasterTable[P/N],0),COLUMN(MasterTable[Typical Current])),"-") -> - | I28: =IF(E28="-","-",(IF(G28<N$14,"-",N$14))) -> - | J28: =IFERROR(IF(I28,Calculations!AX20,"-"),"-") -> - | K28: =IFERROR(I28*J28/1000,"-") -> - | L28: =IF(AND(Simulator!$I$8=25,Simulator!$N$14=Simulator!H28),O28,IFERROR(MROUND(IF(I28=$N$14,Calculations!AD20,"-"),1),"-")) -> - | N28: =IFERROR(L28/K28,"-") -> - | O28: =IFERROR(INDEX(MasterTable[],MATCH(Simulator!E28,MasterTable[P/N],0),COLUMN(MasterTable[Typical Lumens])),"-") -> - | P28: =IFERROR(INDEX(MasterTable[],MATCH(Simulator!E28,MasterTable[P/N],0),COLUMN(MasterTable[Typical Efficacy])),"-") -> - | Q28: =IFERROR(IF(I28,Calculations!F20,"-"),"-") -> -
A29: =D29&C29&"-"&L$6&F29 -> Vero 13-30EC | D29: Vero 13 | E29: =IFERROR(INDEX(MasterTable[],MATCH(A29,MasterTable[PF+CR],0),7),"-") -> - | F29: C | G29: =IFERROR(INDEX(MasterTable[],MATCH(A29,MasterTable[PF+CR],0),COLUMN(MasterTable[Max Current])),"-") -> - | H29: =IFERROR(INDEX(MasterTable[],MATCH(Simulator!E29,MasterTable[P/N],0),COLUMN(MasterTable[Typical Current])),"-") -> - | I29: - | J29: =IFERROR(IF(I29,Calculations!AX21,"-"),"-") -> - | K29: - | L29: =IF(AND(Simulator!$I$8=25,Simulator!$N$14=Simulator!H29),O29,IFERROR(MROUND(IF(I29=$N$14,Calculations!AD21,"-"),1),"-")) -> - | N29: - | O29: =IFERROR(INDEX(MasterTable[],MATCH(Simulator!E29,MasterTable[P/N],0),COLUMN(MasterTable[Typical Lumens])),"-") -> - | P29: =IFERROR(INDEX(MasterTable[],MATCH(Simulator!E29,MasterTable[P/N],0),COLUMN(MasterTable[Typical Efficacy])),"-") -> - | Q29: =IFERROR(IF(I29,Calculations!F21,"-"),"-") -> -
A30: =D30&C30&"-"&L$6&F30 -> Vero 18-30EF | D30: Vero 18 | E30: =IFERROR(INDEX(MasterTable[],MATCH(A30,MasterTable[PF+CR],0),7),"-") -> - | F30: F | G30: =IFERROR(INDEX(MasterTable[],MATCH(A30,MasterTable[PF+CR],0),COLUMN(MasterTable[Max Current])),"-") -> - | H30: =IFERROR(INDEX(MasterTable[],MATCH(Simulator!E30,MasterTable[P/N],0),COLUMN(MasterTable[Typical Current])),"-") -> - | I30: - | J30: =IFERROR(IF(I30,Calculations!AX22,"-"),"-") -> - | K30: - | L30: =IF(AND(Simulator!$I$8=25,Simulator!$N$14=Simulator!H30),O30,IFERROR(MROUND(IF(I30=$N$14,Calculations!AD22,"-"),1),"-")) -> - | N30: - | O30: =IFERROR(INDEX(MasterTable[],MATCH(Simulator!E30,MasterTable[P/N],0),COLUMN(MasterTable[Typical Lumens])),"-") -> - | P30: =IFERROR(INDEX(MasterTable[],MATCH(Simulator!E30,MasterTable[P/N],0),COLUMN(MasterTable[Typical Efficacy])),"-") -> - | Q30: =IFERROR(IF(I30,Calculations!F22,"-"),"-") -> -
A31: =D31&C31&"-"&L$6&F31 -> Vero 29-30EL | D31: Vero 29 | E31: =IFERROR(INDEX(MasterTable[],MATCH(A31,MasterTable[PF+CR],0),7),"-") -> - | F31: L | G31: =IFERROR(INDEX(MasterTable[],MATCH(A31,MasterTable[PF+CR],0),COLUMN(MasterTable[Max Current])),"-") -> - | H31: =IFERROR(INDEX(MasterTable[],MATCH(Simulator!E31,MasterTable[P/N],0),COLUMN(MasterTable[Typical Current])),"-") -> - | I31: - | J31: =IFERROR(IF(I31,Calculations!AX23,"-"),"-") -> - | K31: - | L31: =IF(AND(Simulator!$I$8=25,Simulator!$N$14=Simulator!H31),O31,IFERROR(MROUND(IF(I31=$N$14,Calculations!AD23,"-"),1),"-")) -> - | N31: - | O31: =IFERROR(INDEX(MasterTable[],MATCH(Simulator!E31,MasterTable[P/N],0),COLUMN(MasterTable[Typical Lumens])),"-") -> - | P31: =IFERROR(INDEX(MasterTable[],MATCH(Simulator!E31,MasterTable[P/N],0),COLUMN(MasterTable[Typical Efficacy])),"-") -> - | Q31: =IFERROR(IF(I31,Calculations!F23,"-"),"-") -> -
E32: =IFERROR(INDEX([2]!MasterTable[#Data],MATCH(A32,[2]!MasterTable[PF+CR],0),7),"-") -> - | G32: =IFERROR(INDEX([2]!MasterTable[#Data],MATCH(A32,[2]!MasterTable[PF+CR],0),COLUMN([2]!MasterTable[Max Current])),"-") -> - | H32: =IFERROR(INDEX([2]!MasterTable[#Data],MATCH([2]Simulator!E30,[2]!MasterTable[P/N],0),COLUMN([2]!MasterTable[Typical Current])),"-") -> - | I32: - | J32: =IFERROR(IF(I32,[2]Calculations!AX24,"-"),"-") -> - | K32: - | L32: =IFERROR(MROUND(IF(I32=$N$14,[2]Calculations!AD24,"-"),5),"-") -> - | N32: - | O32: =IFERROR(INDEX([2]!MasterTable[#Data],MATCH([2]Simulator!E30,[2]!MasterTable[P/N],0),COLUMN([2]!MasterTable[Typical Lumens])),"-") -> -
A33: =D33&C33&"-"&L$6&F33 -> H6-30EC | D33: H6 | E33: =IFERROR(INDEX(MasterTable[],MATCH(A33,MasterTable[PF+CR],0),7),"-") -> - | F33: C | G33: =IFERROR(INDEX(MasterTable[],MATCH(A33,MasterTable[PF+CR],0),COLUMN(MasterTable[Max Current])),"-") -> - | H33: =IFERROR(INDEX(MasterTable[],MATCH(Simulator!E33,MasterTable[P/N],0),COLUMN(MasterTable[Typical Current])),"-") -> - | I33: - | J33: =IFERROR(IF(I33,Calculations!AX28,"-"),"-") -> - | K33: - | L33: =IF(AND(Simulator!$I$8=25,Simulator!$N$14=Simulator!H33),O33,IFERROR(MROUND(IF(I33=$N$14,Calculations!AD28,"-"),1),"-")) -> - | M33: =IFERROR(MROUND(IF(I33=$N$14,L33*0.86,"-"),1),"-") -> - | N33: - | O33: =IFERROR(INDEX(MasterTable[],MATCH(Simulator!E33,MasterTable[P/N],0),COLUMN(MasterTable[Typical Lumens])),"-") -> - | P33: =IFERROR(INDEX(MasterTable[],MATCH(Simulator!E33,MasterTable[P/N],0),COLUMN(MasterTable[Typical Efficacy])),"-") -> - | Q33: =IFERROR(IF(I33,Calculations!F28,"-"),"-") -> - | R33: - | S33: - | T33: -
A34: =D34&C34&"-"&L$6&F34 -> H9-30ED | D34: H9 | E34: =IFERROR(INDEX(MasterTable[],MATCH(A34,MasterTable[PF+CR],0),7),"-") -> - | F34: D | G34: =IFERROR(INDEX(MasterTable[],MATCH(A34,MasterTable[PF+CR],0),COLUMN(MasterTable[Max Current])),"-") -> - | H34: =IFERROR(INDEX(MasterTable[],MATCH(Simulator!E34,MasterTable[P/N],0),COLUMN(MasterTable[Typical Current])),"-") -> - | I34: - | J34: =IFERROR(IF(I34,Calculations!AX29,"-"),"-") -> - | K34: - | L34: =IF(AND(Simulator!$I$8=25,Simulator!$N$14=Simulator!H34),O34,IFERROR(MROUND(IF(I34=$N$14,Calculations!AD29,"-"),1),"-")) -> - | M34: =IFERROR(MROUND(IF(I34=$N$14,L34*0.86,"-"),1),"-") -> - | N34: - | O34: =IFERROR(INDEX(MasterTable[],MATCH(Simulator!E34,MasterTable[P/N],0),COLUMN(MasterTable[Typical Lumens])),"-") -> - | P34: =IFERROR(INDEX(MasterTable[],MATCH(Simulator!E34,MasterTable[P/N],0),COLUMN(MasterTable[Typical Efficacy])),"-") -> - | Q34: =IFERROR(IF(I34,Calculations!F29,"-"),"-") -> - | R34: - | S34: - | T34: -
A35: =D35&C35&"-"&L$6&F35 -> H12-30EG | D35: H12 | E35: =IFERROR(INDEX(MasterTable[],MATCH(A35,MasterTable[PF+CR],0),7),"-") -> - | F35: G | G35: =IFERROR(INDEX(MasterTable[],MATCH(A35,MasterTable[PF+CR],0),COLUMN(MasterTable[Max Current])),"-") -> - | H35: =IFERROR(INDEX(MasterTable[],MATCH(Simulator!E35,MasterTable[P/N],0),COLUMN(MasterTable[Typical Current])),"-") -> - | I35: - | J35: =IFERROR(IF(I35,Calculations!AX30,"-"),"-") -> - | K35: - | L35: =IF(AND(Simulator!$I$8=25,Simulator!$N$14=Simulator!H35),O35,IFERROR(MROUND(IF(I35=$N$14,Calculations!AD30,"-"),1),"-")) -> - | M35: =IFERROR(MROUND(IF(I35=$N$14,L35*0.86,"-"),1),"-") -> - | N35: - | O35: =IFERROR(INDEX(MasterTable[],MATCH(Simulator!E35,MasterTable[P/N],0),COLUMN(MasterTable[Typical Lumens])),"-") -> - | P35: =IFERROR(INDEX(MasterTable[],MATCH(Simulator!E35,MasterTable[P/N],0),COLUMN(MasterTable[Typical Efficacy])),"-") -> - | Q35: =IFERROR(IF(I35,Calculations!F30,"-"),"-") -> - | R35: - | S35: - | T35: -
A36: =D36&C36&"-"&L$6&F36 -> H15-30EJ | D36: H15 | E36: =IFERROR(INDEX(MasterTable[],MATCH(A36,MasterTable[PF+CR],0),7),"-") -> - | F36: J | G36: =IFERROR(INDEX(MasterTable[],MATCH(A36,MasterTable[PF+CR],0),COLUMN(MasterTable[Max Current])),"-") -> - | H36: =IFERROR(INDEX(MasterTable[],MATCH(Simulator!E36,MasterTable[P/N],0),COLUMN(MasterTable[Typical Current])),"-") -> - | I36: - | J36: =IFERROR(IF(I36,Calculations!AX31,"-"),"-") -> - | K36: - | L36: =IF(AND(Simulator!$I$8=25,Simulator!$N$14=Simulator!H36),O36,IFERROR(MROUND(IF(I36=$N$14,Calculations!AD31,"-"),1),"-")) -> - | M36: =IFERROR(MROUND(IF(I36=$N$14,L36*0.86,"-"),1),"-") -> - | N36: - | O36: =IFERROR(INDEX(MasterTable[],MATCH(Simulator!E36,MasterTable[P/N],0),COLUMN(MasterTable[Typical Lumens])),"-") -> - | P36: =IFERROR(INDEX(MasterTable[],MATCH(Simulator!E36,MasterTable[P/N],0),COLUMN(MasterTable[Typical Efficacy])),"-") -> - | Q36: =IFERROR(IF(I36,Calculations!F31,"-"),"-") -> - | R36: - | S36: - | T36: -
A38: =D38&C38&"-"&L$6&F38 -> V4 HD-30EA | D38: V4 HD | E38: =IFERROR(INDEX(MasterTable[],MATCH(A38,MasterTable[PF+CR],0),7),"-") -> BXRH-30E0600-A-xx | F38: A | G38: =IFERROR(INDEX(MasterTable[],MATCH(A38,MasterTable[PF+CR],0),COLUMN(MasterTable[Max Current])),"-") -> 240 | H38: =IFERROR(INDEX(MasterTable[],MATCH(Simulator!E38,MasterTable[P/N],0),COLUMN(MasterTable[Typical Current])),"-") -> 175 | I38: =IF(E38="-","-",(IF(G38<N$14,"-",N$14))) -> 240 | J38: =IFERROR(IF(I38,Calculations!AX36,"-"),"-") -> 37.56762535 | K38: =IFERROR(I38*J38/1000,"-") -> 9.016230084 | L38: =IFERROR(MROUND(IF(I38=$N$14,Calculations!AD36,"-"),1),"-") -> 990 | M38: =IFERROR(MROUND(IF(I38=$N$14,L38*0.88,"-"),1),"-") -> 871 | N38: =IFERROR(L38/K38,"-") -> 109.8019894 | O38: =IFERROR(INDEX(MasterTable[],MATCH(Simulator!E38,MasterTable[P/N],0),COLUMN(MasterTable[Typical Lumens])),"-") -> 765 | P38: =IFERROR(INDEX(MasterTable[],MATCH(Simulator!E38,MasterTable[P/N],0),COLUMN(MasterTable[Typical Efficacy])),"-") -> 120.0941915 | Q38: =IFERROR(IF(I38,Calculations!F36,"-"),"-") -> 31.49168566 | R38: =IFERROR('PPF calc'!$J$8,"-") -> 0.01426556194 | S38: =IFERROR(R38*L38,"-") -> 14.12290632 | T38: =IFERROR(S38/K38,"-") -> 1.56638708
A39: =D39&C39&"-"&L$6&F39 -> V6 HD-30EB | D39: V6 HD | E39: =IFERROR(INDEX(MasterTable[],MATCH(A39,MasterTable[PF+CR],0),7),"-") -> BXRH-30E1000-B-xx | F39: B | G39: =IFERROR(INDEX(MasterTable[],MATCH(A39,MasterTable[PF+CR],0),COLUMN(MasterTable[Max Current])),"-") -> 480 | H39: =IFERROR(INDEX(MasterTable[],MATCH(Simulator!E39,MasterTable[P/N],0),COLUMN(MasterTable[Typical Current])),"-") -> 350 | I39: =IF(E39="-","-",(IF(G39<N$14,"-",N$14))) -> 240 | J39: =IFERROR(IF(I39,Calculations!AX37,"-"),"-") -> 35.87610371 | K39: =IFERROR(I39*J39/1000,"-") -> 8.610264891 | L39: =IFERROR(MROUND(IF(I39=$N$14,Calculations!AD37,"-"),1),"-") -> 1126 | M39: =IFERROR(MROUND(IF(I39=$N$14,L39*0.88,"-"),1),"-") -> 991 | N39: =IFERROR(L39/K39,"-") -> 130.7741416 | O39: =IFERROR(INDEX(MasterTable[],MATCH(Simulator!E39,MasterTable[P/N],0),COLUMN(MasterTable[Typical Lumens])),"-") -> 1587 | P39: =IFERROR(INDEX(MasterTable[],MATCH(Simulator!E39,MasterTable[P/N],0),COLUMN(MasterTable[Typical Efficacy])),"-") -> 124.5682889 | Q39: =IFERROR(IF(I39,Calculations!F37,"-"),"-") -> 28.09969536 | R39: =IFERROR('PPF calc'!$J$8,"-") -> 0.01426556194 | S39: =IFERROR(R39*L39,"-") -> 16.06302274 | T39: =IFERROR(S39/K39,"-") -> 1.865566617
A40: =D40&C40&"-"&L$6&F40 -> V9 HD-30ED | D40: V9 HD | E40: =IFERROR(INDEX(MasterTable[],MATCH(A40,MasterTable[PF+CR],0),7),"-") -> BXRH-30E3000-D-xx | F40: D | G40: =IFERROR(INDEX(MasterTable[],MATCH(A40,MasterTable[PF+CR],0),COLUMN(MasterTable[Max Current])),"-") -> 960 | H40: =IFERROR(INDEX(MasterTable[],MATCH(Simulator!E40,MasterTable[P/N],0),COLUMN(MasterTable[Typical Current])),"-") -> 700 | I40: =IF(E40="-","-",(IF(G40<N$14,"-",N$14))) -> 240 | J40: =IFERROR(IF(I40,Calculations!AX38,"-"),"-") -> 33.57412669 | K40: =IFERROR(I40*J40/1000,"-") -> 8.057790407 | L40: =IFERROR(MROUND(IF(I40=$N$14,Calculations!AD38,"-"),1),"-") -> 1255 | M40: =IFERROR(MROUND(IF(I40=$N$14,L40*0.88,"-"),1),"-") -> 1104 | N40: =IFERROR(L40/K40,"-") -> 155.7498938 | O40: =IFERROR(INDEX(MasterTable[],MATCH(Simulator!E40,MasterTable[P/N],0),COLUMN(MasterTable[Typical Lumens])),"-") -> 3417 | P40: =IFERROR(INDEX(MasterTable[],MATCH(Simulator!E40,MasterTable[P/N],0),COLUMN(MasterTable[Typical Efficacy])),"-") -> 134.1051805 | Q40: =IFERROR(IF(I40,Calculations!F38,"-"),"-") -> 26.45040227 | R40: =IFERROR('PPF calc'!$J$8,"-") -> 0.01426556194 | S40: =IFERROR(R40*L40,"-") -> 17.90328023 | T40: =IFERROR(S40/K40,"-") -> 2.221859757
A42: =D42&C42&"-"&L$6&F42 -> V8-D-30ED | D42: V8-D | E42: =IFERROR(INDEX(MasterTable[],MATCH(A42,MasterTable[PF+CR],0),7),"-") -> BXRE-30E0800-D-xx | F42: D | G42: =IFERROR(INDEX(MasterTable[],MATCH(A42,MasterTable[PF+CR],0),COLUMN(MasterTable[Max Current])),"-") -> 700 | H42: =IFERROR(INDEX(MasterTable[],MATCH(Simulator!E42,MasterTable[P/N],0),COLUMN(MasterTable[Typical Current])),"-") -> 350 | I42: =IF(E42="-","-",(IF(G42<N$14,"-",N$14))) -> 240 | J42: =IFERROR(IF(I42,Calculations!AX44,"-"),"-") -> 16.88710048 | K42: =IFERROR(I42*J42/1000,"-") -> 4.052904115 | L42: =IFERROR(MROUND(IF(I42=$N$14,Calculations!AD44,"-"),1),"-") -> 698 | M42: =IFERROR(MROUND(IF(I42=$N$14,L42*0.88,"-"),1),"-") -> 614 | N42: =IFERROR(L42/K42,"-") -> 172.2221844 | O42: =IFERROR(INDEX(MasterTable[],MATCH(Simulator!E42,MasterTable[P/N],0),COLUMN(MasterTable[Typical Lumens])),"-") -> 999 | P42: =IFERROR(INDEX(MasterTable[],MATCH(Simulator!E42,MasterTable[P/N],0),COLUMN(MasterTable[Typical Efficacy])),"-") -> 164.9876135 | Q42: =IFERROR(IF(I42,Calculations!F44,"-"),"-") -> 26.98592302 | R42: =IFERROR('PPF calc'!$J$8,"-") -> 0.01426556194 | S42: =IFERROR(R42*L42,"-") -> 9.957362233 | T42: =IFERROR(S42/K42,"-") -> 2.456846239
A43: V8-E-30EE | D43: V8-E | E43: =IFERROR(INDEX(MasterTable[],MATCH(A43,MasterTable[PF+CR],0),7),"-") -> BXRE-30E0800-E-xx | F43: E | G43: =IFERROR(INDEX(MasterTable[],MATCH(A43,MasterTable[PF+CR],0),COLUMN(MasterTable[Max Current])),"-") -> 350 | H43: =IFERROR(INDEX(MasterTable[],MATCH(Simulator!E43,MasterTable[P/N],0),COLUMN(MasterTable[Typical Current])),"-") -> 175 | I43: 240 | J43: =IFERROR(IF(I43,Calculations!AX45,"-"),"-") -> 35.32509905 | K43: =IFERROR(I43*J43/1000,"-") -> 8.478023771 | L43: =IFERROR(MROUND(IF(I43=$N$14,Calculations!AD45,"-"),1),"-") -> 1340 | M43: =IFERROR(MROUND(IF(I43=$N$14,L43*0.88,"-"),1),"-") -> 1179 | N43: =IFERROR(L43/K43,"-") -> 158.0557021 | O43: =IFERROR(INDEX(MasterTable[],MATCH(Simulator!E43,MasterTable[P/N],0),COLUMN(MasterTable[Typical Lumens])),"-") -> 1002 | P43: =IFERROR(INDEX(MasterTable[],MATCH(Simulator!E43,MasterTable[P/N],0),COLUMN(MasterTable[Typical Efficacy])),"-") -> 165.0061754 | Q43: =IFERROR(IF(I43,Calculations!F45,"-"),"-") -> 29.15423165 | R43: =IFERROR('PPF calc'!$J$8,"-") -> 0.01426556194 | S43: 19.115853 | T43: 2.254753409
A44: V10-B-30EB | D44: V10-B | E44: =IFERROR(INDEX(MasterTable[],MATCH(A44,MasterTable[PF+CR],0),7),"-") -> BXRE-30E1000-B-xx | F44: B | G44: =IFERROR(INDEX(MasterTable[],MATCH(A44,MasterTable[PF+CR],0),COLUMN(MasterTable[Max Current])),"-") -> 540 | H44: =IFERROR(INDEX(MasterTable[],MATCH(Simulator!E44,MasterTable[P/N],0),COLUMN(MasterTable[Typical Current])),"-") -> 270 | I44: 240 | J44: =IFERROR(IF(I44,Calculations!AX46,"-"),"-") -> 34.57245737 | K44: =IFERROR(I44*J44/1000,"-") -> 8.297389769 | L44: =IFERROR(MROUND(IF(I44=$N$14,Calculations!AD46,"-"),1),"-") -> 1402 | M44: =IFERROR(MROUND(IF(I44=$N$14,L44*0.88,"-"),1),"-") -> 1234 | N44: =IFERROR(L44/K44,"-") -> 168.9688009 | O44: =IFERROR(INDEX(MasterTable[],MATCH(Simulator!E44,MasterTable[P/N],0),COLUMN(MasterTable[Typical Lumens])),"-") -> 1549 | P44: =IFERROR(INDEX(MasterTable[],MATCH(Simulator!E44,MasterTable[P/N],0),COLUMN(MasterTable[Typical Efficacy])),"-") -> 164.8573861 | Q44: =IFERROR(IF(I44,Calculations!F46,"-"),"-") -> 29.07194403 | R44: =IFERROR('PPF calc'!$J$8,"-") -> 0.01426556194 | S44: 20.00031784 | T44: 2.410434895
A45: V10-C-30EC | D45: V10-C | E45: =IFERROR(INDEX(MasterTable[],MATCH(A45,MasterTable[PF+CR],0),7),"-") -> BXRE-30E1000-C-xx | F45: C | G45: =IFERROR(INDEX(MasterTable[],MATCH(A45,MasterTable[PF+CR],0),COLUMN(MasterTable[Max Current])),"-") -> 720 | H45: =IFERROR(INDEX(MasterTable[],MATCH(Simulator!E45,MasterTable[P/N],0),COLUMN(MasterTable[Typical Current])),"-") -> 360 | I45: 240 | J45: =IFERROR(IF(I45,Calculations!AX47,"-"),"-") -> 33.8312 | K45: =IFERROR(I45*J45/1000,"-") -> 8.119488 | L45: =IFERROR(MROUND(IF(I45=$N$14,Calculations!AD47,"-"),1),"-") -> 1427 | M45: =IFERROR(MROUND(IF(I45=$N$14,L45*0.88,"-"),1),"-") -> 1256 | N45: =IFERROR(L45/K45,"-") -> 175.749998 | O45: =IFERROR(INDEX(MasterTable[],MATCH(Simulator!E45,MasterTable[P/N],0),COLUMN(MasterTable[Typical Lumens])),"-") -> 2066 | P45: =IFERROR(INDEX(MasterTable[],MATCH(Simulator!E45,MasterTable[P/N],0),COLUMN(MasterTable[Typical Efficacy])),"-") -> 164.9106003 | Q45: =IFERROR(IF(I45,Calculations!F47,"-"),"-") -> 28.00718771 | R45: =IFERROR('PPF calc'!$J$8,"-") -> 0.01426556194 | S45: 20.35695689 | T45: 2.507172482
A46: V13-B-30EB | D46: V13-B | E46: =IFERROR(INDEX(MasterTable[],MATCH(A46,MasterTable[PF+CR],0),7),"-") -> BXRE-30E2000-B-xx | F46: B | G46: =IFERROR(INDEX(MasterTable[],MATCH(A46,MasterTable[PF+CR],0),COLUMN(MasterTable[Max Current])),"-") -> 900 | H46: =IFERROR(INDEX(MasterTable[],MATCH(Simulator!E46,MasterTable[P/N],0),COLUMN(MasterTable[Typical Current])),"-") -> 450 | I46: 240 | J46: =IFERROR(IF(I46,Calculations!AX48,"-"),"-") -> 33.2788 | K46: 7.986912 | L46: =IFERROR(MROUND(IF(I46=$N$14,Calculations!AD48,"-"),1),"-") -> 1485 | M46: =IFERROR(MROUND(IF(I46=$N$14,L46*0.9,"-"),1),"-") -> 1337 | N46: 185.9291801 | O46: =IFERROR(INDEX(MasterTable[],MATCH(Simulator!E46,MasterTable[P/N],0),COLUMN(MasterTable[Typical Lumens])),"-") -> 2658.375 | P46: =IFERROR(INDEX(MasterTable[],MATCH(Simulator!E46,MasterTable[P/N],0),COLUMN(MasterTable[Typical Efficacy])),"-") -> 169.7557471 | Q46: =IFERROR(IF(I46,Calculations!F48,"-"),"-") -> 27.23926389 | R46: =IFERROR('PPF calc'!$J$8,"-") -> 0.01426556194 | S46: 21.18435948 | T46: 2.652384235
A47: V13-C-30EC | D47: V13-C | E47: =IFERROR(INDEX(MasterTable[],MATCH(A47,MasterTable[PF+CR],0),7),"-") -> BXRE-30E2000-C-xx | F47: C | G47: =IFERROR(INDEX(MasterTable[],MATCH(A47,MasterTable[PF+CR],0),COLUMN(MasterTable[Max Current])),"-") -> 1260 | H47: =IFERROR(INDEX(MasterTable[],MATCH(Simulator!E47,MasterTable[P/N],0),COLUMN(MasterTable[Typical Current])),"-") -> 630 | I47: 240 | J47: =IFERROR(IF(I47,Calculations!AX49,"-"),"-") -> 32.76616 | K47: 7.8638784 | L47: =IFERROR(MROUND(IF(I47=$N$14,Calculations!AD49,"-"),1),"-") -> 1500 | M47: 1350 | N47: 190.7455741 | O47: =IFERROR(INDEX(MasterTable[],MATCH(Simulator!E47,MasterTable[P/N],0),COLUMN(MasterTable[Typical Lumens])),"-") -> 3721.725 | P47: =IFERROR(INDEX(MasterTable[],MATCH(Simulator!E47,MasterTable[P/N],0),COLUMN(MasterTable[Typical Efficacy])),"-") -> 169.7557471 | Q47: =IFERROR(IF(I47,Calculations!F49,"-"),"-") -> 26.56281477 | R47: =IFERROR('PPF calc'!$J$8,"-") -> 0.01426556194 | S47: 21.39834291 | T47: 2.721092802
A48: V18-B-30EB | D48: V18-B | E48: =IFERROR(INDEX(MasterTable[],MATCH(A48,MasterTable[PF+CR],0),7),"-") -> BXRE-30E4000-B-xx | F48: B | G48: =IFERROR(INDEX(MasterTable[],MATCH(A48,MasterTable[PF+CR],0),COLUMN(MasterTable[Max Current])),"-") -> 1800 | H48: =IFERROR(INDEX(MasterTable[],MATCH(Simulator!E48,MasterTable[P/N],0),COLUMN(MasterTable[Typical Current])),"-") -> 900 | I48: 240 | J48: =IFERROR(IF(I48,Calculations!AX50,"-"),"-") -> 32.55783453 | K48: 7.813880288 | L48: =IFERROR(MROUND(IF(I48=$N$14,Calculations!AD50,"-"),1),"-") -> 1523 | M48: 1371 | N48: 194.909564 | O48: =IFERROR(INDEX(MasterTable[],MATCH(Simulator!E48,MasterTable[P/N],0),COLUMN(MasterTable[Typical Lumens])),"-") -> 5324.4 | P48: =IFERROR(INDEX(MasterTable[],MATCH(Simulator!E48,MasterTable[P/N],0),COLUMN(MasterTable[Typical Efficacy])),"-") -> 170 | Q48: =IFERROR(IF(I48,Calculations!F50,"-"),"-") -> 26.20750497 | R48: =IFERROR('PPF calc'!$J$8,"-") -> 0.01426556194 | S48: 21.72645083 | T48: 2.780494457
A49: V18-C-30EC | D49: V18-C | E49: =IFERROR(INDEX(MasterTable[],MATCH(A49,MasterTable[PF+CR],0),7),"-") -> BXRE-30E4000-C-xx | F49: C | G49: =IFERROR(INDEX(MasterTable[],MATCH(A49,MasterTable[PF+CR],0),COLUMN(MasterTable[Max Current])),"-") -> 2340 | H49: =IFERROR(INDEX(MasterTable[],MATCH(Simulator!E49,MasterTable[P/N],0),COLUMN(MasterTable[Typical Current])),"-") -> 1170 | I49: 240 | J49: =IFERROR(IF(I49,Calculations!AX51,"-"),"-") -> 32.14872 | K49: 7.7156928 | L49: =IFERROR(MROUND(IF(I49=$N$14,Calculations!AD51,"-"),1),"-") -> 1503 | M49: 1353 | N49: 194.7978022 | O49: =IFERROR(INDEX(MasterTable[],MATCH(Simulator!E49,MasterTable[P/N],0),COLUMN(MasterTable[Typical Lumens])),"-") -> 6921.72 | P49: =IFERROR(INDEX(MasterTable[],MATCH(Simulator!E49,MasterTable[P/N],0),COLUMN(MasterTable[Typical Efficacy])),"-") -> 170 | Q49: =IFERROR(IF(I49,Calculations!F51,"-"),"-") -> 25.86467197 | R49: =IFERROR('PPF calc'!$J$8,"-") -> 0.01426556194 | S49: 21.44113959 | T49: 2.778900113
A50: V22-B-30EB | D50: V22-B | E50: =IFERROR(INDEX(MasterTable[],MATCH(A50,MasterTable[PF+CR],0),7),"-") -> BXRE-30E6500-B-xx | F50: B | G50: =IFERROR(INDEX(MasterTable[],MATCH(A50,MasterTable[PF+CR],0),COLUMN(MasterTable[Max Current])),"-") -> 2340 | H50: =IFERROR(INDEX(MasterTable[],MATCH(Simulator!E50,MasterTable[P/N],0),COLUMN(MasterTable[Typical Current])),"-") -> 1170 | I50: 240 | J50: =IFERROR(IF(I50,Calculations!AX52,"-"),"-") -> 47.77693544 | K50: 11.4664645 | L50: =IFERROR(MROUND(IF(I50=$N$14,Calculations!AD52,"-"),1),"-") -> 2339 | M50: 2105 | N50: 203.9861545 | O50: =IFERROR(INDEX(MasterTable[],MATCH(Simulator!E50,MasterTable[P/N],0),COLUMN(MasterTable[Typical Lumens])),"-") -> 10342.8 | P50: =IFERROR(INDEX(MasterTable[],MATCH(Simulator!E50,MasterTable[P/N],0),COLUMN(MasterTable[Typical Efficacy])),"-") -> 170 | Q50: =IFERROR(IF(I50,Calculations!F52,"-"),"-") -> 25.80265252 | R50: =IFERROR('PPF calc'!$J$8,"-") -> 0.01426556194 | S50: 33.36714937 | T50: 2.909977122
A51: V22-C-30EC | D51: V22-C | E51: =IFERROR(INDEX(MasterTable[],MATCH(A51,MasterTable[PF+CR],0),7),"-") -> BXRE-30E6500-C-xx | F51: C | G51: =IFERROR(INDEX(MasterTable[],MATCH(A51,MasterTable[PF+CR],0),COLUMN(MasterTable[Max Current])),"-") -> 2880 | H51: =IFERROR(INDEX(MasterTable[],MATCH(Simulator!E51,MasterTable[P/N],0),COLUMN(MasterTable[Typical Current])),"-") -> 1440 | I51: 240 | J51: =IFERROR(IF(I51,Calculations!AX53,"-"),"-") -> 47.85572 | K51: 11.4853728 | L51: =IFERROR(MROUND(IF(I51=$N$14,Calculations!AD53,"-"),1),"-") -> 2501 | M51: 2251 | N51: 217.7552304 | O51: =IFERROR(INDEX(MasterTable[],MATCH(Simulator!E51,MasterTable[P/N],0),COLUMN(MasterTable[Typical Lumens])),"-") -> 12729.6 | P51: =IFERROR(INDEX(MasterTable[],MATCH(Simulator!E51,MasterTable[P/N],0),COLUMN(MasterTable[Typical Efficacy])),"-") -> 170 | Q51: =IFERROR(IF(I51,Calculations!F53,"-"),"-") -> 25.73468101 | R51: =IFERROR('PPF calc'!$J$8,"-") -> 0.01426556194 | S51: 35.67817041 | T51: 3.106400726
A52: V22-D-30ED | D52: V22-D | E52: =IFERROR(INDEX(MasterTable[],MATCH(A52,MasterTable[PF+CR],0),7),"-") -> BXRE-30E6500-D-xx | F52: D | G52: =IFERROR(INDEX(MasterTable[],MATCH(A52,MasterTable[PF+CR],0),COLUMN(MasterTable[Max Current])),"-") -> 2800 | H52: =IFERROR(INDEX(MasterTable[],MATCH(Simulator!E52,MasterTable[P/N],0),COLUMN(MasterTable[Typical Current])),"-") -> 1400 | I52: 240 | J52: =IFERROR(IF(I52,Calculations!AX54,"-"),"-") -> 30.61376732 | K52: =IFERROR(I52*J52/1000,"-") -> 7.347304158 | L52: =IFERROR(MROUND(IF(I52=$N$14,Calculations!AD54,"-"),1),"-") -> 1501 | M52: 1351 | N52: =IFERROR(L52/K52,"-") -> 204.2926178 | O52: =IFERROR(INDEX(MasterTable[],MATCH(Simulator!E52,MasterTable[P/N],0),COLUMN(MasterTable[Typical Lumens])),"-") -> 8330 | P52: =IFERROR(INDEX(MasterTable[],MATCH(Simulator!E52,MasterTable[P/N],0),COLUMN(MasterTable[Typical Efficacy])),"-") -> 170.9770115 | Q52: =IFERROR(IF(I52,Calculations!F54,"-"),"-") -> 25.51431129 | R52: =IFERROR('PPF calc'!$J$8,"-") -> 0.01426556194 | S52: 21.41260847 | T52: 2.914348992
A54: =D54&C54&"-"&L$6&F54 -> Vero 10-B-30EB | D54: Vero 10-B | E54: =IFERROR(INDEX(MasterTable[],MATCH(A54,MasterTable[PF+CR],0),7),"-") -> BXRC-30E1000-B-xx | F54: B | G54: =IFERROR(INDEX(MasterTable[],MATCH(A54,MasterTable[PF+CR],0),COLUMN(MasterTable[Max Current])),"-") -> 540 | H54: =IFERROR(INDEX(MasterTable[],MATCH(Simulator!E54,MasterTable[P/N],0),COLUMN(MasterTable[Typical Current])),"-") -> 270 | I54: =IF(E54="-","-",(IF(G54<N$14,"-",N$14))) -> 240 | J54: =IFERROR(IF(I54,Calculations!AX55,"-"),"-") -> 34.58 | K54: =IFERROR(I54*J54/1000,"-") -> 8.2992 | L54: =IFERROR(MROUND(IF(I54=$N$14,Calculations!AD55,"-"),1),"-") -> 1402 | M54: =IFERROR(MROUND(IF(I54=$N$14,L54*0.88,"-"),1),"-") -> 1234 | N54: =IFERROR(L54/K54,"-") -> 168.9319452 | O54: =IFERROR(INDEX(MasterTable[],MATCH(Simulator!E54,MasterTable[P/N],0),COLUMN(MasterTable[Typical Lumens])),"-") -> 1549 | P54: =IFERROR(INDEX(MasterTable[],MATCH(Simulator!E54,MasterTable[P/N],0),COLUMN(MasterTable[Typical Efficacy])),"-") -> 164.8573861 | Q54: =IFERROR(IF(I54,Calculations!F55,"-"),"-") -> 29.0728324 | R54: =IFERROR('PPF calc'!$J$8,"-") -> 0.01426556194 | S54: =IFERROR(R54*L54,"-") -> 20.00031784 | T54: =IFERROR(S54/K54,"-") -> 2.409909128
A55: Vero 10-C-30EC | D55: Vero 10-C | E55: =IFERROR(INDEX(MasterTable[],MATCH(A55,MasterTable[PF+CR],0),7),"-") -> BXRC-30E1000-C-xx | F55: C | G55: =IFERROR(INDEX(MasterTable[],MATCH(A55,MasterTable[PF+CR],0),COLUMN(MasterTable[Max Current])),"-") -> 720 | H55: =IFERROR(INDEX(MasterTable[],MATCH(Simulator!E55,MasterTable[P/N],0),COLUMN(MasterTable[Typical Current])),"-") -> 360 | I55: 240 | J55: =IFERROR(IF(I55,Calculations!AX56,"-"),"-") -> 33.8312 | K55: =IFERROR(I55*J55/1000,"-") -> 8.119488 | L55: =IFERROR(MROUND(IF(I55=$N$14,Calculations!AD56,"-"),1),"-") -> 1427 | M55: =IFERROR(MROUND(IF(I55=$N$14,L55*0.88,"-"),1),"-") -> 1256 | N55: =IFERROR(L55/K55,"-") -> 175.749998 | O55: =IFERROR(INDEX(MasterTable[],MATCH(Simulator!E55,MasterTable[P/N],0),COLUMN(MasterTable[Typical Lumens])),"-") -> 2066 | P55: =IFERROR(INDEX(MasterTable[],MATCH(Simulator!E55,MasterTable[P/N],0),COLUMN(MasterTable[Typical Efficacy])),"-") -> 164.9106003 | Q55: =IFERROR(IF(I55,Calculations!F56,"-"),"-") -> 28.00718771 | R55: =IFERROR('PPF calc'!$J$8,"-") -> 0.01426556194 | S55: 20.35695689 | T55: 2.507172482
A56: Vero 10-D-30ED | D56: Vero 10-D | E56: =IFERROR(INDEX(MasterTable[],MATCH(A56,MasterTable[PF+CR],0),7),"-") -> BXRC-30E1000-D-xx | F56: D | G56: =IFERROR(INDEX(MasterTable[],MATCH(A56,MasterTable[PF+CR],0),COLUMN(MasterTable[Max Current])),"-") -> 700 | H56: =IFERROR(INDEX(MasterTable[],MATCH(Simulator!E56,MasterTable[P/N],0),COLUMN(MasterTable[Typical Current])),"-") -> 350 | I56: 240 | J56: =IFERROR(IF(I56,Calculations!AX57,"-"),"-") -> 25.28302587 | K56: =IFERROR(I56*J56/1000,"-") -> 6.067926208 | L56: =IFERROR(MROUND(IF(I56=$N$14,Calculations!AD57,"-"),1),"-") -> 1068 | M56: =IFERROR(MROUND(IF(I56=$N$14,L56*0.88,"-"),1),"-") -> 940 | N56: 176.007414 | O56: =IFERROR(INDEX(MasterTable[],MATCH(Simulator!E56,MasterTable[P/N],0),COLUMN(MasterTable[Typical Lumens])),"-") -> 1501 | P56: =IFERROR(INDEX(MasterTable[],MATCH(Simulator!E56,MasterTable[P/N],0),COLUMN(MasterTable[Typical Efficacy])),"-") -> 164.9450549 | Q56: =IFERROR(IF(I56,Calculations!F57,"-"),"-") -> 27.97783479 | R56: =IFERROR('PPF calc'!$J$8,"-") -> 0.01426556194 | S56: 15.23562015 | T56: 2.510844665
A57: Vero 13-B-30EB | D57: Vero 13-B | E57: =IFERROR(INDEX(MasterTable[],MATCH(A57,MasterTable[PF+CR],0),7),"-") -> BXRC-30E2000-B-xx | F57: B | G57: =IFERROR(INDEX(MasterTable[],MATCH(A57,MasterTable[PF+CR],0),COLUMN(MasterTable[Max Current])),"-") -> 900 | H57: =IFERROR(INDEX(MasterTable[],MATCH(Simulator!E57,MasterTable[P/N],0),COLUMN(MasterTable[Typical Current])),"-") -> 450 | I57: 240 | J57: =IFERROR(IF(I57,Calculations!AX58,"-"),"-") -> 33.29503737 | K57: =IFERROR(I57*J57/1000,"-") -> 7.99080897 | L57: =IFERROR(MROUND(IF(I57=$N$14,Calculations!AD58,"-"),1),"-") -> 1483 | M57: =IFERROR(MROUND(IF(I57=$N$14,L57*0.9,"-"),1),"-") -> 1335 | N57: 185.5882184 | O57: =IFERROR(INDEX(MasterTable[],MATCH(Simulator!E57,MasterTable[P/N],0),COLUMN(MasterTable[Typical Lumens])),"-") -> 2662.2 | P57: =IFERROR(INDEX(MasterTable[],MATCH(Simulator!E57,MasterTable[P/N],0),COLUMN(MasterTable[Typical Efficacy])),"-") -> 170 | Q57: =IFERROR(IF(I57,Calculations!F58,"-"),"-") -> 27.24035647 | R57: =IFERROR('PPF calc'!$J$8,"-") -> 0.01426556194 | S57: 21.15582835 | T57: 2.647520224
A58: Vero 13-C-30EC | D58: Vero 13-C | E58: =IFERROR(INDEX(MasterTable[],MATCH(A58,MasterTable[PF+CR],0),7),"-") -> BXRC-30E2000-C-xx | F58: C | G58: =IFERROR(INDEX(MasterTable[],MATCH(A58,MasterTable[PF+CR],0),COLUMN(MasterTable[Max Current])),"-") -> 1260 | H58: =IFERROR(INDEX(MasterTable[],MATCH(Simulator!E58,MasterTable[P/N],0),COLUMN(MasterTable[Typical Current])),"-") -> 630 | I58: 240 | J58: =IFERROR(IF(I58,Calculations!AX59,"-"),"-") -> 32.76616 | K58: 7.8638784 | L58: =IFERROR(MROUND(IF(I58=$N$14,Calculations!AD59,"-"),1),"-") -> 1498 | M58: 1348 | N58: 190.4912467 | O58: =IFERROR(INDEX(MasterTable[],MATCH(Simulator!E58,MasterTable[P/N],0),COLUMN(MasterTable[Typical Lumens])),"-") -> 3727.08 | P58: =IFERROR(INDEX(MasterTable[],MATCH(Simulator!E58,MasterTable[P/N],0),COLUMN(MasterTable[Typical Efficacy])),"-") -> 170 | Q58: =IFERROR(IF(I58,Calculations!F59,"-"),"-") -> 26.56281477 | R58: =IFERROR('PPF calc'!$J$8,"-") -> 0.01426556194 | S58: 21.36981178 | T58: 2.717464678
A59: Vero 13-D-30ED | D59: Vero 13-D | E59: =IFERROR(INDEX(MasterTable[],MATCH(A59,MasterTable[PF+CR],0),7),"-") -> BXRC-30E2000-D-xx | F59: D | G59: =IFERROR(INDEX(MasterTable[],MATCH(A59,MasterTable[PF+CR],0),COLUMN(MasterTable[Max Current])),"-") -> 1000 | H59: =IFERROR(INDEX(MasterTable[],MATCH(Simulator!E59,MasterTable[P/N],0),COLUMN(MasterTable[Typical Current])),"-") -> 500 | I59: 240 | J59: =IFERROR(IF(I59,Calculations!AX60,"-"),"-") -> 30.49482778 | K59: 7.318758668 | L59: =IFERROR(MROUND(IF(I59=$N$14,Calculations!AD60,"-"),1),"-") -> 1343 | M59: 1209 | N59: 183.5010636 | O59: =IFERROR(INDEX(MasterTable[],MATCH(Simulator!E59,MasterTable[P/N],0),COLUMN(MasterTable[Typical Lumens])),"-") -> 2703 | P59: =IFERROR(INDEX(MasterTable[],MATCH(Simulator!E59,MasterTable[P/N],0),COLUMN(MasterTable[Typical Efficacy])),"-") -> 170 | Q59: =IFERROR(IF(I59,Calculations!F60,"-"),"-") -> 27.05193597 | R59: =IFERROR('PPF calc'!$J$8,"-") -> 0.01426556194 | S59: 19.15864968 | T59: 2.617745789
A60: Vero 18-B-30EB | D60: Vero 18-B | E60: =IFERROR(INDEX(MasterTable[],MATCH(A60,MasterTable[PF+CR],0),7),"-") -> BXRC-30E4000-B-xx | F60: B | G60: =IFERROR(INDEX(MasterTable[],MATCH(A60,MasterTable[PF+CR],0),COLUMN(MasterTable[Max Current])),"-") -> 1800 | H60: =IFERROR(INDEX(MasterTable[],MATCH(Simulator!E60,MasterTable[P/N],0),COLUMN(MasterTable[Typical Current])),"-") -> 900 | I60: 240 | J60: =IFERROR(IF(I60,Calculations!AX61,"-"),"-") -> 32.14386677 | K60: 7.714528024 | L60: =IFERROR(MROUND(IF(I60=$N$14,Calculations!AD61,"-"),1),"-") -> 1535 | M60: 1382 | N60: 198.9752316 | O60: =IFERROR(INDEX(MasterTable[],MATCH(Simulator!E60,MasterTable[P/N],0),COLUMN(MasterTable[Typical Lumens])),"-") -> 5324.4 | P60: =IFERROR(INDEX(MasterTable[],MATCH(Simulator!E60,MasterTable[P/N],0),COLUMN(MasterTable[Typical Efficacy])),"-") -> 170 | Q60: =IFERROR(IF(I60,Calculations!F61,"-"),"-") -> 26.19215173 | R60: =IFERROR('PPF calc'!$J$8,"-") -> 0.01426556194 | S60: 21.89763757 | T60: 2.83849349
A61: Vero 18-C-30EC | D61: Vero 18-C | E61: =IFERROR(INDEX(MasterTable[],MATCH(A61,MasterTable[PF+CR],0),7),"-") -> BXRC-30E4000-C-xx | F61: C | G61: =IFERROR(INDEX(MasterTable[],MATCH(A61,MasterTable[PF+CR],0),COLUMN(MasterTable[Max Current])),"-") -> 2340 | H61: =IFERROR(INDEX(MasterTable[],MATCH(Simulator!E61,MasterTable[P/N],0),COLUMN(MasterTable[Typical Current])),"-") -> 1170 | I61: 240 | J61: =IFERROR(IF(I61,Calculations!AX62,"-"),"-") -> 32.14872 | K61: 7.7156928 | L61: =IFERROR(MROUND(IF(I61=$N$14,Calculations!AD62,"-"),1),"-") -> 1515 | M61: 1364 | N61: 196.3530741 | O61: =IFERROR(INDEX(MasterTable[],MATCH(Simulator!E61,MasterTable[P/N],0),COLUMN(MasterTable[Typical Lumens])),"-") -> 6922 | P61: =IFERROR(INDEX(MasterTable[],MATCH(Simulator!E61,MasterTable[P/N],0),COLUMN(MasterTable[Typical Efficacy])),"-") -> 170.0068769 | Q61: =IFERROR(IF(I61,Calculations!F62,"-"),"-") -> 25.86467197 | R61: =IFERROR('PPF calc'!$J$8,"-") -> 0.01426556194 | S61: 21.61232634 | T61: 2.80108694
A62: Vero 18-D-30ED | D62: Vero 18-D | E62: =IFERROR(INDEX(MasterTable[],MATCH(A62,MasterTable[PF+CR],0),7),"-") -> BXRC-30E4000-D-xx | F62: D | G62: =IFERROR(INDEX(MasterTable[],MATCH(A62,MasterTable[PF+CR],0),COLUMN(MasterTable[Max Current])),"-") -> 2100 | H62: =IFERROR(INDEX(MasterTable[],MATCH(Simulator!E62,MasterTable[P/N],0),COLUMN(MasterTable[Typical Current])),"-") -> 1050 | I62: 240 | J62: =IFERROR(IF(I62,Calculations!AX63,"-"),"-") -> 26.75539405 | K62: 6.421294571 | L62: =IFERROR(MROUND(IF(I62=$N$14,Calculations!AD63,"-"),1),"-") -> 1293 | M62: 1164 | N62: 201.3612653 | O62: =IFERROR(INDEX(MasterTable[],MATCH(Simulator!E62,MasterTable[P/N],0),COLUMN(MasterTable[Typical Lumens])),"-") -> 5176.5 | P62: =IFERROR(INDEX(MasterTable[],MATCH(Simulator!E62,MasterTable[P/N],0),COLUMN(MasterTable[Typical Efficacy])),"-") -> 170 | Q62: =IFERROR(IF(I62,Calculations!F63,"-"),"-") -> 25.99230405 | R62: =IFERROR('PPF calc'!$J$8,"-") -> 0.01426556194 | S62: 18.44537159 | T62: 2.872531603
A63: Vero 29-B-30EB | D63: Vero 29-B | E63: =IFERROR(INDEX(MasterTable[],MATCH(A63,MasterTable[PF+CR],0),7),"-") -> BXRC-30E10K0-B-xx | F63: B | G63: =IFERROR(INDEX(MasterTable[],MATCH(A63,MasterTable[PF+CR],0),COLUMN(MasterTable[Max Current])),"-") -> 3600 | H63: =IFERROR(INDEX(MasterTable[],MATCH(Simulator!E63,MasterTable[P/N],0),COLUMN(MasterTable[Typical Current])),"-") -> 1800 | I63: 240 | J63: =IFERROR(IF(I63,Calculations!AX64,"-"),"-") -> 47.66948 | K63: 11.4406752 | L63: =IFERROR(MROUND(IF(I63=$N$14,Calculations!AD64,"-"),1),"-") -> 2254 | M63: 2029 | N63: 197.0163439 | O63: =IFERROR(INDEX(MasterTable[],MATCH(Simulator!E63,MasterTable[P/N],0),COLUMN(MasterTable[Typical Lumens])),"-") -> 15912 | P63: =IFERROR(INDEX(MasterTable[],MATCH(Simulator!E63,MasterTable[P/N],0),COLUMN(MasterTable[Typical Efficacy])),"-") -> 170 | Q63: =IFERROR(IF(I63,Calculations!F64,"-"),"-") -> 25.71904644 | R63: =IFERROR('PPF calc'!$J$8,"-") -> 0.01426556194 | S63: 32.15457661 | T63: 2.810548857
A64: Vero 29-C-30EC | D64: Vero 29-C | E64: =IFERROR(INDEX(MasterTable[],MATCH(A64,MasterTable[PF+CR],0),7),"-") -> BXRC-30E10K0-C-xx | F64: C | G64: =IFERROR(INDEX(MasterTable[],MATCH(A64,MasterTable[PF+CR],0),COLUMN(MasterTable[Max Current])),"-") -> 3420 | H64: =IFERROR(INDEX(MasterTable[],MATCH(Simulator!E64,MasterTable[P/N],0),COLUMN(MasterTable[Typical Current])),"-") -> 1710 | I64: 240 | J64: =IFERROR(IF(I64,Calculations!AX65,"-"),"-") -> 63.61272 | K64: 15.2670528 | L64: =IFERROR(MROUND(IF(I64=$N$14,Calculations!AD65,"-"),1),"-") -> 3411 | M64: 3070 | N64: 223.4222967 | O64: =IFERROR(INDEX(MasterTable[],MATCH(Simulator!E64,MasterTable[P/N],0),COLUMN(MasterTable[Typical Lumens])),"-") -> 20175 | P64: =IFERROR(INDEX(MasterTable[],MATCH(Simulator!E64,MasterTable[P/N],0),COLUMN(MasterTable[Typical Efficacy])),"-") -> 170.0035391 | Q64: =IFERROR(IF(I64,Calculations!F65,"-"),"-") -> 25.63002038 | R64: =IFERROR('PPF calc'!$J$8,"-") -> 0.01426556194 | S64: 48.65983177 | T64: 3.187244611
A65: Vero 29-D-30ED | D65: Vero 29-D | E65: =IFERROR(INDEX(MasterTable[],MATCH(A65,MasterTable[PF+CR],0),7),"-") -> BXRC-30E10K0-D-xx | F65: D | G65: =IFERROR(INDEX(MasterTable[],MATCH(A65,MasterTable[PF+CR],0),COLUMN(MasterTable[Max Current])),"-") -> 4200 | H65: =IFERROR(INDEX(MasterTable[],MATCH(Simulator!E65,MasterTable[P/N],0),COLUMN(MasterTable[Typical Current])),"-") -> 2100 | I65: 240 | J65: =IFERROR(IF(I65,Calculations!AX66,"-"),"-") -> 34.53412207 | K65: =IFERROR(I65*J65/1000,"-") -> 8.288189296 | L65: =IFERROR(MROUND(IF(I65=$N$14,Calculations!AD66,"-"),1),"-") -> 1776 | M65: 1598 | N65: =IFERROR(L65/K65,"-") -> 214.2808202 | O65: =IFERROR(INDEX(MasterTable[],MATCH(Simulator!E65,MasterTable[P/N],0),COLUMN(MasterTable[Typical Lumens])),"-") -> 13423.2 | P65: =IFERROR(INDEX(MasterTable[],MATCH(Simulator!E65,MasterTable[P/N],0),COLUMN(MasterTable[Typical Efficacy])),"-") -> 170 | Q65: =IFERROR(IF(I65,Calculations!F66,"-"),"-") -> 25.5209127 | R65: =IFERROR('PPF calc'!$J$8,"-") -> 0.01426556194 | S65: 25.335638 | T65: 3.056836312
D68: Drive Current Needed for Required Lumens | N68: Section 3
D69: Calculate drive current required for chosen lumen output | M69: ENTER REQUIRED LUMENS: | N69: 1170
D70: V Series HD, Gen 7 V Series, Gen 7 Vero Series
D71: Use this table for new projects
D72: =D16 -> Product | E72: =E16 -> Part Number | F72: Config | G72: =H16 -> Nominal Current (mA) | H72: =O16 -> Nominal Pulsed Lumens @ Case=25°C | I72: =I16 -> Drive Current (mA) | J72: =J16 -> Voltage (V) | K72: =K16 -> Power (W) | L72: =L16 -> Lumen DC @ Case = 25°C | M72: =N16 -> Efficacy DC @ Case = 25°C | N72: =G16 -> Max Drive Current (mA) | O72: Minimum Pulsed Lumens @ Case=25°C | P72: =P16 -> Nominal Pulsed Efficacy @ Case=25°C | Q72: =Q16 -> Tj (°C) | R72: umol/s/lm | S72: PPF (umol/s) | T72: Photon efficiency (umol/J)
A73: =D73&"-"&F73&"-"&L$6 -> V6-A-30E | D73: V6 | E73: =IFERROR(INDEX(MasterTable[],MATCH(A73,MasterTable[PF+CR],0),7),"-") -> - | F73: A | G73: =IFERROR(INDEX(MasterTable[],MATCH(Simulator!E73,MasterTable[P/N],0),COLUMN(MasterTable[Typical Current])),"-") -> - | H73: =IFERROR(INDEX(MasterTable[],MATCH(Simulator!E73,MasterTable[P/N],0),COLUMN(MasterTable[Typical Lumens])),"-") -> - | I73: =IFERROR(MROUND(IF(OR(E73="-",Calculations!V71>(N73+1)),"-",Calculations!V71),1),"-") -> - | J73: =IFERROR(IF(I73,Calculations!AX71,"-"),"-") -> - | K73: =IFERROR(I73*J73/1000,"-") -> - | L73: =IFERROR(MROUND(IF(I73,Calculations!AC71*H73,"-"),1),"-") -> - | M73: =IFERROR(L73/K73,"-") -> - | N73: =IFERROR(INDEX(MasterTable[],MATCH(A73,MasterTable[PF+CR],0),COLUMN(MasterTable[Max Current])),"-") -> - | P73: =IFERROR(INDEX(MasterTable[],MATCH(Simulator!E73,MasterTable[P/N],0),COLUMN(MasterTable[Typical Efficacy])),"-") -> - | Q73: =IFERROR(IF(I73,Calculations!F71,"-"),"-") -> -
A74: V6-B-30E | D74: V6 | E74: =IFERROR(INDEX(MasterTable[],MATCH(A74,MasterTable[PF+CR],0),7),"-") -> - | F74: B | G74: =IFERROR(INDEX(MasterTable[],MATCH(Simulator!E74,MasterTable[P/N],0),COLUMN(MasterTable[Typical Current])),"-") -> - | H74: =IFERROR(INDEX(MasterTable[],MATCH(Simulator!E74,MasterTable[P/N],0),COLUMN(MasterTable[Typical Lumens])),"-") -> - | I74: =IFERROR(MROUND(IF(OR(E74="-",Calculations!V72>(N74+1)),"-",Calculations!V72),1),"-") -> - | J74: =IFERROR(IF(I74,Calculations!AX72,"-"),"-") -> - | K74: - | L74: =IFERROR(MROUND(IF(I74,Calculations!AC72*H74,"-"),1),"-") -> - | M74: - | N74: =IFERROR(INDEX(MasterTable[],MATCH(A74,MasterTable[PF+CR],0),COLUMN(MasterTable[Max Current])),"-") -> - | P74: =IFERROR(INDEX(MasterTable[],MATCH(Simulator!E74,MasterTable[P/N],0),COLUMN(MasterTable[Typical Efficacy])),"-") -> - | Q74: =IFERROR(IF(I74,Calculations!F72,"-"),"-") -> -
A75: V8-A-30E | D75: V8 | E75: =IFERROR(INDEX(MasterTable[],MATCH(A75,MasterTable[PF+CR],0),7),"-") -> - | F75: A | G75: =IFERROR(INDEX(MasterTable[],MATCH(Simulator!E75,MasterTable[P/N],0),COLUMN(MasterTable[Typical Current])),"-") -> - | H75: =IFERROR(INDEX(MasterTable[],MATCH(Simulator!E75,MasterTable[P/N],0),COLUMN(MasterTable[Typical Lumens])),"-") -> - | I75: =IFERROR(MROUND(IF(OR(E75="-",Calculations!V73>(N75+1)),"-",Calculations!V73),1),"-") -> - | J75: =IFERROR(IF(I75,Calculations!AX73,"-"),"-") -> - | K75: - | L75: =IFERROR(MROUND(IF(I75,Calculations!AC73*H75,"-"),1),"-") -> - | M75: - | N75: =IFERROR(INDEX(MasterTable[],MATCH(A75,MasterTable[PF+CR],0),COLUMN(MasterTable[Max Current])),"-") -> - | P75: =IFERROR(INDEX(MasterTable[],MATCH(Simulator!E75,MasterTable[P/N],0),COLUMN(MasterTable[Typical Efficacy])),"-") -> - | Q75: =IFERROR(IF(I75,Calculations!F73,"-"),"-") -> -
A76: V8-A-30E | D76: V8 | E76: =IFERROR(INDEX(MasterTable[],MATCH(A76,MasterTable[PF+CR],0),7),"-") -> - | F76: A | G76: =IFERROR(INDEX(MasterTable[],MATCH(Simulator!E76,MasterTable[P/N],0),COLUMN(MasterTable[Typical Current])),"-") -> - | H76: =IFERROR(INDEX(MasterTable[],MATCH(Simulator!E76,MasterTable[P/N],0),COLUMN(MasterTable[Typical Lumens])),"-") -> - | I76: =IFERROR(MROUND(IF(OR(E76="-",Calculations!V74>(N76+1)),"-",Calculations!V74),1),"-") -> - | J76: =IFERROR(IF(I76,Calculations!AX74,"-"),"-") -> - | K76: - | L76: =IFERROR(MROUND(IF(I76,Calculations!AC74*H76,"-"),1),"-") -> - | M76: - | N76: =IFERROR(INDEX(MasterTable[],MATCH(A76,MasterTable[PF+CR],0),COLUMN(MasterTable[Max Current])),"-") -> - | P76: =IFERROR(INDEX(MasterTable[],MATCH(Simulator!E76,MasterTable[P/N],0),COLUMN(MasterTable[Typical Efficacy])),"-") -> - | Q76: =IFERROR(IF(I76,Calculations!F74,"-"),"-") -> -
A77: V8-B-30E | D77: V8 | E77: =IFERROR(INDEX(MasterTable[],MATCH(A77,MasterTable[PF+CR],0),7),"-") -> - | F77: B | G77: =IFERROR(INDEX(MasterTable[],MATCH(Simulator!E77,MasterTable[P/N],0),COLUMN(MasterTable[Typical Current])),"-") -> - | H77: =IFERROR(INDEX(MasterTable[],MATCH(Simulator!E77,MasterTable[P/N],0),COLUMN(MasterTable[Typical Lumens])),"-") -> - | I77: =IFERROR(MROUND(IF(OR(E77="-",Calculations!V75>(N77+1)),"-",Calculations!V75),1),"-") -> - | J77: =IFERROR(IF(I77,Calculations!AX75,"-"),"-") -> - | K77: - | L77: =IFERROR(MROUND(IF(I77,Calculations!AC75*H77,"-"),1),"-") -> - | M77: - | N77: =IFERROR(INDEX(MasterTable[],MATCH(A77,MasterTable[PF+CR],0),COLUMN(MasterTable[Max Current])),"-") -> - | P77: =IFERROR(INDEX(MasterTable[],MATCH(Simulator!E77,MasterTable[P/N],0),COLUMN(MasterTable[Typical Efficacy])),"-") -> - | Q77: =IFERROR(IF(I77,Calculations!F75,"-"),"-") -> -
A78: V10-B-30E | D78: V10 | E78: =IFERROR(INDEX(MasterTable[],MATCH(A78,MasterTable[PF+CR],0),7),"-") -> - | F78: B | G78: =IFERROR(INDEX(MasterTable[],MATCH(Simulator!E78,MasterTable[P/N],0),COLUMN(MasterTable[Typical Current])),"-") -> - | H78: =IFERROR(INDEX(MasterTable[],MATCH(Simulator!E78,MasterTable[P/N],0),COLUMN(MasterTable[Typical Lumens])),"-") -> - | I78: =IFERROR(MROUND(IF(OR(E78="-",Calculations!V76>(N78+1)),"-",Calculations!V76),1),"-") -> - | J78: =IFERROR(IF(I78,Calculations!AX76,"-"),"-") -> - | K78: - | L78: =IFERROR(MROUND(IF(I78,Calculations!AC76*H78,"-"),1),"-") -> - | M78: - | N78: =IFERROR(INDEX(MasterTable[],MATCH(A78,MasterTable[PF+CR],0),COLUMN(MasterTable[Max Current])),"-") -> - | P78: =IFERROR(INDEX(MasterTable[],MATCH(Simulator!E78,MasterTable[P/N],0),COLUMN(MasterTable[Typical Efficacy])),"-") -> - | Q78: =IFERROR(IF(I78,Calculations!F76,"-"),"-") -> -
A79: V13-C-30E | D79: V13 | E79: =IFERROR(INDEX(MasterTable[],MATCH(A79,MasterTable[PF+CR],0),7),"-") -> - | F79: C | G79: =IFERROR(INDEX(MasterTable[],MATCH(Simulator!E79,MasterTable[P/N],0),COLUMN(MasterTable[Typical Current])),"-") -> - | H79: =IFERROR(INDEX(MasterTable[],MATCH(Simulator!E79,MasterTable[P/N],0),COLUMN(MasterTable[Typical Lumens])),"-") -> - | I79: =IFERROR(MROUND(IF(OR(E79="-",Calculations!V77>(N79+1)),"-",Calculations!V77),1),"-") -> - | J79: =IFERROR(IF(I79,Calculations!AX77,"-"),"-") -> - | K79: - | L79: =IFERROR(MROUND(IF(I79,Calculations!AC77*H79,"-"),1),"-") -> - | M79: - | N79: =IFERROR(INDEX(MasterTable[],MATCH(A79,MasterTable[PF+CR],0),COLUMN(MasterTable[Max Current])),"-") -> - | P79: =IFERROR(INDEX(MasterTable[],MATCH(Simulator!E79,MasterTable[P/N],0),COLUMN(MasterTable[Typical Efficacy])),"-") -> - | Q79: =IFERROR(IF(I79,Calculations!F77,"-"),"-") -> -
A80: V15-D-30E | D80: V15 | E80: =IFERROR(INDEX(MasterTable[],MATCH(A80,MasterTable[PF+CR],0),7),"-") -> - | F80: D | G80: =IFERROR(INDEX(MasterTable[],MATCH(Simulator!E80,MasterTable[P/N],0),COLUMN(MasterTable[Typical Current])),"-") -> - | H80: =IFERROR(INDEX(MasterTable[],MATCH(Simulator!E80,MasterTable[P/N],0),COLUMN(MasterTable[Typical Lumens])),"-") -> - | I80: =IFERROR(MROUND(IF(OR(E80="-",Calculations!V78>(N80+1)),"-",Calculations!V78),1),"-") -> - | J80: =IFERROR(IF(I80,Calculations!AX78,"-"),"-") -> - | K80: - | L80: =IFERROR(MROUND(IF(I80,Calculations!AC78*H80,"-"),1),"-") -> - | M80: - | N80: =IFERROR(INDEX(MasterTable[],MATCH(A80,MasterTable[PF+CR],0),COLUMN(MasterTable[Max Current])),"-") -> - | P80: =IFERROR(INDEX(MasterTable[],MATCH(Simulator!E80,MasterTable[P/N],0),COLUMN(MasterTable[Typical Efficacy])),"-") -> - | Q80: =IFERROR(IF(I80,Calculations!F78,"-"),"-") -> -
A81: V18-F-30E | D81: V18 | E81: =IFERROR(INDEX(MasterTable[],MATCH(A81,MasterTable[PF+CR],0),7),"-") -> - | F81: F | G81: =IFERROR(INDEX(MasterTable[],MATCH(Simulator!E81,MasterTable[P/N],0),COLUMN(MasterTable[Typical Current])),"-") -> - | H81: =IFERROR(INDEX(MasterTable[],MATCH(Simulator!E81,MasterTable[P/N],0),COLUMN(MasterTable[Typical Lumens])),"-") -> - | I81: =IFERROR(MROUND(IF(OR(E81="-",Calculations!V79>(N81+1)),"-",Calculations!V79),1),"-") -> - | J81: =IFERROR(IF(I81,Calculations!AX79,"-"),"-") -> - | K81: - | L81: =IFERROR(MROUND(IF(I81,Calculations!AC79*H81,"-"),1),"-") -> - | M81: - | N81: =IFERROR(INDEX(MasterTable[],MATCH(A81,MasterTable[PF+CR],0),COLUMN(MasterTable[Max Current])),"-") -> - | P81: =IFERROR(INDEX(MasterTable[],MATCH(Simulator!E81,MasterTable[P/N],0),COLUMN(MasterTable[Typical Efficacy])),"-") -> - | Q81: =IFERROR(IF(I81,Calculations!F79,"-"),"-") -> -
A82: V22-G-30E | D82: V22 | E82: =IFERROR(INDEX(MasterTable[],MATCH(A82,MasterTable[PF+CR],0),7),"-") -> - | F82: G | G82: =IFERROR(INDEX(MasterTable[],MATCH(Simulator!E82,MasterTable[P/N],0),COLUMN(MasterTable[Typical Current])),"-") -> - | H82: =IFERROR(INDEX(MasterTable[],MATCH(Simulator!E82,MasterTable[P/N],0),COLUMN(MasterTable[Typical Lumens])),"-") -> - | I82: =IFERROR(MROUND(IF(OR(E82="-",Calculations!V80>(N82+1)),"-",Calculations!V80),1),"-") -> - | J82: =IFERROR(IF(I82,Calculations!AX80,"-"),"-") -> - | K82: - | L82: =IFERROR(MROUND(IF(I82,Calculations!AC80*H82,"-"),1),"-") -> - | M82: - | N82: =IFERROR(INDEX(MasterTable[],MATCH(A82,MasterTable[PF+CR],0),COLUMN(MasterTable[Max Current])),"-") -> - | P82: =IFERROR(INDEX(MasterTable[],MATCH(Simulator!E82,MasterTable[P/N],0),COLUMN(MasterTable[Typical Efficacy])),"-") -> - | Q82: =IFERROR(IF(I82,Calculations!F80,"-"),"-") -> -
A84: =A28 -> Vero 10-30EB | D84: Vero 10 | E84: =IFERROR(INDEX(MasterTable[],MATCH(A84,MasterTable[PF+CR],0),7),"-") -> - | F84: B | G84: =IFERROR(INDEX(MasterTable[],MATCH(Simulator!E84,MasterTable[P/N],0),COLUMN(MasterTable[Typical Current])),"-") -> - | H84: =IFERROR(INDEX(MasterTable[],MATCH(Simulator!E84,MasterTable[P/N],0),COLUMN(MasterTable[Typical Lumens])),"-") -> - | I84: =IFERROR(MROUND(IF(OR(E84="-",Calculations!V85>(N84+1)),"-",Calculations!V85),1),"-") -> - | J84: =IFERROR(IF(I84,Calculations!AX85,"-"),"-") -> - | K84: =IFERROR(I84*J84/1000,"-") -> - | L84: =IFERROR(MROUND(IF(I84,Calculations!AC85*H84,"-"),1),"-") -> - | M84: =IFERROR(L84/K84,"-") -> - | N84: =IFERROR(INDEX(MasterTable[],MATCH(A84,MasterTable[PF+CR],0),COLUMN(MasterTable[Max Current])),"-") -> - | P84: =IFERROR(INDEX(MasterTable[],MATCH(Simulator!E84,MasterTable[P/N],0),COLUMN(MasterTable[Typical Efficacy])),"-") -> - | Q84: =IFERROR(IF(I84,Calculations!F85,"-"),"-") -> -
A85: =A29 -> Vero 13-30EC | D85: Vero 13 | E85: =IFERROR(INDEX(MasterTable[],MATCH(A85,MasterTable[PF+CR],0),7),"-") -> - | F85: C | G85: =IFERROR(INDEX(MasterTable[],MATCH(Simulator!E85,MasterTable[P/N],0),COLUMN(MasterTable[Typical Current])),"-") -> - | H85: =IFERROR(INDEX(MasterTable[],MATCH(Simulator!E85,MasterTable[P/N],0),COLUMN(MasterTable[Typical Lumens])),"-") -> - | I85: =IFERROR(MROUND(IF(OR(E85="-",Calculations!V86>(N85+1)),"-",Calculations!V86),1),"-") -> - | J85: =IFERROR(IF(I85,Calculations!AX86,"-"),"-") -> - | K85: =IFERROR(I85*J85/1000,"-") -> - | L85: =IFERROR(MROUND(IF(I85,Calculations!AC86*H85,"-"),1),"-") -> - | M85: =IFERROR(L85/K85,"-") -> - | N85: =IFERROR(INDEX(MasterTable[],MATCH(A85,MasterTable[PF+CR],0),COLUMN(MasterTable[Max Current])),"-") -> - | P85: =IFERROR(INDEX(MasterTable[],MATCH(Simulator!E85,MasterTable[P/N],0),COLUMN(MasterTable[Typical Efficacy])),"-") -> - | Q85: =IFERROR(IF(I85,Calculations!F86,"-"),"-") -> -
A86: =A30 -> Vero 18-30EF | D86: Vero 18 | E86: =IFERROR(INDEX(MasterTable[],MATCH(A86,MasterTable[PF+CR],0),7),"-") -> - | F86: F | G86: =IFERROR(INDEX(MasterTable[],MATCH(Simulator!E86,MasterTable[P/N],0),COLUMN(MasterTable[Typical Current])),"-") -> - | H86: =IFERROR(INDEX(MasterTable[],MATCH(Simulator!E86,MasterTable[P/N],0),COLUMN(MasterTable[Typical Lumens])),"-") -> - | I86: =IFERROR(MROUND(IF(OR(E86="-",Calculations!V87>(N86+1)),"-",Calculations!V87),1),"-") -> - | J86: =IFERROR(IF(I86,Calculations!AX87,"-"),"-") -> - | K86: =IFERROR(I86*J86/1000,"-") -> - | L86: =IFERROR(MROUND(IF(I86,Calculations!AC87*H86,"-"),1),"-") -> - | M86: =IFERROR(L86/K86,"-") -> - | N86: =IFERROR(INDEX(MasterTable[],MATCH(A86,MasterTable[PF+CR],0),COLUMN(MasterTable[Max Current])),"-") -> - | P86: =IFERROR(INDEX(MasterTable[],MATCH(Simulator!E86,MasterTable[P/N],0),COLUMN(MasterTable[Typical Efficacy])),"-") -> - | Q86: =IFERROR(IF(I86,Calculations!F87,"-"),"-") -> -
A87: =A31 -> Vero 29-30EL | D87: Vero 29 | E87: =IFERROR(INDEX(MasterTable[],MATCH(A87,MasterTable[PF+CR],0),7),"-") -> - | F87: L | G87: =IFERROR(INDEX(MasterTable[],MATCH(Simulator!E87,MasterTable[P/N],0),COLUMN(MasterTable[Typical Current])),"-") -> - | H87: =IFERROR(INDEX(MasterTable[],MATCH(Simulator!E87,MasterTable[P/N],0),COLUMN(MasterTable[Typical Lumens])),"-") -> - | I87: =IFERROR(MROUND(IF(OR(E87="-",Calculations!V88>(N87+1)),"-",Calculations!V88),1),"-") -> - | J87: =IFERROR(IF(I87,Calculations!AX88,"-"),"-") -> - | K87: =IFERROR(I87*J87/1000,"-") -> - | L87: =IFERROR(MROUND(IF(I87,Calculations!AC88*H87,"-"),1),"-") -> - | M87: =IFERROR(L87/K87,"-") -> - | N87: =IFERROR(INDEX(MasterTable[],MATCH(A87,MasterTable[PF+CR],0),COLUMN(MasterTable[Max Current])),"-") -> - | P87: =IFERROR(INDEX(MasterTable[],MATCH(Simulator!E87,MasterTable[P/N],0),COLUMN(MasterTable[Typical Efficacy])),"-") -> - | Q87: =IFERROR(IF(I87,Calculations!F88,"-"),"-") -> -
A89: =A33 -> H6-30EC | D89: H6 | E89: =IFERROR(INDEX(MasterTable[],MATCH(A89,MasterTable[PF+CR],0),7),"-") -> - | F89: C | G89: =IFERROR(INDEX(MasterTable[],MATCH(Simulator!E89,MasterTable[P/N],0),COLUMN(MasterTable[Typical Current])),"-") -> - | H89: =IFERROR(INDEX(MasterTable[],MATCH(Simulator!E89,MasterTable[P/N],0),COLUMN(MasterTable[Typical Lumens])),"-") -> - | I89: =IFERROR(MROUND(IF(OR(E89="-",Calculations!V93>(N89+1)),"-",Calculations!V93),1),"-") -> - | J89: =IFERROR(IF(I89,Calculations!AX93,"-"),"-") -> - | K89: =IFERROR(I89*J89/1000,"-") -> - | L89: =IFERROR(MROUND(IF(I89,Calculations!AC93*H89,"-"),1),"-") -> - | M89: =IFERROR(L89/K89,"-") -> - | N89: =IFERROR(INDEX(MasterTable[],MATCH(A89,MasterTable[PF+CR],0),COLUMN(MasterTable[Max Current])),"-") -> - | O89: =IF(L89="-","-",H89*0.86) -> - | P89: =IFERROR(INDEX(MasterTable[],MATCH(Simulator!E89,MasterTable[P/N],0),COLUMN(MasterTable[Typical Efficacy])),"-") -> - | Q89: =IFERROR(IF(I89,Calculations!F93,"-"),"-") -> - | R89: - | S89: - | T89: -
A90: =A34 -> H9-30ED | D90: H9 | E90: =IFERROR(INDEX(MasterTable[],MATCH(A90,MasterTable[PF+CR],0),7),"-") -> - | F90: D | G90: =IFERROR(INDEX(MasterTable[],MATCH(Simulator!E90,MasterTable[P/N],0),COLUMN(MasterTable[Typical Current])),"-") -> - | H90: =IFERROR(INDEX(MasterTable[],MATCH(Simulator!E90,MasterTable[P/N],0),COLUMN(MasterTable[Typical Lumens])),"-") -> - | I90: =IFERROR(MROUND(IF(OR(E90="-",Calculations!V94>(N90+1)),"-",Calculations!V94),1),"-") -> - | J90: =IFERROR(IF(I90,Calculations!AX94,"-"),"-") -> - | K90: =IFERROR(I90*J90/1000,"-") -> - | L90: =IFERROR(MROUND(IF(I90,Calculations!AC94*H90,"-"),1),"-") -> - | M90: =IFERROR(L90/K90,"-") -> - | N90: =IFERROR(INDEX(MasterTable[],MATCH(A90,MasterTable[PF+CR],0),COLUMN(MasterTable[Max Current])),"-") -> - | O90: =IF(L90="-","-",H90*0.86) -> - | P90: =IFERROR(INDEX(MasterTable[],MATCH(Simulator!E90,MasterTable[P/N],0),COLUMN(MasterTable[Typical Efficacy])),"-") -> - | Q90: =IFERROR(IF(I90,Calculations!F94,"-"),"-") -> - | R90: - | S90: - | T90: -
A91: =A35 -> H12-30EG | D91: H12 | E91: =IFERROR(INDEX(MasterTable[],MATCH(A91,MasterTable[PF+CR],0),7),"-") -> - | F91: G | G91: =IFERROR(INDEX(MasterTable[],MATCH(Simulator!E91,MasterTable[P/N],0),COLUMN(MasterTable[Typical Current])),"-") -> - | H91: =IFERROR(INDEX(MasterTable[],MATCH(Simulator!E91,MasterTable[P/N],0),COLUMN(MasterTable[Typical Lumens])),"-") -> - | I91: =IFERROR(MROUND(IF(OR(E91="-",Calculations!V95>(N91+1)),"-",Calculations!V95),1),"-") -> - | J91: =IFERROR(IF(I91,Calculations!AX95,"-"),"-") -> - | K91: =IFERROR(I91*J91/1000,"-") -> - | L91: =IFERROR(MROUND(IF(I91,Calculations!AC95*H91,"-"),1),"-") -> - | M91: =IFERROR(L91/K91,"-") -> - | N91: =IFERROR(INDEX(MasterTable[],MATCH(A91,MasterTable[PF+CR],0),COLUMN(MasterTable[Max Current])),"-") -> - | O91: =IF(L91="-","-",H91*0.86) -> - | P91: =IFERROR(INDEX(MasterTable[],MATCH(Simulator!E91,MasterTable[P/N],0),COLUMN(MasterTable[Typical Efficacy])),"-") -> - | Q91: =IFERROR(IF(I91,Calculations!F95,"-"),"-") -> - | R91: - | S91: - | T91: -
A92: =A36 -> H15-30EJ | D92: H15 | E92: =IFERROR(INDEX(MasterTable[],MATCH(A92,MasterTable[PF+CR],0),7),"-") -> - | F92: J | G92: =IFERROR(INDEX(MasterTable[],MATCH(Simulator!E92,MasterTable[P/N],0),COLUMN(MasterTable[Typical Current])),"-") -> - | H92: =IFERROR(INDEX(MasterTable[],MATCH(Simulator!E92,MasterTable[P/N],0),COLUMN(MasterTable[Typical Lumens])),"-") -> - | I92: =IFERROR(MROUND(IF(OR(E92="-",Calculations!V96>(N92+1)),"-",Calculations!V96),1),"-") -> - | J92: =IFERROR(IF(I92,Calculations!AX96,"-"),"-") -> - | K92: =IFERROR(I92*J92/1000,"-") -> - | L92: =IFERROR(MROUND(IF(I92,Calculations!AC96*H92,"-"),1),"-") -> - | M92: =IFERROR(L92/K92,"-") -> - | N92: =IFERROR(INDEX(MasterTable[],MATCH(A92,MasterTable[PF+CR],0),COLUMN(MasterTable[Max Current])),"-") -> - | O92: =IF(L92="-","-",H92*0.86) -> - | P92: =IFERROR(INDEX(MasterTable[],MATCH(Simulator!E92,MasterTable[P/N],0),COLUMN(MasterTable[Typical Efficacy])),"-") -> - | Q92: =IFERROR(IF(I92,Calculations!F96,"-"),"-") -> - | R92: - | S92: - | T92: -
A94: =D94&C94&"-"&L$6&F94 -> V4 HD-30EA | D94: V4 HD | E94: =IFERROR(INDEX(MasterTable[],MATCH(A94,MasterTable[PF+CR],0),7),"-") -> BXRH-30E0600-A-xx | F94: A | G94: =IFERROR(INDEX(MasterTable[],MATCH(Simulator!E94,MasterTable[P/N],0),COLUMN(MasterTable[Typical Current])),"-") -> 175 | H94: =IFERROR(INDEX(MasterTable[],MATCH(Simulator!E94,MasterTable[P/N],0),COLUMN(MasterTable[Typical Lumens])),"-") -> 765 | I94: =IFERROR(MROUND(IF(OR(E94="-",Calculations!V99>(N94+1)),"-",Calculations!V99),5),"-") -> - | J94: =IFERROR(IF(I94,Calculations!AX99,"-"),"-") -> - | K94: =IFERROR(I94*J94/1000,"-") -> - | L94: =IFERROR(MROUND(IF(I94,Calculations!AC99*H94,"-"),1),"-") -> - | M94: =IFERROR(L94/K94,"-") -> - | N94: =IFERROR(INDEX(MasterTable[],MATCH(A94,MasterTable[PF+CR],0),COLUMN(MasterTable[Max Current])),"-") -> 240 | O94: =IF(L94="-","-",H94*0.88) -> - | P94: =IFERROR(INDEX(MasterTable[],MATCH(Simulator!E94,MasterTable[P/N],0),COLUMN(MasterTable[Typical Efficacy])),"-") -> 120.0941915 | Q94: =IFERROR(IF(I94,Calculations!F99,"-"),"-") -> - | R94: =IFERROR('PPF calc'!$J$8,"-") -> 0.01426556194 | S94: =IFERROR(R94*L94,"-") -> - | T94: =IFERROR(S94/K94,"-") -> -
A95: =D95&C95&"-"&L$6&F95 -> V6 HD-30EB | D95: V6 HD | E95: =IFERROR(INDEX(MasterTable[],MATCH(A95,MasterTable[PF+CR],0),7),"-") -> BXRH-30E1000-B-xx | F95: B | G95: =IFERROR(INDEX(MasterTable[],MATCH(Simulator!E95,MasterTable[P/N],0),COLUMN(MasterTable[Typical Current])),"-") -> 350 | H95: =IFERROR(INDEX(MasterTable[],MATCH(Simulator!E95,MasterTable[P/N],0),COLUMN(MasterTable[Typical Lumens])),"-") -> 1587 | I95: =IFERROR(MROUND(IF(OR(E95="-",Calculations!V100>(N95+1)),"-",Calculations!V100),5),"-") -> 250 | J95: =IFERROR(IF(I95,Calculations!AX100,"-"),"-") -> 36.03528592 | K95: =IFERROR(I95*J95/1000,"-") -> 9.00882148 | L95: =IFERROR(MROUND(IF(I95,Calculations!AC100*H95,"-"),1),"-") -> 1170 | M95: =IFERROR(L95/K95,"-") -> 129.8727034 | N95: =IFERROR(INDEX(MasterTable[],MATCH(A95,MasterTable[PF+CR],0),COLUMN(MasterTable[Max Current])),"-") -> 480 | O95: =IF(L95="-","-",H95*0.88) -> 1396.56 | P95: =IFERROR(INDEX(MasterTable[],MATCH(Simulator!E95,MasterTable[P/N],0),COLUMN(MasterTable[Typical Efficacy])),"-") -> 124.5682889 | Q95: =IFERROR(IF(I95,Calculations!F100,"-"),"-") -> 28.24317573 | R95: =IFERROR('PPF calc'!$J$8,"-") -> 0.01426556194 | S95: =IFERROR(R95*L95,"-") -> 16.69070747 | T95: =IFERROR(S95/K95,"-") -> 1.852707094
A96: =D96&C96&"-"&L$6&F96 -> V9 HD-30ED | D96: V9 HD | E96: =IFERROR(INDEX(MasterTable[],MATCH(A96,MasterTable[PF+CR],0),7),"-") -> BXRH-30E3000-D-xx | F96: D | G96: =IFERROR(INDEX(MasterTable[],MATCH(Simulator!E96,MasterTable[P/N],0),COLUMN(MasterTable[Typical Current])),"-") -> 700 | H96: =IFERROR(INDEX(MasterTable[],MATCH(Simulator!E96,MasterTable[P/N],0),COLUMN(MasterTable[Typical Lumens])),"-") -> 3417 | I96: =IFERROR(MROUND(IF(OR(E96="-",Calculations!V101>(N96+1)),"-",Calculations!V101),5),"-") -> 225 | J96: =IFERROR(IF(I96,Calculations!AX101,"-"),"-") -> 33.43229114 | K96: =IFERROR(I96*J96/1000,"-") -> 7.522265507 | L96: =IFERROR(MROUND(IF(I96,Calculations!AC101*H96,"-"),1),"-") -> 1170 | M96: =IFERROR(L96/K96,"-") -> 155.5382483 | N96: =IFERROR(INDEX(MasterTable[],MATCH(A96,MasterTable[PF+CR],0),COLUMN(MasterTable[Max Current])),"-") -> 960 | O96: =IF(L96="-","-",H96*0.88) -> 3006.96 | P96: =IFERROR(INDEX(MasterTable[],MATCH(Simulator!E96,MasterTable[P/N],0),COLUMN(MasterTable[Typical Efficacy])),"-") -> 134.1051805 | Q96: =IFERROR(IF(I96,Calculations!F101,"-"),"-") -> 26.35400779 | R96: =IFERROR('PPF calc'!$J$8,"-") -> 0.01426556194 | S96: =IFERROR(R96*L96,"-") -> 16.69070747 | T96: =IFERROR(S96/K96,"-") -> 2.218840515
A98: =D98&C98&"-"&L$6&F98 -> V8-D-30ED | D98: V8-D | E98: =IFERROR(INDEX(MasterTable[],MATCH(A98,MasterTable[PF+CR],0),7),"-") -> BXRE-30E0800-D-xx | F98: D | G98: =IFERROR(INDEX(MasterTable[],MATCH(Simulator!E98,MasterTable[P/N],0),COLUMN(MasterTable[Typical Current])),"-") -> 350 | H98: =IFERROR(INDEX(MasterTable[],MATCH(Simulator!E98,MasterTable[P/N],0),COLUMN(MasterTable[Typical Lumens])),"-") -> 999 | I98: =IFERROR(MROUND(IF(OR(E98="-",Calculations!V106>(N98+1)),"-",Calculations!V106),5),"-") -> 415 | J98: =IFERROR(IF(I98,Calculations!AX106,"-"),"-") -> 17.53051124 | K98: =IFERROR(I98*J98/1000,"-") -> 7.275162166 | L98: =IFERROR(MROUND(IF(I98,Calculations!AC106*H98,"-"),1),"-") -> 1170 | M98: =IFERROR(L98/K98,"-") -> 160.8211574 | N98: =IFERROR(INDEX(MasterTable[],MATCH(A98,MasterTable[PF+CR],0),COLUMN(MasterTable[Max Current])),"-") -> 700 | O98: =IF(L98="-","-",H98*0.88) -> 879.12 | P98: =IFERROR(INDEX(MasterTable[],MATCH(Simulator!E98,MasterTable[P/N],0),COLUMN(MasterTable[Typical Efficacy])),"-") -> 164.9876135 | Q98: =IFERROR(IF(I98,Calculations!F106,"-"),"-") -> 28.56482946 | R98: =IFERROR('PPF calc'!$J$8,"-") -> 0.01426556194 | S98: =IFERROR(R98*L98,"-") -> 16.69070747 | T98: =IFERROR(S98/K98,"-") -> 2.294204182
A99: V8-E-30EE | D99: V8-E | E99: =IFERROR(INDEX(MasterTable[],MATCH(A99,MasterTable[PF+CR],0),7),"-") -> BXRE-30E0800-E-xx | F99: E | G99: =IFERROR(INDEX(MasterTable[],MATCH(Simulator!E99,MasterTable[P/N],0),COLUMN(MasterTable[Typical Current])),"-") -> 175 | H99: =IFERROR(INDEX(MasterTable[],MATCH(Simulator!E99,MasterTable[P/N],0),COLUMN(MasterTable[Typical Lumens])),"-") -> 1002 | I99: =IFERROR(MROUND(IF(OR(E99="-",Calculations!V107>(N99+1)),"-",Calculations!V107),5),"-") -> 205 | J99: =IFERROR(IF(I99,Calculations!AX107,"-"),"-") -> 34.87808382 | K99: =IFERROR(I99*J99/1000,"-") -> 7.150007183 | L99: =IFERROR(MROUND(IF(I99,Calculations!AC107*H99,"-"),1),"-") -> 1170 | M99: =IFERROR(L99/K99,"-") -> 163.6361992 | N99: =IFERROR(INDEX(MasterTable[],MATCH(A99,MasterTable[PF+CR],0),COLUMN(MasterTable[Max Current])),"-") -> 350 | O99: =IF(L99="-","-",H99*0.88) -> 881.76 | P99: =IFERROR(INDEX(MasterTable[],MATCH(Simulator!E99,MasterTable[P/N],0),COLUMN(MasterTable[Typical Efficacy])),"-") -> 165.0061754 | Q99: =IFERROR(IF(I99,Calculations!F107,"-"),"-") -> 28.50350352 | R99: =IFERROR('PPF calc'!$J$8,"-") -> 0.01426556194 | S99: 16.69070747 | T99: 2.334362336
A100: V10-B-30EB | D100: V10-B | E100: =IFERROR(INDEX(MasterTable[],MATCH(A100,MasterTable[PF+CR],0),7),"-") -> BXRE-30E1000-B-xx | F100: B | G100: =IFERROR(INDEX(MasterTable[],MATCH(Simulator!E100,MasterTable[P/N],0),COLUMN(MasterTable[Typical Current])),"-") -> 270 | H100: =IFERROR(INDEX(MasterTable[],MATCH(Simulator!E100,MasterTable[P/N],0),COLUMN(MasterTable[Typical Lumens])),"-") -> 1549 | I100: =IFERROR(MROUND(IF(OR(E100="-",Calculations!V108>(N100+1)),"-",Calculations!V108),5),"-") -> 200 | J100: =IFERROR(IF(I100,Calculations!AX108,"-"),"-") -> 34.07920382 | K100: =IFERROR(I100*J100/1000,"-") -> 6.815840763 | L100: =IFERROR(MROUND(IF(I100,Calculations!AC108*H100,"-"),1),"-") -> 1170 | M100: =IFERROR(L100/K100,"-") -> 171.6589399 | N100: =IFERROR(INDEX(MasterTable[],MATCH(A100,MasterTable[PF+CR],0),COLUMN(MasterTable[Max Current])),"-") -> 540 | O100: =IF(L100="-","-",H100*0.88) -> 1363.12 | P100: =IFERROR(INDEX(MasterTable[],MATCH(Simulator!E100,MasterTable[P/N],0),COLUMN(MasterTable[Typical Efficacy])),"-") -> 164.8573861 | Q100: =IFERROR(IF(I100,Calculations!F108,"-"),"-") -> 28.34487385 | R100: =IFERROR('PPF calc'!$J$8,"-") -> 0.01426556194 | S100: 16.69070747 | T100: 2.448811239
A101: V10-C-30EC | D101: V10-C | E101: =IFERROR(INDEX(MasterTable[],MATCH(A101,MasterTable[PF+CR],0),7),"-") -> BXRE-30E1000-C-xx | F101: C | G101: =IFERROR(INDEX(MasterTable[],MATCH(Simulator!E101,MasterTable[P/N],0),COLUMN(MasterTable[Typical Current])),"-") -> 360 | H101: =IFERROR(INDEX(MasterTable[],MATCH(Simulator!E101,MasterTable[P/N],0),COLUMN(MasterTable[Typical Lumens])),"-") -> 2066 | I101: =IFERROR(MROUND(IF(OR(E101="-",Calculations!V109>(N101+1)),"-",Calculations!V109),5),"-") -> 195 | J101: =IFERROR(IF(I101,Calculations!AX109,"-"),"-") -> 33.39327862 | K101: =IFERROR(I101*J101/1000,"-") -> 6.511689331 | L101: =IFERROR(MROUND(IF(I101,Calculations!AC109*H101,"-"),1),"-") -> 1170 | M101: 179.6768765 | N101: =IFERROR(INDEX(MasterTable[],MATCH(A101,MasterTable[PF+CR],0),COLUMN(MasterTable[Max Current])),"-") -> 720 | O101: =IF(L101="-","-",H101*0.88) -> 1818.08 | P101: =IFERROR(INDEX(MasterTable[],MATCH(Simulator!E101,MasterTable[P/N],0),COLUMN(MasterTable[Typical Efficacy])),"-") -> 164.9106003 | Q101: =IFERROR(IF(I101,Calculations!F109,"-"),"-") -> 27.41171267 | R101: =IFERROR('PPF calc'!$J$8,"-") -> 0.01426556194 | S101: 16.69070747 | T101: 2.563191611
A102: V13-B-30EB | D102: V13-B | E102: =IFERROR(INDEX(MasterTable[],MATCH(A102,MasterTable[PF+CR],0),7),"-") -> BXRE-30E2000-B-xx | F102: B | G102: =IFERROR(INDEX(MasterTable[],MATCH(Simulator!E102,MasterTable[P/N],0),COLUMN(MasterTable[Typical Current])),"-") -> 450 | H102: =IFERROR(INDEX(MasterTable[],MATCH(Simulator!E102,MasterTable[P/N],0),COLUMN(MasterTable[Typical Lumens])),"-") -> 2658.375 | I102: =IFERROR(MROUND(IF(OR(E102="-",Calculations!V110>(N102+1)),"-",Calculations!V110),5),"-") -> 185 | J102: =IFERROR(IF(I102,Calculations!AX110,"-"),"-") -> 32.88777168 | K102: =IFERROR(I102*J102/1000,"-") -> 6.084237761 | L102: =IFERROR(MROUND(IF(I102,Calculations!AC110*H102,"-"),1),"-") -> 1170 | M102: 192.3001773 | N102: =IFERROR(INDEX(MasterTable[],MATCH(A102,MasterTable[PF+CR],0),COLUMN(MasterTable[Max Current])),"-") -> 900 | O102: =IF(L102="-","-",H102*0.9) -> 2392.5375 | P102: =IFERROR(INDEX(MasterTable[],MATCH(Simulator!E102,MasterTable[P/N],0),COLUMN(MasterTable[Typical Efficacy])),"-") -> 169.7557471 | Q102: =IFERROR(IF(I102,Calculations!F110,"-"),"-") -> 26.70581746 | R102: =IFERROR('PPF calc'!$J$8,"-") -> 0.01426556194 | S102: 16.69070747 | T102: 2.743270089
A103: V13-C-30EC | D103: V13-C | E103: =IFERROR(INDEX(MasterTable[],MATCH(A103,MasterTable[PF+CR],0),7),"-") -> BXRE-30E2000-C-xx | F103: C | G103: =IFERROR(INDEX(MasterTable[],MATCH(Simulator!E103,MasterTable[P/N],0),COLUMN(MasterTable[Typical Current])),"-") -> 630 | H103: =IFERROR(INDEX(MasterTable[],MATCH(Simulator!E103,MasterTable[P/N],0),COLUMN(MasterTable[Typical Lumens])),"-") -> 3721.725 | I103: =IFERROR(MROUND(IF(OR(E103="-",Calculations!V111>(N103+1)),"-",Calculations!V111),5),"-") -> 185 | J103: =IFERROR(IF(I103,Calculations!AX111,"-"),"-") -> 32.4710093 | K103: 6.007136721 | L103: =IFERROR(MROUND(IF(I103,Calculations!AC111*H103,"-"),1),"-") -> 1170 | M103: 194.7683321 | N103: =IFERROR(INDEX(MasterTable[],MATCH(A103,MasterTable[PF+CR],0),COLUMN(MasterTable[Max Current])),"-") -> 1260 | O103: 3349.5525 | P103: =IFERROR(INDEX(MasterTable[],MATCH(Simulator!E103,MasterTable[P/N],0),COLUMN(MasterTable[Typical Efficacy])),"-") -> 169.7557471 | Q103: =IFERROR(IF(I103,Calculations!F111,"-"),"-") -> 26.1938183 | R103: =IFERROR('PPF calc'!$J$8,"-") -> 0.01426556194 | S103: 16.69070747 | T103: 2.778479705
A104: V18-B-30EB | D104: V18-B | E104: =IFERROR(INDEX(MasterTable[],MATCH(A104,MasterTable[PF+CR],0),7),"-") -> BXRE-30E4000-B-xx | F104: B | G104: =IFERROR(INDEX(MasterTable[],MATCH(Simulator!E104,MasterTable[P/N],0),COLUMN(MasterTable[Typical Current])),"-") -> 900 | H104: =IFERROR(INDEX(MasterTable[],MATCH(Simulator!E104,MasterTable[P/N],0),COLUMN(MasterTable[Typical Lumens])),"-") -> 5324.4 | I104: =IFERROR(MROUND(IF(OR(E104="-",Calculations!V112>(N104+1)),"-",Calculations!V112),5),"-") -> 185 | J104: =IFERROR(IF(I104,Calculations!AX112,"-"),"-") -> 32.33070632 | K104: 5.981180668 | L104: =IFERROR(MROUND(IF(I104,Calculations!AC112*H104,"-"),1),"-") -> 1170 | M104: 195.6135527 | N104: =IFERROR(INDEX(MasterTable[],MATCH(A104,MasterTable[PF+CR],0),COLUMN(MasterTable[Max Current])),"-") -> 1800 | O104: 4791.96 | P104: =IFERROR(INDEX(MasterTable[],MATCH(Simulator!E104,MasterTable[P/N],0),COLUMN(MasterTable[Typical Efficacy])),"-") -> 170 | Q104: =IFERROR(IF(I104,Calculations!F112,"-"),"-") -> 25.92429179 | R104: =IFERROR('PPF calc'!$J$8,"-") -> 0.01426556194 | S104: 16.69070747 | T104: 2.790537252
A105: V18-C-30EC | D105: V18-C | E105: =IFERROR(INDEX(MasterTable[],MATCH(A105,MasterTable[PF+CR],0),7),"-") -> BXRE-30E4000-C-xx | F105: C | G105: =IFERROR(INDEX(MasterTable[],MATCH(Simulator!E105,MasterTable[P/N],0),COLUMN(MasterTable[Typical Current])),"-") -> 1170 | H105: =IFERROR(INDEX(MasterTable[],MATCH(Simulator!E105,MasterTable[P/N],0),COLUMN(MasterTable[Typical Lumens])),"-") -> 6921.72 | I105: =IFERROR(MROUND(IF(OR(E105="-",Calculations!V113>(N105+1)),"-",Calculations!V113),5),"-") -> 190 | J105: =IFERROR(IF(I105,Calculations!AX113,"-"),"-") -> 31.98328715 | K105: 6.076824559 | L105: =IFERROR(MROUND(IF(I105,Calculations!AC113*H105,"-"),1),"-") -> 1170 | M105: 192.5347669 | N105: =IFERROR(INDEX(MasterTable[],MATCH(A105,MasterTable[PF+CR],0),COLUMN(MasterTable[Max Current])),"-") -> 2340 | O105: 6229.548 | P105: =IFERROR(INDEX(MasterTable[],MATCH(Simulator!E105,MasterTable[P/N],0),COLUMN(MasterTable[Typical Efficacy])),"-") -> 170 | Q105: =IFERROR(IF(I105,Calculations!F113,"-"),"-") -> 25.68100947 | R105: =IFERROR('PPF calc'!$J$8,"-") -> 0.01426556194 | S105: 16.69070747 | T105: 2.746616643
A106: V22-B-30EB | D106: V22-B | E106: =IFERROR(INDEX(MasterTable[],MATCH(A106,MasterTable[PF+CR],0),7),"-") -> BXRE-30E6500-B-xx | F106: B | G106: =IFERROR(INDEX(MasterTable[],MATCH(Simulator!E106,MasterTable[P/N],0),COLUMN(MasterTable[Typical Current])),"-") -> 1170 | H106: =IFERROR(INDEX(MasterTable[],MATCH(Simulator!E106,MasterTable[P/N],0),COLUMN(MasterTable[Typical Lumens])),"-") -> 10342.8 | I106: =IFERROR(MROUND(IF(OR(E106="-",Calculations!V114>(N106+1)),"-",Calculations!V114),5),"-") -> 120 | J106: =IFERROR(IF(I106,Calculations!AX114,"-"),"-") -> 47.11158778 | K106: 5.653390533 | L106: =IFERROR(MROUND(IF(I106,Calculations!AC114*H106,"-"),1),"-") -> 1170 | M106: 206.9554532 | N106: =IFERROR(INDEX(MasterTable[],MATCH(A106,MasterTable[PF+CR],0),COLUMN(MasterTable[Max Current])),"-") -> 2340 | O106: 9308.52 | P106: =IFERROR(INDEX(MasterTable[],MATCH(Simulator!E106,MasterTable[P/N],0),COLUMN(MasterTable[Typical Efficacy])),"-") -> 170 | Q106: =IFERROR(IF(I106,Calculations!F114,"-"),"-") -> 25.39573734 | R106: =IFERROR('PPF calc'!$J$8,"-") -> 0.01426556194 | S106: 16.69070747 | T106: 2.952335836
A107: V22-C-30EC | D107: V22-C | E107: =IFERROR(INDEX(MasterTable[],MATCH(A107,MasterTable[PF+CR],0),7),"-") -> BXRE-30E6500-C-xx | F107: C | G107: =IFERROR(INDEX(MasterTable[],MATCH(Simulator!E107,MasterTable[P/N],0),COLUMN(MasterTable[Typical Current])),"-") -> 1440 | H107: =IFERROR(INDEX(MasterTable[],MATCH(Simulator!E107,MasterTable[P/N],0),COLUMN(MasterTable[Typical Lumens])),"-") -> 12729.6 | I107: =IFERROR(MROUND(IF(OR(E107="-",Calculations!V115>(N107+1)),"-",Calculations!V115),5),"-") -> 105 | J107: =IFERROR(IF(I107,Calculations!AX115,"-"),"-") -> 47.33150069 | K107: 4.969807573 | L107: =IFERROR(MROUND(IF(I107,Calculations!AC115*H107,"-"),1),"-") -> 1170 | M107: 235.4215898 | N107: =IFERROR(INDEX(MasterTable[],MATCH(A107,MasterTable[PF+CR],0),COLUMN(MasterTable[Max Current])),"-") -> 2880 | O107: 11456.64 | P107: =IFERROR(INDEX(MasterTable[],MATCH(Simulator!E107,MasterTable[P/N],0),COLUMN(MasterTable[Typical Efficacy])),"-") -> 170 | Q107: =IFERROR(IF(I107,Calculations!F115,"-"),"-") -> 25.31790202 | R107: =IFERROR('PPF calc'!$J$8,"-") -> 0.01426556194 | S107: 16.69070747 | T107: 3.358421271
A108: V22-D-30ED | D108: V22-D | E108: =IFERROR(INDEX(MasterTable[],MATCH(A108,MasterTable[PF+CR],0),7),"-") -> BXRE-30E6500-D-xx | F108: D | G108: =IFERROR(INDEX(MasterTable[],MATCH(Simulator!E108,MasterTable[P/N],0),COLUMN(MasterTable[Typical Current])),"-") -> 1400 | H108: =IFERROR(INDEX(MasterTable[],MATCH(Simulator!E108,MasterTable[P/N],0),COLUMN(MasterTable[Typical Lumens])),"-") -> 8330 | I108: =IFERROR(MROUND(IF(OR(E108="-",Calculations!V116>(N108+1)),"-",Calculations!V116),5),"-") -> 185 | J108: =IFERROR(IF(I108,Calculations!AX116,"-"),"-") -> 30.42879129 | K108: =IFERROR(I108*J108/1000,"-") -> 5.629326388 | L108: =IFERROR(MROUND(IF(I108,Calculations!AC116*H108,"-"),1),"-") -> 1170 | M108: 207.8401427 | N108: =IFERROR(INDEX(MasterTable[],MATCH(A108,MasterTable[PF+CR],0),COLUMN(MasterTable[Max Current])),"-") -> 2800 | O108: 7497 | P108: =IFERROR(INDEX(MasterTable[],MATCH(Simulator!E108,MasterTable[P/N],0),COLUMN(MasterTable[Typical Efficacy])),"-") -> 170.9770115 | Q108: =IFERROR(IF(I108,Calculations!F116,"-"),"-") -> 25.39405285 | R108: =IFERROR('PPF calc'!$J$8,"-") -> 0.01426556194 | S108: 16.69070747 | T108: 2.964956429
T109: -
A110: =D110&C110&"-"&L$6&F110 -> Vero 10-B-30EB | D110: Vero 10-B | E110: =IFERROR(INDEX(MasterTable[],MATCH(A110,MasterTable[PF+CR],0),7),"-") -> BXRC-30E1000-B-xx | F110: B | G110: =IFERROR(INDEX(MasterTable[],MATCH(Simulator!E110,MasterTable[P/N],0),COLUMN(MasterTable[Typical Current])),"-") -> 270 | H110: =IFERROR(INDEX(MasterTable[],MATCH(Simulator!E110,MasterTable[P/N],0),COLUMN(MasterTable[Typical Lumens])),"-") -> 1549 | I110: =IFERROR(MROUND(IF(OR(E110="-",Calculations!V117>(N110+1)),"-",Calculations!V117),5),"-") -> 200 | J110: =IFERROR(IF(I110,Calculations!AX117,"-"),"-") -> 34.05878941 | K110: =IFERROR(I110*J110/1000,"-") -> 6.811757882 | L110: =IFERROR(MROUND(IF(I110,Calculations!AC117*H110,"-"),1),"-") -> 1170 | M110: =IFERROR(L110/K110,"-") -> 171.7618301 | N110: =IFERROR(INDEX(MasterTable[],MATCH(A110,MasterTable[PF+CR],0),COLUMN(MasterTable[Max Current])),"-") -> 540 | O110: =IF(L110="-","-",H110*0.88) -> 1363.12 | P110: =IFERROR(INDEX(MasterTable[],MATCH(Simulator!E110,MasterTable[P/N],0),COLUMN(MasterTable[Typical Efficacy])),"-") -> 164.8573861 | Q110: =IFERROR(IF(I110,Calculations!F117,"-"),"-") -> 28.34287018 | R110: =IFERROR('PPF calc'!$J$8,"-") -> 0.01426556194 | S110: =IFERROR(R110*L110,"-") -> 16.69070747 | T110: 2.450279026
A111: Vero 10-C-30EC | D111: Vero 10-C | E111: =IFERROR(INDEX(MasterTable[],MATCH(A111,MasterTable[PF+CR],0),7),"-") -> BXRC-30E1000-C-xx | F111: C | G111: =IFERROR(INDEX(MasterTable[],MATCH(Simulator!E111,MasterTable[P/N],0),COLUMN(MasterTable[Typical Current])),"-") -> 360 | H111: =IFERROR(INDEX(MasterTable[],MATCH(Simulator!E111,MasterTable[P/N],0),COLUMN(MasterTable[Typical Lumens])),"-") -> 2066 | I111: =IFERROR(MROUND(IF(OR(E111="-",Calculations!V118>(N111+1)),"-",Calculations!V118),5),"-") -> 195 | J111: =IFERROR(IF(I111,Calculations!AX118,"-"),"-") -> 33.39327862 | K111: 6.511689331 | L111: =IFERROR(MROUND(IF(I111,Calculations!AC118*H111,"-"),1),"-") -> 1170 | M111: 179.6768765 | N111: =IFERROR(INDEX(MasterTable[],MATCH(A111,MasterTable[PF+CR],0),COLUMN(MasterTable[Max Current])),"-") -> 720 | O111: =IF(L111="-","-",H111*0.88) -> 1818.08 | P111: =IFERROR(INDEX(MasterTable[],MATCH(Simulator!E111,MasterTable[P/N],0),COLUMN(MasterTable[Typical Efficacy])),"-") -> 164.9106003 | Q111: =IFERROR(IF(I111,Calculations!F118,"-"),"-") -> 27.41171267 | R111: =IFERROR('PPF calc'!$J$8,"-") -> 0.01426556194 | S111: 16.69070747 | T111: 2.563191611
A112: Vero 10-D-30ED | D112: Vero 10-D | E112: =IFERROR(INDEX(MasterTable[],MATCH(A112,MasterTable[PF+CR],0),7),"-") -> BXRC-30E1000-D-xx | F112: D | G112: =IFERROR(INDEX(MasterTable[],MATCH(Simulator!E112,MasterTable[P/N],0),COLUMN(MasterTable[Typical Current])),"-") -> 350 | H112: =IFERROR(INDEX(MasterTable[],MATCH(Simulator!E112,MasterTable[P/N],0),COLUMN(MasterTable[Typical Lumens])),"-") -> 1501 | I112: =IFERROR(MROUND(IF(OR(E112="-",Calculations!V119>(N112+1)),"-",Calculations!V119),5),"-") -> 265 | J112: =IFERROR(IF(I112,Calculations!AX119,"-"),"-") -> 25.45248849 | K112: 6.744909449 | L112: =IFERROR(MROUND(IF(I112,Calculations!AC119*H112,"-"),1),"-") -> 1170 | M112: 173.4641523 | N112: =IFERROR(INDEX(MasterTable[],MATCH(A112,MasterTable[PF+CR],0),COLUMN(MasterTable[Max Current])),"-") -> 700 | O112: =IF(L112="-","-",H112*0.88) -> 1320.88 | P112: =IFERROR(INDEX(MasterTable[],MATCH(Simulator!E112,MasterTable[P/N],0),COLUMN(MasterTable[Typical Efficacy])),"-") -> 164.9450549 | Q112: =IFERROR(IF(I112,Calculations!F119,"-"),"-") -> 28.31006431 | R112: =IFERROR('PPF calc'!$J$8,"-") -> 0.01426556194 | S112: 16.69070747 | T112: 2.474563609
A113: Vero 13-B-30EB | D113: Vero 13-B | E113: =IFERROR(INDEX(MasterTable[],MATCH(A113,MasterTable[PF+CR],0),7),"-") -> BXRC-30E2000-B-xx | F113: B | G113: =IFERROR(INDEX(MasterTable[],MATCH(Simulator!E113,MasterTable[P/N],0),COLUMN(MasterTable[Typical Current])),"-") -> 450 | H113: =IFERROR(INDEX(MasterTable[],MATCH(Simulator!E113,MasterTable[P/N],0),COLUMN(MasterTable[Typical Lumens])),"-") -> 2662.2 | I113: =IFERROR(MROUND(IF(OR(E113="-",Calculations!V120>(N113+1)),"-",Calculations!V120),5),"-") -> 185 | J113: =IFERROR(IF(I113,Calculations!AX120,"-"),"-") -> 32.88952061 | K113: 6.084561314 | L113: =IFERROR(MROUND(IF(I113,Calculations!AC120*H113,"-"),1),"-") -> 1170 | M113: 192.2899515 | N113: =IFERROR(INDEX(MasterTable[],MATCH(A113,MasterTable[PF+CR],0),COLUMN(MasterTable[Max Current])),"-") -> 900 | O113: =IF(L113="-","-",H113*0.9) -> 2395.98 | P113: =IFERROR(INDEX(MasterTable[],MATCH(Simulator!E113,MasterTable[P/N],0),COLUMN(MasterTable[Typical Efficacy])),"-") -> 170 | Q113: =IFERROR(IF(I113,Calculations!F120,"-"),"-") -> 26.70590817 | R113: =IFERROR('PPF calc'!$J$8,"-") -> 0.01426556194 | S113: 16.69070747 | T113: 2.743124213
A114: Vero 13-C-30EC | D114: Vero 13-C | E114: =IFERROR(INDEX(MasterTable[],MATCH(A114,MasterTable[PF+CR],0),7),"-") -> BXRC-30E2000-C-xx | F114: C | G114: =IFERROR(INDEX(MasterTable[],MATCH(Simulator!E114,MasterTable[P/N],0),COLUMN(MasterTable[Typical Current])),"-") -> 630 | H114: =IFERROR(INDEX(MasterTable[],MATCH(Simulator!E114,MasterTable[P/N],0),COLUMN(MasterTable[Typical Lumens])),"-") -> 3727.08 | I114: =IFERROR(MROUND(IF(OR(E114="-",Calculations!V121>(N114+1)),"-",Calculations!V121),5),"-") -> 185 | J114: =IFERROR(IF(I114,Calculations!AX121,"-"),"-") -> 32.4737922 | K114: 6.007651557 | L114: =IFERROR(MROUND(IF(I114,Calculations!AC121*H114,"-"),1),"-") -> 1170 | M114: 194.7516411 | N114: =IFERROR(INDEX(MasterTable[],MATCH(A114,MasterTable[PF+CR],0),COLUMN(MasterTable[Max Current])),"-") -> 1260 | O114: 3354.372 | P114: =IFERROR(INDEX(MasterTable[],MATCH(Simulator!E114,MasterTable[P/N],0),COLUMN(MasterTable[Typical Efficacy])),"-") -> 170 | Q114: =IFERROR(IF(I114,Calculations!F121,"-"),"-") -> 26.19392062 | R114: =IFERROR('PPF calc'!$J$8,"-") -> 0.01426556194 | S114: 16.69070747 | T114: 2.778241599
A115: Vero 13-D-30ED | D115: Vero 13-D | E115: =IFERROR(INDEX(MasterTable[],MATCH(A115,MasterTable[PF+CR],0),7),"-") -> BXRC-30E2000-D-xx | F115: D | G115: =IFERROR(INDEX(MasterTable[],MATCH(Simulator!E115,MasterTable[P/N],0),COLUMN(MasterTable[Typical Current])),"-") -> 500 | H115: =IFERROR(INDEX(MasterTable[],MATCH(Simulator!E115,MasterTable[P/N],0),COLUMN(MasterTable[Typical Lumens])),"-") -> 2703 | I115: =IFERROR(MROUND(IF(OR(E115="-",Calculations!V122>(N115+1)),"-",Calculations!V122),5),"-") -> 210 | J115: =IFERROR(IF(I115,Calculations!AX122,"-"),"-") -> 30.28594434 | K115: 6.360048312 | L115: =IFERROR(MROUND(IF(I115,Calculations!AC122*H115,"-"),1),"-") -> 1170 | M115: 183.9608667 | N115: =IFERROR(INDEX(MasterTable[],MATCH(A115,MasterTable[PF+CR],0),COLUMN(MasterTable[Max Current])),"-") -> 1000 | O115: 2432.7 | P115: =IFERROR(INDEX(MasterTable[],MATCH(Simulator!E115,MasterTable[P/N],0),COLUMN(MasterTable[Typical Efficacy])),"-") -> 170 | Q115: =IFERROR(IF(I115,Calculations!F122,"-"),"-") -> 26.78314555 | R115: =IFERROR('PPF calc'!$J$8,"-") -> 0.01426556194 | S115: 16.69070747 | T115: 2.624305139
A116: Vero 18-B-30EB | D116: Vero 18-B | E116: =IFERROR(INDEX(MasterTable[],MATCH(A116,MasterTable[PF+CR],0),7),"-") -> BXRC-30E4000-B-xx | F116: B | G116: =IFERROR(INDEX(MasterTable[],MATCH(Simulator!E116,MasterTable[P/N],0),COLUMN(MasterTable[Typical Current])),"-") -> 900 | H116: =IFERROR(INDEX(MasterTable[],MATCH(Simulator!E116,MasterTable[P/N],0),COLUMN(MasterTable[Typical Lumens])),"-") -> 5324.4 | I116: =IFERROR(MROUND(IF(OR(E116="-",Calculations!V123>(N116+1)),"-",Calculations!V123),5),"-") -> 180 | J116: =IFERROR(IF(I116,Calculations!AX123,"-"),"-") -> 31.85981355 | K116: 5.734766439 | L116: =IFERROR(MROUND(IF(I116,Calculations!AC123*H116,"-"),1),"-") -> 1170 | M116: 204.0187708 | N116: =IFERROR(INDEX(MasterTable[],MATCH(A116,MasterTable[PF+CR],0),COLUMN(MasterTable[Max Current])),"-") -> 1800 | O116: 4791.96 | P116: =IFERROR(INDEX(MasterTable[],MATCH(Simulator!E116,MasterTable[P/N],0),COLUMN(MasterTable[Typical Efficacy])),"-") -> 170 | Q116: =IFERROR(IF(I116,Calculations!F123,"-"),"-") -> 25.88621257 | R116: =IFERROR('PPF calc'!$J$8,"-") -> 0.01426556194 | S116: 16.69070747 | T116: 2.910442412
A117: Vero 18-C-30EC | D117: Vero 18-C | E117: =IFERROR(INDEX(MasterTable[],MATCH(A117,MasterTable[PF+CR],0),7),"-") -> BXRC-30E4000-C-xx | F117: C | G117: =IFERROR(INDEX(MasterTable[],MATCH(Simulator!E117,MasterTable[P/N],0),COLUMN(MasterTable[Typical Current])),"-") -> 1170 | H117: =IFERROR(INDEX(MasterTable[],MATCH(Simulator!E117,MasterTable[P/N],0),COLUMN(MasterTable[Typical Lumens])),"-") -> 6922 | I117: =IFERROR(MROUND(IF(OR(E117="-",Calculations!V124>(N117+1)),"-",Calculations!V124),5),"-") -> 185 | J117: =IFERROR(IF(I117,Calculations!AX124,"-"),"-") -> 31.9724324 | K117: 5.914899995 | L117: =IFERROR(MROUND(IF(I117,Calculations!AC124*H117,"-"),1),"-") -> 1170 | M117: 197.8055421 | N117: =IFERROR(INDEX(MasterTable[],MATCH(A117,MasterTable[PF+CR],0),COLUMN(MasterTable[Max Current])),"-") -> 2340 | O117: 6229.8 | P117: =IFERROR(INDEX(MasterTable[],MATCH(Simulator!E117,MasterTable[P/N],0),COLUMN(MasterTable[Typical Efficacy])),"-") -> 170.0068769 | Q117: =IFERROR(IF(I117,Calculations!F124,"-"),"-") -> 25.66286313 | R117: =IFERROR('PPF calc'!$J$8,"-") -> 0.01426556194 | S117: 16.69070747 | T117: 2.821807213
A118: Vero 18-D-30ED | D118: Vero 18-D | E118: =IFERROR(INDEX(MasterTable[],MATCH(A118,MasterTable[PF+CR],0),7),"-") -> BXRC-30E4000-D-xx | F118: D | G118: =IFERROR(INDEX(MasterTable[],MATCH(Simulator!E118,MasterTable[P/N],0),COLUMN(MasterTable[Typical Current])),"-") -> 1050 | H118: =IFERROR(INDEX(MasterTable[],MATCH(Simulator!E118,MasterTable[P/N],0),COLUMN(MasterTable[Typical Lumens])),"-") -> 5176.5 | I118: =IFERROR(MROUND(IF(OR(E118="-",Calculations!V125>(N118+1)),"-",Calculations!V125),5),"-") -> 215 | J118: =IFERROR(IF(I118,Calculations!AX125,"-"),"-") -> 26.67677019 | K118: 5.73550559 | L118: =IFERROR(MROUND(IF(I118,Calculations!AC125*H118,"-"),1),"-") -> 1170 | M118: 203.9924784 | N118: =IFERROR(INDEX(MasterTable[],MATCH(A118,MasterTable[PF+CR],0),COLUMN(MasterTable[Max Current])),"-") -> 2100 | O118: 4658.85 | P118: =IFERROR(INDEX(MasterTable[],MATCH(Simulator!E118,MasterTable[P/N],0),COLUMN(MasterTable[Typical Efficacy])),"-") -> 170 | Q118: =IFERROR(IF(I118,Calculations!F125,"-"),"-") -> 25.8863268 | R118: =IFERROR('PPF calc'!$J$8,"-") -> 0.01426556194 | S118: 16.69070747 | T118: 2.910067335
A119: Vero 29-B-30EB | D119: Vero 29-B | E119: =IFERROR(INDEX(MasterTable[],MATCH(A119,MasterTable[PF+CR],0),7),"-") -> BXRC-30E10K0-B-xx | F119: B | G119: =IFERROR(INDEX(MasterTable[],MATCH(Simulator!E119,MasterTable[P/N],0),COLUMN(MasterTable[Typical Current])),"-") -> 1800 | H119: =IFERROR(INDEX(MasterTable[],MATCH(Simulator!E119,MasterTable[P/N],0),COLUMN(MasterTable[Typical Lumens])),"-") -> 15912 | I119: =IFERROR(MROUND(IF(OR(E119="-",Calculations!V126>(N119+1)),"-",Calculations!V126),5),"-") -> 125 | J119: =IFERROR(IF(I119,Calculations!AX126,"-"),"-") -> 47.30854121 | K119: 5.913567651 | L119: =IFERROR(MROUND(IF(I119,Calculations!AC126*H119,"-"),1),"-") -> 1170 | M119: 197.8501083 | N119: =IFERROR(INDEX(MasterTable[],MATCH(A119,MasterTable[PF+CR],0),COLUMN(MasterTable[Max Current])),"-") -> 3600 | O119: 14320.8 | P119: =IFERROR(INDEX(MasterTable[],MATCH(Simulator!E119,MasterTable[P/N],0),COLUMN(MasterTable[Typical Efficacy])),"-") -> 170 | Q119: =IFERROR(IF(I119,Calculations!F126,"-"),"-") -> 25.37166773 | R119: =IFERROR('PPF calc'!$J$8,"-") -> 0.01426556194 | S119: 16.69070747 | T119: 2.822442974
A120: Vero 29-C-30EC | D120: Vero 29-C | E120: =IFERROR(INDEX(MasterTable[],MATCH(A120,MasterTable[PF+CR],0),7),"-") -> BXRC-30E10K0-C-xx | F120: C | G120: =IFERROR(INDEX(MasterTable[],MATCH(Simulator!E120,MasterTable[P/N],0),COLUMN(MasterTable[Typical Current])),"-") -> 1710 | H120: =IFERROR(INDEX(MasterTable[],MATCH(Simulator!E120,MasterTable[P/N],0),COLUMN(MasterTable[Typical Lumens])),"-") -> 20175 | I120: =IFERROR(MROUND(IF(OR(E120="-",Calculations!V127>(N120+1)),"-",Calculations!V127),5),"-") -> 75 | J120: =IFERROR(IF(I120,Calculations!AX127,"-"),"-") -> 62.88985605 | K120: 4.716739204 | L120: =IFERROR(MROUND(IF(I120,Calculations!AC127*H120,"-"),1),"-") -> 1170 | M120: =IFERROR(L120/K120,"-") -> 248.0527223 | N120: =IFERROR(INDEX(MasterTable[],MATCH(A120,MasterTable[PF+CR],0),COLUMN(MasterTable[Max Current])),"-") -> 3420 | O120: 18157.5 | P120: =IFERROR(INDEX(MasterTable[],MATCH(Simulator!E120,MasterTable[P/N],0),COLUMN(MasterTable[Typical Efficacy])),"-") -> 170.0035391 | Q120: =IFERROR(IF(I120,Calculations!F127,"-"),"-") -> 25.1946441 | R120: =IFERROR('PPF calc'!$J$8,"-") -> 0.01426556194 | S120: 16.69070747 | T120: 3.538611474
A121: Vero 29-D-30ED | D121: Vero 29-D | E121: =IFERROR(INDEX(MasterTable[],MATCH(A121,MasterTable[PF+CR],0),7),"-") -> BXRC-30E10K0-D-xx | F121: D | G121: =IFERROR(INDEX(MasterTable[],MATCH(Simulator!E121,MasterTable[P/N],0),COLUMN(MasterTable[Typical Current])),"-") -> 2100 | H121: =IFERROR(INDEX(MasterTable[],MATCH(Simulator!E121,MasterTable[P/N],0),COLUMN(MasterTable[Typical Lumens])),"-") -> 13423.2 | I121: =IFERROR(MROUND(IF(OR(E121="-",Calculations!V128>(N121+1)),"-",Calculations!V128),5),"-") -> 155 | J121: =IFERROR(IF(I121,Calculations!AX128,"-"),"-") -> 34.31558354 | K121: 5.318915448 | L121: =IFERROR(MROUND(IF(I121,Calculations!AC128*H121,"-"),1),"-") -> 1170 | M121: =IFERROR(L121/K121,"-") -> 219.9696557 | N121: =IFERROR(INDEX(MasterTable[],MATCH(A121,MasterTable[PF+CR],0),COLUMN(MasterTable[Max Current])),"-") -> 4200 | O121: 12080.88 | P121: =IFERROR(INDEX(MasterTable[],MATCH(Simulator!E121,MasterTable[P/N],0),COLUMN(MasterTable[Typical Efficacy])),"-") -> 170 | Q121: =IFERROR(IF(I121,Calculations!F128,"-"),"-") -> 25.33429384 | R121: =IFERROR('PPF calc'!$J$8,"-") -> 0.01426556194 | S121: 16.69070747 | T121: 3.137990748
C124: © 2014 Bridgelux, Inc.

Sheet Data (hidden)
A1: Thermal Resistance at max drive current | M1: 1 | P1: 2 | Q1: 3 | R1: 4 | S1: 5 | U1: 6 | V1: 7 | W1: 8
A2: Form Factor | B2: Max Current | C2: Rth | G2: V10-B | H2: Gen 7 | K2: V13-B | L2: Gen 7 | N2: V18-B | O2: Gen 7 | Q2: V22-B | R2: Gen 7 | T2: V8-D | U2: Gen 7 | AB2: Vero 10 | AF2: Vero 13 | AG2: Data from 130 LPW Mass Production and Engineering Recommended DS Value_01042015_V2 | AI2: Vero 18 | AJ2: Data from 130 LPW Mass Production and Engineering Recommended DS Value_01042015_V2 | AL2: Vero 29 | AM2: Data from 130 LPW Mass Production and Engineering Recommended DS Value_01042015_V2 | AO2: V22 | AP2: Data from: DS43 V Series V15 130lm-W Data Sheet Tables
A3: Vero 10 | B3: 700 | C3: 1.49 | G3: Code | H3: 85 DC Factor | K3: Code | L3: 85 DC Factor | N3: Code | O3: 85 DC Factor | Q3: Code | R3: 85 DC Factor | T3: Code | U3: 85 DC Factor | Y3: CCT/ CRI PN Creator | AB3: Code | AC3: 85 DC Factor | AF3: Code | AG3: 85 DC Factor | AI3: Code | AJ3: 85 DC Factor | AL3: Code | AM3: 85 DC Factor | AO3: Code | AP3: 85 DC Factor
A4: Vero 13 | B4: 1050 | C4: 0.87 | G4: 30E | H4: 0.9 | K4: 30E | L4: 0.9 | N4: 30E | O4: 0.9 | Q4: 30E | R4: 0.9 | T4: 27E | U4: 0.9 | Y4: CCT/CRI | Z4: Code | AB4: 17E | AC4: - | AF4: 17E | AG4: - | AI4: 17E | AJ4: 0.88 | AL4: 17E | AM4: 0.88 | AO4: 27E | AP4: 0.8999157866
A5: Vero 18 | B5: 2100 | C5: 0.55 | G5: 20B | H5: 0.9 | K5: 20B | L5: 0.9 | N5: 17E | O5: 0.9 | Q5: 27E | R5: 0.9 | T5: 27G | U5: 0.9 | Y5: 1750K, 80 CRI | Z5: 17E | AB5: 25E | AC5: - | AF5: 25E | AG5: - | AI5: 25E | AJ5: 0.88 | AL5: 25E | AM5: 0.88 | AO5: 30E | AP5: 0.8983190882
A6: Vero 29 | B6: 3150 | C6: 0.26 | G6: 27E | H6: 0.9 | K6: 27E | L6: 0.9 | N6: 25E | O6: 0.9 | Q6: 27G | R6: 0.9 | T6: 30E | U6: 0.9 | Y6: 2000K, 65 CRI | Z6: 20B | AB6: 27E | AC6: 0.88899 | AF6: 27E | AG6: 0.9158 | AI6: 27E | AJ6: 0.9069125245 | AL6: 27E | AM6: 0.9053992661 | AO6: 40E | AP6: 0.8901653206
A7: BXRA3-Star-AF | B7: 500 | C7: 2.6 | G7: 27G | H7: 0.9 | K7: 27G | L7: 0.9 | N7: 27E | O7: 0.9 | Q7: 30G | R7: 0.9 | T7: 30G | U7: 0.9 | Y7: 2500K, 80 CRI | Z7: 25E | AB7: 27G | AC7: 0.88899 | AF7: 27G | AG7: 0.88 | AI7: 27G | AJ7: 0.88 | AL7: 27G | AM7: 0.88 | AO7: 50C | AP7: 0.8833815393
A8: BXRA3-Star-AI | B8: 500 | C8: 1.75 | G8: 27H | H8: 0.9 | K8: 27H | L8: 0.9 | N8: 27G | O8: 0.9 | Q8: 35E | R8: 0.9 | T8: 40E | U8: 0.9 | Y8: 2700K, 80 CRI | Z8: 27E | AB8: 27H | AC8: 0.82 | AF8: 27H | AG8: 0.82 | AI8: 27H | AJ8: 0.82 | AL8: 27H | AM8: 0.82
A9: BXRA3-Rect-BG | B9: 1000 | C9: 0.95 | G9: 30G | H9: 0.9 | K9: 30G | L9: 0.9 | N9: 27H | O9: 0.9 | Q9: 35G | R9: 0.9 | T9: 40G | U9: 0.9 | Y9: 2700K, 90 CRI – High Efficacy | Z9: 27G-H | AB9: 30A | AC9: 0.8881246144 | AF9: 30A | AG9: 0.8881246144 | AI9: 30A | AJ9: 0.8776974712 | AL9: 30A | AM9: 0.8910757937
A10: BXRA3-Rect-BJ | B10: 1000 | C10: 0.8 | G10: 30G-C | H10: 0.9 | K10: 30G-C | L10: 0.9 | N10: 30G | O10: 0.9 | Q10: 40E | R10: 0.9 | T10: 50C | U10: 0.9 | Y10: 2700K, 90 CRI | Z10: 27G | AB10: 30E | AC10: 0.889326 | AF10: 30E | AG10: 0.900762121 | AI10: 30E | AJ10: 0.904212013 | AL10: 30E | AM10: 0.9077408638
A11: BXRA3-Rect-BL | B11: 1000 | C11: 0.65 | G11: 30H | H11: 0.9 | K11: 30H | L11: 0.9 | N11: 30G-C | O11: 0.9 | Q11: 40G | R11: 0.9 | T11: 27G-H | U11: 0.9 | Y11: 2700K, 97 CRI | Z11: 27H | AB11: 30G | AC11: 0.889326 | AF11: 30G | AG11: 0.88 | AI11: 30G | AJ11: 0.88 | AL11: 30G | AM11: 0.88
A12: BXRA3-Mega-FF | B12: 2250 | C12: 0.46 | G12: 30A | H12: 0.9 | K12: 30A | L12: 0.9 | N12: 30H | O12: 0.9 | Q12: 50C | R12: 0.9 | T12: 30G-H | U12: 0.9 | Y12: 2700K, Thrive | Z12: 27S | AB12: 30H | AC12: 0.82 | AF12: 30H | AG12: 0.82 | AI12: 30H | AJ12: 0.82 | AL12: 30H | AM12: 0.82
A13: BXRA3-Mega-HH | B13: 3000 | C13: 0.31 | G13: 35E | H13: 0.9 | K13: 35E | L13: 0.9 | N13: 35E | O13: 0.9 | Q13: 50E | R13: 0.9 | T13: 30C | U13: 0.9 | Y13: 3000K, 70 CRI | Z13: 30C | AB13: 35E | AC13: 0.889326 | AF13: 35E | AG13: 0.9056633538 | AI13: 35E | AJ13: 0.9084361288 | AL13: 35E | AM13: 0.8975048607
A14: BXRA3-Mega-JJ | B14: 3750 | C14: 0.26 | G14: 35G | H14: 0.9 | K14: 35G | L14: 0.9 | N14: 35G | O14: 0.9 | Q14: 50G | R14: 0.9 | T14: 40C | U14: 0.9 | Y14: 3000K, 80 CRI | Z14: 30E | AB14: 35G | AC14: 0.89 | AF14: 35G | AG14: 0.89 | AI14: 35G | AJ14: 0.89 | AL14: 35G | AM14: 0.89
A15: V Series V15 | B15: 2000 | C15: 0.4 | G15: 35A | H15: 0.9 | K15: 35A | L15: 0.9 | N15: 35A | O15: 0.9 | Q15: 57C | R15: 0.9 | Y15: 3000K, 90 CRI – High Efficacy | Z15: 30G-H | AB15: 35H | AC15: - | AF15: 35H | AG15: - | AI15: 35H | AL15: 35H
A16: V Series V6 | C16: 1.5 | G16: 40E | H16: 0.9 | K16: 40E | L16: 0.9 | N16: 40E | O16: 0.9 | Q16: 57E | R16: 0.9 | Y16: 3000K 90 CRI | Z16: 30G | AB16: 40A | AC16: 0.8878704419 | AF16: 40A | AG16: 0.8878704419 | AI16: 40A | AJ16: 0.8935505009 | AL16: 40A | AM16: 0.8906497457
A17: H Series H9 | B17: 2450 | C17: 2450 | G17: 40G | H17: 0.9 | K17: 40G | L17: 0.9 | N17: 40G | O17: 0.9 | Q17: 65C | R17: 0.9 | Y17: 3000K, 97 CRI | Z17: 30H | AB17: 40E | AC17: 0.88565 | AF17: 40E | AG17: 0.9019637926 | AI17: 40E | AJ17: 0.9031268143 | AL17: 40E | AM17: 0.898176674
G18: 50C | H18: 0.9 | K18: 50C | L18: 0.9 | N18: 50C | O18: 0.9 | Q18: 65E | R18: 0.9 | Y18: 3000K, Class A | Z18: 30A | AB18: 40G | AC18: 0.88565 | AF18: 40G | AG18: 0.88 | AI18: 40G | AJ18: 0.88 | AL18: 40G | AM18: 0.88
A19: Tj | B19: Vf | G19: 50E | H19: 0.9 | K19: 50E | L19: 0.9 | N19: 50E | O19: 0.9 | Q19: 27G-H | R19: 0.9 | Y19: Décor Series Showcase | Z19: 30G-C | AB19: 50C | AC19: 0.879185 | AF19: 50C | AG19: 0.88 | AI19: 50C | AJ19: 0.88 | AL19: 50C | AM19: 0.88
A20: -40 | B20: 0.26 | G20: 50G | H20: 0.9 | K20: 50G | L20: 0.9 | N20: 50G | O20: 0.9 | Q20: 30G-H | R20: 0.9 | Y20: 3000K, Thrive | Z20: 30S | AB20: 50E | AC20: 0.879185 | AF20: 50E | AG20: 0.88 | AI20: 50E | AJ20: 0.88 | AL20: 50E | AM20: 0.88
A21: -35 | B21: 0.24 | G21: 57C | H21: 0.9 | K21: 57C | L21: 0.9 | N21: 57C | O21: 0.9 | Q21: 30C | R21: 0.9 | Y21: 3500K, 80 CRI | Z21: 35E | AB21: 50G | AC21: 0.879185 | AF21: 50G | AG21: 0.88 | AI21: 50G | AJ21: 0.88 | AL21: 50G | AM21: 0.88
A22: -30 | B22: 0.22 | G22: 57E | H22: 0.9 | K22: 57E | L22: 0.9 | N22: 57E | O22: 0.9 | Q22: 40C | R22: 0.9 | Y22: 3500K, 90 CRI | Z22: 35G | AB22: 56G | AC22: 0.86 | AF22: 56G | AG22: 0.86 | AI22: 56G | AJ22: 0.88 | AL22: 56G | AM22: 0.88
A23: -25 | B23: 0.2 | G23: 65C | H23: 0.9 | K23: 65C | L23: 0.9 | N23: 65C | O23: 0.9 | Y23: 3500K, Class A | Z23: 35A
A24: -20 | B24: 0.18 | G24: 65E | H24: 0.9 | K24: 65E | L24: 0.9 | N24: 65E | O24: 0.9 | Y24: 3500K, Thrive | Z24: 35S
A25: -15 | B25: 0.16 | G25: 27S | H25: 0.9 | K25: 27G-H | L25: 0.9 | N25: 27G-H | O25: 0.9 | Y25: 4000K, 70 CRI | Z25: 40C | AB25: V6 | AC25: Vseries Mass Production and Engineering Recommended DS Value Current DS Comparison 11-18-14 | AF25: V8 | AG25: Data from 130 LPW Mass Production and Engineering Recommended DS Value_01042015_V2 | AI25: V10 | AJ25: Data from: DS42 V Series V10 130lm-W Data Sheet Tables | AL25: V15 | AM25: Data from: DS43 V Series V15 130lm-W Data Sheet Tables
A26: -10 | B26: 0.14 | G26: 30S | H26: 0.9 | K26: 30G-H | L26: 0.9 | N26: 30G-H | O26: 0.9 | Y26: 4000K, 80 CRI | Z26: 40E | AB26: Code | AC26: 85 DC Factor | AF26: Code | AG26: 85 DC Factor | AI26: Code | AJ26: 85 DC Factor | AL26: Code | AM26: 85 DC Factor
A27: -5 | B27: 0.12 | G27: 35S | H27: 0.9 | K27: 30C | L27: 0.9 | N27: 30C | O27: 0.9 | Y27: 4000K, 90 CRI | Z27: 40G | AB27: 27E | AC27: 0.9 | AF27: 27E | AG27: 0.898 | AI27: 27E | AJ27: 0.888732289 | AL27: 27E | AM27: 0.892060046
A28: 0 | B28: 0.1 | G28: 40S | H28: 0.9 | K28: 40C | L28: 0.9 | N28: 40C | O28: 0.9 | Y28: 4000K, Class A | Z28: 40A | AB28: 27G | AC28: 0.9 | AF28: 27G | AG28: 0.88 | AI28: 27G | AJ28: 0.888732289 | AL28: 27G | AM28: 0.892060046
A29: 5 | B29: 0.08 | G29: 50S | H29: 0.9 | Y29: 4000K, Thrive | Z29: 40S | AB29: 30E | AC29: 0.9 | AF29: 30E | AG29: 0.896 | AI29: 30E | AJ29: 0.895652751 | AL29: 30E | AM29: 0.893709033
A30: 10 | B30: 0.06 | G30: 57S | H30: 0.9 | Y30: 5000K, 70 CRI | Z30: 50C | AB30: 30G | AC30: 0.9 | AF30: 30G | AG30: 0.88 | AI30: 30G | AJ30: 0.895652751 | AL30: 30G | AM30: 0.893709033
A31: 15 | B31: 0.04 | G31: 65S | H31: 0.9 | Y31: 5000K, 80 CRI | Z31: 50E | AB31: 40E | AC31: 0.9 | AF31: 40E | AG31: 0.901 | AI31: 40E | AJ31: 0.896027095 | AL31: 40E | AM31: 0.893575014
A32: 20 | B32: 0.02 | G32: 27G-H | H32: 0.9 | Y32: 5000K, 90 CRI | Z32: 50G | AB32: 40G | AF32: 40G | AG32: 0.88 | AI32: 40G | AJ32: 0.896027095 | AL32: 40G | AM32: 0.893575014
A33: 25 | B33: 0 | G33: 30G-H | H33: 0.9 | Y33: 5000K, Thrive | Z33: 50S | AB33: 50C | AC33: 0.9 | AF33: 50C | AG33: 0.88 | AI33: 50C | AJ33: 0.867303945 | AL33: 50C | AM33: 0.867303945
A34: 30 | B34: -0.02 | G34: 30C | H34: 0.9 | Y34: 5600K, 90 CRI | Z34: 56G | AB34: 50E | AC34: 0.9 | AF34: 50E | AG34: 0.88 | AI34: 50E | AJ34: 0.867303945 | AL34: 50E | AM34: 0.867303945
A35: 35 | B35: -0.04 | G35: 40C | H35: 0.9 | Y35: 5600K, 97 CRI | Z35: 56H | AB35: 50G | AC35: 0.9 | AF35: 50G | AG35: 0.88 | AI35: 50G | AJ35: 0.867303945 | AL35: 50G | AM35: 0.867303945
A36: 40 | B36: -0.06 | Y36: 5700K, 70 CRI | Z36: 57C
A37: 45 | B37: -0.08 | G37: V10-C | H37: Gen 7 | K37: V13-C | N37: V18-C | O37: Gen 7 | Q37: V22-C | R37: Gen 7 | T37: V8-E | U37: Gen 7 | Y37: 5700K, 80 CRI | Z37: 57E
A38: 50 | B38: -0.1 | G38: Code | H38: 85 DC Factor | K38: Code | L38: 85 DC Factor | N38: Code | O38: 85 DC Factor | Q38: Code | R38: 85 DC Factor | T38: Code | U38: 85 DC Factor | Y38: 5700K, Thrive | Z38: 57S | AB38: V4 HD | AF38: V6 HD | AI38: V9 HD | AL38: H15
A39: 55 | B39: -0.12 | G39: 30E | H39: 0.9 | K39: 30E | L39: 0.9 | N39: 30E | O39: 0.9 | Q39: 30E | R39: 0.9 | T39: 27E | U39: 0.9 | Y39: 6500K, 70 CRI | Z39: 65C | AB39: Code | AC39: 85 DC Factor | AF39: Code | AG39: 85 DC Factor | AI39: Code | AJ39: 85 DC Factor | AL39: Code | AM39: 85 DC Factor
A40: 60 | B40: -0.14 | G40: 27E | H40: 0.9 | K40: 20B | L40: 0.9 | N40: 20B | O40: 0.9 | Q40: 20B | R40: 0.9 | T40: 27G | U40: 0.9 | Y40: 6500K, 80 CRI | Z40: 65E | AB40: 27E | AC40: 0.88 | AF40: 27E | AG40: 0.88 | AI40: 27E | AJ40: 0.88 | AL40: 27E | AM40: 0.8687855624
A41: 65 | B41: -0.16 | G41: 27G | H41: 0.9 | K41: 27E | L41: 0.9 | N41: 27E | O41: 0.9 | Q41: 27E | R41: 0.9 | T41: 30E | U41: 0.9 | Y41: 6500K, Thrive | Z41: 65S | AB41: 27G | AC41: 0.88 | AF41: 27G | AG41: 0.88 | AI41: 27G | AJ41: 0.88 | AL41: 27G | AM41: 0.8687855624
A42: 70 | B42: -0.18 | G42: 30G | H42: 0.9 | K42: 27G | L42: 0.9 | N42: 27G | O42: 0.9 | Q42: 27G | R42: 0.9 | T42: 30G | U42: 0.9 | AB42: 27H | AC42: 0.88 | AF42: 27H | AG42: 0.88 | AI42: 27H | AJ42: 0.88 | AL42: 27H | AM42: 0.8687855624
A43: 75 | B43: -0.2 | G43: 30A | H43: 0.9 | K43: 30G | L43: 0.9 | N43: 30G | O43: 0.9 | Q43: 30G | R43: 0.9 | T43: 40E | U43: 0.9 | AB43: 30E | AC43: 0.88 | AF43: 30E | AG43: 0.88 | AI43: 30E | AJ43: 0.88 | AL43: 30E | AM43: 0.8687855624
A44: 80 | B44: -0.22 | G44: 35E | H44: 0.9 | K44: 30A | L44: 0.9 | N44: 35E | O44: 0.9 | Q44: 35E | R44: 0.9 | T44: 40G | U44: 0.9 | AB44: 30G-C | AC44: 0.88 | AF44: 30G-C | AG44: 0.88 | AI44: 30G-C | AJ44: 0.88
A45: 85 | B45: -0.24 | G45: 35G | H45: 0.9 | K45: 35E | L45: 0.9 | N45: 35G | O45: 0.9 | Q45: 35G | R45: 0.9 | T45: 50C | U45: 0.9 | AB45: 30G | AC45: 0.88 | AF45: 30G | AG45: 0.88 | AI45: 30G | AJ45: 0.88 | AL45: 30G | AM45: 0.8687855624
A46: 90 | B46: -0.26 | G46: 40E | H46: 0.9 | K46: 35G | L46: 0.9 | N46: 40E | O46: 0.9 | Q46: 40E | R46: 0.9 | T46: 27G-H | U46: 0.9 | AB46: 30H | AC46: 0.88 | AF46: 30H | AG46: 0.88 | AI46: 30H | AJ46: 0.88 | AL46: 30H | AM46: 0.8687855624
A47: 95 | B47: -0.28 | G47: 40G | H47: 0.9 | K47: 35A | L47: 0.9 | N47: 40G | O47: 0.9 | Q47: 40G | R47: 0.9 | T47: 30G-H | U47: 0.9 | AB47: 35A | AC47: 0.88 | AF47: 35A | AG47: 0.88 | AI47: 35A | AJ47: 0.88 | AL47: 35A | AM47: 0.8687855624
A48: 100 | B48: -0.3 | G48: 50C | H48: 0.9 | K48: 40E | L48: 0.9 | N48: 50C | O48: 0.9 | Q48: 50C | R48: 0.9 | T48: 30C | U48: 0.9 | AB48: 35G | AC48: 0.88 | AF48: 35G | AG48: 0.88 | AI48: 35G | AJ48: 0.88 | AL48: 35G | AM48: 0.8687855624
A49: 105 | B49: -0.32 | G49: 50E | H49: 0.9 | K49: 40G | L49: 0.9 | N49: 50E | O49: 0.9 | Q49: 50E | R49: 0.9 | T49: 40C | U49: 0.9 | AB49: 40E | AC49: 0.88 | AF49: 40E | AG49: 0.88 | AI49: 40E | AJ49: 0.88 | AL49: 40E | AM49: 0.8687855624
A50: 110 | B50: -0.34 | G50: 50G | H50: 0.9 | K50: 50C | L50: 0.9 | N50: 50G | O50: 0.9 | Q50: 50G | R50: 0.9 | AB50: 40G | AC50: 0.88 | AF50: 40G | AG50: 0.88 | AI50: 40G | AJ50: 0.88 | AL50: 40G | AM50: 0.8687855624
A51: 115 | B51: -0.36 | G51: 57C | H51: 0.9 | K51: 50E | L51: 0.9 | N51: 57C | O51: 0.9 | Q51: 57C | R51: 0.9
A52: 120 | B52: -0.38 | G52: 57E | H52: 0.9 | K52: 50G | L52: 0.9 | N52: 57E | O52: 0.9 | Q52: 57E | R52: 0.9
A53: 125 | B53: -0.4 | G53: 65C | H53: 0.9 | K53: 57C | L53: 0.9 | N53: 65C | O53: 0.9 | Q53: 65C | R53: 0.9
A54: 130 | B54: -0.42 | G54: 65E | H54: 0.9 | K54: 57E | L54: 0.9 | N54: 65E | O54: 0.9 | Q54: 65E | R54: 0.9
A55: 135 | B55: -0.44 | G55: 27S | H55: 0.9 | K55: 65C | L55: 0.9 | N55: 27S | O55: 0.9 | Q55: 27G-H | R55: 0.9
A56: 140 | B56: -0.46 | G56: 30S | H56: 0.9 | K56: 65E | L56: 0.9 | N56: 30S | O56: 0.9 | Q56: 30G-H | R56: 0.9
A57: 145 | B57: -0.48 | G57: 35S | H57: 0.9 | K57: 27S | L57: 0.9 | N57: 35S | O57: 0.9 | Q57: 30C | R57: 0.9
A58: 150 | B58: -0.5 | G58: 40S | H58: 0.9 | K58: 30S | L58: 0.9 | N58: 40S | O58: 0.9 | Q58: 40C | R58: 0.9
G59: 50S | H59: 0.9 | K59: 35S | L59: 0.9 | N59: 50S | O59: 0.9
G60: 57S | H60: 0.9 | K60: 40S | L60: 0.9 | N60: 57S | O60: 0.9
G61: 65S | H61: 0.9 | K61: 50S | L61: 0.9 | N61: 65S | O61: 0.9
G62: 27G-H | H62: 0.9 | K62: 57S | L62: 0.9 | N62: 27G-H | O62: 0.9
G63: 30G-H | H63: 0.9 | K63: 65S | L63: 0.9 | N63: 30G-H | O63: 0.9
G64: 30C | H64: 0.9 | K64: 27G-H | L64: 0.9 | N64: 30C | O64: 0.9
G65: 40C | H65: 0.9 | K65: 30G-H | L65: 0.9 | N65: 40C | O65: 0.9
K66: 30C | L66: 0.9
K67: 40C | L67: 0.9
G73: Vero 10-B | K73: Vero 13-B | N73: Vero 18-B | Q73: Vero 29-B | T73: V22-D | U73: Gen 7
G74: Code | H74: 85 DC Factor | K74: Code | L74: 85 DC Factor | N74: Code | O74: 85 DC Factor | Q74: Code | R74: 85 DC Factor | T74: Code | U74: 85 DC Factor
G75: 30E | H75: 0.9 | K75: 30E | L75: 0.9 | N75: 30E | O75: 0.9 | Q75: 30E | R75: 0.9 | T75: 30E | U75: 0.9
G76: 20B | H76: 0.9 | K76: 27E | L76: 0.9 | N76: 17E | O76: 0.9 | Q76: 17E | R76: 0.9 | T76: 17E | U76: 0.9
G77: 27E | H77: 0.9 | K77: 27G | L77: 0.9 | N77: 25E | O77: 0.9 | Q77: 25E | R77: 0.9 | T77: 20B | U77: 0.9
G78: 27G | H78: 0.9 | K78: 27H | L78: 0.9 | N78: 27E | O78: 0.9 | Q78: 27E | R78: 0.9 | T78: 25E | U78: 0.9
G79: 27H | H79: 0.9 | K79: 30G | L79: 0.9 | N79: 27G | O79: 0.9 | Q79: 27G | R79: 0.9 | T79: 27E | U79: 0.9
G80: 30G | H80: 0.9 | K80: 30G | L80: 0.9 | N80: 27H | O80: 0.9 | Q80: 30G | R80: 0.9 | T80: 27G | U80: 0.9
G81: 30G-C | H81: 0.9 | K81: 30H | L81: 0.9 | N81: 30A | O81: 0.9 | Q81: 30A | R81: 0.9 | T81: 27H | U81: 0.9
G82: 30H | H82: 0.9 | K82: 30A | L82: 0.9 | N82: 30G | O82: 0.9 | Q82: 35E | R82: 0.9 | T82: 30G | U82: 0.9
G83: 30A | H83: 0.9 | K83: 35E | L83: 0.9 | N83: 30G | O83: 0.9 | Q83: 35G | R83: 0.9 | T83: 30G | U83: 0.9
G84: 35E | H84: 0.9 | K84: 35G | L84: 0.9 | N84: 30H | O84: 0.9 | Q84: 35A | R84: 0.9 | T84: 30H | U84: 0.9
G85: 35G | H85: 0.9 | K85: 35A | L85: 0.9 | N85: 35A | O85: 0.9 | Q85: 40E | R85: 0.9 | T85: 35E | U85: 0.9
G86: 35A | H86: 0.9 | K86: 40E | L86: 0.9 | N86: 35E | O86: 0.9 | Q86: 40G | R86: 0.9 | T86: 35G | U86: 0.9
G87: 40E | H87: 0.9 | K87: 40G | L87: 0.9 | N87: 35G | O87: 0.9 | Q87: 40A | R87: 0.9 | T87: 35A | U87: 0.9
G88: 40G | H88: 0.9 | K88: 40A | L88: 0.9 | N88: 40A | O88: 0.9 | Q88: 50C | R88: 0.9 | T88: 40E | U88: 0.9
G89: 40A | H89: 0.9 | K89: 50C | L89: 0.9 | N89: 40E | O89: 0.9 | Q89: 50E | R89: 0.9 | T89: 40G | U89: 0.9
G90: 50C | H90: 0.9 | K90: 50E | L90: 0.9 | N90: 40G | O90: 0.9 | Q90: 50G | R90: 0.9 | T90: 50C | U90: 0.9
G91: 50E | H91: 0.9 | K91: 50G | L91: 0.9 | N91: 50C | O91: 0.9 | Q91: 56G | R91: 0.9 | T91: 50E | U91: 0.9
G92: 50G | H92: 0.9 | K92: 57C | L92: 0.9 | N92: 50E | O92: 0.9 | Q92: 57C | R92: 0.9 | T92: 50G | U92: 0.9
G93: 57C | H93: 0.9 | K93: 57E | L93: 0.9 | N93: 50G | O93: 0.9 | Q93: 57E | R93: 0.9 | T93: 27G-H | U93: 0.9
G94: 57E | H94: 0.9 | K94: 65C | L94: 0.9 | N94: 56G | O94: 0.9 | Q94: 65C | R94: 0.9 | T94: 30G-H | U94: 0.9
G95: 65C | H95: 0.9 | K95: 65E | L95: 0.9 | N95: 57C | O95: 0.9 | Q95: 65E | R95: 0.9 | T95: 30C | U95: 0.9
G96: 65E | H96: 0.9 | K96: 27G-H | L96: 0.9 | N96: 57E | O96: 0.9 | Q96: 27G-H | R96: 0.9 | T96: 40C | U96: 0.9
G97: 27G-H | H97: 0.9 | K97: 30G-H | L97: 0.9 | N97: 65C | O97: 0.9 | Q97: 30G-H | R97: 0.9
G98: 30G-H | H98: 0.9 | K98: 30C | L98: 0.9 | N98: 65E | O98: 0.9 | Q98: 30C | R98: 0.9
G99: 30C | H99: 0.9 | K99: 40C | L99: 0.9 | N99: 27G-H | O99: 0.9 | Q99: 40C | R99: 0.9
G100: 40C | H100: 0.9 | N100: 30G-H | O100: 0.9 | T100: 56G | U100: 0.9
N101: 30C | O101: 0.9 | T101: 57C | U101: 0.9
N102: 40C | O102: 0.9 | T102: 57E | U102: 0.9
T103: 65C | U103: 0.9
T104: 65E | U104: 0.9
G109: Vero 10-C | K109: Vero 13-C | N109: Vero 18-C | Q109: Vero 29-C
G110: Code | H110: 85 DC Factor | K110: Code | L110: 85 DC Factor | N110: Code | O110: 85 DC Factor | Q110: Code | R110: 85 DC Factor
G111: 30E | H111: 0.9 | K111: 30E | L111: 0.9 | N111: 30E | O111: 0.9 | Q111: 30E | R111: 0.9
G112: 27E | H112: 0.9 | K112: 27E | L112: 0.9 | N112: 17E | O112: 0.9 | Q112: 17E | R112: 0.9
G113: 27G | H113: 0.9 | K113: 27G | L113: 0.9 | N113: 20B | O113: 0.9 | Q113: 20B | R113: 0.9
G114: 27H | H114: 0.9 | K114: 27H | L114: 0.9 | N114: 25E | O114: 0.9 | Q114: 25E | R114: 0.9
G115: 30G | H115: 0.9 | K115: 30G | L115: 0.9 | N115: 27E | O115: 0.9 | Q115: 27E | R115: 0.9
G116: 30H | H116: 0.9 | K116: 30H | L116: 0.9 | N116: 27G | O116: 0.9 | Q116: 27G | R116: 0.9
G117: 30A | H117: 0.9 | K117: 30A | L117: 0.9 | N117: 27H | O117: 0.9 | Q117: 30G | R117: 0.9
G118: 35E | H118: 0.9 | K118: 35E | L118: 0.9 | N118: 30A | O118: 0.9 | Q118: 30A | R118: 0.9
G119: 35G | H119: 0.9 | K119: 35G | L119: 0.9 | N119: 30G | O119: 0.9 | Q119: 35E | R119: 0.9
G120: 35A | H120: 0.9 | K120: 35A | L120: 0.9 | N120: 30H | O120: 0.9 | Q120: 35G | R120: 0.9
G121: 40E | H121: 0.9 | K121: 40E | L121: 0.9 | N121: 35A | O121: 0.9 | Q121: 35A | R121: 0.9
G122: 40G | H122: 0.9 | K122: 40G | L122: 0.9 | N122: 35E | O122: 0.9 | Q122: 40E | R122: 0.9
G123: 40A | H123: 0.9 | K123: 40A | L123: 0.9 | N123: 35G | O123: 0.9 | Q123: 40G | R123: 0.9
G124: 50C | H124: 0.9 | K124: 50C | L124: 0.9 | N124: 40A | O124: 0.9 | Q124: 40A | R124: 0.9
G125: 50E | H125: 0.9 | K125: 50E | L125: 0.9 | N125: 40E | O125: 0.9 | Q125: 50C | R125: 0.9
G126: 50G | H126: 0.9 | K126: 50G | L126: 0.9 | N126: 40G | O126: 0.9 | Q126: 50E | R126: 0.9
G127: 57C | H127: 0.9 | K127: 57C | L127: 0.9 | N127: 50C | O127: 0.9 | Q127: 50G | R127: 0.9
G128: 57E | H128: 0.9 | K128: 57E | L128: 0.9 | N128: 50E | O128: 0.9 | Q128: 56G | R128: 0.9
G129: 65C | H129: 0.9 | K129: 65C | L129: 0.9 | N129: 50G | O129: 0.9 | Q129: 57C | R129: 0.9
G130: 65E | H130: 0.9 | K130: 65E | L130: 0.9 | N130: 56G | O130: 0.9 | Q130: 57E | R130: 0.9
G131: 27G-H | H131: 0.9 | K131: 27G-H | L131: 0.9 | N131: 57C | O131: 0.9 | Q131: 65C | R131: 0.9
G132: 30G-H | H132: 0.9 | K132: 30G-H | L132: 0.9 | N132: 57E | O132: 0.9 | Q132: 65E | R132: 0.9
G133: 30C | H133: 0.9 | K133: 30C | L133: 0.9 | N133: 65C | O133: 0.9 | Q133: 27G-H | R133: 0.9
G134: 40C | H134: 0.9 | K134: 40C | L134: 0.9 | N134: 65E | O134: 0.9 | Q134: 30G-H | R134: 0.9
N135: 27G-H | O135: 0.9 | Q135: 30C | R135: 0.9
N136: 30G-H | O136: 0.9 | Q136: 40C | R136: 0.9
N137: 30C | O137: 0.9
N138: 40C | O138: 0.9
G145: Vero 10-D | K145: Vero 13-D | N145: Vero 18-D | Q145: Vero 29-D
G146: Code | H146: 85 DC Factor | K146: Code | L146: 85 DC Factor | N146: Code | O146: 85 DC Factor | Q146: Code | R146: 85 DC Factor
G147: 30E | H147: 0.9 | K147: 30E | L147: 0.9 | N147: 30E | O147: 0.9 | Q147: 30E | R147: 0.9
G148: 20B | H148: 0.9 | K148: 27E | L148: 0.9 | N148: 17E | O148: 0.9 | Q148: 17E | R148: 0.9
G149: 27E | H149: 0.9 | K149: 27G | L149: 0.9 | N149: 20B | O149: 0.9 | Q149: 20B | R149: 0.9
G150: 27G | H150: 0.9 | K150: 27H | L150: 0.9 | N150: 25E | O150: 0.9 | Q150: 25E | R150: 0.9
G151: 27H | H151: 0.9 | K151: 30G | L151: 0.9 | N151: 27E | O151: 0.9 | Q151: 27E | R151: 0.9
G152: 30G | H152: 0.9 | K152: 30G | L152: 0.9 | N152: 27G | O152: 0.9 | Q152: 27G | R152: 0.9
G153: 30G-C | H153: 0.9 | K153: 30H | L153: 0.9 | N153: 27H | O153: 0.9 | Q153: 27H | R153: 0.9
G154: 30H | H154: 0.9 | K154: 30A | L154: 0.9 | N154: 30A | O154: 0.9 | Q154: 30G | R154: 0.9
G155: 30A | H155: 0.9 | K155: 35E | L155: 0.9 | N155: 30G | O155: 0.9 | Q155: 30H | R155: 0.9
G156: 35E | H156: 0.9 | K156: 35G | L156: 0.9 | N156: 30G-C | O156: 0.9 | Q156: 30A | R156: 0.9
G157: 35G | H157: 0.9 | K157: 35A | L157: 0.9 | N157: 30H | O157: 0.9 | Q157: 35E | R157: 0.9
G158: 35A | H158: 0.9 | K158: 40E | L158: 0.9 | N158: 35A | O158: 0.9 | Q158: 35G | R158: 0.9
G159: 40E | H159: 0.9 | K159: 40G | L159: 0.9 | N159: 35E | O159: 0.9 | Q159: 35A | R159: 0.9
G160: 40G | H160: 0.9 | K160: 40A | L160: 0.9 | N160: 35G | O160: 0.9 | Q160: 40E | R160: 0.9
G161: 40A | H161: 0.9 | K161: 50C | L161: 0.9 | N161: 40A | O161: 0.9 | Q161: 40G | R161: 0.9
G162: 50C | H162: 0.9 | K162: 50E | L162: 0.9 | N162: 40E | O162: 0.9 | Q162: 40A | R162: 0.9
G163: 50E | H163: 0.9 | K163: 50G | L163: 0.9 | N163: 40G | O163: 0.9 | Q163: 50C | R163: 0.9
G164: 50G | H164: 0.9 | K164: 57C | L164: 0.9 | N164: 50C | O164: 0.9 | Q164: 50E | R164: 0.9
G165: 57C | H165: 0.9 | K165: 57E | L165: 0.9 | N165: 50E | O165: 0.9 | Q165: 50G | R165: 0.9
G166: 57E | H166: 0.9 | K166: 65C | L166: 0.9 | N166: 50G | O166: 0.9 | Q166: 56G | R166: 0.9
G167: 65C | H167: 0.9 | K167: 65E | L167: 0.9 | N167: 56G | O167: 0.9 | Q167: 56H | R167: 0.9
G168: 65E | H168: 0.9 | K168: 27G-H | L168: 0.9 | N168: 56H | O168: 0.9 | Q168: 57C | R168: 0.9
G169: 27G-H | H169: 0.9 | K169: 30G-H | L169: 0.9 | N169: 57C | O169: 0.9 | Q169: 57E | R169: 0.9
G170: 30G-H | H170: 0.9 | K170: 30C | L170: 0.9 | N170: 57E | O170: 0.9 | Q170: 65C | R170: 0.9
G171: 30C | H171: 0.9 | K171: 40C | L171: 0.9 | N171: 65C | O171: 0.9 | Q171: 65E | R171: 0.9
G172: 40C | H172: 0.9 | N172: 65E | O172: 0.9 | Q172: 27G-H | R172: 0.9
N173: 27G-H | O173: 0.9 | Q173: 30G-H | R173: 0.9
N174: 30G-H | O174: 0.9 | Q174: 30C | R174: 0.9
N175: 30C | O175: 0.9 | Q175: 40C | R175: 0.9
N176: 40C | O176: 0.9
A178: Master Table | P178: x=dc | T178: x=dc
P179: Voltage | T179: Current vs Relative Flux | X179: Current vs Relative Flux @ 85DC | AB179: Flux vs Temperature | AG179: Voltage vs Temperature | AK179: Current vs Relative Flux
A180: Product Family | B180: CCT/CRI | C180: Arrangement | D180: Lumen Family | E180: Generation | F180: PF+CR | G180: P/N | H180: Typical Lumens | I180: Typical Efficacy | J180: Thermal Resistance | K180: Typical Voltage | L180: Typical Current | M180: Max Current | N180: # of Die | O180: V^4 | P180: V^3 | Q180: V^2 | R180: V | S180: V0 | T180: I^3 | U180: I^2 | V180: I | W180: I0 | X180: I^32 | Y180: I^23 | Z180: I4 | AA180: I05 | AB180: F^4 | AC180: F^3 | AD180: F^2 | AE180: F | AF180: F0 | AG180: T^3 | AH180: T^2 | AI180: T | AJ180: T0 | AK180: R^3 | AL180: R^2 | AM180: R | AN180: R0 | AO180: R1
A181: V8-D | B181: 27E | C181: D | D181: 0800 | E181: BXRE | F181: =MasterTable[[#This Row],[Product Family]]&"-"&MasterTable[[#This Row],[CCT/CRI]]&MasterTable[[#This Row],[Arrangement]] -> V8-D-27ED | G181: =MasterTable[[#This Row],[Generation]]&"-"&MasterTable[[#This Row],[CCT/CRI]]&IF(MasterTable[[#This Row],[Lumen Family]]<999,"0"&MasterTable[[#This Row],[Lumen Family]],MasterTable[[#This Row],[Lumen Family]])&"-"&MasterTable[[#This Row],[Arrangement]]&"-xx" -> BXRE-27E0800-D-xx | H181: 939 | I181: =MasterTable[[#This Row],[Typical Lumens]]/(MasterTable[[#This Row],[Typical Voltage]]*MasterTable[[#This Row],[Typical Current]]/1000) -> 155.0784476 | J181: 0.49 | K181: 17.3 | L181: 350 | M181: 700 | N181: 24 | P181: 3.6e-09 | Q181: -5.9802e-06 | R181: 0.0064073706 | S181: 15.64402466 | T181: -5.9148e-12 | U181: -5.1677e-07 | V181: 0.0030372 | W181: -1e-07 | AD181: -4e-06 | AE181: -0.001 | AF181: 1.0275 | AK181: 4.1257 | AL181: 15.748 | AM181: 330.26 | AN181: -1e-07
A182: V8-D | B182: 27G | C182: D | D182: 0800 | E182: BXRE | F182: =MasterTable[[#This Row],[Product Family]]&"-"&MasterTable[[#This Row],[CCT/CRI]]&MasterTable[[#This Row],[Arrangement]] -> V8-D-27GD | G182: =MasterTable[[#This Row],[Generation]]&"-"&MasterTable[[#This Row],[CCT/CRI]]&IF(MasterTable[[#This Row],[Lumen Family]]<999,"0"&MasterTable[[#This Row],[Lumen Family]],MasterTable[[#This Row],[Lumen Family]])&"-"&MasterTable[[#This Row],[Arrangement]]&"-xx" -> BXRE-27G0800-D-xx | H182: 775 | I182: =MasterTable[[#This Row],[Typical Lumens]]/(MasterTable[[#This Row],[Typical Voltage]]*MasterTable[[#This Row],[Typical Current]]/1000) -> 127.9933939 | J182: 0.49 | K182: 17.3 | L182: 350 | M182: 700 | N182: 24 | P182: 3.6e-09 | Q182: -5.9802e-06 | R182: 0.0064073706 | S182: 15.64402466 | T182: -5.9148e-12 | U182: -5.1677e-07 | V182: 0.0030372 | W182: -1e-07 | AD182: -4e-06 | AE182: -0.001 | AF182: 1.0275 | AK182: 4.1257 | AL182: 15.748 | AM182: 330.26 | AN182: -1e-07
A183: V8-D | B183: 27G-H | C183: D | D183: 08H0 | E183: BXRE | F183: =MasterTable[[#This Row],[Product Family]]&"-"&MasterTable[[#This Row],[CCT/CRI]]&MasterTable[[#This Row],[Arrangement]] -> V8-D-27G-HD | G183: BXRE-27G-08H0-D-xx | H183: 805 | I183: =MasterTable[[#This Row],[Typical Lumens]]/(MasterTable[[#This Row],[Typical Voltage]]*MasterTable[[#This Row],[Typical Current]]/1000) -> 132.9479769 | J183: 0.49 | K183: 17.3 | L183: 350 | M183: 700 | N183: 24 | P183: 3.6e-09 | Q183: -5.9802e-06 | R183: 0.0064073706 | S183: 15.64402466 | T183: -5.9148e-12 | U183: -5.1677e-07 | V183: 0.0030372 | W183: -1e-07 | AD183: -4e-06 | AE183: -0.001 | AF183: 1.0275 | AK183: 4.1257 | AL183: 15.748 | AM183: 330.26 | AN183: -1e-07
A184: V8-D | B184: 30G-H | C184: D | D184: 08H0 | E184: BXRE | F184: =MasterTable[[#This Row],[Product Family]]&"-"&MasterTable[[#This Row],[CCT/CRI]]&MasterTable[[#This Row],[Arrangement]] -> V8-D-30G-HD | G184: BXRE-30G-08H0-D-xx | H184: 848 | I184: =MasterTable[[#This Row],[Typical Lumens]]/(MasterTable[[#This Row],[Typical Voltage]]*MasterTable[[#This Row],[Typical Current]]/1000) -> 140.0495458 | J184: 0.49 | K184: 17.3 | L184: 350 | M184: 700 | N184: 24 | P184: 3.6e-09 | Q184: -5.9802e-06 | R184: 0.0064073706 | S184: 15.64402466 | T184: -5.9148e-12 | U184: -5.1677e-07 | V184: 0.0030372 | W184: -1e-07 | AD184: -4e-06 | AE184: -0.001 | AF184: 1.0275 | AK184: 4.1257 | AL184: 15.748 | AM184: 330.26 | AN184: -1e-07
A185: V8-D | B185: 30C | C185: D | D185: 800 | E185: BXRE | F185: =MasterTable[[#This Row],[Product Family]]&"-"&MasterTable[[#This Row],[CCT/CRI]]&MasterTable[[#This Row],[Arrangement]] -> V8-D-30CD | G185: =MasterTable[[#This Row],[Generation]]&"-"&MasterTable[[#This Row],[CCT/CRI]]&IF(MasterTable[[#This Row],[Lumen Family]]<999,"0"&MasterTable[[#This Row],[Lumen Family]],MasterTable[[#This Row],[Lumen Family]])&"-"&MasterTable[[#This Row],[Arrangement]]&"-xx" -> BXRE-30C0800-D-xx | H185: 1048 | I185: =MasterTable[[#This Row],[Typical Lumens]]/(MasterTable[[#This Row],[Typical Voltage]]*MasterTable[[#This Row],[Typical Current]]/1000) -> 173.0800991 | J185: 0.49 | K185: 17.3 | L185: 350 | M185: 700 | N185: 24 | P185: 3.6e-09 | Q185: -5.9802e-06 | R185: 0.0064073706 | S185: 15.64402466 | T185: -5.9148e-12 | U185: -5.1677e-07 | V185: 0.0030372 | W185: -1e-07 | AD185: -4e-06 | AE185: -0.001 | AF185: 1.0275 | AK185: 4.1257 | AL185: 15.748 | AM185: 330.26 | AN185: -1e-07
A186: V8-D | B186: 30E | C186: D | D186: 0800 | E186: BXRE | F186: =MasterTable[[#This Row],[Product Family]]&"-"&MasterTable[[#This Row],[CCT/CRI]]&MasterTable[[#This Row],[Arrangement]] -> V8-D-30ED | G186: =MasterTable[[#This Row],[Generation]]&"-"&MasterTable[[#This Row],[CCT/CRI]]&IF(MasterTable[[#This Row],[Lumen Family]]<999,"0"&MasterTable[[#This Row],[Lumen Family]],MasterTable[[#This Row],[Lumen Family]])&"-"&MasterTable[[#This Row],[Arrangement]]&"-xx" -> BXRE-30E0800-D-xx | H186: 999 | I186: =MasterTable[[#This Row],[Typical Lumens]]/(MasterTable[[#This Row],[Typical Voltage]]*MasterTable[[#This Row],[Typical Current]]/1000) -> 164.9876135 | J186: 0.49 | K186: 17.3 | L186: 350 | M186: 700 | N186: 24 | P186: 3.6e-09 | Q186: -5.9802e-06 | R186: 0.0064073706 | S186: 15.64402466 | T186: -5.9148e-12 | U186: -5.1677e-07 | V186: 0.0030372 | W186: -1e-07 | AD186: -4e-06 | AE186: -0.001 | AF186: 1.0275 | AK186: 4.1257 | AL186: 15.748 | AM186: 330.26 | AN186: -1e-07
A187: V8-D | B187: 30G | C187: D | D187: 0800 | E187: BXRE | F187: =MasterTable[[#This Row],[Product Family]]&"-"&MasterTable[[#This Row],[CCT/CRI]]&MasterTable[[#This Row],[Arrangement]] -> V8-D-30GD | G187: =MasterTable[[#This Row],[Generation]]&"-"&MasterTable[[#This Row],[CCT/CRI]]&IF(MasterTable[[#This Row],[Lumen Family]]<999,"0"&MasterTable[[#This Row],[Lumen Family]],MasterTable[[#This Row],[Lumen Family]])&"-"&MasterTable[[#This Row],[Arrangement]]&"-xx" -> BXRE-30G0800-D-xx | H187: 811 | I187: =MasterTable[[#This Row],[Typical Lumens]]/(MasterTable[[#This Row],[Typical Voltage]]*MasterTable[[#This Row],[Typical Current]]/1000) -> 133.9388935 | J187: 0.49 | K187: 17.3 | L187: 350 | M187: 700 | N187: 24 | P187: 3.6e-09 | Q187: -5.9802e-06 | R187: 0.0064073706 | S187: 15.64402466 | T187: -5.9148e-12 | U187: -5.1677e-07 | V187: 0.0030372 | W187: -1e-07 | AD187: -4e-06 | AE187: -0.001 | AF187: 1.0275 | AK187: 4.1257 | AL187: 15.748 | AM187: 330.26 | AN187: -1e-07
A188: V8-D | B188: 40C | C188: D | D188: 800 | E188: BXRE | F188: =MasterTable[[#This Row],[Product Family]]&"-"&MasterTable[[#This Row],[CCT/CRI]]&MasterTable[[#This Row],[Arrangement]] -> V8-D-40CD | G188: =MasterTable[[#This Row],[Generation]]&"-"&MasterTable[[#This Row],[CCT/CRI]]&IF(MasterTable[[#This Row],[Lumen Family]]<999,"0"&MasterTable[[#This Row],[Lumen Family]],MasterTable[[#This Row],[Lumen Family]])&"-"&MasterTable[[#This Row],[Arrangement]]&"-xx" -> BXRE-40C0800-D-xx | H188: 1078 | I188: =MasterTable[[#This Row],[Typical Lumens]]/(MasterTable[[#This Row],[Typical Voltage]]*MasterTable[[#This Row],[Typical Current]]/1000) -> 178.0346821 | J188: 0.49 | K188: 17.3 | L188: 350 | M188: 700 | N188: 24 | P188: 3.6e-09 | Q188: -5.9802e-06 | R188: 0.0064073706 | S188: 15.64402466 | T188: -5.9148e-12 | U188: -5.1677e-07 | V188: 0.0030372 | W188: -1e-07 | AD188: -4e-06 | AE188: -0.001 | AF188: 1.0275 | AK188: 4.1257 | AL188: 15.748 | AM188: 330.26 | AN188: -1e-07
A189: V8-D | B189: 40E | C189: D | D189: 0800 | E189: BXRE | F189: =MasterTable[[#This Row],[Product Family]]&"-"&MasterTable[[#This Row],[CCT/CRI]]&MasterTable[[#This Row],[Arrangement]] -> V8-D-40ED | G189: =MasterTable[[#This Row],[Generation]]&"-"&MasterTable[[#This Row],[CCT/CRI]]&IF(MasterTable[[#This Row],[Lumen Family]]<999,"0"&MasterTable[[#This Row],[Lumen Family]],MasterTable[[#This Row],[Lumen Family]])&"-"&MasterTable[[#This Row],[Arrangement]]&"-xx" -> BXRE-40E0800-D-xx | H189: 1029 | I189: =MasterTable[[#This Row],[Typical Lumens]]/(MasterTable[[#This Row],[Typical Voltage]]*MasterTable[[#This Row],[Typical Current]]/1000) -> 169.9421965 | J189: 0.49 | K189: 17.3 | L189: 350 | M189: 700 | N189: 24 | P189: 3.6e-09 | Q189: -5.9802e-06 | R189: 0.0064073706 | S189: 15.64402466 | T189: -5.9148e-12 | U189: -5.1677e-07 | V189: 0.0030372 | W189: -1e-07 | AD189: -4e-06 | AE189: -0.001 | AF189: 1.0275 | AK189: 4.1257 | AL189: 15.748 | AM189: 330.26 | AN189: -1e-07
A190: V8-D | B190: 40G | C190: D | D190: 0800 | E190: BXRE | F190: =MasterTable[[#This Row],[Product Family]]&"-"&MasterTable[[#This Row],[CCT/CRI]]&MasterTable[[#This Row],[Arrangement]] -> V8-D-40GD | G190: =MasterTable[[#This Row],[Generation]]&"-"&MasterTable[[#This Row],[CCT/CRI]]&IF(MasterTable[[#This Row],[Lumen Family]]<999,"0"&MasterTable[[#This Row],[Lumen Family]],MasterTable[[#This Row],[Lumen Family]])&"-"&MasterTable[[#This Row],[Arrangement]]&"-xx" -> BXRE-40G0800-D-xx | H190: 860 | I190: =MasterTable[[#This Row],[Typical Lumens]]/(MasterTable[[#This Row],[Typical Voltage]]*MasterTable[[#This Row],[Typical Current]]/1000) -> 142.031379 | J190: 0.49 | K190: 17.3 | L190: 350 | M190: 700 | N190: 24 | P190: 3.6e-09 | Q190: -5.9802e-06 | R190: 0.0064073706 | S190: 15.64402466 | T190: -5.9148e-12 | U190: -5.1677e-07 | V190: 0.0030372 | W190: -1e-07 | AD190: -4e-06 | AE190: -0.001 | AF190: 1.0275 | AK190: 4.1257 | AL190: 15.748 | AM190: 330.26 | AN190: -1e-07
A191: V8-D | B191: 50C | C191: D | D191: 0801 | E191: BXRE | F191: =MasterTable[[#This Row],[Product Family]]&"-"&MasterTable[[#This Row],[CCT/CRI]]&MasterTable[[#This Row],[Arrangement]] -> V8-D-50CD | G191: =MasterTable[[#This Row],[Generation]]&"-"&MasterTable[[#This Row],[CCT/CRI]]&IF(MasterTable[[#This Row],[Lumen Family]]<999,"0"&MasterTable[[#This Row],[Lumen Family]],MasterTable[[#This Row],[Lumen Family]])&"-"&MasterTable[[#This Row],[Arrangement]]&"-xx" -> BXRE-50C0801-D-xx | H191: 1078 | I191: =MasterTable[[#This Row],[Typical Lumens]]/(MasterTable[[#This Row],[Typical Voltage]]*MasterTable[[#This Row],[Typical Current]]/1000) -> 178.0346821 | J191: 0.49 | K191: 17.3 | L191: 350 | M191: 700 | N191: 24 | P191: 3.6e-09 | Q191: -5.9802e-06 | R191: 0.0064073706 | S191: 15.64402466 | T191: -5.9148e-12 | U191: -5.1677e-07 | V191: 0.0030372 | W191: -1e-07 | AD191: -4e-06 | AE191: -0.001 | AF191: 1.0275 | AK191: 4.1257 | AL191: 15.748 | AM191: 330.26 | AN191: -1e-07
A192: V8-E | B192: 27E | C192: E | D192: 0800 | E192: BXRE | F192: =MasterTable[[#This Row],[Product Family]]&"-"&MasterTable[[#This Row],[CCT/CRI]]&MasterTable[[#This Row],[Arrangement]] -> V8-E-27EE | G192: =MasterTable[[#This Row],[Generation]]&"-"&MasterTable[[#This Row],[CCT/CRI]]&IF(MasterTable[[#This Row],[Lumen Family]]<999,"0"&MasterTable[[#This Row],[Lumen Family]],MasterTable[[#This Row],[Lumen Family]])&"-"&MasterTable[[#This Row],[Arrangement]]&"-xx" -> BXRE-27E0800-E-xx | H192: 941 | I192: =MasterTable[[#This Row],[Typical Lumens]]/(MasterTable[[#This Row],[Typical Voltage]]*MasterTable[[#This Row],[Typical Current]]/1000) -> 154.9608893 | J192: 0.49 | K192: 34.7 | L192: 175 | M192: 350 | N192: 24 | P192: 5.8e-08 | Q192: -4.79542e-05 | R192: 0.0262231069 | S192: 30.99192331 | T192: 5.1208e-10 | U192: -2.3357e-06 | V192: 0.0061036 | W192: -1e-07 | AC192: -2.28e-08 | AD192: 1.829e-07 | AE192: -0.0011936561 | AF192: 1.030381484 | AK192: 1.3463 | AL192: 9.7157 | AM192: 164.05 | AN192: -1e-07
A193: V8-E | B193: 27G | C193: E | D193: 0800 | E193: BXRE | F193: =MasterTable[[#This Row],[Product Family]]&"-"&MasterTable[[#This Row],[CCT/CRI]]&MasterTable[[#This Row],[Arrangement]] -> V8-E-27GE | G193: =MasterTable[[#This Row],[Generation]]&"-"&MasterTable[[#This Row],[CCT/CRI]]&IF(MasterTable[[#This Row],[Lumen Family]]<999,"0"&MasterTable[[#This Row],[Lumen Family]],MasterTable[[#This Row],[Lumen Family]])&"-"&MasterTable[[#This Row],[Arrangement]]&"-xx" -> BXRE-27G0800-E-xx | H193: 777 | I193: =MasterTable[[#This Row],[Typical Lumens]]/(MasterTable[[#This Row],[Typical Voltage]]*MasterTable[[#This Row],[Typical Current]]/1000) -> 127.9538905 | J193: 0.49 | K193: 34.7 | L193: 175 | M193: 350 | N193: 24 | P193: 5.8e-08 | Q193: -4.79542e-05 | R193: 0.0262231069 | S193: 30.99192331 | T193: 5.1208e-10 | U193: -2.3357e-06 | V193: 0.0061036 | W193: -1e-07 | AC193: -2.28e-08 | AD193: 1.829e-07 | AE193: -0.0011936561 | AF193: 1.030381484 | AK193: 1.3463 | AL193: 9.7157 | AM193: 164.05 | AN193: -1e-07
A194: V8-E | B194: 27G-H | C194: E | D194: 08H0 | E194: BXRE | F194: =MasterTable[[#This Row],[Product Family]]&"-"&MasterTable[[#This Row],[CCT/CRI]]&MasterTable[[#This Row],[Arrangement]] -> V8-E-27G-HE | G194: BXRE-27G-08H0-E-xx | H194: 808 | I194: =MasterTable[[#This Row],[Typical Lumens]]/(MasterTable[[#This Row],[Typical Voltage]]*MasterTable[[#This Row],[Typical Current]]/1000) -> 133.058872 | J194: 0.49 | K194: 34.7 | L194: 175 | M194: 350 | N194: 24 | P194: 5.8e-08 | Q194: -4.79542e-05 | R194: 0.0262231069 | S194: 30.99192331 | T194: 5.1208e-10 | U194: -2.3357e-06 | V194: 0.0061036 | W194: -1e-07 | AC194: -2.28e-08 | AD194: 1.829e-07 | AE194: -0.0011936561 | AF194: 1.030381484 | AK194: 1.3463 | AL194: 9.7157 | AM194: 164.05 | AN194: -1e-07
A195: V8-E | B195: 30G-H | C195: E | D195: 08H0 | E195: BXRE | F195: =MasterTable[[#This Row],[Product Family]]&"-"&MasterTable[[#This Row],[CCT/CRI]]&MasterTable[[#This Row],[Arrangement]] -> V8-E-30G-HE | G195: BXRE-30G-08H0-E-xx | H195: 850 | I195: =MasterTable[[#This Row],[Typical Lumens]]/(MasterTable[[#This Row],[Typical Voltage]]*MasterTable[[#This Row],[Typical Current]]/1000) -> 139.9752985 | J195: 0.49 | K195: 34.7 | L195: 175 | M195: 350 | N195: 24 | P195: 5.8e-08 | Q195: -4.79542e-05 | R195: 0.0262231069 | S195: 30.99192331 | T195: 5.1208e-10 | U195: -2.3357e-06 | V195: 0.0061036 | W195: -1e-07 | AC195: -2.28e-08 | AD195: 1.829e-07 | AE195: -0.0011936561 | AF195: 1.030381484 | AK195: 1.3463 | AL195: 9.7157 | AM195: 164.05 | AN195: -1e-07
A196: V8-E | B196: 30C | C196: E | D196: 0800 | E196: BXRE | F196: =MasterTable[[#This Row],[Product Family]]&"-"&MasterTable[[#This Row],[CCT/CRI]]&MasterTable[[#This Row],[Arrangement]] -> V8-E-30CE | G196: =MasterTable[[#This Row],[Generation]]&"-"&MasterTable[[#This Row],[CCT/CRI]]&IF(MasterTable[[#This Row],[Lumen Family]]<999,"0"&MasterTable[[#This Row],[Lumen Family]],MasterTable[[#This Row],[Lumen Family]])&"-"&MasterTable[[#This Row],[Arrangement]]&"-xx" -> BXRE-30C0800-E-xx | H196: 1051 | I196: =MasterTable[[#This Row],[Typical Lumens]]/(MasterTable[[#This Row],[Typical Voltage]]*MasterTable[[#This Row],[Typical Current]]/1000) -> 173.0753396 | J196: 0.49 | K196: 34.7 | L196: 175 | M196: 350 | N196: 24 | P196: 5.8e-08 | Q196: -4.79542e-05 | R196: 0.0262231069 | S196: 30.99192331 | T196: 5.1208e-10 | U196: -2.3357e-06 | V196: 0.0061036 | W196: -1e-07 | AC196: -2.28e-08 | AD196: 1.829e-07 | AE196: -0.0011936561 | AF196: 1.030381484 | AK196: 1.3463 | AL196: 9.7157 | AM196: 164.05 | AN196: -1e-07
A197: V8-E | B197: 30E | C197: E | D197: 0800 | E197: BXRE | F197: =MasterTable[[#This Row],[Product Family]]&"-"&MasterTable[[#This Row],[CCT/CRI]]&MasterTable[[#This Row],[Arrangement]] -> V8-E-30EE | G197: =MasterTable[[#This Row],[Generation]]&"-"&MasterTable[[#This Row],[CCT/CRI]]&IF(MasterTable[[#This Row],[Lumen Family]]<999,"0"&MasterTable[[#This Row],[Lumen Family]],MasterTable[[#This Row],[Lumen Family]])&"-"&MasterTable[[#This Row],[Arrangement]]&"-xx" -> BXRE-30E0800-E-xx | H197: 1002 | I197: =MasterTable[[#This Row],[Typical Lumens]]/(MasterTable[[#This Row],[Typical Voltage]]*MasterTable[[#This Row],[Typical Current]]/1000) -> 165.0061754 | J197: 0.49 | K197: 34.7 | L197: 175 | M197: 350 | N197: 24 | P197: 5.8e-08 | Q197: -4.79542e-05 | R197: 0.0262231069 | S197: 30.99192331 | T197: 5.1208e-10 | U197: -2.3357e-06 | V197: 0.0061036 | W197: -1e-07 | AC197: -2.28e-08 | AD197: 1.829e-07 | AE197: -0.0011936561 | AF197: 1.030381484 | AK197: 1.3463 | AL197: 9.7157 | AM197: 164.05 | AN197: -1e-07
A198: V8-E | B198: 30G | C198: E | D198: 0800 | E198: BXRE | F198: =MasterTable[[#This Row],[Product Family]]&"-"&MasterTable[[#This Row],[CCT/CRI]]&MasterTable[[#This Row],[Arrangement]] -> V8-E-30GE | G198: =MasterTable[[#This Row],[Generation]]&"-"&MasterTable[[#This Row],[CCT/CRI]]&IF(MasterTable[[#This Row],[Lumen Family]]<999,"0"&MasterTable[[#This Row],[Lumen Family]],MasterTable[[#This Row],[Lumen Family]])&"-"&MasterTable[[#This Row],[Arrangement]]&"-xx" -> BXRE-30G0800-E-xx | H198: 814 | I198: =MasterTable[[#This Row],[Typical Lumens]]/(MasterTable[[#This Row],[Typical Voltage]]*MasterTable[[#This Row],[Typical Current]]/1000) -> 134.0469329 | J198: 0.49 | K198: 34.7 | L198: 175 | M198: 350 | N198: 24 | P198: 5.8e-08 | Q198: -4.79542e-05 | R198: 0.0262231069 | S198: 30.99192331 | T198: 5.1208e-10 | U198: -2.3357e-06 | V198: 0.0061036 | W198: -1e-07 | AC198: -2.28e-08 | AD198: 1.829e-07 | AE198: -0.0011936561 | AF198: 1.030381484 | AK198: 1.3463 | AL198: 9.7157 | AM198: 164.05 | AN198: -1e-07
A199: V8-E | B199: 40C | C199: E | D199: 0800 | E199: BXRE | F199: =MasterTable[[#This Row],[Product Family]]&"-"&MasterTable[[#This Row],[CCT/CRI]]&MasterTable[[#This Row],[Arrangement]] -> V8-E-40CE | G199: =MasterTable[[#This Row],[Generation]]&"-"&MasterTable[[#This Row],[CCT/CRI]]&IF(MasterTable[[#This Row],[Lumen Family]]<999,"0"&MasterTable[[#This Row],[Lumen Family]],MasterTable[[#This Row],[Lumen Family]])&"-"&MasterTable[[#This Row],[Arrangement]]&"-xx" -> BXRE-40C0800-E-xx | H199: 1081 | I199: =MasterTable[[#This Row],[Typical Lumens]]/(MasterTable[[#This Row],[Typical Voltage]]*MasterTable[[#This Row],[Typical Current]]/1000) -> 178.0156443 | J199: 0.49 | K199: 34.7 | L199: 175 | M199: 350 | N199: 24 | P199: 5.8e-08 | Q199: -4.79542e-05 | R199: 0.0262231069 | S199: 30.99192331 | T199: 5.1208e-10 | U199: -2.3357e-06 | V199: 0.0061036 | W199: -1e-07 | AC199: -2.28e-08 | AD199: 1.829e-07 | AE199: -0.0011936561 | AF199: 1.030381484 | AK199: 1.3463 | AL199: 9.7157 | AM199: 164.05 | AN199: -1e-07
A200: V8-E | B200: 40E | C200: E | D200: 0800 | E200: BXRE | F200: =MasterTable[[#This Row],[Product Family]]&"-"&MasterTable[[#This Row],[CCT/CRI]]&MasterTable[[#This Row],[Arrangement]] -> V8-E-40EE | G200: =MasterTable[[#This Row],[Generation]]&"-"&MasterTable[[#This Row],[CCT/CRI]]&IF(MasterTable[[#This Row],[Lumen Family]]<999,"0"&MasterTable[[#This Row],[Lumen Family]],MasterTable[[#This Row],[Lumen Family]])&"-"&MasterTable[[#This Row],[Arrangement]]&"-xx" -> BXRE-40E0800-E-xx | H200: 1032 | I200: =MasterTable[[#This Row],[Typical Lumens]]/(MasterTable[[#This Row],[Typical Voltage]]*MasterTable[[#This Row],[Typical Current]]/1000) -> 169.94648 | J200: 0.49 | K200: 34.7 | L200: 175 | M200: 350 | N200: 24 | P200: 5.8e-08 | Q200: -4.79542e-05 | R200: 0.0262231069 | S200: 30.99192331 | T200: 5.1208e-10 | U200: -2.3357e-06 | V200: 0.0061036 | W200: -1e-07 | AC200: -2.28e-08 | AD200: 1.829e-07 | AE200: -0.0011936561 | AF200: 1.030381484 | AK200: 1.3463 | AL200: 9.7157 | AM200: 164.05 | AN200: -1e-07
A201: V8-E | B201: 40G | C201: E | D201: 0800 | E201: BXRE | F201: =MasterTable[[#This Row],[Product Family]]&"-"&MasterTable[[#This Row],[CCT/CRI]]&MasterTable[[#This Row],[Arrangement]] -> V8-E-40GE | G201: =MasterTable[[#This Row],[Generation]]&"-"&MasterTable[[#This Row],[CCT/CRI]]&IF(MasterTable[[#This Row],[Lumen Family]]<999,"0"&MasterTable[[#This Row],[Lumen Family]],MasterTable[[#This Row],[Lumen Family]])&"-"&MasterTable[[#This Row],[Arrangement]]&"-xx" -> BXRE-40G0800-E-xx | H201: 862 | I201: =MasterTable[[#This Row],[Typical Lumens]]/(MasterTable[[#This Row],[Typical Voltage]]*MasterTable[[#This Row],[Typical Current]]/1000) -> 141.9514203 | J201: 0.49 | K201: 34.7 | L201: 175 | M201: 350 | N201: 24 | P201: 5.8e-08 | Q201: -4.79542e-05 | R201: 0.0262231069 | S201: 30.99192331 | T201: 5.1208e-10 | U201: -2.3357e-06 | V201: 0.0061036 | W201: -1e-07 | AC201: -2.28e-08 | AD201: 1.829e-07 | AE201: -0.0011936561 | AF201: 1.030381484 | AK201: 1.3463 | AL201: 9.7157 | AM201: 164.05 | AN201: -1e-07
A202: V8-E | B202: 50C | C202: E | D202: 0801 | E202: BXRE | F202: =MasterTable[[#This Row],[Product Family]]&"-"&MasterTable[[#This Row],[CCT/CRI]]&MasterTable[[#This Row],[Arrangement]] -> V8-E-50CE | G202: =MasterTable[[#This Row],[Generation]]&"-"&MasterTable[[#This Row],[CCT/CRI]]&IF(MasterTable[[#This Row],[Lumen Family]]<999,"0"&MasterTable[[#This Row],[Lumen Family]],MasterTable[[#This Row],[Lumen Family]])&"-"&MasterTable[[#This Row],[Arrangement]]&"-xx" -> BXRE-50C0801-E-xx | H202: 1081 | I202: =MasterTable[[#This Row],[Typical Lumens]]/(MasterTable[[#This Row],[Typical Voltage]]*MasterTable[[#This Row],[Typical Current]]/1000) -> 178.0156443 | J202: 0.49 | K202: 34.7 | L202: 175 | M202: 350 | N202: 24 | P202: 5.8e-08 | Q202: -4.79542e-05 | R202: 0.0262231069 | S202: 30.99192331 | T202: 5.1208e-10 | U202: -2.3357e-06 | V202: 0.0061036 | W202: -1e-07 | AC202: -2.28e-08 | AD202: 1.829e-07 | AE202: -0.0011936561 | AF202: 1.030381484 | AK202: 1.3463 | AL202: 9.7157 | AM202: 164.05 | AN202: -1e-07
A203: V10-B | B203: 30E | C203: B | D203: 1000 | E203: BXRE | F203: =MasterTable[[#This Row],[Product Family]]&"-"&MasterTable[[#This Row],[CCT/CRI]]&MasterTable[[#This Row],[Arrangement]] -> V10-B-30EB | G203: =MasterTable[[#This Row],[Generation]]&"-"&MasterTable[[#This Row],[CCT/CRI]]&IF(MasterTable[[#This Row],[Lumen Family]]<999,"0"&MasterTable[[#This Row],[Lumen Family]],MasterTable[[#This Row],[Lumen Family]])&"-"&MasterTable[[#This Row],[Arrangement]]&"-xx" -> BXRE-30E1000-B-xx | H203: 1549 | I203: =MasterTable[[#This Row],[Typical Lumens]]/(MasterTable[[#This Row],[Typical Voltage]]*MasterTable[[#This Row],[Typical Current]]/1000) -> 164.8573861 | J203: 0.49075 | K203: 34.8 | L203: 270 | M203: =L203*2 -> 540 | N203: 36 | P203: 9.8e-09 | Q203: -1.42836e-05 | R203: 0.0164904477 | S203: 31.30201008 | T203: 6.8448e-10 | U203: -1.5365e-06 | V203: 0.0041148 | W203: -1e-07 | AD203: -3.6592e-06 | AE203: -0.0010345506 | AF203: 1.024095626 | AK203: -0.9831 | AL203: 26.028 | AM203: 241.46 | AN203: -1e-07
A204: V10-B | B204: 20B | C204: B | D204: 1001 | E204: BXRE | F204: =MasterTable[[#This Row],[Product Family]]&"-"&MasterTable[[#This Row],[CCT/CRI]]&MasterTable[[#This Row],[Arrangement]] -> V10-B-20BB | G204: =MasterTable[[#This Row],[Generation]]&"-"&MasterTable[[#This Row],[CCT/CRI]]&IF(MasterTable[[#This Row],[Lumen Family]]<999,"0"&MasterTable[[#This Row],[Lumen Family]],MasterTable[[#This Row],[Lumen Family]])&"-"&MasterTable[[#This Row],[Arrangement]]&"-xx" -> BXRE-20B1001-B-xx | H204: 1439 | I204: =MasterTable[[#This Row],[Typical Lumens]]/(MasterTable[[#This Row],[Typical Voltage]]*MasterTable[[#This Row],[Typical Current]]/1000) -> 153.1502767 | J204: 0.49075 | K204: 34.8 | L204: 270 | M204: 540 | N204: 36 | P204: 9.8e-09 | Q204: -1.42836e-05 | R204: 0.0164904477 | S204: 31.30201008 | T204: 6.8448e-10 | U204: -1.5365e-06 | V204: 0.0041148 | W204: -1e-07 | AD204: -3.6592e-06 | AE204: -0.0010345506 | AF204: 1.024095626 | AK204: -0.9831 | AL204: 26.028 | AM204: 241.46 | AN204: -1e-07
A205: V10-B | B205: 27E | C205: B | D205: 1000 | E205: BXRE | F205: =MasterTable[[#This Row],[Product Family]]&"-"&MasterTable[[#This Row],[CCT/CRI]]&MasterTable[[#This Row],[Arrangement]] -> V10-B-27EB | G205: =MasterTable[[#This Row],[Generation]]&"-"&MasterTable[[#This Row],[CCT/CRI]]&IF(MasterTable[[#This Row],[Lumen Family]]<999,"0"&MasterTable[[#This Row],[Lumen Family]],MasterTable[[#This Row],[Lumen Family]])&"-"&MasterTable[[#This Row],[Arrangement]]&"-xx" -> BXRE-27E1000-B-xx | H205: 1458 | I205: =MasterTable[[#This Row],[Typical Lumens]]/(MasterTable[[#This Row],[Typical Voltage]]*MasterTable[[#This Row],[Typical Current]]/1000) -> 155.1724138 | J205: 0.49075 | K205: 34.8 | L205: 270 | M205: 540 | N205: 36 | P205: 9.8e-09 | Q205: -1.42836e-05 | R205: 0.0164904477 | S205: 31.30201008 | T205: 6.8448e-10 | U205: -1.5365e-06 | V205: 0.0041148 | W205: -1e-07 | AD205: -3.6592e-06 | AE205: -0.0010345506 | AF205: 1.024095626 | AK205: -0.9831 | AL205: 26.028 | AM205: 241.46 | AN205: -1e-07 | AQ205: y = 27.1960x2 + 234.8197x + 2.4136
A206: V10-B | B206: 27G | C206: B | D206: 1000 | E206: BXRE | F206: =MasterTable[[#This Row],[Product Family]]&"-"&MasterTable[[#This Row],[CCT/CRI]]&MasterTable[[#This Row],[Arrangement]] -> V10-B-27GB | G206: =MasterTable[[#This Row],[Generation]]&"-"&MasterTable[[#This Row],[CCT/CRI]]&IF(MasterTable[[#This Row],[Lumen Family]]<999,"0"&MasterTable[[#This Row],[Lumen Family]],MasterTable[[#This Row],[Lumen Family]])&"-"&MasterTable[[#This Row],[Arrangement]]&"-xx" -> BXRE-27G1000-B-xx | H206: 1249 | I206: =MasterTable[[#This Row],[Typical Lumens]]/(MasterTable[[#This Row],[Typical Voltage]]*MasterTable[[#This Row],[Typical Current]]/1000) -> 132.9289059 | J206: 0.49075 | K206: 34.8 | L206: 270 | M206: 540 | N206: 36 | P206: 9.8e-09 | Q206: -1.42836e-05 | R206: 0.0164904477 | S206: 31.30201008 | T206: 6.8448e-10 | U206: -1.5365e-06 | V206: 0.0041148 | W206: -1e-07 | AD206: -3.6592e-06 | AE206: -0.0010345506 | AF206: 1.024095626 | AK206: -0.9831 | AL206: 26.028 | AM206: 241.46 | AN206: -1e-07
A207: V10-B | B207: 27H | C207: B | D207: 1000 | E207: BXRE | F207: =MasterTable[[#This Row],[Product Family]]&"-"&MasterTable[[#This Row],[CCT/CRI]]&MasterTable[[#This Row],[Arrangement]] -> V10-B-27HB | G207: =MasterTable[[#This Row],[Generation]]&"-"&MasterTable[[#This Row],[CCT/CRI]]&IF(MasterTable[[#This Row],[Lumen Family]]<999,"0"&MasterTable[[#This Row],[Lumen Family]],MasterTable[[#This Row],[Lumen Family]])&"-"&MasterTable[[#This Row],[Arrangement]]&"-xx" -> BXRE-27H1000-B-xx | H207: 1066 | I207: =MasterTable[[#This Row],[Typical Lumens]]/(MasterTable[[#This Row],[Typical Voltage]]*MasterTable[[#This Row],[Typical Current]]/1000) -> 113.452533 | J207: 0.49075 | K207: 34.8 | L207: 270 | M207: 540 | N207: 36 | P207: 9.8e-09 | Q207: -1.42836e-05 | R207: 0.0164904477 | S207: 31.30201008 | T207: 6.8448e-10 | U207: -1.5365e-06 | V207: 0.0041148 | W207: -1e-07 | AD207: -3.6592e-06 | AE207: -0.0010345506 | AF207: 1.024095626 | AK207: -0.9831 | AL207: 26.028 | AM207: 241.46 | AN207: -1e-07
A208: V10-B | B208: 27G-H | C208: B | D208: 10H0 | E208: BXRE | F208: =MasterTable[[#This Row],[Product Family]]&"-"&MasterTable[[#This Row],[CCT/CRI]]&MasterTable[[#This Row],[Arrangement]] -> V10-B-27G-HB | G208: BXRE-27G-10H0-B-xx | H208: 1249 | I208: =MasterTable[[#This Row],[Typical Lumens]]/(MasterTable[[#This Row],[Typical Voltage]]*MasterTable[[#This Row],[Typical Current]]/1000) -> 132.9289059 | J208: 0.49075 | K208: 34.8 | L208: 270 | M208: =L208*2 -> 540 | N208: 36 | P208: 9.8e-09 | Q208: -1.42836e-05 | R208: 0.0164904477 | S208: 31.30201008 | T208: 6.8448e-10 | U208: -1.5365e-06 | V208: 0.0041148 | W208: -1e-07 | AD208: -3.6592e-06 | AE208: -0.0010345506 | AF208: 1.024095626 | AK208: -0.9831 | AL208: 26.028 | AM208: 241.46 | AN208: -1e-07
A209: V10-B | B209: 30G-H | C209: B | D209: 10H0 | E209: BXRE | F209: =MasterTable[[#This Row],[Product Family]]&"-"&MasterTable[[#This Row],[CCT/CRI]]&MasterTable[[#This Row],[Arrangement]] -> V10-B-30G-HB | G209: BXRE-30G-10H0-B-xx | H209: 1312 | I209: =MasterTable[[#This Row],[Typical Lumens]]/(MasterTable[[#This Row],[Typical Voltage]]*MasterTable[[#This Row],[Typical Current]]/1000) -> 139.6338868 | J209: 0.49075 | K209: 34.8 | L209: 270 | M209: 540 | N209: 38 | P209: 9.8e-09 | Q209: -1.42836e-05 | R209: 0.0164904477 | S209: 31.30201008 | T209: 6.8448e-10 | U209: -1.5365e-06 | V209: 0.0041148 | W209: -1e-07 | AD209: -3.6592e-06 | AE209: -0.0010345506 | AF209: 1.024095626 | AK209: -0.9831 | AL209: 26.028 | AM209: 241.46 | AN209: -1e-07
A210: V10-B | B210: 30G | C210: B | D210: 1000 | E210: BXRE | F210: =MasterTable[[#This Row],[Product Family]]&"-"&MasterTable[[#This Row],[CCT/CRI]]&MasterTable[[#This Row],[Arrangement]] -> V10-B-30GB | G210: =MasterTable[[#This Row],[Generation]]&"-"&MasterTable[[#This Row],[CCT/CRI]]&IF(MasterTable[[#This Row],[Lumen Family]]<999,"0"&MasterTable[[#This Row],[Lumen Family]],MasterTable[[#This Row],[Lumen Family]])&"-"&MasterTable[[#This Row],[Arrangement]]&"-xx" -> BXRE-30G1000-B-xx | H210: 1325.96352 | I210: =MasterTable[[#This Row],[Typical Lumens]]/(MasterTable[[#This Row],[Typical Voltage]]*MasterTable[[#This Row],[Typical Current]]/1000) -> 141.12 | J210: 0.49075 | K210: 34.8 | L210: 270 | M210: 540 | N210: 36 | P210: 9.8e-09 | Q210: -1.42836e-05 | R210: 0.0164904477 | S210: 31.30201008 | T210: 6.8448e-10 | U210: -1.5365e-06 | V210: 0.0041148 | W210: -1e-07 | AD210: -3.6592e-06 | AE210: -0.0010345506 | AF210: 1.024095626 | AK210: -0.9831 | AL210: 26.028 | AM210: 241.46 | AN210: -1e-07
A211: V10-B | B211: 27S | C211: B | D211: 1001 | E211: BXRE | F211: =MasterTable[[#This Row],[Product Family]]&"-"&MasterTable[[#This Row],[CCT/CRI]]&MasterTable[[#This Row],[Arrangement]] -> V10-B-27SB | G211: =MasterTable[[#This Row],[Generation]]&"-"&MasterTable[[#This Row],[CCT/CRI]]&IF(MasterTable[[#This Row],[Lumen Family]]<999,"0"&MasterTable[[#This Row],[Lumen Family]],MasterTable[[#This Row],[Lumen Family]])&"-"&MasterTable[[#This Row],[Arrangement]]&"-xx" -> BXRE-27S1001-B-xx | H211: 1003 | I211: =MasterTable[[#This Row],[Typical Lumens]]/(MasterTable[[#This Row],[Typical Voltage]]*MasterTable[[#This Row],[Typical Current]]/1000) -> 107.9888028 | J211: 0.49075 | K211: 34.4 | L211: 270 | M211: 540 | N211: 36 | P211: 1.3429e-08 | Q211: -2.4572e-05 | R211: 0.017867 | S211: 31.102 | T211: 6.5229e-10 | U211: -1.5152e-06 | V211: 0.0041117 | W211: -1e-07 | AD211: -3.6592e-06 | AE211: -0.0010345506 | AF211: 1.024095626 | AK211: -0.72845 | AL211: 25.434 | AM211: 241.76 | AN211: -1e-07
A212: V10-B | B212: 30C | C212: B | D212: 1001 | E212: BXRE | F212: =MasterTable[[#This Row],[Product Family]]&"-"&MasterTable[[#This Row],[CCT/CRI]]&MasterTable[[#This Row],[Arrangement]] -> V10-B-30CB | G212: =MasterTable[[#This Row],[Generation]]&"-"&MasterTable[[#This Row],[CCT/CRI]]&IF(MasterTable[[#This Row],[Lumen Family]]<999,"0"&MasterTable[[#This Row],[Lumen Family]],MasterTable[[#This Row],[Lumen Family]])&"-"&MasterTable[[#This Row],[Arrangement]]&"-xx" -> BXRE-30C1001-B-xx | H212: 1622 | I212: =MasterTable[[#This Row],[Typical Lumens]]/(MasterTable[[#This Row],[Typical Voltage]]*MasterTable[[#This Row],[Typical Current]]/1000) -> 172.6266496 | J212: 1.49075 | K212: 34.8 | L212: 270 | M212: 540 | N212: 36 | P212: 9.8e-09 | Q212: -1.42836e-05 | R212: 0.0164904477 | S212: 31.30201008 | T212: 6.8448e-10 | U212: -1.5365e-06 | V212: 0.0041148 | W212: -1e-07 | AD212: -3.6592e-06 | AE212: -0.0010345506 | AF212: 1.024095626 | AK212: -0.9831 | AL212: 26.028 | AM212: 241.46 | AN212: -1e-07
A213: V10-B | B213: 30S | C213: B | D213: 1001 | E213: BXRE | F213: =MasterTable[[#This Row],[Product Family]]&"-"&MasterTable[[#This Row],[CCT/CRI]]&MasterTable[[#This Row],[Arrangement]] -> V10-B-30SB | G213: =MasterTable[[#This Row],[Generation]]&"-"&MasterTable[[#This Row],[CCT/CRI]]&IF(MasterTable[[#This Row],[Lumen Family]]<999,"0"&MasterTable[[#This Row],[Lumen Family]],MasterTable[[#This Row],[Lumen Family]])&"-"&MasterTable[[#This Row],[Arrangement]]&"-xx" -> BXRE-30S1001-B-xx | H213: 1077 | I213: =MasterTable[[#This Row],[Typical Lumens]]/(MasterTable[[#This Row],[Typical Voltage]]*MasterTable[[#This Row],[Typical Current]]/1000) -> 115.9560724 | J213: 0.49075 | K213: 34.4 | L213: 270 | M213: 540 | N213: 36 | P213: 1.3429e-08 | Q213: -2.4572e-05 | R213: 0.017867 | S213: 31.102 | T213: 6.5229e-10 | U213: -1.5152e-06 | V213: 0.0041117 | W213: -1e-07 | AD213: -3.6592e-06 | AE213: -0.0010345506 | AF213: 1.024095626 | AK213: -0.72845 | AL213: 25.434 | AM213: 241.76 | AN213: -1e-07
A214: V10-B | B214: 30G-C | C214: B | D214: 100C | E214: BXRE | F214: =MasterTable[[#This Row],[Product Family]]&"-"&MasterTable[[#This Row],[CCT/CRI]]&MasterTable[[#This Row],[Arrangement]] -> V10-B-30G-CB | G214: BXRE-30G100C-B-xx | H214: 1212 | I214: =MasterTable[[#This Row],[Typical Lumens]]/(MasterTable[[#This Row],[Typical Voltage]]*MasterTable[[#This Row],[Typical Current]]/1000) -> 128.99106 | J214: 0.49075 | K214: 34.8 | L214: 270 | M214: =L214*2 -> 540 | N214: 36 | P214: 9.8e-09 | Q214: -1.42836e-05 | R214: 0.0164904477 | S214: 31.30201008 | T214: 6.8448e-10 | U214: -1.5365e-06 | V214: 0.0041148 | W214: -1e-07 | AD214: -3.6592e-06 | AE214: -0.0010345506 | AF214: 1.024095626 | AK214: -0.9831 | AL214: 26.028 | AM214: 241.46 | AN214: -1e-07
A215: V10-B | B215: 30H | C215: B | D215: 1000 | E215: BXRE | F215: =MasterTable[[#This Row],[Product Family]]&"-"&MasterTable[[#This Row],[CCT/CRI]]&MasterTable[[#This Row],[Arrangement]] -> V10-B-30HB | G215: =MasterTable[[#This Row],[Generation]]&"-"&MasterTable[[#This Row],[CCT/CRI]]&IF(MasterTable[[#This Row],[Lumen Family]]<999,"0"&MasterTable[[#This Row],[Lumen Family]],MasterTable[[#This Row],[Lumen Family]])&"-"&MasterTable[[#This Row],[Arrangement]]&"-xx" -> BXRE-30H1000-B-xx | H215: 1139 | I215: =MasterTable[[#This Row],[Typical Lumens]]/(MasterTable[[#This Row],[Typical Voltage]]*MasterTable[[#This Row],[Typical Current]]/1000) -> 121.2217965 | J215: 0.49075 | K215: 34.8 | L215: 270 | M215: 540 | N215: 36 | P215: 9.8e-09 | Q215: -1.42836e-05 | R215: 0.0164904477 | S215: 31.30201008 | T215: 6.8448e-10 | U215: -1.5365e-06 | V215: 0.0041148 | W215: -1e-07 | AD215: -3.6592e-06 | AE215: -0.0010345506 | AF215: 1.024095626 | AK215: -0.9831 | AL215: 26.028 | AM215: 241.46 | AN215: -1e-07
A216: V10-B | B216: 30A | C216: B | D216: 1001 | E216: BXRE | F216: =MasterTable[[#This Row],[Product Family]]&"-"&MasterTable[[#This Row],[CCT/CRI]]&MasterTable[[#This Row],[Arrangement]] -> V10-B-30AB | G216: BXRE-30A1001-B-xx | H216: 1130 | I216: =MasterTable[[#This Row],[Typical Lumens]]/(MasterTable[[#This Row],[Typical Voltage]]*MasterTable[[#This Row],[Typical Current]]/1000) -> 120.2639421 | J216: 0.49075 | K216: 34.8 | L216: 270 | M216: =L216*2 -> 540 | N216: 36 | P216: 9.8e-09 | Q216: -1.42836e-05 | R216: 0.0164904477 | S216: 31.30201008 | T216: 6.8448e-10 | U216: -1.5365e-06 | V216: 0.0041148 | W216: -1e-07 | AD216: -3.6592e-06 | AE216: -0.0010345506 | AF216: 1.024095626 | AK216: -0.9831 | AL216: 26.028 | AM216: 241.46 | AN216: -1e-07
... 570 more rows

Sheet Calculations (hidden)
A3: Calculations using Current Input | C3: Converting Tc to Tj | H3: Converting Tj to Tc | Q3: Calculating Flux | AF3: Calculating Voltage w/ Tc | AU3: Calculating Voltage w/ Tj
C4: Tj = Tc + Power*Thermal Resistance | H4: Tc = Tj - Power*Thermal Resistance | Q4: F@Tc&I = Ft*Fr@I*Fr@Tc | AF4: Vf@Tc&I = Vf@I + Vf@Tc-Vft | AU4: Vf@Tj&I = Vf@I + Vf@Tj Modifier
C5: Tc | D5: Power | E5: Thermal Resistance | F5: Tc>>Tj | H5: Tj | I5: Power | J5: Thermal Resistance | K5: Tj>>Tc | M5: Tc | N5: Tj | O5: =IF(Simulator!$D$10="Case","Tj","Tc") -> Tj | Q5: Ft | R5: Fr@I Eqn | V5: Fr@I | X5: Fr@Tc Eqn | AB5: Fr@Tc | AC5: F@Tc&I | AE5: 85 DC Factor | AF5: Vft | AH5: Vf@I Eqn | AL5: Vf@I | AM5: Vf@Tc Eqn | AQ5: Vf@Tc | AR5: Vf@Tc&I | AT5: # of Die | AU5: Vf@I | AV5: Vf@Tj Modifier, per Die | AW5: Vf@Tj&I | AX5: Voltage Report
B6: V6 | C6: =IF(Simulator!$D$10="Case",Simulator!$I$8,M6) -> 25 | D6: =Simulator!$N$14*AR6/1000 ->  | E6: =INDEX(MasterTable[],MATCH(Simulator!E17,MasterTable[P/N],0),COLUMN(MasterTable[Thermal Resistance])) ->  | F6: =C6+D6*E6 ->  | H6: =IF(Simulator!$D$10="Case",F6,Simulator!$I$8) ->  | I6: =Simulator!$N$14*AW6/1000 ->  | J6: =E6 ->  | K6: =H6-I6*J6 ->  | M6: =IF(Simulator!$D$10="Case",Simulator!$I$8,K6) -> 25 | N6: =IF(Simulator!$D$10="Case",H6,Simulator!$I$8) ->  | O6: =IF(#REF!="Tj",N6,M6) ->  | Q6: =INDEX(MasterTable[],MATCH(Simulator!E17,MasterTable[P/N],0),COLUMN(MasterTable[Typical Lumens])) ->  | R6: =INDEX(MasterTable[],MATCH(Simulator!$E17,MasterTable[P/N],0),COLUMN(MasterTable[I^3])) ->  | S6: =INDEX(MasterTable[],MATCH(Simulator!$E17,MasterTable[P/N],0),COLUMN(MasterTable[I^2])) ->  | T6: =INDEX(MasterTable[],MATCH(Simulator!$E17,MasterTable[P/N],0),COLUMN(MasterTable[I])) ->  | U6: =INDEX(MasterTable[],MATCH(Simulator!$E17,MasterTable[P/N],0),COLUMN(MasterTable[I0])) ->  | V6: =IF(Simulator!$N$14=Simulator!H17,1,R6*Simulator!$N$14^3+S6*Simulator!$N$14^2+T6*Simulator!$N$14+U6) ->  | W6: =INDEX(MasterTable[],MATCH(Simulator!$E17,MasterTable[P/N],0),COLUMN(MasterTable[F^4])) ->  | X6: =INDEX(MasterTable[],MATCH(Simulator!$E17,MasterTable[P/N],0),COLUMN(MasterTable[F^3])) ->  | Y6: =INDEX(MasterTable[],MATCH(Simulator!$E17,MasterTable[P/N],0),COLUMN(MasterTable[F^2])) ->  | Z6: =INDEX(MasterTable[],MATCH(Simulator!$E17,MasterTable[P/N],0),COLUMN(MasterTable[F])) ->  | AA6: =INDEX(MasterTable[],MATCH(Simulator!$E17,MasterTable[P/N],0),COLUMN(MasterTable[F0])) ->  | AB6: =IF(Simulator!$I$8=85,AE6,W6*M6^4+X6*M6^3+Y6*M6^2+Z6*M6+AA6) ->  | AC6: =Q6*V6*AB6 ->  | AD6: =IF(AND(Simulator!$I$8=85,Simulator!$N$14=Simulator!H17),Q6*AE6,AC6) ->  | AE6: =VLOOKUP(MID(Simulator!E17,6,3),V_6_85DC_Factor,2,FALSE) ->  | AF6: =INDEX(MasterTable[],MATCH(Simulator!$E17,MasterTable[P/N],0),COLUMN(MasterTable[Typical Voltage])) ->  | AG6: =INDEX(MasterTable[],MATCH(Simulator!$E17,MasterTable[P/N],0),COLUMN(MasterTable[V^4])) ->  | AH6: =INDEX(MasterTable[],MATCH(Simulator!$E17,MasterTable[P/N],0),COLUMN(MasterTable[V^3])) ->  | AI6: =INDEX(MasterTable[],MATCH(Simulator!$E17,MasterTable[P/N],0),COLUMN(MasterTable[V^2])) ->  | AJ6: =INDEX(MasterTable[],MATCH(Simulator!$E17,MasterTable[P/N],0),COLUMN(MasterTable[V])) ->  | AK6: =INDEX(MasterTable[],MATCH(Simulator!$E17,MasterTable[P/N],0),COLUMN(MasterTable[V0])) ->  | AL6: =AG6*Simulator!$N$14^4+AH6*Simulator!$N$14^3+AI6*Simulator!$N$14^2+AJ6*Simulator!$N$14+AK6 ->  | AM6: =INDEX(MasterTable[],MATCH(Simulator!$E17,MasterTable[P/N],0),COLUMN(MasterTable[T^3])) ->  | AN6: =INDEX(MasterTable[],MATCH(Simulator!$E17,MasterTable[P/N],0),COLUMN(MasterTable[T^2])) ->  | AO6: =INDEX(MasterTable[],MATCH(Simulator!$E17,MasterTable[P/N],0),COLUMN(MasterTable[T])) ->  | AP6: =INDEX(MasterTable[],MATCH(Simulator!$E17,MasterTable[P/N],0),COLUMN(MasterTable[T0])) ->  | AQ6: =AM6*M6^3+AN6*M6^2+AO6*M6+AP6 ->  | AR6: =AL6+AQ6-AF6 ->  | AT6: =INDEX(MasterTable[],MATCH(Simulator!$E17,MasterTable[P/N],0),COLUMN(MasterTable['# of Die])) ->  | AU6: =AL6 ->  | AV6: =INDEX(Tj_to_Vf6[],MATCH(Simulator!$I$8,Tj_to_Vf6[Vf],1),COLUMN(Tj_to_Vf6[Vf])) -> -0.5 | AW6: =AU6+AV6*AT6 ->  | AX6: =IF(AND(Simulator!$I$8=25,Simulator!$N$14=Simulator!H17),AF6,AR6) -> 
B7: V6 | C7: =IF(Simulator!$D$10="Case",Simulator!$I$8,M7) -> 25 | D7: =Simulator!$N$14*AR7/1000 ->  | E7: =INDEX(MasterTable[],MATCH(Simulator!E18,MasterTable[P/N],0),COLUMN(MasterTable[Thermal Resistance])) ->  | H7: =IF(Simulator!$D$10="Case",F7,Simulator!$I$8) ->  | I7: =Simulator!$N$14*AW7/1000 ->  | M7: =IF(Simulator!$D$10="Case",Simulator!$I$8,K7) -> 25 | N7: =IF(Simulator!$D$10="Case",H7,Simulator!$I$8) ->  | O7: =IF(#REF!="Tj",N7,M7) ->  | Q7: =INDEX(MasterTable[],MATCH(Simulator!E18,MasterTable[P/N],0),COLUMN(MasterTable[Typical Lumens])) ->  | R7: =INDEX(MasterTable[],MATCH(Simulator!$E18,MasterTable[P/N],0),COLUMN(MasterTable[I^3])) ->  | S7: =INDEX(MasterTable[],MATCH(Simulator!$E18,MasterTable[P/N],0),COLUMN(MasterTable[I^2])) ->  | T7: =INDEX(MasterTable[],MATCH(Simulator!$E18,MasterTable[P/N],0),COLUMN(MasterTable[I])) ->  | U7: =INDEX(MasterTable[],MATCH(Simulator!$E18,MasterTable[P/N],0),COLUMN(MasterTable[I0])) ->  | V7: =IF(Simulator!$N$14=Simulator!H18,1,R7*Simulator!$N$14^3+S7*Simulator!$N$14^2+T7*Simulator!$N$14+U7) ->  | W7: =INDEX(MasterTable[],MATCH(Simulator!$E18,MasterTable[P/N],0),COLUMN(MasterTable[F^4])) ->  | X7: =INDEX(MasterTable[],MATCH(Simulator!$E18,MasterTable[P/N],0),COLUMN(MasterTable[F^3])) ->  | Y7: =INDEX(MasterTable[],MATCH(Simulator!$E18,MasterTable[P/N],0),COLUMN(MasterTable[F^2])) ->  | Z7: =INDEX(MasterTable[],MATCH(Simulator!$E18,MasterTable[P/N],0),COLUMN(MasterTable[F])) ->  | AA7: =INDEX(MasterTable[],MATCH(Simulator!$E18,MasterTable[P/N],0),COLUMN(MasterTable[F0])) ->  | AB7: =IF(Simulator!$I$8=85,AE7,W7*M7^4+X7*M7^3+Y7*M7^2+Z7*M7+AA7) ->  | AC7: =Q7*V7*AB7 ->  | AD7: =IF(AND(Simulator!$I$8=85,Simulator!$N$14=Simulator!H18),Q7*AE7,AC7) ->  | AE7: =VLOOKUP(MID(Simulator!E18,6,3),V_6_85DC_Factor,2,FALSE) ->  | AF7: =INDEX(MasterTable[],MATCH(Simulator!$E18,MasterTable[P/N],0),COLUMN(MasterTable[Typical Voltage])) ->  | AG7: =INDEX(MasterTable[],MATCH(Simulator!$E18,MasterTable[P/N],0),COLUMN(MasterTable[V^4])) ->  | AH7: =INDEX(MasterTable[],MATCH(Simulator!$E18,MasterTable[P/N],0),COLUMN(MasterTable[V^3])) ->  | AI7: =INDEX(MasterTable[],MATCH(Simulator!$E18,MasterTable[P/N],0),COLUMN(MasterTable[V^2])) ->  | AJ7: =INDEX(MasterTable[],MATCH(Simulator!$E18,MasterTable[P/N],0),COLUMN(MasterTable[V])) ->  | AK7: =INDEX(MasterTable[],MATCH(Simulator!$E18,MasterTable[P/N],0),COLUMN(MasterTable[V0])) ->  | AL7: =AG7*Simulator!$N$14^4+AH7*Simulator!$N$14^3+AI7*Simulator!$N$14^2+AJ7*Simulator!$N$14+AK7 ->  | AM7: =INDEX(MasterTable[],MATCH(Simulator!$E18,MasterTable[P/N],0),COLUMN(MasterTable[T^3])) ->  | AN7: =INDEX(MasterTable[],MATCH(Simulator!$E18,MasterTable[P/N],0),COLUMN(MasterTable[T^2])) ->  | AO7: =INDEX(MasterTable[],MATCH(Simulator!$E18,MasterTable[P/N],0),COLUMN(MasterTable[T])) ->  | AP7: =INDEX(MasterTable[],MATCH(Simulator!$E18,MasterTable[P/N],0),COLUMN(MasterTable[T0])) ->  | AT7: =INDEX(MasterTable[],MATCH(Simulator!$E18,MasterTable[P/N],0),COLUMN(MasterTable['# of Die])) ->  | AV7: =INDEX(Tj_to_Vf6[],MATCH(Simulator!$I$8,Tj_to_Vf6[Vf],1),COLUMN(Tj_to_Vf6[Vf])) -> -0.5 | AX7: =IF(AND(Simulator!$I$8=25,Simulator!$N$14=Simulator!H18),AF7,AR7) -> 
B8: V8 | C8: =IF(Simulator!$D$10="Case",Simulator!$I$8,M8) -> 25 | D8: =Simulator!$N$14*AR8/1000 ->  | E8: =INDEX(MasterTable[],MATCH(Simulator!E19,MasterTable[P/N],0),COLUMN(MasterTable[Thermal Resistance])) ->  | H8: =IF(Simulator!$D$10="Case",F8,Simulator!$I$8) ->  | I8: =Simulator!$N$14*AW8/1000 ->  | M8: =IF(Simulator!$D$10="Case",Simulator!$I$8,K8) -> 25 | N8: =IF(Simulator!$D$10="Case",H8,Simulator!$I$8) ->  | O8: =IF(#REF!="Tj",N8,M8) ->  | Q8: =INDEX(MasterTable[],MATCH(Simulator!E19,MasterTable[P/N],0),COLUMN(MasterTable[Typical Lumens])) ->  | R8: =INDEX(MasterTable[],MATCH(Simulator!$E19,MasterTable[P/N],0),COLUMN(MasterTable[I^3])) ->  | S8: =INDEX(MasterTable[],MATCH(Simulator!$E19,MasterTable[P/N],0),COLUMN(MasterTable[I^2])) ->  | T8: =INDEX(MasterTable[],MATCH(Simulator!$E19,MasterTable[P/N],0),COLUMN(MasterTable[I])) ->  | U8: =INDEX(MasterTable[],MATCH(Simulator!$E19,MasterTable[P/N],0),COLUMN(MasterTable[I0])) ->  | V8: =IF(Simulator!$N$14=Simulator!H19,1,R8*Simulator!$N$14^3+S8*Simulator!$N$14^2+T8*Simulator!$N$14+U8) ->  | W8: =INDEX(MasterTable[],MATCH(Simulator!$E19,MasterTable[P/N],0),COLUMN(MasterTable[F^4])) ->  | X8: =INDEX(MasterTable[],MATCH(Simulator!$E19,MasterTable[P/N],0),COLUMN(MasterTable[F^3])) ->  | Y8: =INDEX(MasterTable[],MATCH(Simulator!$E19,MasterTable[P/N],0),COLUMN(MasterTable[F^2])) ->  | Z8: =INDEX(MasterTable[],MATCH(Simulator!$E19,MasterTable[P/N],0),COLUMN(MasterTable[F])) ->  | AA8: =INDEX(MasterTable[],MATCH(Simulator!$E19,MasterTable[P/N],0),COLUMN(MasterTable[F0])) ->  | AB8: =IF(Simulator!$I$8=85,AE8,W8*M8^4+X8*M8^3+Y8*M8^2+Z8*M8+AA8) ->  | AD8: =IF(AND(Simulator!$I$8=85,Simulator!$N$14=Simulator!H19),Q8*AE8,AC8) ->  | AE8: =VLOOKUP(MID(Simulator!E19,6,3),V_8_85DC_Factor,2,FALSE) ->  | AF8: =INDEX(MasterTable[],MATCH(Simulator!$E19,MasterTable[P/N],0),COLUMN(MasterTable[Typical Voltage])) ->  | AG8: =INDEX(MasterTable[],MATCH(Simulator!$E19,MasterTable[P/N],0),COLUMN(MasterTable[V^4])) ->  | AH8: =INDEX(MasterTable[],MATCH(Simulator!$E19,MasterTable[P/N],0),COLUMN(MasterTable[V^3])) ->  | AI8: =INDEX(MasterTable[],MATCH(Simulator!$E19,MasterTable[P/N],0),COLUMN(MasterTable[V^2])) ->  | AJ8: =INDEX(MasterTable[],MATCH(Simulator!$E19,MasterTable[P/N],0),COLUMN(MasterTable[V])) ->  | AK8: =INDEX(MasterTable[],MATCH(Simulator!$E19,MasterTable[P/N],0),COLUMN(MasterTable[V0])) ->  | AL8: =AG8*Simulator!$N$14^4+AH8*Simulator!$N$14^3+AI8*Simulator!$N$14^2+AJ8*Simulator!$N$14+AK8 ->  | AM8: =INDEX(MasterTable[],MATCH(Simulator!$E19,MasterTable[P/N],0),COLUMN(MasterTable[T^3])) ->  | AN8: =INDEX(MasterTable[],MATCH(Simulator!$E19,MasterTable[P/N],0),COLUMN(MasterTable[T^2])) ->  | AO8: =INDEX(MasterTable[],MATCH(Simulator!$E19,MasterTable[P/N],0),COLUMN(MasterTable[T])) ->  | AP8: =INDEX(MasterTable[],MATCH(Simulator!$E19,MasterTable[P/N],0),COLUMN(MasterTable[T0])) ->  | AT8: =INDEX(MasterTable[],MATCH(Simulator!$E19,MasterTable[P/N],0),COLUMN(MasterTable['# of Die])) ->  | AV8: =INDEX(Tj_to_Vf6[],MATCH(Simulator!$I$8,Tj_to_Vf6[Vf],1),COLUMN(Tj_to_Vf6[Vf])) -> -0.5 | AX8: =IF(AND(Simulator!$I$8=25,Simulator!$N$14=Simulator!H19),AF8,AR8) -> 
B9: V8 | C9: =IF(Simulator!$D$10="Case",Simulator!$I$8,M9) -> 25 | D9: =Simulator!$N$14*AR9/1000 ->  | E9: =INDEX(MasterTable[],MATCH(Simulator!E20,MasterTable[P/N],0),COLUMN(MasterTable[Thermal Resistance])) ->  | H9: =IF(Simulator!$D$10="Case",F9,Simulator!$I$8) ->  | I9: =Simulator!$N$14*AW9/1000 ->  | M9: =IF(Simulator!$D$10="Case",Simulator!$I$8,K9) -> 25 | N9: =IF(Simulator!$D$10="Case",H9,Simulator!$I$8) ->  | O9: =IF(#REF!="Tj",N9,M9) ->  | Q9: =INDEX(MasterTable[],MATCH(Simulator!E20,MasterTable[P/N],0),COLUMN(MasterTable[Typical Lumens])) ->  | R9: =INDEX(MasterTable[],MATCH(Simulator!$E20,MasterTable[P/N],0),COLUMN(MasterTable[I^3])) ->  | S9: =INDEX(MasterTable[],MATCH(Simulator!$E20,MasterTable[P/N],0),COLUMN(MasterTable[I^2])) ->  | T9: =INDEX(MasterTable[],MATCH(Simulator!$E20,MasterTable[P/N],0),COLUMN(MasterTable[I])) ->  | U9: =INDEX(MasterTable[],MATCH(Simulator!$E20,MasterTable[P/N],0),COLUMN(MasterTable[I0])) ->  | V9: =IF(Simulator!$N$14=Simulator!H20,1,R9*Simulator!$N$14^3+S9*Simulator!$N$14^2+T9*Simulator!$N$14+U9) ->  | W9: =INDEX(MasterTable[],MATCH(Simulator!$E20,MasterTable[P/N],0),COLUMN(MasterTable[F^4])) ->  | X9: =INDEX(MasterTable[],MATCH(Simulator!$E20,MasterTable[P/N],0),COLUMN(MasterTable[F^3])) ->  | Y9: =INDEX(MasterTable[],MATCH(Simulator!$E20,MasterTable[P/N],0),COLUMN(MasterTable[F^2])) ->  | Z9: =INDEX(MasterTable[],MATCH(Simulator!$E20,MasterTable[P/N],0),COLUMN(MasterTable[F])) ->  | AA9: =INDEX(MasterTable[],MATCH(Simulator!$E20,MasterTable[P/N],0),COLUMN(MasterTable[F0])) ->  | AB9: =IF(Simulator!$I$8=85,AE9,W9*M9^4+X9*M9^3+Y9*M9^2+Z9*M9+AA9) ->  | AD9: =IF(AND(Simulator!$I$8=85,Simulator!$N$14=Simulator!H20),Q9*AE9,AC9) ->  | AE9: =VLOOKUP(MID(Simulator!E20,6,3),V_8_85DC_Factor,2,FALSE) ->  | AF9: =INDEX(MasterTable[],MATCH(Simulator!$E20,MasterTable[P/N],0),COLUMN(MasterTable[Typical Voltage])) ->  | AG9: =INDEX(MasterTable[],MATCH(Simulator!$E20,MasterTable[P/N],0),COLUMN(MasterTable[V^4])) ->  | AH9: =INDEX(MasterTable[],MATCH(Simulator!$E20,MasterTable[P/N],0),COLUMN(MasterTable[V^3])) ->  | AI9: =INDEX(MasterTable[],MATCH(Simulator!$E20,MasterTable[P/N],0),COLUMN(MasterTable[V^2])) ->  | AJ9: =INDEX(MasterTable[],MATCH(Simulator!$E20,MasterTable[P/N],0),COLUMN(MasterTable[V])) ->  | AK9: =INDEX(MasterTable[],MATCH(Simulator!$E20,MasterTable[P/N],0),COLUMN(MasterTable[V0])) ->  | AL9: =AG9*Simulator!$N$14^4+AH9*Simulator!$N$14^3+AI9*Simulator!$N$14^2+AJ9*Simulator!$N$14+AK9 ->  | AM9: =INDEX(MasterTable[],MATCH(Simulator!$E20,MasterTable[P/N],0),COLUMN(MasterTable[T^3])) ->  | AN9: =INDEX(MasterTable[],MATCH(Simulator!$E20,MasterTable[P/N],0),COLUMN(MasterTable[T^2])) ->  | AO9: =INDEX(MasterTable[],MATCH(Simulator!$E20,MasterTable[P/N],0),COLUMN(MasterTable[T])) ->  | AP9: =INDEX(MasterTable[],MATCH(Simulator!$E20,MasterTable[P/N],0),COLUMN(MasterTable[T0])) ->  | AT9: =INDEX(MasterTable[],MATCH(Simulator!$E20,MasterTable[P/N],0),COLUMN(MasterTable['# of Die])) ->  | AV9: =INDEX(Tj_to_Vf6[],MATCH(Simulator!$I$8,Tj_to_Vf6[Vf],1),COLUMN(Tj_to_Vf6[Vf])) -> -0.5 | AX9: =IF(AND(Simulator!$I$8=25,Simulator!$N$14=Simulator!H20),AF9,AR9) -> 
B10: V8 | C10: =IF(Simulator!$D$10="Case",Simulator!$I$8,M10) -> 25 | D10: =Simulator!$N$14*AR10/1000 ->  | E10: =INDEX(MasterTable[],MATCH(Simulator!E21,MasterTable[P/N],0),COLUMN(MasterTable[Thermal Resistance])) ->  | H10: =IF(Simulator!$D$10="Case",F10,Simulator!$I$8) ->  | I10: =Simulator!$N$14*AW10/1000 ->  | M10: =IF(Simulator!$D$10="Case",Simulator!$I$8,K10) -> 25 | N10: =IF(Simulator!$D$10="Case",H10,Simulator!$I$8) ->  | O10: =IF(#REF!="Tj",N10,M10) ->  | Q10: =INDEX(MasterTable[],MATCH(Simulator!E21,MasterTable[P/N],0),COLUMN(MasterTable[Typical Lumens])) ->  | R10: =INDEX(MasterTable[],MATCH(Simulator!$E21,MasterTable[P/N],0),COLUMN(MasterTable[I^3])) ->  | S10: =INDEX(MasterTable[],MATCH(Simulator!$E21,MasterTable[P/N],0),COLUMN(MasterTable[I^2])) ->  | T10: =INDEX(MasterTable[],MATCH(Simulator!$E21,MasterTable[P/N],0),COLUMN(MasterTable[I])) ->  | U10: =INDEX(MasterTable[],MATCH(Simulator!$E21,MasterTable[P/N],0),COLUMN(MasterTable[I0])) ->  | V10: =IF(Simulator!$N$14=Simulator!H21,1,R10*Simulator!$N$14^3+S10*Simulator!$N$14^2+T10*Simulator!$N$14+U10) ->  | W10: =INDEX(MasterTable[],MATCH(Simulator!$E21,MasterTable[P/N],0),COLUMN(MasterTable[F^4])) ->  | X10: =INDEX(MasterTable[],MATCH(Simulator!$E21,MasterTable[P/N],0),COLUMN(MasterTable[F^3])) ->  | Y10: =INDEX(MasterTable[],MATCH(Simulator!$E21,MasterTable[P/N],0),COLUMN(MasterTable[F^2])) ->  | Z10: =INDEX(MasterTable[],MATCH(Simulator!$E21,MasterTable[P/N],0),COLUMN(MasterTable[F])) ->  | AA10: =INDEX(MasterTable[],MATCH(Simulator!$E21,MasterTable[P/N],0),COLUMN(MasterTable[F0])) ->  | AB10: =IF(Simulator!$I$8=85,AE10,W10*M10^4+X10*M10^3+Y10*M10^2+Z10*M10+AA10) ->  | AD10: =IF(AND(Simulator!$I$8=85,Simulator!$N$14=Simulator!H21),Q10*AE10,AC10) ->  | AE10: =VLOOKUP(MID(Simulator!E21,6,3),V_8_85DC_Factor,2,FALSE) ->  | AF10: =INDEX(MasterTable[],MATCH(Simulator!$E21,MasterTable[P/N],0),COLUMN(MasterTable[Typical Voltage])) ->  | AG10: =INDEX(MasterTable[],MATCH(Simulator!$E21,MasterTable[P/N],0),COLUMN(MasterTable[V^4])) ->  | AH10: =INDEX(MasterTable[],MATCH(Simulator!$E21,MasterTable[P/N],0),COLUMN(MasterTable[V^3])) ->  | AI10: =INDEX(MasterTable[],MATCH(Simulator!$E21,MasterTable[P/N],0),COLUMN(MasterTable[V^2])) ->  | AJ10: =INDEX(MasterTable[],MATCH(Simulator!$E21,MasterTable[P/N],0),COLUMN(MasterTable[V])) ->  | AK10: =INDEX(MasterTable[],MATCH(Simulator!$E21,MasterTable[P/N],0),COLUMN(MasterTable[V0])) ->  | AL10: =AG10*Simulator!$N$14^4+AH10*Simulator!$N$14^3+AI10*Simulator!$N$14^2+AJ10*Simulator!$N$14+AK10 ->  | AM10: =INDEX(MasterTable[],MATCH(Simulator!$E21,MasterTable[P/N],0),COLUMN(MasterTable[T^3])) ->  | AN10: =INDEX(MasterTable[],MATCH(Simulator!$E21,MasterTable[P/N],0),COLUMN(MasterTable[T^2])) ->  | AO10: =INDEX(MasterTable[],MATCH(Simulator!$E21,MasterTable[P/N],0),COLUMN(MasterTable[T])) ->  | AP10: =INDEX(MasterTable[],MATCH(Simulator!$E21,MasterTable[P/N],0),COLUMN(MasterTable[T0])) ->  | AT10: =INDEX(MasterTable[],MATCH(Simulator!$E21,MasterTable[P/N],0),COLUMN(MasterTable['# of Die])) ->  | AV10: =INDEX(Tj_to_Vf6[],MATCH(Simulator!$I$8,Tj_to_Vf6[Vf],1),COLUMN(Tj_to_Vf6[Vf])) -> -0.5 | AX10: =IF(AND(Simulator!$I$8=25,Simulator!$N$14=Simulator!H21),AF10,AR10) -> 
B11: V10 | C11: =IF(Simulator!$D$10="Case",Simulator!$I$8,M11) -> 25 | D11: =Simulator!$N$14*AR11/1000 ->  | E11: =INDEX(MasterTable[],MATCH(Simulator!E22,MasterTable[P/N],0),COLUMN(MasterTable[Thermal Resistance])) ->  | H11: =IF(Simulator!$D$10="Case",F11,Simulator!$I$8) ->  | I11: =Simulator!$N$14*AW11/1000 ->  | M11: =IF(Simulator!$D$10="Case",Simulator!$I$8,K11) -> 25 | N11: =IF(Simulator!$D$10="Case",H11,Simulator!$I$8) ->  | O11: =IF(#REF!="Tj",N11,M11) ->  | Q11: =INDEX(MasterTable[],MATCH(Simulator!E22,MasterTable[P/N],0),COLUMN(MasterTable[Typical Lumens])) ->  | R11: =INDEX(MasterTable[],MATCH(Simulator!$E22,MasterTable[P/N],0),COLUMN(MasterTable[I^3])) ->  | S11: =INDEX(MasterTable[],MATCH(Simulator!$E22,MasterTable[P/N],0),COLUMN(MasterTable[I^2])) ->  | T11: =INDEX(MasterTable[],MATCH(Simulator!$E22,MasterTable[P/N],0),COLUMN(MasterTable[I])) ->  | U11: =INDEX(MasterTable[],MATCH(Simulator!$E22,MasterTable[P/N],0),COLUMN(MasterTable[I0])) ->  | V11: =IF(Simulator!$N$14=Simulator!H22,1,R11*Simulator!$N$14^3+S11*Simulator!$N$14^2+T11*Simulator!$N$14+U11) ->  | W11: =INDEX(MasterTable[],MATCH(Simulator!$E22,MasterTable[P/N],0),COLUMN(MasterTable[F^4])) ->  | X11: =INDEX(MasterTable[],MATCH(Simulator!$E22,MasterTable[P/N],0),COLUMN(MasterTable[F^3])) ->  | Y11: =INDEX(MasterTable[],MATCH(Simulator!$E22,MasterTable[P/N],0),COLUMN(MasterTable[F^2])) ->  | Z11: =INDEX(MasterTable[],MATCH(Simulator!$E22,MasterTable[P/N],0),COLUMN(MasterTable[F])) ->  | AA11: =INDEX(MasterTable[],MATCH(Simulator!$E22,MasterTable[P/N],0),COLUMN(MasterTable[F0])) ->  | AB11: =IF(Simulator!$I$8=85,AE11,W11*M11^4+X11*M11^3+Y11*M11^2+Z11*M11+AA11) ->  | AD11: =IF(AND(Simulator!$I$8=85,Simulator!$N$14=Simulator!H22),Q11*AE11,AC11) ->  | AE11: =VLOOKUP(MID(Simulator!E22,6,3),V_10_85DC_Factor,2,FALSE) ->  | AF11: =INDEX(MasterTable[],MATCH(Simulator!$E22,MasterTable[P/N],0),COLUMN(MasterTable[Typical Voltage])) ->  | AG11: =INDEX(MasterTable[],MATCH(Simulator!$E22,MasterTable[P/N],0),COLUMN(MasterTable[V^4])) ->  | AH11: =INDEX(MasterTable[],MATCH(Simulator!$E22,MasterTable[P/N],0),COLUMN(MasterTable[V^3])) ->  | AI11: =INDEX(MasterTable[],MATCH(Simulator!$E22,MasterTable[P/N],0),COLUMN(MasterTable[V^2])) ->  | AJ11: =INDEX(MasterTable[],MATCH(Simulator!$E22,MasterTable[P/N],0),COLUMN(MasterTable[V])) ->  | AK11: =INDEX(MasterTable[],MATCH(Simulator!$E22,MasterTable[P/N],0),COLUMN(MasterTable[V0])) ->  | AL11: =AG11*Simulator!$N$14^4+AH11*Simulator!$N$14^3+AI11*Simulator!$N$14^2+AJ11*Simulator!$N$14+AK11 ->  | AM11: =INDEX(MasterTable[],MATCH(Simulator!$E22,MasterTable[P/N],0),COLUMN(MasterTable[T^3])) ->  | AN11: =INDEX(MasterTable[],MATCH(Simulator!$E22,MasterTable[P/N],0),COLUMN(MasterTable[T^2])) ->  | AO11: =INDEX(MasterTable[],MATCH(Simulator!$E22,MasterTable[P/N],0),COLUMN(MasterTable[T])) ->  | AP11: =INDEX(MasterTable[],MATCH(Simulator!$E22,MasterTable[P/N],0),COLUMN(MasterTable[T0])) ->  | AT11: =INDEX(MasterTable[],MATCH(Simulator!$E22,MasterTable[P/N],0),COLUMN(MasterTable['# of Die])) ->  | AV11: =INDEX(Tj_to_Vf6[],MATCH(Simulator!$I$8,Tj_to_Vf6[Vf],1),COLUMN(Tj_to_Vf6[Vf])) -> -0.5 | AX11: =IF(AND(Simulator!$I$8=25,Simulator!$N$14=Simulator!H22),AF11,AR11) -> 
B12: V13 | C12: =IF(Simulator!$D$10="Case",Simulator!$I$8,M12) -> 25 | D12: =Simulator!$N$14*AR12/1000 ->  | E12: =INDEX(MasterTable[],MATCH(Simulator!E23,MasterTable[P/N],0),COLUMN(MasterTable[Thermal Resistance])) ->  | H12: =IF(Simulator!$D$10="Case",F12,Simulator!$I$8) ->  | I12: =Simulator!$N$14*AW12/1000 ->  | M12: =IF(Simulator!$D$10="Case",Simulator!$I$8,K12) -> 25 | N12: =IF(Simulator!$D$10="Case",H12,Simulator!$I$8) ->  | O12: =IF(#REF!="Tj",N12,M12) ->  | Q12: =INDEX(MasterTable[],MATCH(Simulator!E23,MasterTable[P/N],0),COLUMN(MasterTable[Typical Lumens])) ->  | R12: =INDEX(MasterTable[],MATCH(Simulator!$E23,MasterTable[P/N],0),COLUMN(MasterTable[I^3])) ->  | S12: =INDEX(MasterTable[],MATCH(Simulator!$E23,MasterTable[P/N],0),COLUMN(MasterTable[I^2])) ->  | T12: =INDEX(MasterTable[],MATCH(Simulator!$E23,MasterTable[P/N],0),COLUMN(MasterTable[I])) ->  | U12: =INDEX(MasterTable[],MATCH(Simulator!$E23,MasterTable[P/N],0),COLUMN(MasterTable[I0])) ->  | V12: =IF(Simulator!$N$14=Simulator!H23,1,R12*Simulator!$N$14^3+S12*Simulator!$N$14^2+T12*Simulator!$N$14+U12) ->  | W12: =INDEX(MasterTable[],MATCH(Simulator!$E23,MasterTable[P/N],0),COLUMN(MasterTable[F^4])) ->  | X12: =INDEX(MasterTable[],MATCH(Simulator!$E23,MasterTable[P/N],0),COLUMN(MasterTable[F^3])) ->  | Y12: =INDEX(MasterTable[],MATCH(Simulator!$E23,MasterTable[P/N],0),COLUMN(MasterTable[F^2])) ->  | Z12: =INDEX(MasterTable[],MATCH(Simulator!$E23,MasterTable[P/N],0),COLUMN(MasterTable[F])) ->  | AA12: =INDEX(MasterTable[],MATCH(Simulator!$E23,MasterTable[P/N],0),COLUMN(MasterTable[F0])) ->  | AB12: =IF(Simulator!$I$8=85,AE12,W12*M12^4+X12*M12^3+Y12*M12^2+Z12*M12+AA12) ->  | AD12: =IF(AND(Simulator!$I$8=85,Simulator!$N$14=Simulator!H23),Q12*AE12,AC12) ->  | AE12: =VLOOKUP(MID(Simulator!E23,6,3),Vero13_85DC_Factor,2,FALSE) ->  | AF12: =INDEX(MasterTable[],MATCH(Simulator!$E23,MasterTable[P/N],0),COLUMN(MasterTable[Typical Voltage])) ->  | AG12: =INDEX(MasterTable[],MATCH(Simulator!$E23,MasterTable[P/N],0),COLUMN(MasterTable[V^4])) ->  | AH12: =INDEX(MasterTable[],MATCH(Simulator!$E23,MasterTable[P/N],0),COLUMN(MasterTable[V^3])) ->  | AI12: =INDEX(MasterTable[],MATCH(Simulator!$E23,MasterTable[P/N],0),COLUMN(MasterTable[V^2])) ->  | AJ12: =INDEX(MasterTable[],MATCH(Simulator!$E23,MasterTable[P/N],0),COLUMN(MasterTable[V])) ->  | AK12: =INDEX(MasterTable[],MATCH(Simulator!$E23,MasterTable[P/N],0),COLUMN(MasterTable[V0])) ->  | AL12: =AG12*Simulator!$N$14^4+AH12*Simulator!$N$14^3+AI12*Simulator!$N$14^2+AJ12*Simulator!$N$14+AK12 ->  | AM12: =INDEX(MasterTable[],MATCH(Simulator!$E23,MasterTable[P/N],0),COLUMN(MasterTable[T^3])) ->  | AN12: =INDEX(MasterTable[],MATCH(Simulator!$E23,MasterTable[P/N],0),COLUMN(MasterTable[T^2])) ->  | AO12: =INDEX(MasterTable[],MATCH(Simulator!$E23,MasterTable[P/N],0),COLUMN(MasterTable[T])) ->  | AP12: =INDEX(MasterTable[],MATCH(Simulator!$E23,MasterTable[P/N],0),COLUMN(MasterTable[T0])) ->  | AT12: =INDEX(MasterTable[],MATCH(Simulator!$E23,MasterTable[P/N],0),COLUMN(MasterTable['# of Die])) ->  | AV12: =INDEX(Tj_to_Vf6[],MATCH(Simulator!$I$8,Tj_to_Vf6[Vf],1),COLUMN(Tj_to_Vf6[Vf])) -> -0.5 | AX12: =IF(AND(Simulator!$I$8=25,Simulator!$N$14=Simulator!H23),AF12,AR12) -> 
B13: V15 | C13: =IF(Simulator!$D$10="Case",Simulator!$I$8,M13) -> 25 | D13: =Simulator!$N$14*AR13/1000 ->  | E13: =INDEX(MasterTable[],MATCH(Simulator!E24,MasterTable[P/N],0),COLUMN(MasterTable[Thermal Resistance])) ->  | H13: =IF(Simulator!$D$10="Case",F13,Simulator!$I$8) ->  | I13: =Simulator!$N$14*AW13/1000 ->  | M13: =IF(Simulator!$D$10="Case",Simulator!$I$8,K13) -> 25 | N13: =IF(Simulator!$D$10="Case",H13,Simulator!$I$8) ->  | O13: =IF(#REF!="Tj",N13,M13) ->  | Q13: =INDEX(MasterTable[],MATCH(Simulator!E24,MasterTable[P/N],0),COLUMN(MasterTable[Typical Lumens])) ->  | R13: =INDEX(MasterTable[],MATCH(Simulator!$E24,MasterTable[P/N],0),COLUMN(MasterTable[I^3])) ->  | S13: =INDEX(MasterTable[],MATCH(Simulator!$E24,MasterTable[P/N],0),COLUMN(MasterTable[I^2])) ->  | T13: =INDEX(MasterTable[],MATCH(Simulator!$E24,MasterTable[P/N],0),COLUMN(MasterTable[I])) ->  | U13: =INDEX(MasterTable[],MATCH(Simulator!$E24,MasterTable[P/N],0),COLUMN(MasterTable[I0])) ->  | V13: =IF(Simulator!$N$14=Simulator!H24,1,R13*Simulator!$N$14^3+S13*Simulator!$N$14^2+T13*Simulator!$N$14+U13) ->  | W13: =INDEX(MasterTable[],MATCH(Simulator!$E24,MasterTable[P/N],0),COLUMN(MasterTable[F^4])) ->  | X13: =INDEX(MasterTable[],MATCH(Simulator!$E24,MasterTable[P/N],0),COLUMN(MasterTable[F^3])) ->  | Y13: =INDEX(MasterTable[],MATCH(Simulator!$E24,MasterTable[P/N],0),COLUMN(MasterTable[F^2])) ->  | Z13: =INDEX(MasterTable[],MATCH(Simulator!$E24,MasterTable[P/N],0),COLUMN(MasterTable[F])) ->  | AA13: =INDEX(MasterTable[],MATCH(Simulator!$E24,MasterTable[P/N],0),COLUMN(MasterTable[F0])) ->  | AB13: =IF(Simulator!$I$8=85,AE13,W13*M13^4+X13*M13^3+Y13*M13^2+Z13*M13+AA13) ->  | AD13: =IF(AND(Simulator!$I$8=85,Simulator!$N$14=Simulator!H24),Q13*AE13,AC13) ->  | AE13: =VLOOKUP(MID(Simulator!E24,6,3),V_15_85DC_Factor,2,FALSE) ->  | AF13: =INDEX(MasterTable[],MATCH(Simulator!$E24,MasterTable[P/N],0),COLUMN(MasterTable[Typical Voltage])) ->  | AG13: =INDEX(MasterTable[],MATCH(Simulator!$E24,MasterTable[P/N],0),COLUMN(MasterTable[V^4])) ->  | AH13: =INDEX(MasterTable[],MATCH(Simulator!$E24,MasterTable[P/N],0),COLUMN(MasterTable[V^3])) ->  | AI13: =INDEX(MasterTable[],MATCH(Simulator!$E24,MasterTable[P/N],0),COLUMN(MasterTable[V^2])) ->  | AJ13: =INDEX(MasterTable[],MATCH(Simulator!$E24,MasterTable[P/N],0),COLUMN(MasterTable[V])) ->  | AK13: =INDEX(MasterTable[],MATCH(Simulator!$E24,MasterTable[P/N],0),COLUMN(MasterTable[V0])) ->  | AL13: =AG13*Simulator!$N$14^4+AH13*Simulator!$N$14^3+AI13*Simulator!$N$14^2+AJ13*Simulator!$N$14+AK13 ->  | AM13: =INDEX(MasterTable[],MATCH(Simulator!$E24,MasterTable[P/N],0),COLUMN(MasterTable[T^3])) ->  | AN13: =INDEX(MasterTable[],MATCH(Simulator!$E24,MasterTable[P/N],0),COLUMN(MasterTable[T^2])) ->  | AO13: =INDEX(MasterTable[],MATCH(Simulator!$E24,MasterTable[P/N],0),COLUMN(MasterTable[T])) ->  | AP13: =INDEX(MasterTable[],MATCH(Simulator!$E24,MasterTable[P/N],0),COLUMN(MasterTable[T0])) ->  | AT13: =INDEX(MasterTable[],MATCH(Simulator!$E24,MasterTable[P/N],0),COLUMN(MasterTable['# of Die])) ->  | AV13: =INDEX(Tj_to_Vf6[],MATCH(Simulator!$I$8,Tj_to_Vf6[Vf],1),COLUMN(Tj_to_Vf6[Vf])) -> -0.5 | AX13: =IF(AND(Simulator!$I$8=25,Simulator!$N$14=Simulator!H24),AF13,AR13) -> 
B14: V18 | C14: =IF(Simulator!$D$10="Case",Simulator!$I$8,M14) -> 25 | D14: =Simulator!$N$14*AR14/1000 ->  | E14: =INDEX(MasterTable[],MATCH(Simulator!E25,MasterTable[P/N],0),COLUMN(MasterTable[Thermal Resistance])) ->  | H14: =IF(Simulator!$D$10="Case",F14,Simulator!$I$8) ->  | I14: =Simulator!$N$14*AW14/1000 ->  | M14: =IF(Simulator!$D$10="Case",Simulator!$I$8,K14) -> 25 | N14: =IF(Simulator!$D$10="Case",H14,Simulator!$I$8) ->  | O14: =IF(#REF!="Tj",N14,M14) ->  | Q14: =INDEX(MasterTable[],MATCH(Simulator!E25,MasterTable[P/N],0),COLUMN(MasterTable[Typical Lumens])) ->  | R14: =INDEX(MasterTable[],MATCH(Simulator!$E25,MasterTable[P/N],0),COLUMN(MasterTable[I^3])) ->  | S14: =INDEX(MasterTable[],MATCH(Simulator!$E25,MasterTable[P/N],0),COLUMN(MasterTable[I^2])) ->  | T14: =INDEX(MasterTable[],MATCH(Simulator!$E25,MasterTable[P/N],0),COLUMN(MasterTable[I])) ->  | U14: =INDEX(MasterTable[],MATCH(Simulator!$E25,MasterTable[P/N],0),COLUMN(MasterTable[I0])) ->  | V14: =IF(Simulator!$N$14=Simulator!H25,1,R14*Simulator!$N$14^3+S14*Simulator!$N$14^2+T14*Simulator!$N$14+U14) ->  | W14: =INDEX(MasterTable[],MATCH(Simulator!$E25,MasterTable[P/N],0),COLUMN(MasterTable[F^4])) ->  | X14: =INDEX(MasterTable[],MATCH(Simulator!$E25,MasterTable[P/N],0),COLUMN(MasterTable[F^3])) ->  | Y14: =INDEX(MasterTable[],MATCH(Simulator!$E25,MasterTable[P/N],0),COLUMN(MasterTable[F^2])) ->  | Z14: =INDEX(MasterTable[],MATCH(Simulator!$E25,MasterTable[P/N],0),COLUMN(MasterTable[F])) ->  | AA14: =INDEX(MasterTable[],MATCH(Simulator!$E25,MasterTable[P/N],0),COLUMN(MasterTable[F0])) ->  | AB14: =IF(Simulator!$I$8=85,AE14,W14*M14^4+X14*M14^3+Y14*M14^2+Z14*M14+AA14) ->  | AD14: =IF(AND(Simulator!$I$8=85,Simulator!$N$14=Simulator!H25),Q14*AE14,AC14) ->  | AE14: =VLOOKUP(MID(Simulator!E25,6,3),Vero18_85DC_Factor,2,FALSE) ->  | AF14: =INDEX(MasterTable[],MATCH(Simulator!$E25,MasterTable[P/N],0),COLUMN(MasterTable[Typical Voltage])) ->  | AG14: =INDEX(MasterTable[],MATCH(Simulator!$E25,MasterTable[P/N],0),COLUMN(MasterTable[V^4])) ->  | AH14: =INDEX(MasterTable[],MATCH(Simulator!$E25,MasterTable[P/N],0),COLUMN(MasterTable[V^3])) ->  | AI14: =INDEX(MasterTable[],MATCH(Simulator!$E25,MasterTable[P/N],0),COLUMN(MasterTable[V^2])) ->  | AJ14: =INDEX(MasterTable[],MATCH(Simulator!$E25,MasterTable[P/N],0),COLUMN(MasterTable[V])) ->  | AK14: =INDEX(MasterTable[],MATCH(Simulator!$E25,MasterTable[P/N],0),COLUMN(MasterTable[V0])) ->  | AL14: =AG14*Simulator!$N$14^4+AH14*Simulator!$N$14^3+AI14*Simulator!$N$14^2+AJ14*Simulator!$N$14+AK14 ->  | AM14: =INDEX(MasterTable[],MATCH(Simulator!$E25,MasterTable[P/N],0),COLUMN(MasterTable[T^3])) ->  | AN14: =INDEX(MasterTable[],MATCH(Simulator!$E25,MasterTable[P/N],0),COLUMN(MasterTable[T^2])) ->  | AO14: =INDEX(MasterTable[],MATCH(Simulator!$E25,MasterTable[P/N],0),COLUMN(MasterTable[T])) ->  | AP14: =INDEX(MasterTable[],MATCH(Simulator!$E25,MasterTable[P/N],0),COLUMN(MasterTable[T0])) ->  | AT14: =INDEX(MasterTable[],MATCH(Simulator!$E25,MasterTable[P/N],0),COLUMN(MasterTable['# of Die])) ->  | AV14: =INDEX(Tj_to_Vf6[],MATCH(Simulator!$I$8,Tj_to_Vf6[Vf],1),COLUMN(Tj_to_Vf6[Vf])) -> -0.5 | AX14: =IF(AND(Simulator!$I$8=25,Simulator!$N$14=Simulator!H25),AF14,AR14) -> 
B15: V22 | C15: =IF(Simulator!$D$10="Case",Simulator!$I$8,M15) -> 25 | D15: =Simulator!$N$14*AR15/1000 ->  | E15: =INDEX(MasterTable[],MATCH(Simulator!E26,MasterTable[P/N],0),COLUMN(MasterTable[Thermal Resistance])) ->  | H15: =IF(Simulator!$D$10="Case",F15,Simulator!$I$8) ->  | I15: =Simulator!$N$14*AW15/1000 ->  | M15: =IF(Simulator!$D$10="Case",Simulator!$I$8,K15) -> 25 | N15: =IF(Simulator!$D$10="Case",H15,Simulator!$I$8) ->  | O15: =IF(#REF!="Tj",N15,M15) ->  | Q15: =INDEX(MasterTable[],MATCH(Simulator!E26,MasterTable[P/N],0),COLUMN(MasterTable[Typical Lumens])) ->  | R15: =INDEX(MasterTable[],MATCH(Simulator!$E26,MasterTable[P/N],0),COLUMN(MasterTable[I^3])) ->  | S15: =INDEX(MasterTable[],MATCH(Simulator!$E26,MasterTable[P/N],0),COLUMN(MasterTable[I^2])) ->  | T15: =INDEX(MasterTable[],MATCH(Simulator!$E26,MasterTable[P/N],0),COLUMN(MasterTable[I])) ->  | U15: =INDEX(MasterTable[],MATCH(Simulator!$E26,MasterTable[P/N],0),COLUMN(MasterTable[I0])) ->  | V15: =IF(Simulator!$N$14=Simulator!H26,1,R15*Simulator!$N$14^3+S15*Simulator!$N$14^2+T15*Simulator!$N$14+U15) ->  | W15: =INDEX(MasterTable[],MATCH(Simulator!$E26,MasterTable[P/N],0),COLUMN(MasterTable[F^4])) ->  | X15: =INDEX(MasterTable[],MATCH(Simulator!$E26,MasterTable[P/N],0),COLUMN(MasterTable[F^3])) ->  | Y15: =INDEX(MasterTable[],MATCH(Simulator!$E26,MasterTable[P/N],0),COLUMN(MasterTable[F^2])) ->  | Z15: =INDEX(MasterTable[],MATCH(Simulator!$E26,MasterTable[P/N],0),COLUMN(MasterTable[F])) ->  | AA15: =INDEX(MasterTable[],MATCH(Simulator!$E26,MasterTable[P/N],0),COLUMN(MasterTable[F0])) ->  | AB15: =IF(Simulator!$I$8=85,AE15,W15*M15^4+X15*M15^3+Y15*M15^2+Z15*M15+AA15) ->  | AD15: =IF(AND(Simulator!$I$8=85,Simulator!$N$14=Simulator!H26),Q15*AE15,AC15) ->  | AE15: =VLOOKUP(MID(Simulator!E26,6,3),Data!AO4:AP7,2,FALSE) ->  | AF15: =INDEX(MasterTable[],MATCH(Simulator!$E26,MasterTable[P/N],0),COLUMN(MasterTable[Typical Voltage])) ->  | AG15: =INDEX(MasterTable[],MATCH(Simulator!$E26,MasterTable[P/N],0),COLUMN(MasterTable[V^4])) ->  | AH15: =INDEX(MasterTable[],MATCH(Simulator!$E26,MasterTable[P/N],0),COLUMN(MasterTable[V^3])) ->  | AI15: =INDEX(MasterTable[],MATCH(Simulator!$E26,MasterTable[P/N],0),COLUMN(MasterTable[V^2])) ->  | AJ15: =INDEX(MasterTable[],MATCH(Simulator!$E26,MasterTable[P/N],0),COLUMN(MasterTable[V])) ->  | AK15: =INDEX(MasterTable[],MATCH(Simulator!$E26,MasterTable[P/N],0),COLUMN(MasterTable[V0])) ->  | AL15: =AG15*Simulator!$N$14^4+AH15*Simulator!$N$14^3+AI15*Simulator!$N$14^2+AJ15*Simulator!$N$14+AK15 ->  | AM15: =INDEX(MasterTable[],MATCH(Simulator!$E26,MasterTable[P/N],0),COLUMN(MasterTable[T^3])) ->  | AN15: =INDEX(MasterTable[],MATCH(Simulator!$E26,MasterTable[P/N],0),COLUMN(MasterTable[T^2])) ->  | AO15: =INDEX(MasterTable[],MATCH(Simulator!$E26,MasterTable[P/N],0),COLUMN(MasterTable[T])) ->  | AP15: =INDEX(MasterTable[],MATCH(Simulator!$E26,MasterTable[P/N],0),COLUMN(MasterTable[T0])) ->  | AT15: =INDEX(MasterTable[],MATCH(Simulator!$E26,MasterTable[P/N],0),COLUMN(MasterTable['# of Die])) ->  | AV15: =INDEX(Tj_to_Vf6[],MATCH(Simulator!$I$8,Tj_to_Vf6[Vf],1),COLUMN(Tj_to_Vf6[Vf])) -> -0.5 | AX15: =IF(AND(Simulator!$I$8=25,Simulator!$N$14=Simulator!H26),AF15,AR15) -> 
A17: Calculations using Current Input | C17: Converting Tc to Tj | H17: Converting Tj to Tc | Q17: Calculating Flux | AF17: Calculating Voltage w/ Tc | AU17: Calculating Voltage w/ Tj
C18: Tj = Tc + Power*Thermal Resistance | H18: Tc = Tj - Power*Thermal Resistance | Q18: F@Tc&I = Ft*Fr@I*Fr@Tc | AF18: Vf@Tc&I = Vf@I + Vf@Tc-Vft | AU18: Vf@Tj&I = Vf@I + Vf@Tj Modifier
C19: Tc | D19: Power | E19: Thermal Resistance | F19: Tc>>Tj | H19: Tj | I19: Power | J19: Thermal Resistance | K19: Tj>>Tc | M19: Tc | N19: Tj | O19: =IF(Simulator!$D$10="Case","Tj","Tc") -> Tj | Q19: Ft | R19: Fr@I Eqn | V19: Fr@I | X19: Fr@Tc Eqn | AB19: Fr@Tc | AC19: F@Tc&I | AE19: 85 DC Factor | AF19: Vft | AH19: Vf@I Eqn | AL19: Vf@I | AM19: Vf@Tc Eqn | AQ19: Vf@Tc | AR19: Vf@Tc&I | AT19: # of Die | AU19: Vf@I | AV19: Vf@Tj Modifier, per Die | AW19: Vf@Tj&I | AX19: Voltage Report
B20: Vero 10 | C20: =IF(Simulator!$D$10="Case",Simulator!$I$8,M20) -> 25 | D20: =Simulator!$N$14*AR20/1000 ->  | E20: =INDEX(MasterTable[],MATCH(Simulator!E28,MasterTable[P/N],0),COLUMN(MasterTable[Thermal Resistance])) ->  | F20: =C20+D20*E20 ->  | H20: =IF(Simulator!$D$10="Case",F20,Simulator!$I$8) ->  | I20: =Simulator!$N$14*AW20/1000 ->  | J20: =E20 ->  | K20: =H20-I20*J20 ->  | M20: =IF(Simulator!$D$10="Case",Simulator!$I$8,K20) -> 25 | N20: =IF(Simulator!$D$10="Case",H20,Simulator!$I$8) ->  | O20: =IF(#REF!="Tj",N20,M20) ->  | Q20: =INDEX(MasterTable[],MATCH(Simulator!E28,MasterTable[P/N],0),COLUMN(MasterTable[Typical Lumens])) ->  | R20: =INDEX(MasterTable[],MATCH(Simulator!$E28,MasterTable[P/N],0),COLUMN(MasterTable[I^3])) ->  | S20: =INDEX(MasterTable[],MATCH(Simulator!$E28,MasterTable[P/N],0),COLUMN(MasterTable[I^2])) ->  | T20: =INDEX(MasterTable[],MATCH(Simulator!$E28,MasterTable[P/N],0),COLUMN(MasterTable[I])) ->  | U20: =INDEX(MasterTable[],MATCH(Simulator!$E28,MasterTable[P/N],0),COLUMN(MasterTable[I0])) ->  | V20: =IF(Simulator!$N$14=Simulator!H28,1,S20*Simulator!$N$14^2+T20*Simulator!$N$14+U20) ->  | W20: =INDEX(MasterTable[],MATCH(Simulator!$E28,MasterTable[P/N],0),COLUMN(MasterTable[F^4])) ->  | X20: =INDEX(MasterTable[],MATCH(Simulator!$E28,MasterTable[P/N],0),COLUMN(MasterTable[F^3])) ->  | Y20: =INDEX(MasterTable[],MATCH(Simulator!$E28,MasterTable[P/N],0),COLUMN(MasterTable[F^2])) ->  | Z20: =INDEX(MasterTable[],MATCH(Simulator!$E28,MasterTable[P/N],0),COLUMN(MasterTable[F])) ->  | AA20: =INDEX(MasterTable[],MATCH(Simulator!$E28,MasterTable[P/N],0),COLUMN(MasterTable[F0])) ->  | AB20: =IF(Simulator!$I$8=85,AE20,W20*M20^4+X20*M20^3+Y20*M20^2+Z20*M20+AA20) ->  | AC20: =Q20*V20*AB20 ->  | AD20: =IF(AND(Simulator!$I$8=85,Simulator!$N$14=Simulator!H28),Q20*AE20,AC20) ->  | AE20: =VLOOKUP(MID(Simulator!E28,6,3),Vero10_85DC_Factor,2,FALSE) ->  | AF20: =INDEX(MasterTable[],MATCH(Simulator!$E28,MasterTable[P/N],0),COLUMN(MasterTable[Typical Voltage])) ->  | AG20: =INDEX(MasterTable[],MATCH(Simulator!$E28,MasterTable[P/N],0),COLUMN(MasterTable[V^4])) ->  | AH20: =INDEX(MasterTable[],MATCH(Simulator!$E28,MasterTable[P/N],0),COLUMN(MasterTable[V^3])) ->  | AI20: =INDEX(MasterTable[],MATCH(Simulator!$E28,MasterTable[P/N],0),COLUMN(MasterTable[V^2])) ->  | AJ20: =INDEX(MasterTable[],MATCH(Simulator!$E28,MasterTable[P/N],0),COLUMN(MasterTable[V])) ->  | AK20: =INDEX(MasterTable[],MATCH(Simulator!$E28,MasterTable[P/N],0),COLUMN(MasterTable[V0])) ->  | AL20: =AG20*Simulator!$N$14^4+AH20*Simulator!$N$14^3+AI20*Simulator!$N$14^2+AJ20*Simulator!$N$14+AK20 ->  | AM20: =INDEX(MasterTable[],MATCH(Simulator!$E28,MasterTable[P/N],0),COLUMN(MasterTable[T^3])) ->  | AN20: =INDEX(MasterTable[],MATCH(Simulator!$E28,MasterTable[P/N],0),COLUMN(MasterTable[T^2])) ->  | AO20: =INDEX(MasterTable[],MATCH(Simulator!$E28,MasterTable[P/N],0),COLUMN(MasterTable[T])) ->  | AP20: =INDEX(MasterTable[],MATCH(Simulator!$E28,MasterTable[P/N],0),COLUMN(MasterTable[T0])) ->  | AQ20: =AM20*M20^3+AN20*M20^2+AO20*M20+AP20 ->  | AR20: =AL20+AQ20-AF20 ->  | AT20: =INDEX(MasterTable[],MATCH(Simulator!$E28,MasterTable[P/N],0),COLUMN(MasterTable['# of Die])) ->  | AU20: =AL20 ->  | AV20: =INDEX(Tj_to_Vf6[],MATCH(Simulator!$I$8,Tj_to_Vf6[Vf],1),COLUMN(Tj_to_Vf6[Vf])) -> -0.5 | AW20: =AU20+AV20*AT20 ->  | AX20: =IF(AND(Simulator!$I$8=25,Simulator!$N$14=Simulator!H28),AF20,AR20) -> 
B21: Vero 13 | C21: =IF(Simulator!$D$10="Case",Simulator!$I$8,M21) -> 25 | D21: =Simulator!$N$14*AR21/1000 ->  | E21: =INDEX(MasterTable[],MATCH(Simulator!E29,MasterTable[P/N],0),COLUMN(MasterTable[Thermal Resistance])) ->  | F21: =C21+D21*E21 ->  | H21: =IF(Simulator!$D$10="Case",F21,Simulator!$I$8) ->  | I21: =Simulator!$N$14*AW21/1000 ->  | J21: =E21 ->  | K21: =H21-I21*J21 ->  | M21: =IF(Simulator!$D$10="Case",Simulator!$I$8,K21) -> 25 | N21: =IF(Simulator!$D$10="Case",H21,Simulator!$I$8) ->  | O21: =IF(#REF!="Tj",N21,M21) ->  | Q21: =INDEX(MasterTable[],MATCH(Simulator!E29,MasterTable[P/N],0),COLUMN(MasterTable[Typical Lumens])) ->  | R21: =INDEX(MasterTable[],MATCH(Simulator!$E29,MasterTable[P/N],0),COLUMN(MasterTable[I^3])) ->  | S21: =INDEX(MasterTable[],MATCH(Simulator!$E29,MasterTable[P/N],0),COLUMN(MasterTable[I^2])) ->  | T21: =INDEX(MasterTable[],MATCH(Simulator!$E29,MasterTable[P/N],0),COLUMN(MasterTable[I])) ->  | U21: =INDEX(MasterTable[],MATCH(Simulator!$E29,MasterTable[P/N],0),COLUMN(MasterTable[I0])) ->  | V21: =IF(Simulator!$N$14=Simulator!H29,1,S21*Simulator!$N$14^2+T21*Simulator!$N$14+U21) ->  | W21: =INDEX(MasterTable[],MATCH(Simulator!$E29,MasterTable[P/N],0),COLUMN(MasterTable[F^4])) ->  | X21: =INDEX(MasterTable[],MATCH(Simulator!$E29,MasterTable[P/N],0),COLUMN(MasterTable[F^3])) ->  | Y21: =INDEX(MasterTable[],MATCH(Simulator!$E29,MasterTable[P/N],0),COLUMN(MasterTable[F^2])) ->  | Z21: =INDEX(MasterTable[],MATCH(Simulator!$E29,MasterTable[P/N],0),COLUMN(MasterTable[F])) ->  | AA21: =INDEX(MasterTable[],MATCH(Simulator!$E29,MasterTable[P/N],0),COLUMN(MasterTable[F0])) ->  | AB21: =IF(Simulator!$I$8=85,AE21,W21*M21^4+X21*M21^3+Y21*M21^2+Z21*M21+AA21) ->  | AC21: =Q21*V21*AB21 ->  | AD21: =IF(AND(Simulator!$I$8=85,Simulator!$N$14=Simulator!H29),Q21*AE21,AC21) ->  | AE21: =VLOOKUP(MID(Simulator!E29,6,3),Vero13_85DC_Factor,2,FALSE) ->  | AF21: =INDEX(MasterTable[],MATCH(Simulator!$E29,MasterTable[P/N],0),COLUMN(MasterTable[Typical Voltage])) ->  | AG21: =INDEX(MasterTable[],MATCH(Simulator!$E29,MasterTable[P/N],0),COLUMN(MasterTable[V^4])) ->  | AH21: =INDEX(MasterTable[],MATCH(Simulator!$E29,MasterTable[P/N],0),COLUMN(MasterTable[V^3])) ->  | AI21: =INDEX(MasterTable[],MATCH(Simulator!$E29,MasterTable[P/N],0),COLUMN(MasterTable[V^2])) ->  | AJ21: =INDEX(MasterTable[],MATCH(Simulator!$E29,MasterTable[P/N],0),COLUMN(MasterTable[V])) ->  | AK21: =INDEX(MasterTable[],MATCH(Simulator!$E29,MasterTable[P/N],0),COLUMN(MasterTable[V0])) ->  | AL21: =AG21*Simulator!$N$14^4+AH21*Simulator!$N$14^3+AI21*Simulator!$N$14^2+AJ21*Simulator!$N$14+AK21 ->  | AM21: =INDEX(MasterTable[],MATCH(Simulator!$E29,MasterTable[P/N],0),COLUMN(MasterTable[T^3])) ->  | AN21: =INDEX(MasterTable[],MATCH(Simulator!$E29,MasterTable[P/N],0),COLUMN(MasterTable[T^2])) ->  | AO21: =INDEX(MasterTable[],MATCH(Simulator!$E29,MasterTable[P/N],0),COLUMN(MasterTable[T])) ->  | AP21: =INDEX(MasterTable[],MATCH(Simulator!$E29,MasterTable[P/N],0),COLUMN(MasterTable[T0])) ->  | AQ21: =AM21*M21^3+AN21*M21^2+AO21*M21+AP21 ->  | AR21: =AL21+AQ21-AF21 ->  | AT21: =INDEX(MasterTable[],MATCH(Simulator!$E29,MasterTable[P/N],0),COLUMN(MasterTable['# of Die])) ->  | AU21: =AL21 ->  | AV21: =INDEX(Tj_to_Vf6[],MATCH(Simulator!$I$8,Tj_to_Vf6[Vf],1),COLUMN(Tj_to_Vf6[Vf])) -> -0.5 | AW21: =AU21+AV21*AT21 ->  | AX21: =IF(AND(Simulator!$I$8=25,Simulator!$N$14=Simulator!H29),AF21,AR21) -> 
B22: Vero 18 | C22: =IF(Simulator!$D$10="Case",Simulator!$I$8,M22) -> 25 | D22: =Simulator!$N$14*AR22/1000 ->  | E22: =INDEX(MasterTable[],MATCH(Simulator!E30,MasterTable[P/N],0),COLUMN(MasterTable[Thermal Resistance])) ->  | F22: =C22+D22*E22 ->  | H22: =IF(Simulator!$D$10="Case",F22,Simulator!$I$8) ->  | I22: =Simulator!$N$14*AW22/1000 ->  | J22: =E22 ->  | K22: =H22-I22*J22 ->  | M22: =IF(Simulator!$D$10="Case",Simulator!$I$8,K22) -> 25 | N22: =IF(Simulator!$D$10="Case",H22,Simulator!$I$8) ->  | O22: =IF(#REF!="Tj",N22,M22) ->  | Q22: =INDEX(MasterTable[],MATCH(Simulator!E30,MasterTable[P/N],0),COLUMN(MasterTable[Typical Lumens])) ->  | R22: =INDEX(MasterTable[],MATCH(Simulator!$E30,MasterTable[P/N],0),COLUMN(MasterTable[I^3])) ->  | S22: =INDEX(MasterTable[],MATCH(Simulator!$E30,MasterTable[P/N],0),COLUMN(MasterTable[I^2])) ->  | T22: =INDEX(MasterTable[],MATCH(Simulator!$E30,MasterTable[P/N],0),COLUMN(MasterTable[I])) ->  | U22: =INDEX(MasterTable[],MATCH(Simulator!$E30,MasterTable[P/N],0),COLUMN(MasterTable[I0])) ->  | V22: =IF(Simulator!$N$14=Simulator!H30,1,S22*Simulator!$N$14^2+T22*Simulator!$N$14+U22) ->  | W22: =INDEX(MasterTable[],MATCH(Simulator!$E30,MasterTable[P/N],0),COLUMN(MasterTable[F^4])) ->  | X22: =INDEX(MasterTable[],MATCH(Simulator!$E30,MasterTable[P/N],0),COLUMN(MasterTable[F^3])) ->  | Y22: =INDEX(MasterTable[],MATCH(Simulator!$E30,MasterTable[P/N],0),COLUMN(MasterTable[F^2])) ->  | Z22: =INDEX(MasterTable[],MATCH(Simulator!$E30,MasterTable[P/N],0),COLUMN(MasterTable[F])) ->  | AA22: =INDEX(MasterTable[],MATCH(Simulator!$E30,MasterTable[P/N],0),COLUMN(MasterTable[F0])) ->  | AB22: =IF(Simulator!$I$8=85,AE22,W22*M22^4+X22*M22^3+Y22*M22^2+Z22*M22+AA22) ->  | AC22: =Q22*V22*AB22 ->  | AD22: =IF(AND(Simulator!$I$8=85,Simulator!$N$14=Simulator!H30),Q22*AE22,AC22) ->  | AE22: =VLOOKUP(MID(Simulator!E30,6,3),Vero18_85DC_Factor,2,FALSE) ->  | AF22: =INDEX(MasterTable[],MATCH(Simulator!$E30,MasterTable[P/N],0),COLUMN(MasterTable[Typical Voltage])) ->  | AG22: =INDEX(MasterTable[],MATCH(Simulator!$E30,MasterTable[P/N],0),COLUMN(MasterTable[V^4])) ->  | AH22: =INDEX(MasterTable[],MATCH(Simulator!$E30,MasterTable[P/N],0),COLUMN(MasterTable[V^3])) ->  | AI22: =INDEX(MasterTable[],MATCH(Simulator!$E30,MasterTable[P/N],0),COLUMN(MasterTable[V^2])) ->  | AJ22: =INDEX(MasterTable[],MATCH(Simulator!$E30,MasterTable[P/N],0),COLUMN(MasterTable[V])) ->  | AK22: =INDEX(MasterTable[],MATCH(Simulator!$E30,MasterTable[P/N],0),COLUMN(MasterTable[V0])) ->  | AL22: =AG22*Simulator!$N$14^4+AH22*Simulator!$N$14^3+AI22*Simulator!$N$14^2+AJ22*Simulator!$N$14+AK22 ->  | AM22: =INDEX(MasterTable[],MATCH(Simulator!$E30,MasterTable[P/N],0),COLUMN(MasterTable[T^3])) ->  | AN22: =INDEX(MasterTable[],MATCH(Simulator!$E30,MasterTable[P/N],0),COLUMN(MasterTable[T^2])) ->  | AO22: =INDEX(MasterTable[],MATCH(Simulator!$E30,MasterTable[P/N],0),COLUMN(MasterTable[T])) ->  | AP22: =INDEX(MasterTable[],MATCH(Simulator!$E30,MasterTable[P/N],0),COLUMN(MasterTable[T0])) ->  | AQ22: =AM22*M22^3+AN22*M22^2+AO22*M22+AP22 ->  | AR22: =AL22+AQ22-AF22 ->  | AT22: =INDEX(MasterTable[],MATCH(Simulator!$E30,MasterTable[P/N],0),COLUMN(MasterTable['# of Die])) ->  | AU22: =AL22 ->  | AV22: =INDEX(Tj_to_Vf6[],MATCH(Simulator!$I$8,Tj_to_Vf6[Vf],1),COLUMN(Tj_to_Vf6[Vf])) -> -0.5 | AW22: =AU22+AV22*AT22 ->  | AX22: =IF(AND(Simulator!$I$8=25,Simulator!$N$14=Simulator!H30),AF22,AR22) -> 
B23: Vero 29 | C23: =IF(Simulator!$D$10="Case",Simulator!$I$8,M23) -> 25 | D23: =Simulator!$N$14*AR23/1000 ->  | E23: =INDEX(MasterTable[],MATCH(Simulator!E31,MasterTable[P/N],0),COLUMN(MasterTable[Thermal Resistance])) ->  | F23: =C23+D23*E23 ->  | H23: =IF(Simulator!$D$10="Case",F23,Simulator!$I$8) ->  | I23: =Simulator!$N$14*AW23/1000 ->  | J23: =E23 ->  | K23: =H23-I23*J23 ->  | M23: =IF(Simulator!$D$10="Case",Simulator!$I$8,K23) -> 25 | N23: =IF(Simulator!$D$10="Case",H23,Simulator!$I$8) ->  | O23: =IF(#REF!="Tj",N23,M23) ->  | Q23: =INDEX(MasterTable[],MATCH(Simulator!E31,MasterTable[P/N],0),COLUMN(MasterTable[Typical Lumens])) ->  | R23: =INDEX(MasterTable[],MATCH(Simulator!$E31,MasterTable[P/N],0),COLUMN(MasterTable[I^3])) ->  | S23: =INDEX(MasterTable[],MATCH(Simulator!$E31,MasterTable[P/N],0),COLUMN(MasterTable[I^2])) ->  | T23: =INDEX(MasterTable[],MATCH(Simulator!$E31,MasterTable[P/N],0),COLUMN(MasterTable[I])) ->  | U23: =INDEX(MasterTable[],MATCH(Simulator!$E31,MasterTable[P/N],0),COLUMN(MasterTable[I0])) ->  | V23: =IF(Simulator!$N$14=Simulator!H31,1,S23*Simulator!$N$14^2+T23*Simulator!$N$14+U23) ->  | W23: =INDEX(MasterTable[],MATCH(Simulator!$E31,MasterTable[P/N],0),COLUMN(MasterTable[F^4])) ->  | X23: =INDEX(MasterTable[],MATCH(Simulator!$E31,MasterTable[P/N],0),COLUMN(MasterTable[F^3])) ->  | Y23: =INDEX(MasterTable[],MATCH(Simulator!$E31,MasterTable[P/N],0),COLUMN(MasterTable[F^2])) ->  | Z23: =INDEX(MasterTable[],MATCH(Simulator!$E31,MasterTable[P/N],0),COLUMN(MasterTable[F])) ->  | AA23: =INDEX(MasterTable[],MATCH(Simulator!$E31,MasterTable[P/N],0),COLUMN(MasterTable[F0])) ->  | AB23: =IF(Simulator!$I$8=85,AE23,W23*M23^4+X23*M23^3+Y23*M23^2+Z23*M23+AA23) ->  | AC23: =Q23*V23*AB23 ->  | AD23: =IF(AND(Simulator!$I$8=85,Simulator!$N$14=Simulator!H31),Q23*AE23,AC23) ->  | AE23: =VLOOKUP(MID(Simulator!E31,6,3),Vero29_85DC_Factor,2,FALSE) ->  | AF23: =INDEX(MasterTable[],MATCH(Simulator!$E31,MasterTable[P/N],0),COLUMN(MasterTable[Typical Voltage])) ->  | AG23: =INDEX(MasterTable[],MATCH(Simulator!$E31,MasterTable[P/N],0),COLUMN(MasterTable[V^4])) ->  | AH23: =INDEX(MasterTable[],MATCH(Simulator!$E31,MasterTable[P/N],0),COLUMN(MasterTable[V^3])) ->  | AI23: =INDEX(MasterTable[],MATCH(Simulator!$E31,MasterTable[P/N],0),COLUMN(MasterTable[V^2])) ->  | AJ23: =INDEX(MasterTable[],MATCH(Simulator!$E31,MasterTable[P/N],0),COLUMN(MasterTable[V])) ->  | AK23: =INDEX(MasterTable[],MATCH(Simulator!$E31,MasterTable[P/N],0),COLUMN(MasterTable[V0])) ->  | AL23: =AG23*Simulator!$N$14^4+AH23*Simulator!$N$14^3+AI23*Simulator!$N$14^2+AJ23*Simulator!$N$14+AK23 ->  | AM23: =INDEX(MasterTable[],MATCH(Simulator!$E31,MasterTable[P/N],0),COLUMN(MasterTable[T^3])) ->  | AN23: =INDEX(MasterTable[],MATCH(Simulator!$E31,MasterTable[P/N],0),COLUMN(MasterTable[T^2])) ->  | AO23: =INDEX(MasterTable[],MATCH(Simulator!$E31,MasterTable[P/N],0),COLUMN(MasterTable[T])) ->  | AP23: =INDEX(MasterTable[],MATCH(Simulator!$E31,MasterTable[P/N],0),COLUMN(MasterTable[T0])) ->  | AQ23: =AM23*M23^3+AN23*M23^2+AO23*M23+AP23 ->  | AR23: =AL23+AQ23-AF23 ->  | AT23: =INDEX(MasterTable[],MATCH(Simulator!$E31,MasterTable[P/N],0),COLUMN(MasterTable['# of Die])) ->  | AU23: =AL23 ->  | AV23: =INDEX(Tj_to_Vf6[],MATCH(Simulator!$I$8,Tj_to_Vf6[Vf],1),COLUMN(Tj_to_Vf6[Vf])) -> -0.5 | AW23: =AU23+AV23*AT23 ->  | AX23: =IF(AND(Simulator!$I$8=25,Simulator!$N$14=Simulator!H31),AF23,AR23) -> 
A25: Calculations using Current Input | C25: Converting Tc to Tj | H25: Converting Tj to Tc | Q25: Calculating Flux | AF25: Calculating Voltage w/ Tc | AU25: Calculating Voltage w/ Tj
C26: Tj = Tc + Power*Thermal Resistance | H26: Tc = Tj - Power*Thermal Resistance | Q26: F@Tc&I = Ft*Fr@I*Fr@Tc | AF26: Vf@Tc&I = Vf@I + Vf@Tc-Vft | AU26: Vf@Tj&I = Vf@I + Vf@Tj Modifier
C27: Tc | D27: Power | E27: Thermal Resistance | F27: Tc>>Tj | H27: Tj | I27: Power | J27: Thermal Resistance | K27: Tj>>Tc | M27: Tc | N27: Tj | O27: =IF(Simulator!$D$10="Case","Tj","Tc") -> Tj | Q27: Ft | R27: Fr@I Eqn | V27: Fr@I | X27: Fr@Tc Eqn | AB27: Fr@Tc | AC27: F@Tc&I | AE27: 85 DC Factor | AF27: Vft | AH27: Vf@I Eqn | AL27: Vf@I | AM27: Vf@Tc Eqn | AQ27: Vf@Tc | AR27: Vf@Tc&I | AT27: # of Die | AU27: Vf@I | AV27: Vf@Tj Modifier, per Die | AW27: Vf@Tj&I | AX27: Voltage Report
B28: H6 | C28: =IF(Simulator!$D$10="Case",Simulator!$I$8,M28) -> 25 | D28: =Simulator!$N$14*AR28/1000 ->  | E28: =INDEX(MasterTable[],MATCH(Simulator!E33,MasterTable[P/N],0),COLUMN(MasterTable[Thermal Resistance])) ->  | F28: =C28+D28*E28 ->  | H28: =IF(Simulator!$D$10="Case",F28,Simulator!$I$8) ->  | I28: =Simulator!$N$14*AW28/1000 ->  | J28: =E28 ->  | K28: =H28-I28*J28 ->  | M28: =IF(Simulator!$D$10="Case",Simulator!$I$8,K28) -> 25 | N28: =IF(Simulator!$D$10="Case",H28,Simulator!$I$8) ->  | O28: =IF(#REF!="Tj",N28,M28) ->  | Q28: =INDEX(MasterTable[],MATCH(Simulator!E33,MasterTable[P/N],0),COLUMN(MasterTable[Typical Lumens])) ->  | R28: =INDEX(MasterTable[],MATCH(Simulator!$E33,MasterTable[P/N],0),COLUMN(MasterTable[I^3])) ->  | S28: =INDEX(MasterTable[],MATCH(Simulator!$E33,MasterTable[P/N],0),COLUMN(MasterTable[I^2])) ->  | T28: =INDEX(MasterTable[],MATCH(Simulator!$E33,MasterTable[P/N],0),COLUMN(MasterTable[I])) ->  | U28: =INDEX(MasterTable[],MATCH(Simulator!$E33,MasterTable[P/N],0),COLUMN(MasterTable[I0])) ->  | V28: =IF(Simulator!$N$14=Simulator!H33,1,S28*Simulator!$N$14^2+T28*Simulator!$N$14+U28) ->  | W28: =INDEX(MasterTable[],MATCH(Simulator!$E33,MasterTable[P/N],0),COLUMN(MasterTable[F^4])) ->  | X28: =INDEX(MasterTable[],MATCH(Simulator!$E33,MasterTable[P/N],0),COLUMN(MasterTable[F^3])) ->  | Y28: =INDEX(MasterTable[],MATCH(Simulator!$E33,MasterTable[P/N],0),COLUMN(MasterTable[F^2])) ->  | Z28: =INDEX(MasterTable[],MATCH(Simulator!$E33,MasterTable[P/N],0),COLUMN(MasterTable[F])) ->  | AA28: =INDEX(MasterTable[],MATCH(Simulator!$E33,MasterTable[P/N],0),COLUMN(MasterTable[F0])) ->  | AB28: =IF(Simulator!$I$8=85,AE28,W28*M28^4+X28*M28^3+Y28*M28^2+Z28*M28+AA28) ->  | AC28: =Q28*V28*AB28 ->  | AD28: =IF(AND(Simulator!$I$8=85,Simulator!$N$14=Simulator!H33),Q28*AE28,AC28) ->  | AE28: =VLOOKUP(MID(Simulator!E33,6,3),Data!AB40:AC50,2,FALSE) ->  | AF28: =INDEX(MasterTable[],MATCH(Simulator!$E33,MasterTable[P/N],0),COLUMN(MasterTable[Typical Voltage])) ->  | AG28: =INDEX(MasterTable[],MATCH(Simulator!$E33,MasterTable[P/N],0),COLUMN(MasterTable[V^4])) ->  | AH28: =INDEX(MasterTable[],MATCH(Simulator!$E33,MasterTable[P/N],0),COLUMN(MasterTable[V^3])) ->  | AI28: =INDEX(MasterTable[],MATCH(Simulator!$E33,MasterTable[P/N],0),COLUMN(MasterTable[V^2])) ->  | AJ28: =INDEX(MasterTable[],MATCH(Simulator!$E33,MasterTable[P/N],0),COLUMN(MasterTable[V])) ->  | AK28: =INDEX(MasterTable[],MATCH(Simulator!$E33,MasterTable[P/N],0),COLUMN(MasterTable[V0])) ->  | AL28: =AG28*Simulator!$N$14^4+AH28*Simulator!$N$14^3+AI28*Simulator!$N$14^2+AJ28*Simulator!$N$14+AK28 ->  | AM28: =INDEX(MasterTable[],MATCH(Simulator!$E33,MasterTable[P/N],0),COLUMN(MasterTable[T^3])) ->  | AN28: =INDEX(MasterTable[],MATCH(Simulator!$E33,MasterTable[P/N],0),COLUMN(MasterTable[T^2])) ->  | AO28: =INDEX(MasterTable[],MATCH(Simulator!$E33,MasterTable[P/N],0),COLUMN(MasterTable[T])) ->  | AP28: =INDEX(MasterTable[],MATCH(Simulator!$E33,MasterTable[P/N],0),COLUMN(MasterTable[T0])) ->  | AQ28: =AM28*M28^3+AN28*M28^2+AO28*M28+AP28 ->  | AR28: =AL28+AQ28-AF28 ->  | AT28: =INDEX(MasterTable[],MATCH(Simulator!$E33,MasterTable[P/N],0),COLUMN(MasterTable['# of Die])) ->  | AU28: =AL28 ->  | AV28: =INDEX(Tj_to_Vf6[],MATCH(Simulator!$I$8,Tj_to_Vf6[Vf],1),COLUMN(Tj_to_Vf6[Vf])) -> -0.5 | AW28: =AU28+AV28*AT28 ->  | AX28: =IF(AND(Simulator!$I$8=25,Simulator!$N$14=Simulator!H33),AF28,AR28) -> 
B29: H9 | C29: =IF(Simulator!$D$10="Case",Simulator!$I$8,M29) -> 25 | D29: =Simulator!$N$14*AR29/1000 ->  | E29: =INDEX(MasterTable[],MATCH(Simulator!E34,MasterTable[P/N],0),COLUMN(MasterTable[Thermal Resistance])) ->  | F29: =C29+D29*E29 ->  | H29: =IF(Simulator!$D$10="Case",F29,Simulator!$I$8) ->  | I29: =Simulator!$N$14*AW29/1000 ->  | J29: =E29 ->  | K29: =H29-I29*J29 ->  | M29: =IF(Simulator!$D$10="Case",Simulator!$I$8,K29) -> 25 | N29: =IF(Simulator!$D$10="Case",H29,Simulator!$I$8) ->  | O29: =IF(#REF!="Tj",N29,M29) ->  | Q29: =INDEX(MasterTable[],MATCH(Simulator!E34,MasterTable[P/N],0),COLUMN(MasterTable[Typical Lumens])) ->  | R29: =INDEX(MasterTable[],MATCH(Simulator!$E34,MasterTable[P/N],0),COLUMN(MasterTable[I^3])) ->  | S29: =INDEX(MasterTable[],MATCH(Simulator!$E34,MasterTable[P/N],0),COLUMN(MasterTable[I^2])) ->  | T29: =INDEX(MasterTable[],MATCH(Simulator!$E34,MasterTable[P/N],0),COLUMN(MasterTable[I])) ->  | U29: =INDEX(MasterTable[],MATCH(Simulator!$E34,MasterTable[P/N],0),COLUMN(MasterTable[I0])) ->  | V29: =IF(Simulator!$N$14=Simulator!H34,1,S29*Simulator!$N$14^2+T29*Simulator!$N$14+U29) ->  | W29: =INDEX(MasterTable[],MATCH(Simulator!$E34,MasterTable[P/N],0),COLUMN(MasterTable[F^4])) ->  | X29: =INDEX(MasterTable[],MATCH(Simulator!$E34,MasterTable[P/N],0),COLUMN(MasterTable[F^3])) ->  | Y29: =INDEX(MasterTable[],MATCH(Simulator!$E34,MasterTable[P/N],0),COLUMN(MasterTable[F^2])) ->  | Z29: =INDEX(MasterTable[],MATCH(Simulator!$E34,MasterTable[P/N],0),COLUMN(MasterTable[F])) ->  | AA29: =INDEX(MasterTable[],MATCH(Simulator!$E34,MasterTable[P/N],0),COLUMN(MasterTable[F0])) ->  | AB29: =IF(Simulator!$I$8=85,AE29,W29*M29^4+X29*M29^3+Y29*M29^2+Z29*M29+AA29) ->  | AC29: =Q29*V29*AB29 ->  | AD29: =IF(AND(Simulator!$I$8=85,Simulator!$N$14=Simulator!H34),Q29*AE29,AC29) ->  | AE29: =VLOOKUP(MID(Simulator!E34,6,3),Data!AF40:AG50,2,FALSE) ->  | AF29: =INDEX(MasterTable[],MATCH(Simulator!$E34,MasterTable[P/N],0),COLUMN(MasterTable[Typical Voltage])) ->  | AG29: =INDEX(MasterTable[],MATCH(Simulator!$E34,MasterTable[P/N],0),COLUMN(MasterTable[V^4])) ->  | AH29: =INDEX(MasterTable[],MATCH(Simulator!$E34,MasterTable[P/N],0),COLUMN(MasterTable[V^3])) ->  | AI29: =INDEX(MasterTable[],MATCH(Simulator!$E34,MasterTable[P/N],0),COLUMN(MasterTable[V^2])) ->  | AJ29: =INDEX(MasterTable[],MATCH(Simulator!$E34,MasterTable[P/N],0),COLUMN(MasterTable[V])) ->  | AK29: =INDEX(MasterTable[],MATCH(Simulator!$E34,MasterTable[P/N],0),COLUMN(MasterTable[V0])) ->  | AL29: =AG29*Simulator!$N$14^4+AH29*Simulator!$N$14^3+AI29*Simulator!$N$14^2+AJ29*Simulator!$N$14+AK29 ->  | AM29: =INDEX(MasterTable[],MATCH(Simulator!$E34,MasterTable[P/N],0),COLUMN(MasterTable[T^3])) ->  | AN29: =INDEX(MasterTable[],MATCH(Simulator!$E34,MasterTable[P/N],0),COLUMN(MasterTable[T^2])) ->  | AO29: =INDEX(MasterTable[],MATCH(Simulator!$E34,MasterTable[P/N],0),COLUMN(MasterTable[T])) ->  | AP29: =INDEX(MasterTable[],MATCH(Simulator!$E34,MasterTable[P/N],0),COLUMN(MasterTable[T0])) ->  | AQ29: =AM29*M29^3+AN29*M29^2+AO29*M29+AP29 ->  | AR29: =AL29+AQ29-AF29 ->  | AT29: =INDEX(MasterTable[],MATCH(Simulator!$E34,MasterTable[P/N],0),COLUMN(MasterTable['# of Die])) ->  | AU29: =AL29 ->  | AV29: =INDEX(Tj_to_Vf6[],MATCH(Simulator!$I$8,Tj_to_Vf6[Vf],1),COLUMN(Tj_to_Vf6[Vf])) -> -0.5 | AW29: =AU29+AV29*AT29 ->  | AX29: =IF(AND(Simulator!$I$8=25,Simulator!$N$14=Simulator!H34),AF29,AR29) -> 
B30: H12 | C30: =IF(Simulator!$D$10="Case",Simulator!$I$8,M30) -> 25 | D30: =Simulator!$N$14*AR30/1000 ->  | E30: =INDEX(MasterTable[],MATCH(Simulator!E35,MasterTable[P/N],0),COLUMN(MasterTable[Thermal Resistance])) ->  | F30: =C30+D30*E30 ->  | H30: =IF(Simulator!$D$10="Case",F30,Simulator!$I$8) ->  | I30: =Simulator!$N$14*AW30/1000 ->  | J30: =E30 ->  | K30: =H30-I30*J30 ->  | M30: =IF(Simulator!$D$10="Case",Simulator!$I$8,K30) -> 25 | N30: =IF(Simulator!$D$10="Case",H30,Simulator!$I$8) ->  | O30: =IF(#REF!="Tj",N30,M30) ->  | Q30: =INDEX(MasterTable[],MATCH(Simulator!E35,MasterTable[P/N],0),COLUMN(MasterTable[Typical Lumens])) ->  | R30: =INDEX(MasterTable[],MATCH(Simulator!$E35,MasterTable[P/N],0),COLUMN(MasterTable[I^3])) ->  | S30: =INDEX(MasterTable[],MATCH(Simulator!$E35,MasterTable[P/N],0),COLUMN(MasterTable[I^2])) ->  | T30: =INDEX(MasterTable[],MATCH(Simulator!$E35,MasterTable[P/N],0),COLUMN(MasterTable[I])) ->  | U30: =INDEX(MasterTable[],MATCH(Simulator!$E35,MasterTable[P/N],0),COLUMN(MasterTable[I0])) ->  | V30: =IF(Simulator!$N$14=Simulator!H35,1,S30*Simulator!$N$14^2+T30*Simulator!$N$14+U30) ->  | W30: =INDEX(MasterTable[],MATCH(Simulator!$E35,MasterTable[P/N],0),COLUMN(MasterTable[F^4])) ->  | X30: =INDEX(MasterTable[],MATCH(Simulator!$E35,MasterTable[P/N],0),COLUMN(MasterTable[F^3])) ->  | Y30: =INDEX(MasterTable[],MATCH(Simulator!$E35,MasterTable[P/N],0),COLUMN(MasterTable[F^2])) ->  | Z30: =INDEX(MasterTable[],MATCH(Simulator!$E35,MasterTable[P/N],0),COLUMN(MasterTable[F])) ->  | AA30: =INDEX(MasterTable[],MATCH(Simulator!$E35,MasterTable[P/N],0),COLUMN(MasterTable[F0])) ->  | AB30: =IF(Simulator!$I$8=85,AE30,W30*M30^4+X30*M30^3+Y30*M30^2+Z30*M30+AA30) ->  | AC30: =Q30*V30*AB30 ->  | AD30: =IF(AND(Simulator!$I$8=85,Simulator!$N$14=Simulator!H35),Q30*AE30,AC30) ->  | AE30: =VLOOKUP(MID(Simulator!E35,6,3),Data!AI40:AJ50,2,FALSE) ->  | AF30: =INDEX(MasterTable[],MATCH(Simulator!$E35,MasterTable[P/N],0),COLUMN(MasterTable[Typical Voltage])) ->  | AG30: =INDEX(MasterTable[],MATCH(Simulator!$E35,MasterTable[P/N],0),COLUMN(MasterTable[V^4])) ->  | AH30: =INDEX(MasterTable[],MATCH(Simulator!$E35,MasterTable[P/N],0),COLUMN(MasterTable[V^3])) ->  | AI30: =INDEX(MasterTable[],MATCH(Simulator!$E35,MasterTable[P/N],0),COLUMN(MasterTable[V^2])) ->  | AJ30: =INDEX(MasterTable[],MATCH(Simulator!$E35,MasterTable[P/N],0),COLUMN(MasterTable[V])) ->  | AK30: =INDEX(MasterTable[],MATCH(Simulator!$E35,MasterTable[P/N],0),COLUMN(MasterTable[V0])) ->  | AL30: =AG30*Simulator!$N$14^4+AH30*Simulator!$N$14^3+AI30*Simulator!$N$14^2+AJ30*Simulator!$N$14+AK30 ->  | AM30: =INDEX(MasterTable[],MATCH(Simulator!$E35,MasterTable[P/N],0),COLUMN(MasterTable[T^3])) ->  | AN30: =INDEX(MasterTable[],MATCH(Simulator!$E35,MasterTable[P/N],0),COLUMN(MasterTable[T^2])) ->  | AO30: =INDEX(MasterTable[],MATCH(Simulator!$E35,MasterTable[P/N],0),COLUMN(MasterTable[T])) ->  | AP30: =INDEX(MasterTable[],MATCH(Simulator!$E35,MasterTable[P/N],0),COLUMN(MasterTable[T0])) ->  | AQ30: =AM30*M30^3+AN30*M30^2+AO30*M30+AP30 ->  | AR30: =AL30+AQ30-AF30 ->  | AT30: =INDEX(MasterTable[],MATCH(Simulator!$E35,MasterTable[P/N],0),COLUMN(MasterTable['# of Die])) ->  | AU30: =AL30 ->  | AV30: =INDEX(Tj_to_Vf6[],MATCH(Simulator!$I$8,Tj_to_Vf6[Vf],1),COLUMN(Tj_to_Vf6[Vf])) -> -0.5 | AW30: =AU30+AV30*AT30 ->  | AX30: =IF(AND(Simulator!$I$8=25,Simulator!$N$14=Simulator!H35),AF30,AR30) -> 
B31: H15 | C31: =IF(Simulator!$D$10="Case",Simulator!$I$8,M31) -> 25 | D31: =Simulator!$N$14*AR31/1000 ->  | E31: =INDEX(MasterTable[],MATCH(Simulator!E36,MasterTable[P/N],0),COLUMN(MasterTable[Thermal Resistance])) ->  | F31: =C31+D31*E31 ->  | H31: =IF(Simulator!$D$10="Case",F31,Simulator!$I$8) ->  | I31: =Simulator!$N$14*AW31/1000 ->  | J31: =E31 ->  | K31: =H31-I31*J31 ->  | M31: =IF(Simulator!$D$10="Case",Simulator!$I$8,K31) -> 25 | N31: =IF(Simulator!$D$10="Case",H31,Simulator!$I$8) ->  | O31: =IF(#REF!="Tj",N31,M31) ->  | Q31: =INDEX(MasterTable[],MATCH(Simulator!E36,MasterTable[P/N],0),COLUMN(MasterTable[Typical Lumens])) ->  | R31: =INDEX(MasterTable[],MATCH(Simulator!$E36,MasterTable[P/N],0),COLUMN(MasterTable[I^3])) ->  | S31: =INDEX(MasterTable[],MATCH(Simulator!$E36,MasterTable[P/N],0),COLUMN(MasterTable[I^2])) ->  | T31: =INDEX(MasterTable[],MATCH(Simulator!$E36,MasterTable[P/N],0),COLUMN(MasterTable[I])) ->  | U31: =INDEX(MasterTable[],MATCH(Simulator!$E36,MasterTable[P/N],0),COLUMN(MasterTable[I0])) ->  | V31: =IF(Simulator!$N$14=Simulator!H36,1,S31*Simulator!$N$14^2+T31*Simulator!$N$14+U31) ->  | W31: =INDEX(MasterTable[],MATCH(Simulator!$E36,MasterTable[P/N],0),COLUMN(MasterTable[F^4])) ->  | X31: =INDEX(MasterTable[],MATCH(Simulator!$E36,MasterTable[P/N],0),COLUMN(MasterTable[F^3])) ->  | Y31: =INDEX(MasterTable[],MATCH(Simulator!$E36,MasterTable[P/N],0),COLUMN(MasterTable[F^2])) ->  | Z31: =INDEX(MasterTable[],MATCH(Simulator!$E36,MasterTable[P/N],0),COLUMN(MasterTable[F])) ->  | AA31: =INDEX(MasterTable[],MATCH(Simulator!$E36,MasterTable[P/N],0),COLUMN(MasterTable[F0])) ->  | AB31: =IF(Simulator!$I$8=85,AE31,W31*M31^4+X31*M31^3+Y31*M31^2+Z31*M31+AA31) ->  | AC31: =Q31*V31*AB31 ->  | AD31: =IF(AND(Simulator!$I$8=85,Simulator!$N$14=Simulator!H36),Q31*AE31,AC31) ->  | AE31: =VLOOKUP(MID(Simulator!E36,6,3),Data!AL40:AM50,2,FALSE) ->  | AF31: =INDEX(MasterTable[],MATCH(Simulator!$E36,MasterTable[P/N],0),COLUMN(MasterTable[Typical Voltage])) ->  | AG31: =INDEX(MasterTable[],MATCH(Simulator!$E36,MasterTable[P/N],0),COLUMN(MasterTable[V^4])) ->  | AH31: =INDEX(MasterTable[],MATCH(Simulator!$E36,MasterTable[P/N],0),COLUMN(MasterTable[V^3])) ->  | AI31: =INDEX(MasterTable[],MATCH(Simulator!$E36,MasterTable[P/N],0),COLUMN(MasterTable[V^2])) ->  | AJ31: =INDEX(MasterTable[],MATCH(Simulator!$E36,MasterTable[P/N],0),COLUMN(MasterTable[V])) ->  | AK31: =INDEX(MasterTable[],MATCH(Simulator!$E36,MasterTable[P/N],0),COLUMN(MasterTable[V0])) ->  | AL31: =AG31*Simulator!$N$14^4+AH31*Simulator!$N$14^3+AI31*Simulator!$N$14^2+AJ31*Simulator!$N$14+AK31 ->  | AM31: =INDEX(MasterTable[],MATCH(Simulator!$E36,MasterTable[P/N],0),COLUMN(MasterTable[T^3])) ->  | AN31: =INDEX(MasterTable[],MATCH(Simulator!$E36,MasterTable[P/N],0),COLUMN(MasterTable[T^2])) ->  | AO31: =INDEX(MasterTable[],MATCH(Simulator!$E36,MasterTable[P/N],0),COLUMN(MasterTable[T])) ->  | AP31: =INDEX(MasterTable[],MATCH(Simulator!$E36,MasterTable[P/N],0),COLUMN(MasterTable[T0])) ->  | AQ31: =AM31*M31^3+AN31*M31^2+AO31*M31+AP31 ->  | AR31: =AL31+AQ31-AF31 ->  | AT31: =INDEX(MasterTable[],MATCH(Simulator!$E36,MasterTable[P/N],0),COLUMN(MasterTable['# of Die])) ->  | AU31: =AL31 ->  | AV31: =INDEX(Tj_to_Vf6[],MATCH(Simulator!$I$8,Tj_to_Vf6[Vf],1),COLUMN(Tj_to_Vf6[Vf])) -> -0.5 | AW31: =AU31+AV31*AT31 ->  | AX31: =IF(AND(Simulator!$I$8=25,Simulator!$N$14=Simulator!H36),AF31,AR31) -> 
C33: Converting Tc to Tj | H33: Converting Tj to Tc | Q33: Calculating Flux | AF33: Calculating Voltage w/ Tc | AU33: Calculating Voltage w/ Tj
C34: Tj = Tc + Power*Thermal Resistance | H34: Tc = Tj - Power*Thermal Resistance | Q34: F@Tc&I = Ft*Fr@I*Fr@Tc | AF34: Vf@Tc&I = Vf@I + Vf@Tc-Vft | AU34: Vf@Tj&I = Vf@I + Vf@Tj Modifier
C35: Tc | D35: Power | E35: Thermal Resistance | F35: Tc>>Tj | H35: Tj | I35: Power | J35: Thermal Resistance | K35: Tj>>Tc | M35: Tc | N35: Tj | O35: =IF(Simulator!$D$10="Case","Tj","Tc") -> Tj | Q35: Ft | R35: Fr@I Eqn | V35: Fr@I | X35: Fr@Tc Eqn | AB35: Fr@Tc | AC35: F@Tc&I | AE35: 85 DC Factor | AF35: Vft | AH35: Vf@I Eqn | AL35: Vf@I | AM35: Vf@Tc Eqn | AQ35: Vf@Tc | AR35: Vf@Tc&I | AT35: # of Die | AU35: Vf@I | AV35: Vf@Tj Modifier, per Die | AW35: Vf@Tj&I | AX35: Voltage Report
B36: V4 HD | C36: =IF(Simulator!$D$10="Case",Simulator!$I$8,M36) -> 25 | D36: =Simulator!$N$14*AR36/1000 -> 9.016230084 | E36: =INDEX(MasterTable[],MATCH(Simulator!E38,MasterTable[P/N],0),COLUMN(MasterTable[Thermal Resistance])) -> 0.72 | F36: =C36+D36*E36 -> 31.49168566 | H36: =IF(Simulator!$D$10="Case",F36,Simulator!$I$8) -> 31.49168566 | I36: =Simulator!$N$14*AW36/1000 -> 7.626583458 | J36: =E36 -> 0.72 | K36: =H36-I36*J36 -> 26.00054557 | M36: =IF(Simulator!$D$10="Case",Simulator!$I$8,K36) -> 25 | N36: =IF(Simulator!$D$10="Case",H36,Simulator!$I$8) -> 31.49168566 | O36: =IF(#REF!="Tj",N36,M36) ->  | Q36: =INDEX(MasterTable[],MATCH(Simulator!E38,MasterTable[P/N],0),COLUMN(MasterTable[Typical Lumens])) -> 765 | R36: =INDEX(MasterTable[],MATCH(Simulator!$E38,MasterTable[P/N],0),COLUMN(MasterTable[I^3])) -> 4.3422e-09 | S36: =INDEX(MasterTable[],MATCH(Simulator!$E38,MasterTable[P/N],0),COLUMN(MasterTable[I^2])) -> -5.994e-06 | T36: =INDEX(MasterTable[],MATCH(Simulator!$E38,MasterTable[P/N],0),COLUMN(MasterTable[I])) -> 0.0066293 | U36: =INDEX(MasterTable[],MATCH(Simulator!$E38,MasterTable[P/N],0),COLUMN(MasterTable[I0])) -> -1e-07 | V36: =R36*Simulator!$N$14^3+S36*Simulator!$N$14^2+T36*Simulator!$N$14+U36 -> 1.305804073 | W36: =INDEX(MasterTable[],MATCH(Simulator!$E38,MasterTable[P/N],0),COLUMN(MasterTable[F^4])) -> 0 | X36: =INDEX(MasterTable[],MATCH(Simulator!$E38,MasterTable[P/N],0),COLUMN(MasterTable[F^3])) -> -2.36e-08 | Y36: =INDEX(MasterTable[],MATCH(Simulator!$E38,MasterTable[P/N],0),COLUMN(MasterTable[F^2])) -> -1.814e-07 | Z36: =INDEX(MasterTable[],MATCH(Simulator!$E38,MasterTable[P/N],0),COLUMN(MasterTable[F])) -> -0.0014753277 | AA36: =INDEX(MasterTable[],MATCH(Simulator!$E38,MasterTable[P/N],0),COLUMN(MasterTable[F0])) -> 1.028029267 | AB36: =IF(Simulator!$I$8=85,AE36,W36*M36^4+X36*M36^3+Y36*M36^2+Z36*M36+AA36) -> 0.9906639495 | AC36: =Q36*V36*AB36 -> 989.6139603 | AD36: =IF(AND(Simulator!$I$8=85,Simulator!$N$14=Simulator!H38),Q36*AE36,AC36) -> 989.6139603 | AE36: =VLOOKUP(MID(Simulator!E38,6,3),Data!AB40:AC50,2,FALSE) -> 0.88 | AF36: =INDEX(MasterTable[],MATCH(Simulator!$E38,MasterTable[P/N],0),COLUMN(MasterTable[Typical Voltage])) -> 36.4 | AG36: =INDEX(MasterTable[],MATCH(Simulator!$E38,MasterTable[P/N],0),COLUMN(MasterTable[V^4])) -> 0 | AH36: =INDEX(MasterTable[],MATCH(Simulator!$E38,MasterTable[P/N],0),COLUMN(MasterTable[V^3])) -> 4.51e-08 | AI36: =INDEX(MasterTable[],MATCH(Simulator!$E38,MasterTable[P/N],0),COLUMN(MasterTable[V^2])) -> -4.52437e-05 | AJ36: =INDEX(MasterTable[],MATCH(Simulator!$E38,MasterTable[P/N],0),COLUMN(MasterTable[V])) -> 0.0344808031 | AK36: =INDEX(MasterTable[],MATCH(Simulator!$E38,MasterTable[P/N],0),COLUMN(MasterTable[V0])) -> 31.48461305 | AL36: =AG36*Simulator!$N$14^4+AH36*Simulator!$N$14^3+AI36*Simulator!$N$14^2+AJ36*Simulator!$N$14+AK36 -> 37.77743107 | AM36: =INDEX(MasterTable[],MATCH(Simulator!$E38,MasterTable[P/N],0),COLUMN(MasterTable[T^3])) -> -4.952e-07 | AN36: =INDEX(MasterTable[],MATCH(Simulator!$E38,MasterTable[P/N],0),COLUMN(MasterTable[T^2])) -> 0.0001442683 | AO36: =INDEX(MasterTable[],MATCH(Simulator!$E38,MasterTable[P/N],0),COLUMN(MasterTable[T])) -> -0.0265616718 | AP36: =INDEX(MasterTable[],MATCH(Simulator!$E38,MasterTable[P/N],0),COLUMN(MasterTable[T0])) -> 36.77180589 | AQ36: =AM36*M36^3+AN36*M36^2+AO36*M36+AP36 -> 36.19019428 | AR36: =AL36+AQ36-AF36 -> 37.56762535 | AT36: =INDEX(MasterTable[],MATCH(Simulator!$E38,MasterTable[P/N],0),COLUMN(MasterTable['# of Die])) -> 12 | AU36: =AL36 -> 37.77743107 | AV36: =INDEX(Tj_to_Vf6[],MATCH(Simulator!$I$8,Tj_to_Vf6[Vf],1),COLUMN(Tj_to_Vf6[Vf])) -> -0.5 | AW36: =AU36+AV36*AT36 -> 31.77743107 | AX36: =IF(AND(Simulator!$I$8=25,Simulator!$N$14=Simulator!H38),AF36,AR36) -> 37.56762535
B37: V6 HD | C37: =IF(Simulator!$D$10="Case",Simulator!$I$8,M37) -> 25 | D37: =Simulator!$N$14*AR37/1000 -> 8.610264891 | E37: =INDEX(MasterTable[],MATCH(Simulator!E39,MasterTable[P/N],0),COLUMN(MasterTable[Thermal Resistance])) -> 0.36 | F37: =C37+D37*E37 -> 28.09969536 | H37: =IF(Simulator!$D$10="Case",F37,Simulator!$I$8) -> 28.09969536 | I37: =Simulator!$N$14*AW37/1000 -> 5.486130027 | J37: =E37 -> 0.36 | K37: =H37-I37*J37 -> 26.12468855 | M37: =IF(Simulator!$D$10="Case",Simulator!$I$8,K37) -> 25 | N37: =IF(Simulator!$D$10="Case",H37,Simulator!$I$8) -> 28.09969536 | O37: =IF(#REF!="Tj",N37,M37) ->  | Q37: =INDEX(MasterTable[],MATCH(Simulator!E39,MasterTable[P/N],0),COLUMN(MasterTable[Typical Lumens])) -> 1587 | R37: =INDEX(MasterTable[],MATCH(Simulator!$E39,MasterTable[P/N],0),COLUMN(MasterTable[I^3])) -> 7.1311e-10 | S37: =INDEX(MasterTable[],MATCH(Simulator!$E39,MasterTable[P/N],0),COLUMN(MasterTable[I^2])) -> -1.6308e-06 | T37: =INDEX(MasterTable[],MATCH(Simulator!$E39,MasterTable[P/N],0),COLUMN(MasterTable[I])) -> 0.0033419 | U37: =INDEX(MasterTable[],MATCH(Simulator!$E39,MasterTable[P/N],0),COLUMN(MasterTable[I0])) -> -1e-07 | V37: =R37*Simulator!$N$14^3+S37*Simulator!$N$14^2+T37*Simulator!$N$14+U37 -> 0.7179798526 | W37: =INDEX(MasterTable[],MATCH(Simulator!$E39,MasterTable[P/N],0),COLUMN(MasterTable[F^4])) -> 0 | X37: =INDEX(MasterTable[],MATCH(Simulator!$E39,MasterTable[P/N],0),COLUMN(MasterTable[F^3])) -> -6.6e-09 | Y37: =INDEX(MasterTable[],MATCH(Simulator!$E39,MasterTable[P/N],0),COLUMN(MasterTable[F^2])) -> -3.8314e-06 | Z37: =INDEX(MasterTable[],MATCH(Simulator!$E39,MasterTable[P/N],0),COLUMN(MasterTable[F])) -> -0.0013420341 | AA37: =INDEX(MasterTable[],MATCH(Simulator!$E39,MasterTable[P/N],0),COLUMN(MasterTable[F0])) -> 1.023896641 | AB37: =IF(Simulator!$I$8=85,AE37,W37*M37^4+X37*M37^3+Y37*M37^2+Z37*M37+AA37) -> 0.9878480388 | AC37: =Q37*V37*AB37 -> 1125.587668 | AD37: =IF(AND(Simulator!$I$8=85,Simulator!$N$14=Simulator!H39),Q37*AE37,AC37) -> 1125.587668 | AE37: =VLOOKUP(MID(Simulator!E39,6,3),Data!AF40:AG50,2,FALSE) -> 0.88 | AF37: =INDEX(MasterTable[],MATCH(Simulator!$E39,MasterTable[P/N],0),COLUMN(MasterTable[Typical Voltage])) -> 36.4 | AG37: =INDEX(MasterTable[],MATCH(Simulator!$E39,MasterTable[P/N],0),COLUMN(MasterTable[V^4])) -> 0 | AH37: =INDEX(MasterTable[],MATCH(Simulator!$E39,MasterTable[P/N],0),COLUMN(MasterTable[V^3])) -> 7.1e-09 | AI37: =INDEX(MasterTable[],MATCH(Simulator!$E39,MasterTable[P/N],0),COLUMN(MasterTable[V^2])) -> -1.48731e-05 | AJ37: =INDEX(MasterTable[],MATCH(Simulator!$E39,MasterTable[P/N],0),COLUMN(MasterTable[V])) -> 0.0210941823 | AK37: =INDEX(MasterTable[],MATCH(Simulator!$E39,MasterTable[P/N],0),COLUMN(MasterTable[V0])) -> 30.55481152 | AL37: =AG37*Simulator!$N$14^4+AH37*Simulator!$N$14^3+AI37*Simulator!$N$14^2+AJ37*Simulator!$N$14+AK37 -> 34.85887511 | AM37: =INDEX(MasterTable[],MATCH(Simulator!$E39,MasterTable[P/N],0),COLUMN(MasterTable[T^3])) -> -2.973e-07 | AN37: =INDEX(MasterTable[],MATCH(Simulator!$E39,MasterTable[P/N],0),COLUMN(MasterTable[T^2])) -> 0.0001400204 | AO37: =INDEX(MasterTable[],MATCH(Simulator!$E39,MasterTable[P/N],0),COLUMN(MasterTable[T])) -> -0.0347138177 | AP37: =INDEX(MasterTable[],MATCH(Simulator!$E39,MasterTable[P/N],0),COLUMN(MasterTable[T0])) -> 38.20220661 | AQ37: =AM37*M37^3+AN37*M37^2+AO37*M37+AP37 -> 37.4172286 | AR37: =AL37+AQ37-AF37 -> 35.87610371 | AT37: =INDEX(MasterTable[],MATCH(Simulator!$E39,MasterTable[P/N],0),COLUMN(MasterTable['# of Die])) -> 24 | AU37: =AL37 -> 34.85887511 | AV37: =INDEX(Tj_to_Vf6[],MATCH(Simulator!$I$8,Tj_to_Vf6[Vf],1),COLUMN(Tj_to_Vf6[Vf])) -> -0.5 | AW37: =AU37+AV37*AT37 -> 22.85887511 | AX37: =IF(AND(Simulator!$I$8=25,Simulator!$N$14=Simulator!H39),AF37,AR37) -> 35.87610371
B38: V9 HD | C38: =IF(Simulator!$D$10="Case",Simulator!$I$8,M38) -> 25 | D38: =Simulator!$N$14*AR38/1000 -> 8.057790407 | E38: =INDEX(MasterTable[],MATCH(Simulator!E40,MasterTable[P/N],0),COLUMN(MasterTable[Thermal Resistance])) -> 0.18 | F38: =C38+D38*E38 -> 26.45040227 | H38: =IF(Simulator!$D$10="Case",F38,Simulator!$I$8) -> 26.45040227 | I38: =Simulator!$N$14*AW38/1000 -> 2.297436288 | J38: =E38 -> 0.18 | K38: =H38-I38*J38 -> 26.03686374 | M38: =IF(Simulator!$D$10="Case",Simulator!$I$8,K38) -> 25 | N38: =IF(Simulator!$D$10="Case",H38,Simulator!$I$8) -> 26.45040227 | O38: =IF(#REF!="Tj",N38,M38) ->  | Q38: =INDEX(MasterTable[],MATCH(Simulator!E40,MasterTable[P/N],0),COLUMN(MasterTable[Typical Lumens])) -> 3417 | R38: =INDEX(MasterTable[],MATCH(Simulator!$E40,MasterTable[P/N],0),COLUMN(MasterTable[I^3])) -> 2.183e-11 | S38: =INDEX(MasterTable[],MATCH(Simulator!$E40,MasterTable[P/N],0),COLUMN(MasterTable[I^2])) -> -2.7159e-07 | T38: =INDEX(MasterTable[],MATCH(Simulator!$E40,MasterTable[P/N],0),COLUMN(MasterTable[I])) -> 0.0016087 | U38: =INDEX(MasterTable[],MATCH(Simulator!$E40,MasterTable[P/N],0),COLUMN(MasterTable[I0])) -> -1e-07 | V38: =R38*Simulator!$N$14^3+S38*Simulator!$N$14^2+T38*Simulator!$N$14+U38 -> 0.3707460939 | W38: =INDEX(MasterTable[],MATCH(Simulator!$E40,MasterTable[P/N],0),COLUMN(MasterTable[F^4])) -> 0 | X38: =INDEX(MasterTable[],MATCH(Simulator!$E40,MasterTable[P/N],0),COLUMN(MasterTable[F^3])) -> 4.31e-08 | Y38: =INDEX(MasterTable[],MATCH(Simulator!$E40,MasterTable[P/N],0),COLUMN(MasterTable[F^2])) -> -1.44669e-05 | Z38: =INDEX(MasterTable[],MATCH(Simulator!$E40,MasterTable[P/N],0),COLUMN(MasterTable[F])) -> -0.0007592998 | AA38: =INDEX(MasterTable[],MATCH(Simulator!$E40,MasterTable[P/N],0),COLUMN(MasterTable[F0])) -> 1.017667611 | AB38: =IF(Simulator!$I$8=85,AE38,W38*M38^4+X38*M38^3+Y38*M38^2+Z38*M38+AA38) -> 0.9903167409 | AC38: =Q38*V38*AB38 -> 1254.572269 | AD38: =IF(AND(Simulator!$I$8=85,Simulator!$N$14=Simulator!H40),Q38*AE38,AC38) -> 1254.572269 | AE38: =VLOOKUP(MID(Simulator!E40,6,3),Data!AI40:AJ50,2,FALSE) -> 0.88 | AF38: =INDEX(MasterTable[],MATCH(Simulator!$E40,MasterTable[P/N],0),COLUMN(MasterTable[Typical Voltage])) -> 36.4 | AG38: =INDEX(MasterTable[],MATCH(Simulator!$E40,MasterTable[P/N],0),COLUMN(MasterTable[V^4])) -> -5e-12 | AH38: =INDEX(MasterTable[],MATCH(Simulator!$E40,MasterTable[P/N],0),COLUMN(MasterTable[V^3])) -> 1e-08 | AI38: =INDEX(MasterTable[],MATCH(Simulator!$E40,MasterTable[P/N],0),COLUMN(MasterTable[V^2])) -> -1e-05 | AJ38: =INDEX(MasterTable[],MATCH(Simulator!$E40,MasterTable[P/N],0),COLUMN(MasterTable[V])) -> 0.0118 | AK38: =INDEX(MasterTable[],MATCH(Simulator!$E40,MasterTable[P/N],0),COLUMN(MasterTable[V0])) -> 31.195 | AL38: =AG38*Simulator!$N$14^4+AH38*Simulator!$N$14^3+AI38*Simulator!$N$14^2+AJ38*Simulator!$N$14+AK38 -> 33.5726512 | AM38: =INDEX(MasterTable[],MATCH(Simulator!$E40,MasterTable[P/N],0),COLUMN(MasterTable[T^3])) -> -4.467e-07 | AN38: =INDEX(MasterTable[],MATCH(Simulator!$E40,MasterTable[P/N],0),COLUMN(MasterTable[T^2])) -> 0.0001202214 | AO38: =INDEX(MasterTable[],MATCH(Simulator!$E40,MasterTable[P/N],0),COLUMN(MasterTable[T])) -> -0.0225191091 | AP38: =INDEX(MasterTable[],MATCH(Simulator!$E40,MasterTable[P/N],0),COLUMN(MasterTable[T0])) -> 36.89629453 | AQ38: =AM38*M38^3+AN38*M38^2+AO38*M38+AP38 -> 36.40147549 | AR38: =AL38+AQ38-AF38 -> 33.57412669 | AT38: =INDEX(MasterTable[],MATCH(Simulator!$E40,MasterTable[P/N],0),COLUMN(MasterTable['# of Die])) -> 48 | AU38: =AL38 -> 33.5726512 | AV38: =INDEX(Tj_to_Vf6[],MATCH(Simulator!$I$8,Tj_to_Vf6[Vf],1),COLUMN(Tj_to_Vf6[Vf])) -> -0.5 | AW38: =AU38+AV38*AT38 -> 9.5726512 | AX38: =IF(AND(Simulator!$I$8=25,Simulator!$N$14=Simulator!H40),AF38,AR38) -> 33.57412669
A41: Calculations using Current Input | C41: Converting Tc to Tj | H41: Converting Tj to Tc | Q41: Calculating Flux | AF41: Calculating Voltage w/ Tc | AU41: Calculating Voltage w/ Tj
C42: Tj = Tc + Power*Thermal Resistance | H42: Tc = Tj - Power*Thermal Resistance | Q42: F@Tc&I = Ft*Fr@I*Fr@Tc | AF42: Vf@Tc&I = Vf@I + Vf@Tc-Vft | AU42: Vf@Tj&I = Vf@I + Vf@Tj Modifier | AZ42: Typical Temperature Coefficient of Forward Voltage
C43: Tc | D43: Power | E43: Thermal Resistance | F43: Tc>>Tj | H43: Tj | I43: Power | J43: Thermal Resistance | K43: Tj>>Tc | M43: Tc | N43: Tj | O43: =IF(Simulator!$D$10="Case","Tj","Tc") -> Tj | Q43: Ft | R43: Fr@I Eqn | V43: Fr@I | X43: Fr@Tc Eqn | AB43: Fr@Tc | AC43: F@Tc&I | AE43: 85 DC Factor | AF43: Vft | AH43: Vf@I Eqn | AL43: Vf@I | AM43: Vf@Tc Eqn | AQ43: Vf@Tc | AR43: Vf@Tc&I | AT43: # of Die | AU43: Vf@I | AV43: Vf@Tj Modifier, per Die | AW43: Vf@Tj&I | AX43: Voltage Report | AZ43: ∆Vf/∆T (mV/ºC)
B44: V8-D | C44: =IF(Simulator!$D$10="Case",Simulator!$I$8,M44) -> 25 | D44: =Simulator!$N$14*AR44/1000 -> 4.052904115 | E44: =INDEX(MasterTable[],MATCH(Simulator!E42,MasterTable[P/N],0),COLUMN(MasterTable[Thermal Resistance])) -> 0.49 | F44: =C44+D44*E44 -> 26.98592302 | H44: =IF(Simulator!$D$10="Case",F44,Simulator!$I$8) -> 26.98592302 | I44: =Simulator!$N$14*AW44/1000 -> 1.172904115 | J44: =E44 -> 0.49 | K44: =H44-I44*J44 -> 26.4112 | M44: =IF(Simulator!$D$10="Case",Simulator!$I$8,K44) -> 25 | N44: =IF(Simulator!$D$10="Case",H44,Simulator!$I$8) -> 26.98592302 | O44: =IF(#REF!="Tj",N44,M44) ->  | Q44: =INDEX(MasterTable[],MATCH(Simulator!E42,MasterTable[P/N],0),COLUMN(MasterTable[Typical Lumens])) -> 999 | R44: =INDEX(MasterTable[],MATCH(Simulator!$E42,MasterTable[P/N],0),COLUMN(MasterTable[I^3])) -> -5.9148e-12 | S44: =INDEX(MasterTable[],MATCH(Simulator!$E42,MasterTable[P/N],0),COLUMN(MasterTable[I^2])) -> -5.1677e-07 | T44: =INDEX(MasterTable[],MATCH(Simulator!$E42,MasterTable[P/N],0),COLUMN(MasterTable[I])) -> 0.0030372 | U44: =INDEX(MasterTable[],MATCH(Simulator!$E42,MasterTable[P/N],0),COLUMN(MasterTable[I0])) -> -1e-07 | V44: =R44*Simulator!$N$14^3+S44*Simulator!$N$14^2+T44*Simulator!$N$14+U44 -> 0.6990801818 | W44: =INDEX(MasterTable[],MATCH(Simulator!$E42,MasterTable[P/N],0),COLUMN(MasterTable[F^4])) -> 0 | X44: =INDEX(MasterTable[],MATCH(Simulator!$E42,MasterTable[P/N],0),COLUMN(MasterTable[F^3])) -> 0 | Y44: =INDEX(MasterTable[],MATCH(Simulator!$E42,MasterTable[P/N],0),COLUMN(MasterTable[F^2])) -> -4e-06 | Z44: =INDEX(MasterTable[],MATCH(Simulator!$E42,MasterTable[P/N],0),COLUMN(MasterTable[F])) -> -0.001 | AA44: =INDEX(MasterTable[],MATCH(Simulator!$E42,MasterTable[P/N],0),COLUMN(MasterTable[F0])) -> 1.0275 | AB44: =IF(Simulator!$I$8=85,AE44,W44*M44^4+X44*M44^3+Y44*M44^2+Z44*M44+AA44) -> 1 | AC44: =Q44*V44*AB44 -> 698.3811016 | AD44: =IF(AND(Simulator!$I$8=85,Simulator!$N$14=Simulator!H42),Q44*AE44,AC44) -> 698.3811016 | AE44: =VLOOKUP(MID(Simulator!E42,6,3),Data!G2:H22,2,FALSE) -> 0.9 | AF44: =INDEX(MasterTable[],MATCH(Simulator!$E42,MasterTable[P/N],0),COLUMN(MasterTable[Typical Voltage])) -> 17.3 | AG44: =INDEX(MasterTable[],MATCH(Simulator!$E42,MasterTable[P/N],0),COLUMN(MasterTable[V^4])) -> 0 | AH44: =INDEX(MasterTable[],MATCH(Simulator!$E42,MasterTable[P/N],0),COLUMN(MasterTable[V^3])) -> 3.6e-09 | AI44: =INDEX(MasterTable[],MATCH(Simulator!$E42,MasterTable[P/N],0),COLUMN(MasterTable[V^2])) -> -5.9802e-06 | AJ44: =INDEX(MasterTable[],MATCH(Simulator!$E42,MasterTable[P/N],0),COLUMN(MasterTable[V])) -> 0.0064073706 | AK44: =INDEX(MasterTable[],MATCH(Simulator!$E42,MasterTable[P/N],0),COLUMN(MasterTable[V0])) -> 15.64402466 | AL44: =AG44*Simulator!$N$14^4+AH44*Simulator!$N$14^3+AI44*Simulator!$N$14^2+AJ44*Simulator!$N$14+AK44 -> 16.88710048 | AM44: =INDEX(MasterTable[],MATCH(Simulator!$E42,MasterTable[P/N],0),COLUMN(MasterTable[T^3])) -> 0 | AN44: =INDEX(MasterTable[],MATCH(Simulator!$E42,MasterTable[P/N],0),COLUMN(MasterTable[T^2])) -> 0 | AO44: =INDEX(MasterTable[],MATCH(Simulator!$E42,MasterTable[P/N],0),COLUMN(MasterTable[T])) -> 0 | AP44: =INDEX(MasterTable[],MATCH(Simulator!$E42,MasterTable[P/N],0),COLUMN(MasterTable[T0])) -> 0 | AQ44: =AZ44*(M44-25)/1000+AF44 -> 17.3 | AR44: =AL44+AQ44-AF44 -> 16.88710048 | AT44: =INDEX(MasterTable[],MATCH(Simulator!$E42,MasterTable[P/N],0),COLUMN(MasterTable['# of Die])) -> 24 | AU44: =AL44 -> 16.88710048 | AV44: =INDEX(Tj_to_Vf6[],MATCH(Simulator!$I$8,Tj_to_Vf6[Vf],1),COLUMN(Tj_to_Vf6[Vf])) -> -0.5 | AW44: =AU44+AV44*AT44 -> 4.887100479 | AX44: =IF(AND(Simulator!$I$8=25,Simulator!$N$14=Simulator!H42),AF44,AR44) -> 16.88710048 | AZ44: -7.38
B45: V8-E | C45: =IF(Simulator!$D$10="Case",Simulator!$I$8,M45) -> 25 | D45: =Simulator!$N$14*AR45/1000 -> 8.478023771 | E45: =INDEX(MasterTable[],MATCH(Simulator!E43,MasterTable[P/N],0),COLUMN(MasterTable[Thermal Resistance])) -> 0.49 | F45: =C45+D45*E45 -> 29.15423165 | H45: =IF(Simulator!$D$10="Case",F45,Simulator!$I$8) -> 29.15423165 | I45: =Simulator!$N$14*AW45/1000 -> 5.598023771 | J45: =E45 -> 0.49 | K45: =H45-I45*J45 -> 26.4112 | M45: =IF(Simulator!$D$10="Case",Simulator!$I$8,K45) -> 25 | N45: =IF(Simulator!$D$10="Case",H45,Simulator!$I$8) -> 29.15423165 | O45: =IF(#REF!="Tj",N45,M45) ->  | Q45: =INDEX(MasterTable[],MATCH(Simulator!E43,MasterTable[P/N],0),COLUMN(MasterTable[Typical Lumens])) -> 1002 | R45: =INDEX(MasterTable[],MATCH(Simulator!$E43,MasterTable[P/N],0),COLUMN(MasterTable[I^3])) -> 5.1208e-10 | S45: =INDEX(MasterTable[],MATCH(Simulator!$E43,MasterTable[P/N],0),COLUMN(MasterTable[I^2])) -> -2.3357e-06 | T45: =INDEX(MasterTable[],MATCH(Simulator!$E43,MasterTable[P/N],0),COLUMN(MasterTable[I])) -> 0.0061036 | U45: =INDEX(MasterTable[],MATCH(Simulator!$E43,MasterTable[P/N],0),COLUMN(MasterTable[I0])) -> -1e-07 | V45: =R45*Simulator!$N$14^3+S45*Simulator!$N$14^2+T45*Simulator!$N$14+U45 -> 1.337406574 | W45: =INDEX(MasterTable[],MATCH(Simulator!$E43,MasterTable[P/N],0),COLUMN(MasterTable[F^4])) -> 0 | X45: =INDEX(MasterTable[],MATCH(Simulator!$E43,MasterTable[P/N],0),COLUMN(MasterTable[F^3])) -> -2.28e-08 | Y45: =INDEX(MasterTable[],MATCH(Simulator!$E43,MasterTable[P/N],0),COLUMN(MasterTable[F^2])) -> 1.829e-07 | Z45: =INDEX(MasterTable[],MATCH(Simulator!$E43,MasterTable[P/N],0),COLUMN(MasterTable[F])) -> -0.0011936561 | AA45: =INDEX(MasterTable[],MATCH(Simulator!$E43,MasterTable[P/N],0),COLUMN(MasterTable[F0])) -> 1.030381484 | AB45: =IF(Simulator!$I$8=85,AE45,W45*M45^4+X45*M45^3+Y45*M45^2+Z45*M45+AA45) -> 1.000298144 | AC45: 1340.480924 | AD45: =IF(AND(Simulator!$I$8=85,Simulator!$N$14=Simulator!H43),Q45*AE45,AC45) -> 1340.480924 | AE45: =VLOOKUP(MID(Simulator!E43,6,3),Data!G3:H23,2,FALSE) -> 0.9 | AF45: =INDEX(MasterTable[],MATCH(Simulator!$E43,MasterTable[P/N],0),COLUMN(MasterTable[Typical Voltage])) -> 34.7 | AG45: =INDEX(MasterTable[],MATCH(Simulator!$E43,MasterTable[P/N],0),COLUMN(MasterTable[V^4])) -> 0 | AH45: =INDEX(MasterTable[],MATCH(Simulator!$E43,MasterTable[P/N],0),COLUMN(MasterTable[V^3])) -> 5.8e-08 | AI45: =INDEX(MasterTable[],MATCH(Simulator!$E43,MasterTable[P/N],0),COLUMN(MasterTable[V^2])) -> -4.79542e-05 | AJ45: =INDEX(MasterTable[],MATCH(Simulator!$E43,MasterTable[P/N],0),COLUMN(MasterTable[V])) -> 0.0262231069 | AK45: =INDEX(MasterTable[],MATCH(Simulator!$E43,MasterTable[P/N],0),COLUMN(MasterTable[V0])) -> 30.99192331 | AL45: =AG45*Simulator!$N$14^4+AH45*Simulator!$N$14^3+AI45*Simulator!$N$14^2+AJ45*Simulator!$N$14+AK45 -> 35.32509905 | AM45: =INDEX(MasterTable[],MATCH(Simulator!$E43,MasterTable[P/N],0),COLUMN(MasterTable[T^3])) -> 0 | AN45: =INDEX(MasterTable[],MATCH(Simulator!$E43,MasterTable[P/N],0),COLUMN(MasterTable[T^2])) -> 0 | AO45: =INDEX(MasterTable[],MATCH(Simulator!$E43,MasterTable[P/N],0),COLUMN(MasterTable[T])) -> 0 | AP45: =INDEX(MasterTable[],MATCH(Simulator!$E43,MasterTable[P/N],0),COLUMN(MasterTable[T0])) -> 0 | AQ45: =AZ45*(M45-25)/1000+AF45 -> 34.7 | AR45: =AL45+AQ45-AF45 -> 35.32509905 | AT45: =INDEX(MasterTable[],MATCH(Simulator!$E43,MasterTable[P/N],0),COLUMN(MasterTable['# of Die])) -> 24 | AU45: =AL45 -> 35.32509905 | AV45: =INDEX(Tj_to_Vf6[],MATCH(Simulator!$I$8,Tj_to_Vf6[Vf],1),COLUMN(Tj_to_Vf6[Vf])) -> -0.5 | AW45: =AU45+AV45*AT45 -> 23.32509905 | AX45: =IF(AND(Simulator!$I$8=25,Simulator!$N$14=Simulator!H43),AF45,AR45) -> 35.32509905 | AZ45: -7.38
B46: V10-B | C46: =IF(Simulator!$D$10="Case",Simulator!$I$8,M46) -> 25 | D46: =Simulator!$N$14*AR46/1000 -> 8.297389769 | E46: =INDEX(MasterTable[],MATCH(Simulator!E44,MasterTable[P/N],0),COLUMN(MasterTable[Thermal Resistance])) -> 0.49075 | F46: =C46+D46*E46 -> 29.07194403 | H46: =IF(Simulator!$D$10="Case",F46,Simulator!$I$8) -> 29.07194403 | I46: =Simulator!$N$14*AW46/1000 -> 3.977389769 | J46: =E46 -> 0.49075 | K46: =H46-I46*J46 -> 27.12004 | M46: =IF(Simulator!$D$10="Case",Simulator!$I$8,K46) -> 25 | N46: =IF(Simulator!$D$10="Case",H46,Simulator!$I$8) -> 29.07194403 | O46: =IF(#REF!="Tj",N46,M46) ->  | Q46: =INDEX(MasterTable[],MATCH(Simulator!E44,MasterTable[P/N],0),COLUMN(MasterTable[Typical Lumens])) -> 1549 | R46: =INDEX(MasterTable[],MATCH(Simulator!$E44,MasterTable[P/N],0),COLUMN(MasterTable[I^3])) -> 6.8448e-10 | S46: =INDEX(MasterTable[],MATCH(Simulator!$E44,MasterTable[P/N],0),COLUMN(MasterTable[I^2])) -> -1.5365e-06 | T46: =INDEX(MasterTable[],MATCH(Simulator!$E44,MasterTable[P/N],0),COLUMN(MasterTable[I])) -> 0.0041148 | U46: =INDEX(MasterTable[],MATCH(Simulator!$E44,MasterTable[P/N],0),COLUMN(MasterTable[I0])) -> -1e-07 | V46: =R46*Simulator!$N$14^3+S46*Simulator!$N$14^2+T46*Simulator!$N$14+U46 -> 0.9085117515 | W46: =INDEX(MasterTable[],MATCH(Simulator!$E44,MasterTable[P/N],0),COLUMN(MasterTable[F^4])) -> 0 | X46: =INDEX(MasterTable[],MATCH(Simulator!$E44,MasterTable[P/N],0),COLUMN(MasterTable[F^3])) -> 0 | Y46: =INDEX(MasterTable[],MATCH(Simulator!$E44,MasterTable[P/N],0),COLUMN(MasterTable[F^2])) -> -3.6592e-06 | Z46: =INDEX(MasterTable[],MATCH(Simulator!$E44,MasterTable[P/N],0),COLUMN(MasterTable[F])) -> -0.0010345506 | AA46: =INDEX(MasterTable[],MATCH(Simulator!$E44,MasterTable[P/N],0),COLUMN(MasterTable[F0])) -> 1.024095626 | AB46: =IF(Simulator!$I$8=85,AE46,W46*M46^4+X46*M46^3+Y46*M46^2+Z46*M46+AA46) -> 0.9959448614 | AC46: 1401.577969 | AD46: =IF(AND(Simulator!$I$8=85,Simulator!$N$14=Simulator!H44),Q46*AE46,AC46) -> 1401.577969 | AE46: =VLOOKUP(MID(Simulator!E44,6,3),Data!G4:H31,2,FALSE) -> 0.9 | AF46: =INDEX(MasterTable[],MATCH(Simulator!$E44,MasterTable[P/N],0),COLUMN(MasterTable[Typical Voltage])) -> 34.8 | AG46: =INDEX(MasterTable[],MATCH(Simulator!$E44,MasterTable[P/N],0),COLUMN(MasterTable[V^4])) -> 0 | AH46: =INDEX(MasterTable[],MATCH(Simulator!$E44,MasterTable[P/N],0),COLUMN(MasterTable[V^3])) -> 9.8e-09 | AI46: =INDEX(MasterTable[],MATCH(Simulator!$E44,MasterTable[P/N],0),COLUMN(MasterTable[V^2])) -> -1.42836e-05 | AJ46: =INDEX(MasterTable[],MATCH(Simulator!$E44,MasterTable[P/N],0),COLUMN(MasterTable[V])) -> 0.0164904477 | AK46: =INDEX(MasterTable[],MATCH(Simulator!$E44,MasterTable[P/N],0),COLUMN(MasterTable[V0])) -> 31.30201008 | AL46: =AG46*Simulator!$N$14^4+AH46*Simulator!$N$14^3+AI46*Simulator!$N$14^2+AJ46*Simulator!$N$14+AK46 -> 34.57245737 | AM46: =INDEX(MasterTable[],MATCH(Simulator!$E44,MasterTable[P/N],0),COLUMN(MasterTable[T^3])) -> 0 | AN46: =INDEX(MasterTable[],MATCH(Simulator!$E44,MasterTable[P/N],0),COLUMN(MasterTable[T^2])) -> 0 | AO46: =INDEX(MasterTable[],MATCH(Simulator!$E44,MasterTable[P/N],0),COLUMN(MasterTable[T])) -> 0 | AP46: =INDEX(MasterTable[],MATCH(Simulator!$E44,MasterTable[P/N],0),COLUMN(MasterTable[T0])) -> 0 | AQ46: =AZ46*(M46-25)/1000+AF46 -> 34.8 | AR46: =AL46+AQ46-AF46 -> 34.57245737 | AT46: =INDEX(MasterTable[],MATCH(Simulator!$E44,MasterTable[P/N],0),COLUMN(MasterTable['# of Die])) -> 36 | AU46: =AL46 -> 34.57245737 | AV46: =INDEX(Tj_to_Vf6[],MATCH(Simulator!$I$8,Tj_to_Vf6[Vf],1),COLUMN(Tj_to_Vf6[Vf])) -> -0.5 | AW46: =AU46+AV46*AT46 -> 16.57245737 | AX46: =IF(AND(Simulator!$I$8=25,Simulator!$N$14=Simulator!H44),AF46,AR46) -> 34.57245737 | AZ46: -16.1
B47: V10-C | C47: =IF(Simulator!$D$10="Case",Simulator!$I$8,M47) -> 25 | D47: =Simulator!$N$14*AR47/1000 -> 8.119488 | E47: =INDEX(MasterTable[],MATCH(Simulator!E45,MasterTable[P/N],0),COLUMN(MasterTable[Thermal Resistance])) -> 0.3703666667 | F47: =C47+D47*E47 -> 28.00718771 | H47: =IF(Simulator!$D$10="Case",F47,Simulator!$I$8) -> 28.00718771 | I47: =Simulator!$N$14*AW47/1000 -> 2.359488 | J47: =E47 -> 0.3703666667 | K47: =H47-I47*J47 -> 27.133312 | M47: =IF(Simulator!$D$10="Case",Simulator!$I$8,K47) -> 25 | N47: =IF(Simulator!$D$10="Case",H47,Simulator!$I$8) -> 28.00718771 | O47: =IF(#REF!="Tj",N47,M47) ->  | Q47: =INDEX(MasterTable[],MATCH(Simulator!E45,MasterTable[P/N],0),COLUMN(MasterTable[Typical Lumens])) -> 2066 | R47: =INDEX(MasterTable[],MATCH(Simulator!$E45,MasterTable[P/N],0),COLUMN(MasterTable[I^3])) -> 2.4598e-10 | S47: =INDEX(MasterTable[],MATCH(Simulator!$E45,MasterTable[P/N],0),COLUMN(MasterTable[I^2])) -> -8.7002e-07 | T47: =INDEX(MasterTable[],MATCH(Simulator!$E45,MasterTable[P/N],0),COLUMN(MasterTable[I])) -> 0.0030842 | U47: =INDEX(MasterTable[],MATCH(Simulator!$E45,MasterTable[P/N],0),COLUMN(MasterTable[I0])) -> -1e-07 | V47: =R47*Simulator!$N$14^3+S47*Simulator!$N$14^2+T47*Simulator!$N$14+U47 -> 0.6934951755 | W47: =INDEX(MasterTable[],MATCH(Simulator!$E45,MasterTable[P/N],0),COLUMN(MasterTable[F^4])) -> 0 | X47: =INDEX(MasterTable[],MATCH(Simulator!$E45,MasterTable[P/N],0),COLUMN(MasterTable[F^3])) -> 0 | Y47: =INDEX(MasterTable[],MATCH(Simulator!$E45,MasterTable[P/N],0),COLUMN(MasterTable[F^2])) -> -3.6592e-06 | Z47: =INDEX(MasterTable[],MATCH(Simulator!$E45,MasterTable[P/N],0),COLUMN(MasterTable[F])) -> -0.0010345506 | AA47: =INDEX(MasterTable[],MATCH(Simulator!$E45,MasterTable[P/N],0),COLUMN(MasterTable[F0])) -> 1.024095626 | AB47: =IF(Simulator!$I$8=85,AE47,W47*M47^4+X47*M47^3+Y47*M47^2+Z47*M47+AA47) -> 0.9959448614 | AC47: 1426.950988 | AD47: =IF(AND(Simulator!$I$8=85,Simulator!$N$14=Simulator!H45),Q47*AE47,AC47) -> 1426.950988 | AE47: =VLOOKUP(MID(Simulator!E45,6,3),Data!G39:H61,2,FALSE) -> 0.9 | AF47: =INDEX(MasterTable[],MATCH(Simulator!$E45,MasterTable[P/N],0),COLUMN(MasterTable[Typical Voltage])) -> 34.8 | AG47: =INDEX(MasterTable[],MATCH(Simulator!$E45,MasterTable[P/N],0),COLUMN(MasterTable[V^4])) -> 0 | AH47: =INDEX(MasterTable[],MATCH(Simulator!$E45,MasterTable[P/N],0),COLUMN(MasterTable[V^3])) -> 0 | AI47: =INDEX(MasterTable[],MATCH(Simulator!$E45,MasterTable[P/N],0),COLUMN(MasterTable[V^2])) -> -3e-06 | AJ47: =INDEX(MasterTable[],MATCH(Simulator!$E45,MasterTable[P/N],0),COLUMN(MasterTable[V])) -> 0.0109 | AK47: =INDEX(MasterTable[],MATCH(Simulator!$E45,MasterTable[P/N],0),COLUMN(MasterTable[V0])) -> 31.388 | AL47: =AG47*Simulator!$N$14^4+AH47*Simulator!$N$14^3+AI47*Simulator!$N$14^2+AJ47*Simulator!$N$14+AK47 -> 33.8312 | AM47: =INDEX(MasterTable[],MATCH(Simulator!$E45,MasterTable[P/N],0),COLUMN(MasterTable[T^3])) -> 0 | AN47: =INDEX(MasterTable[],MATCH(Simulator!$E45,MasterTable[P/N],0),COLUMN(MasterTable[T^2])) -> 0 | AO47: =INDEX(MasterTable[],MATCH(Simulator!$E45,MasterTable[P/N],0),COLUMN(MasterTable[T])) -> 0 | AP47: =INDEX(MasterTable[],MATCH(Simulator!$E45,MasterTable[P/N],0),COLUMN(MasterTable[T0])) -> 0 | AQ47: =AZ47*(M47-25)/1000+AF47 -> 34.8 | AR47: =AL47+AQ47-AF47 -> 33.8312 | AT47: =INDEX(MasterTable[],MATCH(Simulator!$E45,MasterTable[P/N],0),COLUMN(MasterTable['# of Die])) -> 48 | AU47: =AL47 -> 33.8312 | AV47: =INDEX(Tj_to_Vf6[],MATCH(Simulator!$I$8,Tj_to_Vf6[Vf],1),COLUMN(Tj_to_Vf6[Vf])) -> -0.5 | AW47: =AU47+AV47*AT47 -> 9.8312 | AX47: =IF(AND(Simulator!$I$8=25,Simulator!$N$14=Simulator!H45),AF47,AR47) -> 33.8312 | AZ47: -16.1
B48: V13-B | C48: =IF(Simulator!$D$10="Case",Simulator!$I$8,M48) -> 25 | D48: =Simulator!$N$14*AR48/1000 -> 7.986912 | E48: =INDEX(MasterTable[],MATCH(Simulator!E46,MasterTable[P/N],0),COLUMN(MasterTable[Thermal Resistance])) -> 0.2803666667 | F48: 27.23926389 | H48: =IF(Simulator!$D$10="Case",F48,Simulator!$I$8) -> 27.23926389 | I48: =Simulator!$N$14*AW48/1000 -> 0.786912 | J48: 0.2803666667 | K48: 27.01864 | M48: =IF(Simulator!$D$10="Case",Simulator!$I$8,K48) -> 25 | N48: =IF(Simulator!$D$10="Case",H48,Simulator!$I$8) -> 27.23926389 | O48: =IF(#REF!="Tj",N48,M48) ->  | Q48: =INDEX(MasterTable[],MATCH(Simulator!E46,MasterTable[P/N],0),COLUMN(MasterTable[Typical Lumens])) -> 2658.375 | R48: =INDEX(MasterTable[],MATCH(Simulator!$E46,MasterTable[P/N],0),COLUMN(MasterTable[I^3])) -> 1.2045e-10 | S48: =INDEX(MasterTable[],MATCH(Simulator!$E46,MasterTable[P/N],0),COLUMN(MasterTable[I^2])) -> -5.6997e-07 | T48: =INDEX(MasterTable[],MATCH(Simulator!$E46,MasterTable[P/N],0),COLUMN(MasterTable[I])) -> 0.0024671 | U48: =INDEX(MasterTable[],MATCH(Simulator!$E46,MasterTable[P/N],0),COLUMN(MasterTable[I0])) -> -1e-07 | V48: =R48*Simulator!$N$14^3+S48*Simulator!$N$14^2+T48*Simulator!$N$14+U48 -> 0.5609387288 | W48: =INDEX(MasterTable[],MATCH(Simulator!$E46,MasterTable[P/N],0),COLUMN(MasterTable[F^4])) -> 0 | X48: =INDEX(MasterTable[],MATCH(Simulator!$E46,MasterTable[P/N],0),COLUMN(MasterTable[F^3])) -> 0 | Y48: =INDEX(MasterTable[],MATCH(Simulator!$E46,MasterTable[P/N],0),COLUMN(MasterTable[F^2])) -> -3.6592e-06 | Z48: =INDEX(MasterTable[],MATCH(Simulator!$E46,MasterTable[P/N],0),COLUMN(MasterTable[F])) -> -0.0010345506 | AA48: =INDEX(MasterTable[],MATCH(Simulator!$E46,MasterTable[P/N],0),COLUMN(MasterTable[F0])) -> 1.024095626 | AB48: =IF(Simulator!$I$8=85,AE48,W48*M48^4+X48*M48^3+Y48*M48^2+Z48*M48+AA48) -> 0.9959448614 | AC48: 1485.138529 | AD48: =IF(AND(Simulator!$I$8=85,Simulator!$N$14=Simulator!H46),Q48*AE48,AC48) -> 1485.138529 | AE48: =VLOOKUP(MID(Simulator!E46,6,3),Data!K4:L24,2,FALSE) -> 0.9 | AF48: =INDEX(MasterTable[],MATCH(Simulator!$E46,MasterTable[P/N],0),COLUMN(MasterTable[Typical Voltage])) -> 34.8 | AG48: =INDEX(MasterTable[],MATCH(Simulator!$E46,MasterTable[P/N],0),COLUMN(MasterTable[V^4])) -> 0 | AH48: =INDEX(MasterTable[],MATCH(Simulator!$E46,MasterTable[P/N],0),COLUMN(MasterTable[V^3])) -> 0 | AI48: =INDEX(MasterTable[],MATCH(Simulator!$E46,MasterTable[P/N],0),COLUMN(MasterTable[V^2])) -> -2e-06 | AJ48: =INDEX(MasterTable[],MATCH(Simulator!$E46,MasterTable[P/N],0),COLUMN(MasterTable[V])) -> 0.0082 | AK48: =INDEX(MasterTable[],MATCH(Simulator!$E46,MasterTable[P/N],0),COLUMN(MasterTable[V0])) -> 31.426 | AL48: =AG48*Simulator!$N$14^4+AH48*Simulator!$N$14^3+AI48*Simulator!$N$14^2+AJ48*Simulator!$N$14+AK48 -> 33.2788 | AM48: =INDEX(MasterTable[],MATCH(Simulator!$E46,MasterTable[P/N],0),COLUMN(MasterTable[T^3])) -> 0 | AN48: =INDEX(MasterTable[],MATCH(Simulator!$E46,MasterTable[P/N],0),COLUMN(MasterTable[T^2])) -> 0 | AO48: =INDEX(MasterTable[],MATCH(Simulator!$E46,MasterTable[P/N],0),COLUMN(MasterTable[T])) -> 0 | AP48: =INDEX(MasterTable[],MATCH(Simulator!$E46,MasterTable[P/N],0),COLUMN(MasterTable[T0])) -> 0 | AQ48: 34.8 | AR48: 33.2788 | AT48: =INDEX(MasterTable[],MATCH(Simulator!$E46,MasterTable[P/N],0),COLUMN(MasterTable['# of Die])) -> 60 | AU48: 33.2788 | AV48: =INDEX(Tj_to_Vf6[],MATCH(Simulator!$I$8,Tj_to_Vf6[Vf],1),COLUMN(Tj_to_Vf6[Vf])) -> -0.5 | AW48: 3.2788 | AX48: =IF(AND(Simulator!$I$8=25,Simulator!$N$14=Simulator!H46),AF48,AR48) -> 33.2788 | AZ48: -14.1
B49: V13-C | C49: =IF(Simulator!$D$10="Case",Simulator!$I$8,M49) -> 25 | D49: =Simulator!$N$14*AR49/1000 -> 7.8638784 | E49: =INDEX(MasterTable[],MATCH(Simulator!E47,MasterTable[P/N],0),COLUMN(MasterTable[Thermal Resistance])) -> 0.1987333333 | F49: 26.56281477 | H49: =IF(Simulator!$D$10="Case",F49,Simulator!$I$8) -> 26.56281477 | I49: =Simulator!$N$14*AW49/1000 -> -2.2161216 | J49: 0.1987333333 | K49: 27.003232 | M49: =IF(Simulator!$D$10="Case",Simulator!$I$8,K49) -> 25 | N49: =IF(Simulator!$D$10="Case",H49,Simulator!$I$8) -> 26.56281477 | O49: =IF(#REF!="Tj",N49,M49) ->  | Q49: =INDEX(MasterTable[],MATCH(Simulator!E47,MasterTable[P/N],0),COLUMN(MasterTable[Typical Lumens])) -> 3721.725 | R49: =INDEX(MasterTable[],MATCH(Simulator!$E47,MasterTable[P/N],0),COLUMN(MasterTable[I^3])) -> 3.4564e-11 | S49: =INDEX(MasterTable[],MATCH(Simulator!$E47,MasterTable[P/N],0),COLUMN(MasterTable[I^2])) -> -2.7854e-07 | T49: =INDEX(MasterTable[],MATCH(Simulator!$E47,MasterTable[P/N],0),COLUMN(MasterTable[I])) -> 0.0017515 | U49: =INDEX(MasterTable[],MATCH(Simulator!$E47,MasterTable[P/N],0),COLUMN(MasterTable[I0])) -> -1e-07 | V49: =R49*Simulator!$N$14^3+S49*Simulator!$N$14^2+T49*Simulator!$N$14+U49 -> 0.4047938087 | W49: =INDEX(MasterTable[],MATCH(Simulator!$E47,MasterTable[P/N],0),COLUMN(MasterTable[F^4])) -> 0 | X49: =INDEX(MasterTable[],MATCH(Simulator!$E47,MasterTable[P/N],0),COLUMN(MasterTable[F^3])) -> 0 | Y49: =INDEX(MasterTable[],MATCH(Simulator!$E47,MasterTable[P/N],0),COLUMN(MasterTable[F^2])) -> -3.6592e-06 | Z49: =INDEX(MasterTable[],MATCH(Simulator!$E47,MasterTable[P/N],0),COLUMN(MasterTable[F])) -> -0.0010345506 | AA49: =INDEX(MasterTable[],MATCH(Simulator!$E47,MasterTable[P/N],0),COLUMN(MasterTable[F0])) -> 1.024095626 | AB49: =IF(Simulator!$I$8=85,AE49,W49*M49^4+X49*M49^3+Y49*M49^2+Z49*M49+AA49) -> 0.9959448614 | AC49: =Q49*V49*AB49 -> 1500.422045 | AD49: =IF(AND(Simulator!$I$8=85,Simulator!$N$14=Simulator!H47),Q49*AE49,AC49) -> 1500.422045 | AE49: =VLOOKUP(MID(Simulator!E47,6,3),Data!K39:L63,2,FALSE) -> 0.9 | AF49: =INDEX(MasterTable[],MATCH(Simulator!$E47,MasterTable[P/N],0),COLUMN(MasterTable[Typical Voltage])) -> 34.8 | AG49: =INDEX(MasterTable[],MATCH(Simulator!$E47,MasterTable[P/N],0),COLUMN(MasterTable[V^4])) -> 0 | AH49: =INDEX(MasterTable[],MATCH(Simulator!$E47,MasterTable[P/N],0),COLUMN(MasterTable[V^3])) -> 0 | AI49: =INDEX(MasterTable[],MATCH(Simulator!$E47,MasterTable[P/N],0),COLUMN(MasterTable[V^2])) -> -9e-07 | AJ49: =INDEX(MasterTable[],MATCH(Simulator!$E47,MasterTable[P/N],0),COLUMN(MasterTable[V])) -> 0.0058 | AK49: =INDEX(MasterTable[],MATCH(Simulator!$E47,MasterTable[P/N],0),COLUMN(MasterTable[V0])) -> 31.426 | AL49: =AG49*Simulator!$N$14^4+AH49*Simulator!$N$14^3+AI49*Simulator!$N$14^2+AJ49*Simulator!$N$14+AK49 -> 32.76616 | AM49: =INDEX(MasterTable[],MATCH(Simulator!$E47,MasterTable[P/N],0),COLUMN(MasterTable[T^3])) -> 0 | AN49: =INDEX(MasterTable[],MATCH(Simulator!$E47,MasterTable[P/N],0),COLUMN(MasterTable[T^2])) -> 0 | AO49: =INDEX(MasterTable[],MATCH(Simulator!$E47,MasterTable[P/N],0),COLUMN(MasterTable[T])) -> 0 | AP49: =INDEX(MasterTable[],MATCH(Simulator!$E47,MasterTable[P/N],0),COLUMN(MasterTable[T0])) -> 0 | AQ49: 34.8 | AR49: =AL49+AQ49-AF49 -> 32.76616 | AT49: =INDEX(MasterTable[],MATCH(Simulator!$E47,MasterTable[P/N],0),COLUMN(MasterTable['# of Die])) -> 84 | AU49: 32.76616 | AV49: =INDEX(Tj_to_Vf6[],MATCH(Simulator!$I$8,Tj_to_Vf6[Vf],1),COLUMN(Tj_to_Vf6[Vf])) -> -0.5 | AW49: -9.23384 | AX49: =IF(AND(Simulator!$I$8=25,Simulator!$N$14=Simulator!H47),AF49,AR49) -> 32.76616 | AZ49: -14.1
B50: V18-B | C50: =IF(Simulator!$D$10="Case",Simulator!$I$8,M50) -> 25 | D50: =Simulator!$N$14*AR50/1000 -> 7.813880288 | E50: =INDEX(MasterTable[],MATCH(Simulator!E48,MasterTable[P/N],0),COLUMN(MasterTable[Thermal Resistance])) -> 0.1545333333 | F50: 26.20750497 | H50: =IF(Simulator!$D$10="Case",F50,Simulator!$I$8) -> 26.20750497 | I50: =Simulator!$N$14*AW50/1000 -> -6.586119712 | J50: 0.1545333333 | K50: 27.22528 | M50: =IF(Simulator!$D$10="Case",Simulator!$I$8,K50) -> 25 | N50: =IF(Simulator!$D$10="Case",H50,Simulator!$I$8) -> 26.20750497 | O50: =IF(#REF!="Tj",N50,M50) ->  | Q50: =INDEX(MasterTable[],MATCH(Simulator!E48,MasterTable[P/N],0),COLUMN(MasterTable[Typical Lumens])) -> 5324.4 | R50: =INDEX(MasterTable[],MATCH(Simulator!$E48,MasterTable[P/N],0),COLUMN(MasterTable[I^3])) -> 1.1471e-11 | S50: =INDEX(MasterTable[],MATCH(Simulator!$E48,MasterTable[P/N],0),COLUMN(MasterTable[I^2])) -> -1.3314e-07 | T50: =INDEX(MasterTable[],MATCH(Simulator!$E48,MasterTable[P/N],0),COLUMN(MasterTable[I])) -> 0.0012281 | U50: =INDEX(MasterTable[],MATCH(Simulator!$E48,MasterTable[P/N],0),COLUMN(MasterTable[I0])) -> -1e-07 | V50: =R50*Simulator!$N$14^3+S50*Simulator!$N$14^2+T50*Simulator!$N$14+U50 -> 0.2872336111 | W50: =INDEX(MasterTable[],MATCH(Simulator!$E48,MasterTable[P/N],0),COLUMN(MasterTable[F^4])) -> 0 | X50: =INDEX(MasterTable[],MATCH(Simulator!$E48,MasterTable[P/N],0),COLUMN(MasterTable[F^3])) -> 0 | Y50: =INDEX(MasterTable[],MATCH(Simulator!$E48,MasterTable[P/N],0),COLUMN(MasterTable[F^2])) -> -3.6592e-06 | Z50: =INDEX(MasterTable[],MATCH(Simulator!$E48,MasterTable[P/N],0),COLUMN(MasterTable[F])) -> -0.0010345506 | AA50: =INDEX(MasterTable[],MATCH(Simulator!$E48,MasterTable[P/N],0),COLUMN(MasterTable[F0])) -> 1.024095626 | AB50: =IF(Simulator!$I$8=85,AE50,W50*M50^4+X50*M50^3+Y50*M50^2+Z50*M50+AA50) -> 0.9959448614 | AC50: =Q50*V50*AB50 -> 1523.144926 | AD50: =IF(AND(Simulator!$I$8=85,Simulator!$N$14=Simulator!H48),Q50*AE50,AC50) -> 1523.144926 | AE50: =VLOOKUP(MID(Simulator!E48,6,3),Data!N4:O24,2,FALSE) -> 0.9 | AF50: =INDEX(MasterTable[],MATCH(Simulator!$E48,MasterTable[P/N],0),COLUMN(MasterTable[Typical Voltage])) -> 34.8 | AG50: =INDEX(MasterTable[],MATCH(Simulator!$E48,MasterTable[P/N],0),COLUMN(MasterTable[V^4])) -> 0 | AH50: =INDEX(MasterTable[],MATCH(Simulator!$E48,MasterTable[P/N],0),COLUMN(MasterTable[V^3])) -> 1e-10 | AI50: =INDEX(MasterTable[],MATCH(Simulator!$E48,MasterTable[P/N],0),COLUMN(MasterTable[V^2])) -> -6.76e-07 | AJ50: =INDEX(MasterTable[],MATCH(Simulator!$E48,MasterTable[P/N],0),COLUMN(MasterTable[V])) -> 0.0042656252 | AK50: =INDEX(MasterTable[],MATCH(Simulator!$E48,MasterTable[P/N],0),COLUMN(MasterTable[V0])) -> 31.57163969 | AL50: =AG50*Simulator!$N$14^4+AH50*Simulator!$N$14^3+AI50*Simulator!$N$14^2+AJ50*Simulator!$N$14+AK50 -> 32.55783453 | AM50: =INDEX(MasterTable[],MATCH(Simulator!$E48,MasterTable[P/N],0),COLUMN(MasterTable[T^3])) -> 0 | AN50: =INDEX(MasterTable[],MATCH(Simulator!$E48,MasterTable[P/N],0),COLUMN(MasterTable[T^2])) -> 0 | AO50: =INDEX(MasterTable[],MATCH(Simulator!$E48,MasterTable[P/N],0),COLUMN(MasterTable[T])) -> 0 | AP50: =INDEX(MasterTable[],MATCH(Simulator!$E48,MasterTable[P/N],0),COLUMN(MasterTable[T0])) -> 0 | AQ50: 34.8 | AR50: 32.55783453 | AT50: =INDEX(MasterTable[],MATCH(Simulator!$E48,MasterTable[P/N],0),COLUMN(MasterTable['# of Die])) -> 120 | AU50: 32.55783453 | AV50: =INDEX(Tj_to_Vf6[],MATCH(Simulator!$I$8,Tj_to_Vf6[Vf],1),COLUMN(Tj_to_Vf6[Vf])) -> -0.5 | AW50: -27.44216547 | AX50: =IF(AND(Simulator!$I$8=25,Simulator!$N$14=Simulator!H48),AF50,AR50) -> 32.55783453 | AZ50: -14.5
B51: V18-C | C51: =IF(Simulator!$D$10="Case",Simulator!$I$8,M51) -> 25 | D51: =Simulator!$N$14*AR51/1000 -> 7.7156928 | E51: =INDEX(MasterTable[],MATCH(Simulator!E49,MasterTable[P/N],0),COLUMN(MasterTable[Thermal Resistance])) -> 0.1120666667 | F51: 25.86467197 | H51: =IF(Simulator!$D$10="Case",F51,Simulator!$I$8) -> 25.86467197 | I51: =Simulator!$N$14*AW51/1000 -> -11.0043072 | J51: 0.1120666667 | K51: 27.097888 | M51: =IF(Simulator!$D$10="Case",Simulator!$I$8,K51) -> 25 | N51: =IF(Simulator!$D$10="Case",H51,Simulator!$I$8) -> 25.86467197 | O51: =IF(#REF!="Tj",N51,M51) ->  | Q51: =INDEX(MasterTable[],MATCH(Simulator!E49,MasterTable[P/N],0),COLUMN(MasterTable[Typical Lumens])) -> 6921.72 | R51: =INDEX(MasterTable[],MATCH(Simulator!$E49,MasterTable[P/N],0),COLUMN(MasterTable[I^3])) -> -4.3912e-13 | S51: =INDEX(MasterTable[],MATCH(Simulator!$E49,MasterTable[P/N],0),COLUMN(MasterTable[I^2])) -> -6.8373e-08 | T51: =INDEX(MasterTable[],MATCH(Simulator!$E49,MasterTable[P/N],0),COLUMN(MasterTable[I])) -> 0.00092514 | U51: =INDEX(MasterTable[],MATCH(Simulator!$E49,MasterTable[P/N],0),COLUMN(MasterTable[I0])) -> -1e-07 | V51: =R51*Simulator!$N$14^3+S51*Simulator!$N$14^2+T51*Simulator!$N$14+U51 -> 0.2180891448 | W51: =INDEX(MasterTable[],MATCH(Simulator!$E49,MasterTable[P/N],0),COLUMN(MasterTable[F^4])) -> 0 | X51: =INDEX(MasterTable[],MATCH(Simulator!$E49,MasterTable[P/N],0),COLUMN(MasterTable[F^3])) -> 0 | Y51: =INDEX(MasterTable[],MATCH(Simulator!$E49,MasterTable[P/N],0),COLUMN(MasterTable[F^2])) -> -3.6592e-06 | Z51: =INDEX(MasterTable[],MATCH(Simulator!$E49,MasterTable[P/N],0),COLUMN(MasterTable[F])) -> -0.0010345506 | AA51: =INDEX(MasterTable[],MATCH(Simulator!$E49,MasterTable[P/N],0),COLUMN(MasterTable[F0])) -> 1.024095626 | AB51: =IF(Simulator!$I$8=85,AE51,W51*M51^4+X51*M51^3+Y51*M51^2+Z51*M51+AA51) -> 0.9959448614 | AC51: 1503.430553 | AD51: =IF(AND(Simulator!$I$8=85,Simulator!$N$14=Simulator!H49),Q51*AE51,AC51) -> 1503.430553 | AE51: =VLOOKUP(MID(Simulator!E49,6,3),Data!N39:O61,2,FALSE) -> 0.9 | AF51: =INDEX(MasterTable[],MATCH(Simulator!$E49,MasterTable[P/N],0),COLUMN(MasterTable[Typical Voltage])) -> 34.8 | AG51: =INDEX(MasterTable[],MATCH(Simulator!$E49,MasterTable[P/N],0),COLUMN(MasterTable[V^4])) -> 0 | AH51: =INDEX(MasterTable[],MATCH(Simulator!$E49,MasterTable[P/N],0),COLUMN(MasterTable[V^3])) -> 0 | AI51: =INDEX(MasterTable[],MATCH(Simulator!$E49,MasterTable[P/N],0),COLUMN(MasterTable[V^2])) -> -3e-07 | AJ51: =INDEX(MasterTable[],MATCH(Simulator!$E49,MasterTable[P/N],0),COLUMN(MasterTable[V])) -> 0.0033 | AK51: =INDEX(MasterTable[],MATCH(Simulator!$E49,MasterTable[P/N],0),COLUMN(MasterTable[V0])) -> 31.374 | AL51: =AG51*Simulator!$N$14^4+AH51*Simulator!$N$14^3+AI51*Simulator!$N$14^2+AJ51*Simulator!$N$14+AK51 -> 32.14872 | AM51: =INDEX(MasterTable[],MATCH(Simulator!$E49,MasterTable[P/N],0),COLUMN(MasterTable[T^3])) -> 0 | AN51: =INDEX(MasterTable[],MATCH(Simulator!$E49,MasterTable[P/N],0),COLUMN(MasterTable[T^2])) -> 0 | AO51: =INDEX(MasterTable[],MATCH(Simulator!$E49,MasterTable[P/N],0),COLUMN(MasterTable[T])) -> 0 | AP51: =INDEX(MasterTable[],MATCH(Simulator!$E49,MasterTable[P/N],0),COLUMN(MasterTable[T0])) -> 0 | AQ51: 34.8 | AR51: 32.14872 | AT51: =INDEX(MasterTable[],MATCH(Simulator!$E49,MasterTable[P/N],0),COLUMN(MasterTable['# of Die])) -> 156 | AU51: 32.14872 | AV51: =INDEX(Tj_to_Vf6[],MATCH(Simulator!$I$8,Tj_to_Vf6[Vf],1),COLUMN(Tj_to_Vf6[Vf])) -> -0.5 | AW51: -45.85128 | AX51: =IF(AND(Simulator!$I$8=25,Simulator!$N$14=Simulator!H49),AF51,AR51) -> 32.14872 | AZ51: -14.5
B52: V22-B | C52: =IF(Simulator!$D$10="Case",Simulator!$I$8,M52) -> 25 | D52: =Simulator!$N$14*AR52/1000 -> 11.4664645 | E52: =INDEX(MasterTable[],MATCH(Simulator!E50,MasterTable[P/N],0),COLUMN(MasterTable[Thermal Resistance])) -> 0.07 | F52: 25.80265252 | H52: =IF(Simulator!$D$10="Case",F52,Simulator!$I$8) -> 25.80265252 | I52: =Simulator!$N$14*AW52/1000 -> -16.6135355 | J52: 0.07 | K52: 26.9656 | M52: =IF(Simulator!$D$10="Case",Simulator!$I$8,K52) -> 25 | N52: =IF(Simulator!$D$10="Case",H52,Simulator!$I$8) -> 25.80265252 | O52: =IF(#REF!="Tj",N52,M52) ->  | Q52: =INDEX(MasterTable[],MATCH(Simulator!E50,MasterTable[P/N],0),COLUMN(MasterTable[Typical Lumens])) -> 10342.8 | R52: =INDEX(MasterTable[],MATCH(Simulator!$E50,MasterTable[P/N],0),COLUMN(MasterTable[I^3])) -> 1.1662e-11 | S52: =INDEX(MasterTable[],MATCH(Simulator!$E50,MasterTable[P/N],0),COLUMN(MasterTable[I^2])) -> -1.1299e-07 | T52: =INDEX(MasterTable[],MATCH(Simulator!$E50,MasterTable[P/N],0),COLUMN(MasterTable[I])) -> 0.00097273 | U52: =INDEX(MasterTable[],MATCH(Simulator!$E50,MasterTable[P/N],0),COLUMN(MasterTable[I0])) -> -1e-07 | V52: =R52*Simulator!$N$14^3+S52*Simulator!$N$14^2+T52*Simulator!$N$14+U52 -> 0.2271080915 | W52: =INDEX(MasterTable[],MATCH(Simulator!$E50,MasterTable[P/N],0),COLUMN(MasterTable[F^4])) -> 0 | X52: =INDEX(MasterTable[],MATCH(Simulator!$E50,MasterTable[P/N],0),COLUMN(MasterTable[F^3])) -> 0 | Y52: =INDEX(MasterTable[],MATCH(Simulator!$E50,MasterTable[P/N],0),COLUMN(MasterTable[F^2])) -> -3.6592e-06 | Z52: =INDEX(MasterTable[],MATCH(Simulator!$E50,MasterTable[P/N],0),COLUMN(MasterTable[F])) -> -0.0010345506 | AA52: =INDEX(MasterTable[],MATCH(Simulator!$E50,MasterTable[P/N],0),COLUMN(MasterTable[F0])) -> 1.024095626 | AB52: =IF(Simulator!$I$8=85,AE52,W52*M52^4+X52*M52^3+Y52*M52^2+Z52*M52+AA52) -> 0.9959448614 | AC52: 2339.408317 | AD52: =IF(AND(Simulator!$I$8=85,Simulator!$N$14=Simulator!H50),Q52*AE52,AC52) -> 2339.408317 | AE52: =VLOOKUP(MID(Simulator!E50,6,3),Data!Q4:R18,2,FALSE) -> 0.9 | AF52: =INDEX(MasterTable[],MATCH(Simulator!$E50,MasterTable[P/N],0),COLUMN(MasterTable[Typical Voltage])) -> 52 | AG52: =INDEX(MasterTable[],MATCH(Simulator!$E50,MasterTable[P/N],0),COLUMN(MasterTable[V^4])) -> 0 | AH52: =INDEX(MasterTable[],MATCH(Simulator!$E50,MasterTable[P/N],0),COLUMN(MasterTable[V^3])) -> 2e-10 | AI52: =INDEX(MasterTable[],MATCH(Simulator!$E50,MasterTable[P/N],0),COLUMN(MasterTable[V^2])) -> -1.1009e-06 | AJ52: =INDEX(MasterTable[],MATCH(Simulator!$E50,MasterTable[P/N],0),COLUMN(MasterTable[V])) -> 0.0058086665 | AK52: =INDEX(MasterTable[],MATCH(Simulator!$E50,MasterTable[P/N],0),COLUMN(MasterTable[V0])) -> 46.44350252 | AL52: =AG52*Simulator!$N$14^4+AH52*Simulator!$N$14^3+AI52*Simulator!$N$14^2+AJ52*Simulator!$N$14+AK52 -> 47.77693544 | AM52: =INDEX(MasterTable[],MATCH(Simulator!$E50,MasterTable[P/N],0),COLUMN(MasterTable[T^3])) -> 0 | AN52: =INDEX(MasterTable[],MATCH(Simulator!$E50,MasterTable[P/N],0),COLUMN(MasterTable[T^2])) -> 0 | AO52: =INDEX(MasterTable[],MATCH(Simulator!$E50,MasterTable[P/N],0),COLUMN(MasterTable[T])) -> 0 | AP52: =INDEX(MasterTable[],MATCH(Simulator!$E50,MasterTable[P/N],0),COLUMN(MasterTable[T0])) -> 0 | AQ52: 52 | AR52: 47.77693544 | AT52: =INDEX(MasterTable[],MATCH(Simulator!$E50,MasterTable[P/N],0),COLUMN(MasterTable['# of Die])) -> 234 | AU52: 47.77693544 | AV52: =INDEX(Tj_to_Vf6[],MATCH(Simulator!$I$8,Tj_to_Vf6[Vf],1),COLUMN(Tj_to_Vf6[Vf])) -> -0.5 | AW52: -69.22306456 | AX52: =IF(AND(Simulator!$I$8=25,Simulator!$N$14=Simulator!H50),AF52,AR52) -> 47.77693544 | AZ52: -22.1
B53: V22-C | C53: =IF(Simulator!$D$10="Case",Simulator!$I$8,M53) -> 25 | D53: =Simulator!$N$14*AR53/1000 -> 11.4853728 | E53: =INDEX(MasterTable[],MATCH(Simulator!E51,MasterTable[P/N],0),COLUMN(MasterTable[Thermal Resistance])) -> 0.06396666667 | F53: 25.73468101 | H53: =IF(Simulator!$D$10="Case",F53,Simulator!$I$8) -> 25.73468101 | I53: =Simulator!$N$14*AW53/1000 -> -23.0746272 | J53: 0.06396666667 | K53: 27.210688 | M53: =IF(Simulator!$D$10="Case",Simulator!$I$8,K53) -> 25 | N53: =IF(Simulator!$D$10="Case",H53,Simulator!$I$8) -> 25.73468101 | O53: =IF(#REF!="Tj",N53,M53) ->  | Q53: =INDEX(MasterTable[],MATCH(Simulator!E51,MasterTable[P/N],0),COLUMN(MasterTable[Typical Lumens])) -> 12729.6 | R53: =INDEX(MasterTable[],MATCH(Simulator!$E51,MasterTable[P/N],0),COLUMN(MasterTable[I^3])) -> 1.6135e-11 | S53: =INDEX(MasterTable[],MATCH(Simulator!$E51,MasterTable[P/N],0),COLUMN(MasterTable[I^2])) -> -1.3018e-07 | T53: =INDEX(MasterTable[],MATCH(Simulator!$E51,MasterTable[P/N],0),COLUMN(MasterTable[I])) -> 0.00085226 | U53: =INDEX(MasterTable[],MATCH(Simulator!$E51,MasterTable[P/N],0),COLUMN(MasterTable[I0])) -> -1e-07 | V53: =R53*Simulator!$N$14^3+S53*Simulator!$N$14^2+T53*Simulator!$N$14+U53 -> 0.1972669822 | W53: =INDEX(MasterTable[],MATCH(Simulator!$E51,MasterTable[P/N],0),COLUMN(MasterTable[F^4])) -> 0 | X53: =INDEX(MasterTable[],MATCH(Simulator!$E51,MasterTable[P/N],0),COLUMN(MasterTable[F^3])) -> 0 | Y53: =INDEX(MasterTable[],MATCH(Simulator!$E51,MasterTable[P/N],0),COLUMN(MasterTable[F^2])) -> -3.6592e-06 | Z53: =INDEX(MasterTable[],MATCH(Simulator!$E51,MasterTable[P/N],0),COLUMN(MasterTable[F])) -> -0.0010345506 | AA53: =INDEX(MasterTable[],MATCH(Simulator!$E51,MasterTable[P/N],0),COLUMN(MasterTable[F0])) -> 1.024095626 | AB53: =IF(Simulator!$I$8=85,AE53,W53*M53^4+X53*M53^3+Y53*M53^2+Z53*M53+AA53) -> 0.9959448614 | AC53: 2500.946798 | AD53: =IF(AND(Simulator!$I$8=85,Simulator!$N$14=Simulator!H51),Q53*AE53,AC53) -> 2500.946798 | AE53: =VLOOKUP(MID(Simulator!E51,6,3),Data!Q39:R54,2,FALSE) -> 0.9 | AF53: =INDEX(MasterTable[],MATCH(Simulator!$E51,MasterTable[P/N],0),COLUMN(MasterTable[Typical Voltage])) -> 52 | AG53: =INDEX(MasterTable[],MATCH(Simulator!$E51,MasterTable[P/N],0),COLUMN(MasterTable[V^4])) -> -2e-23 | AH53: =INDEX(MasterTable[],MATCH(Simulator!$E51,MasterTable[P/N],0),COLUMN(MasterTable[V^3])) -> 2e-19 | AI53: =INDEX(MasterTable[],MATCH(Simulator!$E51,MasterTable[P/N],0),COLUMN(MasterTable[V^2])) -> -3e-07 | AJ53: =INDEX(MasterTable[],MATCH(Simulator!$E51,MasterTable[P/N],0),COLUMN(MasterTable[V])) -> 0.004 | AK53: =INDEX(MasterTable[],MATCH(Simulator!$E51,MasterTable[P/N],0),COLUMN(MasterTable[V0])) -> 46.913 | AL53: =AG53*Simulator!$N$14^4+AH53*Simulator!$N$14^3+AI53*Simulator!$N$14^2+AJ53*Simulator!$N$14+AK53 -> 47.85572 | AM53: =INDEX(MasterTable[],MATCH(Simulator!$E51,MasterTable[P/N],0),COLUMN(MasterTable[T^3])) -> 0 | AN53: =INDEX(MasterTable[],MATCH(Simulator!$E51,MasterTable[P/N],0),COLUMN(MasterTable[T^2])) -> 0 | AO53: =INDEX(MasterTable[],MATCH(Simulator!$E51,MasterTable[P/N],0),COLUMN(MasterTable[T])) -> 0 | AP53: =INDEX(MasterTable[],MATCH(Simulator!$E51,MasterTable[P/N],0),COLUMN(MasterTable[T0])) -> 0 | AQ53: 52 | AR53: =AL53+AQ53-AF53 -> 47.85572 | AT53: =INDEX(MasterTable[],MATCH(Simulator!$E51,MasterTable[P/N],0),COLUMN(MasterTable['# of Die])) -> 288 | AU53: 47.85572 | AV53: =INDEX(Tj_to_Vf6[],MATCH(Simulator!$I$8,Tj_to_Vf6[Vf],1),COLUMN(Tj_to_Vf6[Vf])) -> -0.5 | AW53: -96.14428 | AX53: =IF(AND(Simulator!$I$8=25,Simulator!$N$14=Simulator!H51),AF53,AR53) -> 47.85572 | AZ53: -22.1
B54: V22-D | C54: =IF(Simulator!$D$10="Case",Simulator!$I$8,M54) -> 25 | D54: =Simulator!$N$14*AR54/1000 -> 7.347304158 | E54: =INDEX(MasterTable[],MATCH(Simulator!E52,MasterTable[P/N],0),COLUMN(MasterTable[Thermal Resistance])) -> 0.07 | F54: =C54+D54*E54 -> 25.51431129 | H54: =IF(Simulator!$D$10="Case",F54,Simulator!$I$8) -> 25.51431129 | I54: =Simulator!$N$14*AW54/1000 -> 7.347304158 | J54: =E54 -> 0.07 | K54: =H54-I54*J54 -> 25 | M54: =IF(Simulator!$D$10="Case",Simulator!$I$8,K54) -> 25 | N54: =IF(Simulator!$D$10="Case",H54,Simulator!$I$8) -> 25.51431129 | O54: =IF(#REF!="Tj",N54,M54) ->  | Q54: =INDEX(MasterTable[],MATCH(Simulator!E52,MasterTable[P/N],0),COLUMN(MasterTable[Typical Lumens])) -> 8330 | R54: =INDEX(MasterTable[],MATCH(Simulator!$E52,MasterTable[P/N],0),COLUMN(MasterTable[I^3])) -> 2.9578e-13 | S54: =INDEX(MasterTable[],MATCH(Simulator!$E52,MasterTable[P/N],0),COLUMN(MasterTable[I^2])) -> -3.5674e-08 | T54: =INDEX(MasterTable[],MATCH(Simulator!$E52,MasterTable[P/N],0),COLUMN(MasterTable[I])) -> 0.00076248 | U54: =INDEX(MasterTable[],MATCH(Simulator!$E52,MasterTable[P/N],0),COLUMN(MasterTable[I0])) -> -1e-07 | V54: =R54*Simulator!$N$14^3+S54*Simulator!$N$14^2+T54*Simulator!$N$14+U54 -> 0.1809443665 | W54: =INDEX(MasterTable[],MATCH(Simulator!$E52,MasterTable[P/N],0),COLUMN(MasterTable[F^4])) -> 0 | X54: =INDEX(MasterTable[],MATCH(Simulator!$E52,MasterTable[P/N],0),COLUMN(MasterTable[F^3])) -> 0 | Y54: =INDEX(MasterTable[],MATCH(Simulator!$E52,MasterTable[P/N],0),COLUMN(MasterTable[F^2])) -> -3.6592e-06 | Z54: =INDEX(MasterTable[],MATCH(Simulator!$E52,MasterTable[P/N],0),COLUMN(MasterTable[F])) -> -0.0010345506 | AA54: =INDEX(MasterTable[],MATCH(Simulator!$E52,MasterTable[P/N],0),COLUMN(MasterTable[F0])) -> 1.024095626 | AB54: =IF(Simulator!$I$8=85,AE54,W54*M54^4+X54*M54^3+Y54*M54^2+Z54*M54+AA54) -> 0.9959448614 | AC54: =Q54*V54*AB54 -> 1501.154398 | AD54: =IF(AND(Simulator!$I$8=85,Simulator!$N$14=Simulator!H52),Q54*AE54,AC54) -> 1501.154398 | AE54: =VLOOKUP(MID(Simulator!E52,6,3),Data!T75:U104,2,FALSE) -> 0.9 | AF54: =INDEX(MasterTable[],MATCH(Simulator!$E52,MasterTable[P/N],0),COLUMN(MasterTable[Typical Voltage])) -> 34.8 | AG54: =INDEX(MasterTable[],MATCH(Simulator!$E52,MasterTable[P/N],0),COLUMN(MasterTable[V^4])) -> 0 | AH54: =INDEX(MasterTable[],MATCH(Simulator!$E52,MasterTable[P/N],0),COLUMN(MasterTable[V^3])) -> 2e-10 | AI54: =INDEX(MasterTable[],MATCH(Simulator!$E52,MasterTable[P/N],0),COLUMN(MasterTable[V^2])) -> -1.2157e-06 | AJ54: =INDEX(MasterTable[],MATCH(Simulator!$E52,MasterTable[P/N],0),COLUMN(MasterTable[V])) -> 0.0039812482 | AK54: =INDEX(MasterTable[],MATCH(Simulator!$E52,MasterTable[P/N],0),COLUMN(MasterTable[V0])) -> 29.72552728 | AL54: =AG54*Simulator!$N$14^4+AH54*Simulator!$N$14^3+AI54*Simulator!$N$14^2+AJ54*Simulator!$N$14+AK54 -> 30.61376732 | AM54: =INDEX(MasterTable[],MATCH(Simulator!$E52,MasterTable[P/N],0),COLUMN(MasterTable[T^3])) -> 0 | AN54: =INDEX(MasterTable[],MATCH(Simulator!$E52,MasterTable[P/N],0),COLUMN(MasterTable[T^2])) -> 0 | AO54: =INDEX(MasterTable[],MATCH(Simulator!$E52,MasterTable[P/N],0),COLUMN(MasterTable[T])) -> 0 | AP54: =INDEX(MasterTable[],MATCH(Simulator!$E52,MasterTable[P/N],0),COLUMN(MasterTable[T0])) -> 0 | AQ54: =AZ54*(M54-25)/1000+AF54 -> 34.8 | AR54: =AL54+AQ54-AF54 -> 30.61376732 | AT54: =INDEX(MasterTable[],MATCH(Simulator!$E52,MasterTable[P/N],0),COLUMN(MasterTable['# of Die])) -> 0 | AU54: =AL54 -> 30.61376732 | AV54: =INDEX(Tj_to_Vf6[],MATCH(Simulator!$I$8,Tj_to_Vf6[Vf],1),COLUMN(Tj_to_Vf6[Vf])) -> -0.5 | AW54: =AU54+AV54*AT54 -> 30.61376732 | AX54: =IF(AND(Simulator!$I$8=25,Simulator!$N$14=Simulator!H52),AF54,AR54) -> 30.61376732 | AZ54: -22.1
B55: Vero 10-B | C55: =IF(Simulator!$D$10="Case",Simulator!$I$8,M55) -> 25 | D55: =Simulator!$N$14*AR55/1000 -> 8.2992 | E55: =INDEX(MasterTable[],MATCH(Simulator!E54,MasterTable[P/N],0),COLUMN(MasterTable[Thermal Resistance])) -> 0.49075 | F55: 29.0728324 | H55: =IF(Simulator!$D$10="Case",F55,Simulator!$I$8) -> 29.0728324 | I55: =Simulator!$N$14*AW55/1000 -> 3.9792 | J55: 0.49075 | K55: 27.12004 | M55: =IF(Simulator!$D$10="Case",Simulator!$I$8,K55) -> 25 | N55: =IF(Simulator!$D$10="Case",H55,Simulator!$I$8) -> 29.0728324 | O55: =IF(#REF!="Tj",N55,M55) ->  | Q55: =INDEX(MasterTable[],MATCH(Simulator!E54,MasterTable[P/N],0),COLUMN(MasterTable[Typical Lumens])) -> 1549 | R55: =INDEX(MasterTable[],MATCH(Simulator!$E54,MasterTable[P/N],0),COLUMN(MasterTable[I^3])) -> 6.8448e-10 | S55: =INDEX(MasterTable[],MATCH(Simulator!$E54,MasterTable[P/N],0),COLUMN(MasterTable[I^2])) -> -1.5365e-06 | T55: =INDEX(MasterTable[],MATCH(Simulator!$E54,MasterTable[P/N],0),COLUMN(MasterTable[I])) -> 0.0041148 | U55: =INDEX(MasterTable[],MATCH(Simulator!$E54,MasterTable[P/N],0),COLUMN(MasterTable[I0])) -> -1e-07 | V55: =R55*Simulator!$N$14^3+S55*Simulator!$N$14^2+T55*Simulator!$N$14+U55 -> 0.9085117515 | W55: =INDEX(MasterTable[],MATCH(Simulator!$E54,MasterTable[P/N],0),COLUMN(MasterTable[F^4])) -> 0 | X55: =INDEX(MasterTable[],MATCH(Simulator!$E54,MasterTable[P/N],0),COLUMN(MasterTable[F^3])) -> 0 | Y55: =INDEX(MasterTable[],MATCH(Simulator!$E54,MasterTable[P/N],0),COLUMN(MasterTable[F^2])) -> -3.6592e-06 | Z55: =INDEX(MasterTable[],MATCH(Simulator!$E54,MasterTable[P/N],0),COLUMN(MasterTable[F])) -> -0.0010345506 | AA55: =INDEX(MasterTable[],MATCH(Simulator!$E54,MasterTable[P/N],0),COLUMN(MasterTable[F0])) -> 1.024095626 | AB55: =IF(Simulator!$I$8=85,AE55,W55*M55^4+X55*M55^3+Y55*M55^2+Z55*M55+AA55) -> 0.9959448614 | AC55: 1401.577969 | AD55: =IF(AND(Simulator!$I$8=85,Simulator!$N$14=Simulator!H54),Q55*AE55,AC55) -> 1401.577969 | AE55: =VLOOKUP(MID(Simulator!E54,6,3),Data!G75:H96,2,FALSE) -> 0.9 | AF55: =INDEX(MasterTable[],MATCH(Simulator!$E54,MasterTable[P/N],0),COLUMN(MasterTable[Typical Voltage])) -> 34.8 | AG55: =INDEX(MasterTable[],MATCH(Simulator!$E54,MasterTable[P/N],0),COLUMN(MasterTable[V^4])) -> 0 | AH55: =INDEX(MasterTable[],MATCH(Simulator!$E54,MasterTable[P/N],0),COLUMN(MasterTable[V^3])) -> 0 | AI55: =INDEX(MasterTable[],MATCH(Simulator!$E54,MasterTable[P/N],0),COLUMN(MasterTable[V^2])) -> -5e-06 | AJ55: =INDEX(MasterTable[],MATCH(Simulator!$E54,MasterTable[P/N],0),COLUMN(MasterTable[V])) -> 0.0145 | AK55: =INDEX(MasterTable[],MATCH(Simulator!$E54,MasterTable[P/N],0),COLUMN(MasterTable[V0])) -> 31.388 | AL55: =AG55*Simulator!$N$14^4+AH55*Simulator!$N$14^3+AI55*Simulator!$N$14^2+AJ55*Simulator!$N$14+AK55 -> 34.58 | AM55: =INDEX(MasterTable[],MATCH(Simulator!$E54,MasterTable[P/N],0),COLUMN(MasterTable[T^3])) -> 0 | AN55: =INDEX(MasterTable[],MATCH(Simulator!$E54,MasterTable[P/N],0),COLUMN(MasterTable[T^2])) -> 0 | AO55: =INDEX(MasterTable[],MATCH(Simulator!$E54,MasterTable[P/N],0),COLUMN(MasterTable[T])) -> 0 | AP55: =INDEX(MasterTable[],MATCH(Simulator!$E54,MasterTable[P/N],0),COLUMN(MasterTable[T0])) -> 0 | AQ55: 34.8 | AR55: 34.58 | AT55: =INDEX(MasterTable[],MATCH(Simulator!$E54,MasterTable[P/N],0),COLUMN(MasterTable['# of Die])) -> 36 | AU55: 34.58 | AV55: =INDEX(Tj_to_Vf6[],MATCH(Simulator!$I$8,Tj_to_Vf6[Vf],1),COLUMN(Tj_to_Vf6[Vf])) -> -0.5 | AW55: 16.58 | AX55: =IF(AND(Simulator!$I$8=25,Simulator!$N$14=Simulator!H54),AF55,AR55) -> 34.58 | AZ55: -16.1
B56: Vero 10-C | C56: =IF(Simulator!$D$10="Case",Simulator!$I$8,M56) -> 25 | D56: =Simulator!$N$14*AR56/1000 -> 8.119488 | E56: =INDEX(MasterTable[],MATCH(Simulator!E55,MasterTable[P/N],0),COLUMN(MasterTable[Thermal Resistance])) -> 0.3703666667 | F56: =C56+D56*E56 -> 28.00718771 | H56: =IF(Simulator!$D$10="Case",F56,Simulator!$I$8) -> 28.00718771 | I56: =Simulator!$N$14*AW56/1000 -> 2.359488 | J56: =E56 -> 0.3703666667 | K56: =H56-I56*J56 -> 27.133312 | M56: =IF(Simulator!$D$10="Case",Simulator!$I$8,K56) -> 25 | N56: =IF(Simulator!$D$10="Case",H56,Simulator!$I$8) -> 28.00718771 | O56: =IF(#REF!="Tj",N56,M56) ->  | Q56: =INDEX(MasterTable[],MATCH(Simulator!E55,MasterTable[P/N],0),COLUMN(MasterTable[Typical Lumens])) -> 2066 | R56: =INDEX(MasterTable[],MATCH(Simulator!$E55,MasterTable[P/N],0),COLUMN(MasterTable[I^3])) -> 2.4598e-10 | S56: =INDEX(MasterTable[],MATCH(Simulator!$E55,MasterTable[P/N],0),COLUMN(MasterTable[I^2])) -> -8.7002e-07 | T56: =INDEX(MasterTable[],MATCH(Simulator!$E55,MasterTable[P/N],0),COLUMN(MasterTable[I])) -> 0.0030842 | U56: =INDEX(MasterTable[],MATCH(Simulator!$E55,MasterTable[P/N],0),COLUMN(MasterTable[I0])) -> -1e-07 | V56: =R56*Simulator!$N$14^3+S56*Simulator!$N$14^2+T56*Simulator!$N$14+U56 -> 0.6934951755 | W56: =INDEX(MasterTable[],MATCH(Simulator!$E55,MasterTable[P/N],0),COLUMN(MasterTable[F^4])) -> 0 | X56: =INDEX(MasterTable[],MATCH(Simulator!$E55,MasterTable[P/N],0),COLUMN(MasterTable[F^3])) -> 0 | Y56: =INDEX(MasterTable[],MATCH(Simulator!$E55,MasterTable[P/N],0),COLUMN(MasterTable[F^2])) -> -3.6592e-06 | Z56: =INDEX(MasterTable[],MATCH(Simulator!$E55,MasterTable[P/N],0),COLUMN(MasterTable[F])) -> -0.0010345506 | AA56: =INDEX(MasterTable[],MATCH(Simulator!$E55,MasterTable[P/N],0),COLUMN(MasterTable[F0])) -> 1.024095626 | AB56: =IF(Simulator!$I$8=85,AE56,W56*M56^4+X56*M56^3+Y56*M56^2+Z56*M56+AA56) -> 0.9959448614 | AC56: =Q56*V56*AB56 -> 1426.950988 | AD56: =IF(AND(Simulator!$I$8=85,Simulator!$N$14=Simulator!H55),Q56*AE56,AC56) -> 1426.950988 | AE56: =VLOOKUP(MID(Simulator!E55,6,3),Data!G111:H130,2,FALSE) -> 0.9 | AF56: =INDEX(MasterTable[],MATCH(Simulator!$E55,MasterTable[P/N],0),COLUMN(MasterTable[Typical Voltage])) -> 34.8 | AG56: =INDEX(MasterTable[],MATCH(Simulator!$E55,MasterTable[P/N],0),COLUMN(MasterTable[V^4])) -> 0 | AH56: =INDEX(MasterTable[],MATCH(Simulator!$E55,MasterTable[P/N],0),COLUMN(MasterTable[V^3])) -> 0 | AI56: =INDEX(MasterTable[],MATCH(Simulator!$E55,MasterTable[P/N],0),COLUMN(MasterTable[V^2])) -> -3e-06 | AJ56: =INDEX(MasterTable[],MATCH(Simulator!$E55,MasterTable[P/N],0),COLUMN(MasterTable[V])) -> 0.0109 | AK56: =INDEX(MasterTable[],MATCH(Simulator!$E55,MasterTable[P/N],0),COLUMN(MasterTable[V0])) -> 31.388 | AL56: =AG56*Simulator!$N$14^4+AH56*Simulator!$N$14^3+AI56*Simulator!$N$14^2+AJ56*Simulator!$N$14+AK56 -> 33.8312 | AM56: =INDEX(MasterTable[],MATCH(Simulator!$E55,MasterTable[P/N],0),COLUMN(MasterTable[T^3])) -> 0 | AN56: =INDEX(MasterTable[],MATCH(Simulator!$E55,MasterTable[P/N],0),COLUMN(MasterTable[T^2])) -> 0 | AO56: =INDEX(MasterTable[],MATCH(Simulator!$E55,MasterTable[P/N],0),COLUMN(MasterTable[T])) -> 0 | AP56: =INDEX(MasterTable[],MATCH(Simulator!$E55,MasterTable[P/N],0),COLUMN(MasterTable[T0])) -> 0 | AQ56: 34.8 | AR56: 33.8312 | AT56: =INDEX(MasterTable[],MATCH(Simulator!$E55,MasterTable[P/N],0),COLUMN(MasterTable['# of Die])) -> 48 | AU56: 33.8312 | AV56: =INDEX(Tj_to_Vf6[],MATCH(Simulator!$I$8,Tj_to_Vf6[Vf],1),COLUMN(Tj_to_Vf6[Vf])) -> -0.5 | AW56: 9.8312 | AX56: =IF(AND(Simulator!$I$8=25,Simulator!$N$14=Simulator!H55),AF56,AR56) -> 33.8312 | AZ56: -16.1
B57: Vero 10-D | C57: =IF(Simulator!$D$10="Case",Simulator!$I$8,M57) -> 25 | D57: =Simulator!$N$14*AR57/1000 -> 6.067926208 | E57: =INDEX(MasterTable[],MATCH(Simulator!E56,MasterTable[P/N],0),COLUMN(MasterTable[Thermal Resistance])) -> 0.49075 | F57: 27.97783479 | H57: =IF(Simulator!$D$10="Case",F57,Simulator!$I$8) -> 27.97783479 | I57: =Simulator!$N$14*AW57/1000 -> 1.747926208 | J57: 0.49075 | K57: 27.12004 | M57: =IF(Simulator!$D$10="Case",Simulator!$I$8,K57) -> 25 | N57: =IF(Simulator!$D$10="Case",H57,Simulator!$I$8) -> 27.97783479 | O57: =IF(#REF!="Tj",N57,M57) ->  | Q57: =INDEX(MasterTable[],MATCH(Simulator!E56,MasterTable[P/N],0),COLUMN(MasterTable[Typical Lumens])) -> 1501 | R57: =INDEX(MasterTable[],MATCH(Simulator!$E56,MasterTable[P/N],0),COLUMN(MasterTable[I^3])) -> 3.1111e-10 | S57: =INDEX(MasterTable[],MATCH(Simulator!$E56,MasterTable[P/N],0),COLUMN(MasterTable[I^2])) -> -9.0128e-07 | T57: =INDEX(MasterTable[],MATCH(Simulator!$E56,MasterTable[P/N],0),COLUMN(MasterTable[I])) -> 0.0031748 | U57: =INDEX(MasterTable[],MATCH(Simulator!$E56,MasterTable[P/N],0),COLUMN(MasterTable[I0])) -> -1e-07 | V57: =R57*Simulator!$N$14^3+S57*Simulator!$N$14^2+T57*Simulator!$N$14+U57 -> 0.7143389566 | W57: =INDEX(MasterTable[],MATCH(Simulator!$E56,MasterTable[P/N],0),COLUMN(MasterTable[F^4])) -> 0 | X57: =INDEX(MasterTable[],MATCH(Simulator!$E56,MasterTable[P/N],0),COLUMN(MasterTable[F^3])) -> 0 | Y57: =INDEX(MasterTable[],MATCH(Simulator!$E56,MasterTable[P/N],0),COLUMN(MasterTable[F^2])) -> -3.6592e-06 | Z57: =INDEX(MasterTable[],MATCH(Simulator!$E56,MasterTable[P/N],0),COLUMN(MasterTable[F])) -> -0.0010345506 | AA57: =INDEX(MasterTable[],MATCH(Simulator!$E56,MasterTable[P/N],0),COLUMN(MasterTable[F0])) -> 1.024095626 | AB57: =IF(Simulator!$I$8=85,AE57,W57*M57^4+X57*M57^3+Y57*M57^2+Z57*M57+AA57) -> 0.9959448614 | AC57: =Q57*V57*AB57 -> 1067.874762 | AD57: =IF(AND(Simulator!$I$8=85,Simulator!$N$14=Simulator!H56),Q57*AE57,AC57) -> 1067.874762 | AE57: =VLOOKUP(MID(Simulator!E56,6,3),Data!G147:H168,2,FALSE) -> 0.9 | AF57: =INDEX(MasterTable[],MATCH(Simulator!$E56,MasterTable[P/N],0),COLUMN(MasterTable[Typical Voltage])) -> 26 | AG57: =INDEX(MasterTable[],MATCH(Simulator!$E56,MasterTable[P/N],0),COLUMN(MasterTable[V^4])) -> 0 | AH57: =INDEX(MasterTable[],MATCH(Simulator!$E56,MasterTable[P/N],0),COLUMN(MasterTable[V^3])) -> 3.6e-09 | AI57: =INDEX(MasterTable[],MATCH(Simulator!$E56,MasterTable[P/N],0),COLUMN(MasterTable[V^2])) -> -6.6314e-06 | AJ57: =INDEX(MasterTable[],MATCH(Simulator!$E56,MasterTable[P/N],0),COLUMN(MasterTable[V])) -> 0.0095283307 | AK57: =INDEX(MasterTable[],MATCH(Simulator!$E56,MasterTable[P/N],0),COLUMN(MasterTable[V0])) -> 23.32842874 | AL57: =AG57*Simulator!$N$14^4+AH57*Simulator!$N$14^3+AI57*Simulator!$N$14^2+AJ57*Simulator!$N$14+AK57 -> 25.28302587 | AM57: =INDEX(MasterTable[],MATCH(Simulator!$E56,MasterTable[P/N],0),COLUMN(MasterTable[T^3])) -> 0 | AN57: =INDEX(MasterTable[],MATCH(Simulator!$E56,MasterTable[P/N],0),COLUMN(MasterTable[T^2])) -> 0 | AO57: =INDEX(MasterTable[],MATCH(Simulator!$E56,MasterTable[P/N],0),COLUMN(MasterTable[T])) -> -0.014 | AP57: =INDEX(MasterTable[],MATCH(Simulator!$E56,MasterTable[P/N],0),COLUMN(MasterTable[T0])) -> 26.85 | AQ57: 26 | AR57: =AL57+AQ57-AF57 -> 25.28302587 | AT57: =INDEX(MasterTable[],MATCH(Simulator!$E56,MasterTable[P/N],0),COLUMN(MasterTable['# of Die])) -> 36 | AU57: 25.28302587 | AV57: =INDEX(Tj_to_Vf6[],MATCH(Simulator!$I$8,Tj_to_Vf6[Vf],1),COLUMN(Tj_to_Vf6[Vf])) -> -0.5 | AW57: 7.283025868 | AX57: =IF(AND(Simulator!$I$8=25,Simulator!$N$14=Simulator!H56),AF57,AR57) -> 25.28302587 | AZ57: -11.8
B58: Vero 13-B | C58: =IF(Simulator!$D$10="Case",Simulator!$I$8,M58) -> 25 | D58: =Simulator!$N$14*AR58/1000 -> 7.99080897 | E58: =INDEX(MasterTable[],MATCH(Simulator!E57,MasterTable[P/N],0),COLUMN(MasterTable[Thermal Resistance])) -> 0.2803666667 | F58: 27.24035647 | H58: =IF(Simulator!$D$10="Case",F58,Simulator!$I$8) -> 27.24035647 | I58: =Simulator!$N$14*AW58/1000 -> 0.7908089698 | J58: 0.2803666667 | K58: 27.01864 | M58: =IF(Simulator!$D$10="Case",Simulator!$I$8,K58) -> 25 | N58: =IF(Simulator!$D$10="Case",H58,Simulator!$I$8) -> 27.24035647 | O58: =IF(#REF!="Tj",N58,M58) ->  | Q58: =INDEX(MasterTable[],MATCH(Simulator!E57,MasterTable[P/N],0),COLUMN(MasterTable[Typical Lumens])) -> 2662.2 | R58: =INDEX(MasterTable[],MATCH(Simulator!$E57,MasterTable[P/N],0),COLUMN(MasterTable[I^3])) -> 9.5973e-11 | S58: =INDEX(MasterTable[],MATCH(Simulator!$E57,MasterTable[P/N],0),COLUMN(MasterTable[I^2])) -> -5.3648e-07 | T58: =INDEX(MasterTable[],MATCH(Simulator!$E57,MasterTable[P/N],0),COLUMN(MasterTable[I])) -> 0.0024543 | U58: =INDEX(MasterTable[],MATCH(Simulator!$E57,MasterTable[P/N],0),COLUMN(MasterTable[I0])) -> -1e-07 | V58: =R58*Simulator!$N$14^3+S58*Simulator!$N$14^2+T58*Simulator!$N$14+U58 -> 0.5594573828 | W58: =INDEX(MasterTable[],MATCH(Simulator!$E57,MasterTable[P/N],0),COLUMN(MasterTable[F^4])) -> 0 | X58: =INDEX(MasterTable[],MATCH(Simulator!$E57,MasterTable[P/N],0),COLUMN(MasterTable[F^3])) -> 0 | Y58: =INDEX(MasterTable[],MATCH(Simulator!$E57,MasterTable[P/N],0),COLUMN(MasterTable[F^2])) -> -3.6592e-06 | Z58: =INDEX(MasterTable[],MATCH(Simulator!$E57,MasterTable[P/N],0),COLUMN(MasterTable[F])) -> -0.0010345506 | AA58: =INDEX(MasterTable[],MATCH(Simulator!$E57,MasterTable[P/N],0),COLUMN(MasterTable[F0])) -> 1.024095626 | AB58: =IF(Simulator!$I$8=85,AE58,W58*M58^4+X58*M58^3+Y58*M58^2+Z58*M58+AA58) -> 0.9959448614 | AC58: 1483.347772 | AD58: =IF(AND(Simulator!$I$8=85,Simulator!$N$14=Simulator!H57),Q58*AE58,AC58) -> 1483.347772 | AE58: =VLOOKUP(MID(Simulator!E57,6,3),Data!K75:L95,2,FALSE) -> 0.9 | AF58: =INDEX(MasterTable[],MATCH(Simulator!$E57,MasterTable[P/N],0),COLUMN(MasterTable[Typical Voltage])) -> 34.8 | AG58: =INDEX(MasterTable[],MATCH(Simulator!$E57,MasterTable[P/N],0),COLUMN(MasterTable[V^4])) -> 0 | AH58: =INDEX(MasterTable[],MATCH(Simulator!$E57,MasterTable[P/N],0),COLUMN(MasterTable[V^3])) -> 2.3e-09 | AI58: =INDEX(MasterTable[],MATCH(Simulator!$E57,MasterTable[P/N],0),COLUMN(MasterTable[V^2])) -> -5.0932e-06 | AJ58: =INDEX(MasterTable[],MATCH(Simulator!$E57,MasterTable[P/N],0),COLUMN(MasterTable[V])) -> 0.0095302598 | AK58: =INDEX(MasterTable[],MATCH(Simulator!$E57,MasterTable[P/N],0),COLUMN(MasterTable[V0])) -> 31.26934814 | AL58: =AG58*Simulator!$N$14^4+AH58*Simulator!$N$14^3+AI58*Simulator!$N$14^2+AJ58*Simulator!$N$14+AK58 -> 33.29503737 | AM58: =INDEX(MasterTable[],MATCH(Simulator!$E57,MasterTable[P/N],0),COLUMN(MasterTable[T^3])) -> 0 | AN58: =INDEX(MasterTable[],MATCH(Simulator!$E57,MasterTable[P/N],0),COLUMN(MasterTable[T^2])) -> 0 | AO58: =INDEX(MasterTable[],MATCH(Simulator!$E57,MasterTable[P/N],0),COLUMN(MasterTable[T])) -> 0 | AP58: =INDEX(MasterTable[],MATCH(Simulator!$E57,MasterTable[P/N],0),COLUMN(MasterTable[T0])) -> 0 | AQ58: 34.8 | AR58: 33.29503737 | AT58: =INDEX(MasterTable[],MATCH(Simulator!$E57,MasterTable[P/N],0),COLUMN(MasterTable['# of Die])) -> 60 | AU58: 33.29503737 | AV58: =INDEX(Tj_to_Vf6[],MATCH(Simulator!$I$8,Tj_to_Vf6[Vf],1),COLUMN(Tj_to_Vf6[Vf])) -> -0.5 | AW58: 3.295037374 | AX58: =IF(AND(Simulator!$I$8=25,Simulator!$N$14=Simulator!H57),AF58,AR58) -> 33.29503737 | AZ58: -14.3
B59: Vero 13-C | C59: =IF(Simulator!$D$10="Case",Simulator!$I$8,M59) -> 25 | D59: =Simulator!$N$14*AR59/1000 -> 7.8638784 | E59: =INDEX(MasterTable[],MATCH(Simulator!E58,MasterTable[P/N],0),COLUMN(MasterTable[Thermal Resistance])) -> 0.1987333333 | F59: 26.56281477 | H59: =IF(Simulator!$D$10="Case",F59,Simulator!$I$8) -> 26.56281477 | I59: =Simulator!$N$14*AW59/1000 -> -2.2161216 | J59: 0.1987333333 | K59: 27.003232 | M59: =IF(Simulator!$D$10="Case",Simulator!$I$8,K59) -> 25 | N59: =IF(Simulator!$D$10="Case",H59,Simulator!$I$8) -> 26.56281477 | O59: =IF(#REF!="Tj",N59,M59) ->  | Q59: =INDEX(MasterTable[],MATCH(Simulator!E58,MasterTable[P/N],0),COLUMN(MasterTable[Typical Lumens])) -> 3727.08 | R59: =INDEX(MasterTable[],MATCH(Simulator!$E58,MasterTable[P/N],0),COLUMN(MasterTable[I^3])) -> 2.6497e-11 | S59: =INDEX(MasterTable[],MATCH(Simulator!$E58,MasterTable[P/N],0),COLUMN(MasterTable[I^2])) -> -2.623e-07 | T59: =INDEX(MasterTable[],MATCH(Simulator!$E58,MasterTable[P/N],0),COLUMN(MasterTable[I])) -> 0.0017425 | U59: =INDEX(MasterTable[],MATCH(Simulator!$E58,MasterTable[P/N],0),COLUMN(MasterTable[I0])) -> -1e-07 | V59: =R59*Simulator!$N$14^3+S59*Simulator!$N$14^2+T59*Simulator!$N$14+U59 -> 0.4034577145 | W59: =INDEX(MasterTable[],MATCH(Simulator!$E58,MasterTable[P/N],0),COLUMN(MasterTable[F^4])) -> 0 | X59: =INDEX(MasterTable[],MATCH(Simulator!$E58,MasterTable[P/N],0),COLUMN(MasterTable[F^3])) -> 0 | Y59: =INDEX(MasterTable[],MATCH(Simulator!$E58,MasterTable[P/N],0),COLUMN(MasterTable[F^2])) -> -3.6592e-06 | Z59: =INDEX(MasterTable[],MATCH(Simulator!$E58,MasterTable[P/N],0),COLUMN(MasterTable[F])) -> -0.0010345506 | AA59: =INDEX(MasterTable[],MATCH(Simulator!$E58,MasterTable[P/N],0),COLUMN(MasterTable[F0])) -> 1.024095626 | AB59: =IF(Simulator!$I$8=85,AE59,W59*M59^4+X59*M59^3+Y59*M59^2+Z59*M59+AA59) -> 0.9959448614 | AC59: 1497.621389 | AD59: =IF(AND(Simulator!$I$8=85,Simulator!$N$14=Simulator!H58),Q59*AE59,AC59) -> 1497.621389 | AE59: =VLOOKUP(MID(Simulator!E58,6,3),Data!K111:L130,2,FALSE) -> 0.9 | AF59: =INDEX(MasterTable[],MATCH(Simulator!$E58,MasterTable[P/N],0),COLUMN(MasterTable[Typical Voltage])) -> 34.8 | AG59: =INDEX(MasterTable[],MATCH(Simulator!$E58,MasterTable[P/N],0),COLUMN(MasterTable[V^4])) -> 0 | AH59: =INDEX(MasterTable[],MATCH(Simulator!$E58,MasterTable[P/N],0),COLUMN(MasterTable[V^3])) -> 0 | AI59: =INDEX(MasterTable[],MATCH(Simulator!$E58,MasterTable[P/N],0),COLUMN(MasterTable[V^2])) -> -9e-07 | AJ59: =INDEX(MasterTable[],MATCH(Simulator!$E58,MasterTable[P/N],0),COLUMN(MasterTable[V])) -> 0.0058 | AK59: =INDEX(MasterTable[],MATCH(Simulator!$E58,MasterTable[P/N],0),COLUMN(MasterTable[V0])) -> 31.426 | AL59: =AG59*Simulator!$N$14^4+AH59*Simulator!$N$14^3+AI59*Simulator!$N$14^2+AJ59*Simulator!$N$14+AK59 -> 32.76616 | AM59: =INDEX(MasterTable[],MATCH(Simulator!$E58,MasterTable[P/N],0),COLUMN(MasterTable[T^3])) -> 0 | AN59: =INDEX(MasterTable[],MATCH(Simulator!$E58,MasterTable[P/N],0),COLUMN(MasterTable[T^2])) -> 0 | AO59: =INDEX(MasterTable[],MATCH(Simulator!$E58,MasterTable[P/N],0),COLUMN(MasterTable[T])) -> 0 | AP59: =INDEX(MasterTable[],MATCH(Simulator!$E58,MasterTable[P/N],0),COLUMN(MasterTable[T0])) -> 0 | AQ59: 34.8 | AR59: 32.76616 | AT59: =INDEX(MasterTable[],MATCH(Simulator!$E58,MasterTable[P/N],0),COLUMN(MasterTable['# of Die])) -> 84 | AU59: 32.76616 | AV59: =INDEX(Tj_to_Vf6[],MATCH(Simulator!$I$8,Tj_to_Vf6[Vf],1),COLUMN(Tj_to_Vf6[Vf])) -> -0.5 | AW59: -9.23384 | AX59: =IF(AND(Simulator!$I$8=25,Simulator!$N$14=Simulator!H58),AF59,AR59) -> 32.76616 | AZ59: -14.3
B60: Vero 13-D | C60: =IF(Simulator!$D$10="Case",Simulator!$I$8,M60) -> 25 | D60: =Simulator!$N$14*AR60/1000 -> 7.318758668 | E60: =INDEX(MasterTable[],MATCH(Simulator!E59,MasterTable[P/N],0),COLUMN(MasterTable[Thermal Resistance])) -> 0.2803666667 | F60: 27.05193597 | H60: =IF(Simulator!$D$10="Case",F60,Simulator!$I$8) -> 27.05193597 | I60: =Simulator!$N$14*AW60/1000 -> -0.601241332 | J60: 0.2803666667 | K60: 27.220504 | M60: =IF(Simulator!$D$10="Case",Simulator!$I$8,K60) -> 25 | N60: =IF(Simulator!$D$10="Case",H60,Simulator!$I$8) -> 27.05193597 | O60: =IF(#REF!="Tj",N60,M60) ->  | Q60: =INDEX(MasterTable[],MATCH(Simulator!E59,MasterTable[P/N],0),COLUMN(MasterTable[Typical Lumens])) -> 2703 | R60: =INDEX(MasterTable[],MATCH(Simulator!$E59,MasterTable[P/N],0),COLUMN(MasterTable[I^3])) -> 2.3511e-11 | S60: =INDEX(MasterTable[],MATCH(Simulator!$E59,MasterTable[P/N],0),COLUMN(MasterTable[I^2])) -> -3.8892e-07 | T60: =INDEX(MasterTable[],MATCH(Simulator!$E59,MasterTable[P/N],0),COLUMN(MasterTable[I])) -> 0.0021708 | U60: =INDEX(MasterTable[],MATCH(Simulator!$E59,MasterTable[P/N],0),COLUMN(MasterTable[I0])) -> -1e-07 | V60: =R60*Simulator!$N$14^3+S60*Simulator!$N$14^2+T60*Simulator!$N$14+U60 -> 0.4989151241 | W60: =INDEX(MasterTable[],MATCH(Simulator!$E59,MasterTable[P/N],0),COLUMN(MasterTable[F^4])) -> 0 | X60: =INDEX(MasterTable[],MATCH(Simulator!$E59,MasterTable[P/N],0),COLUMN(MasterTable[F^3])) -> 0 | Y60: =INDEX(MasterTable[],MATCH(Simulator!$E59,MasterTable[P/N],0),COLUMN(MasterTable[F^2])) -> -3.6592e-06 | Z60: =INDEX(MasterTable[],MATCH(Simulator!$E59,MasterTable[P/N],0),COLUMN(MasterTable[F])) -> -0.0010345506 | AA60: =INDEX(MasterTable[],MATCH(Simulator!$E59,MasterTable[P/N],0),COLUMN(MasterTable[F0])) -> 1.024095626 | AB60: =IF(Simulator!$I$8=85,AE60,W60*M60^4+X60*M60^3+Y60*M60^2+Z60*M60+AA60) -> 0.9959448614 | AC60: 1343.098952 | AD60: =IF(AND(Simulator!$I$8=85,Simulator!$N$14=Simulator!H59),Q60*AE60,AC60) -> 1343.098952 | AE60: =VLOOKUP(MID(Simulator!E59,6,3),Data!K147:L167,2,FALSE) -> 0.9 | AF60: =INDEX(MasterTable[],MATCH(Simulator!$E59,MasterTable[P/N],0),COLUMN(MasterTable[Typical Voltage])) -> 31.8 | AG60: =INDEX(MasterTable[],MATCH(Simulator!$E59,MasterTable[P/N],0),COLUMN(MasterTable[V^4])) -> 0 | AH60: =INDEX(MasterTable[],MATCH(Simulator!$E59,MasterTable[P/N],0),COLUMN(MasterTable[V^3])) -> 1.9e-09 | AI60: =INDEX(MasterTable[],MATCH(Simulator!$E59,MasterTable[P/N],0),COLUMN(MasterTable[V^2])) -> -4.4818e-06 | AJ60: =INDEX(MasterTable[],MATCH(Simulator!$E59,MasterTable[P/N],0),COLUMN(MasterTable[V])) -> 0.0082648798 | AK60: =INDEX(MasterTable[],MATCH(Simulator!$E59,MasterTable[P/N],0),COLUMN(MasterTable[V0])) -> 28.74314271 | AL60: =AG60*Simulator!$N$14^4+AH60*Simulator!$N$14^3+AI60*Simulator!$N$14^2+AJ60*Simulator!$N$14+AK60 -> 30.49482778 | AM60: =INDEX(MasterTable[],MATCH(Simulator!$E59,MasterTable[P/N],0),COLUMN(MasterTable[T^3])) -> 0 | AN60: =INDEX(MasterTable[],MATCH(Simulator!$E59,MasterTable[P/N],0),COLUMN(MasterTable[T^2])) -> 0 | AO60: =INDEX(MasterTable[],MATCH(Simulator!$E59,MasterTable[P/N],0),COLUMN(MasterTable[T])) -> -0.017 | AP60: =INDEX(MasterTable[],MATCH(Simulator!$E59,MasterTable[P/N],0),COLUMN(MasterTable[T0])) -> 32.725 | AQ60: 31.8 | AR60: 30.49482778 | AT60: =INDEX(MasterTable[],MATCH(Simulator!$E59,MasterTable[P/N],0),COLUMN(MasterTable['# of Die])) -> 66 | AU60: 30.49482778 | AV60: =INDEX(Tj_to_Vf6[],MATCH(Simulator!$I$8,Tj_to_Vf6[Vf],1),COLUMN(Tj_to_Vf6[Vf])) -> -0.5 | AW60: -2.505172217 | AX60: =IF(AND(Simulator!$I$8=25,Simulator!$N$14=Simulator!H59),AF60,AR60) -> 30.49482778 | AZ60: -13.3
B61: Vero 18-B | C61: =IF(Simulator!$D$10="Case",Simulator!$I$8,M61) -> 25 | D61: =Simulator!$N$14*AR61/1000 -> 7.714528024 | E61: =INDEX(MasterTable[],MATCH(Simulator!E60,MasterTable[P/N],0),COLUMN(MasterTable[Thermal Resistance])) -> 0.1545333333 | F61: 26.19215173 | H61: =IF(Simulator!$D$10="Case",F61,Simulator!$I$8) -> 26.19215173 | I61: =Simulator!$N$14*AW61/1000 -> -6.685471976 | J61: 0.1545333333 | K61: 27.22528 | M61: =IF(Simulator!$D$10="Case",Simulator!$I$8,K61) -> 25 | N61: =IF(Simulator!$D$10="Case",H61,Simulator!$I$8) -> 26.19215173 | O61: =IF(#REF!="Tj",N61,M61) ->  | Q61: =INDEX(MasterTable[],MATCH(Simulator!E60,MasterTable[P/N],0),COLUMN(MasterTable[Typical Lumens])) -> 5324.4 | R61: =INDEX(MasterTable[],MATCH(Simulator!$E60,MasterTable[P/N],0),COLUMN(MasterTable[I^3])) -> 2.4037e-11 | S61: =INDEX(MasterTable[],MATCH(Simulator!$E60,MasterTable[P/N],0),COLUMN(MasterTable[I^2])) -> -1.3945e-07 | T61: =INDEX(MasterTable[],MATCH(Simulator!$E60,MasterTable[P/N],0),COLUMN(MasterTable[I])) -> 0.001238 | U61: =INDEX(MasterTable[],MATCH(Simulator!$E60,MasterTable[P/N],0),COLUMN(MasterTable[I0])) -> -1e-07 | V61: =R61*Simulator!$N$14^3+S61*Simulator!$N$14^2+T61*Simulator!$N$14+U61 -> 0.2894198675 | W61: =INDEX(MasterTable[],MATCH(Simulator!$E60,MasterTable[P/N],0),COLUMN(MasterTable[F^4])) -> 0 | X61: =INDEX(MasterTable[],MATCH(Simulator!$E60,MasterTable[P/N],0),COLUMN(MasterTable[F^3])) -> 0 | Y61: =INDEX(MasterTable[],MATCH(Simulator!$E60,MasterTable[P/N],0),COLUMN(MasterTable[F^2])) -> -3.6592e-06 | Z61: =INDEX(MasterTable[],MATCH(Simulator!$E60,MasterTable[P/N],0),COLUMN(MasterTable[F])) -> -0.0010345506 | AA61: =INDEX(MasterTable[],MATCH(Simulator!$E60,MasterTable[P/N],0),COLUMN(MasterTable[F0])) -> 1.024095626 | AB61: =IF(Simulator!$I$8=85,AE61,W61*M61^4+X61*M61^3+Y61*M61^2+Z61*M61+AA61) -> 0.9959448614 | AC61: 1534.738226 | AD61: =IF(AND(Simulator!$I$8=85,Simulator!$N$14=Simulator!H60),Q61*AE61,AC61) -> 1534.738226 | AE61: =VLOOKUP(MID(Simulator!E60,6,3),Data!N75:O98,2,FALSE) -> 0.9 | AF61: =INDEX(MasterTable[],MATCH(Simulator!$E60,MasterTable[P/N],0),COLUMN(MasterTable[Typical Voltage])) -> 34.8 | AG61: =INDEX(MasterTable[],MATCH(Simulator!$E60,MasterTable[P/N],0),COLUMN(MasterTable[V^4])) -> 0 | AH61: =INDEX(MasterTable[],MATCH(Simulator!$E60,MasterTable[P/N],0),COLUMN(MasterTable[V^3])) -> 4e-10 | AI61: =INDEX(MasterTable[],MATCH(Simulator!$E60,MasterTable[P/N],0),COLUMN(MasterTable[V^2])) -> -1.6286e-06 | AJ61: =INDEX(MasterTable[],MATCH(Simulator!$E60,MasterTable[P/N],0),COLUMN(MasterTable[V])) -> 0.0054556379 | AK61: =INDEX(MasterTable[],MATCH(Simulator!$E60,MasterTable[P/N],0),COLUMN(MasterTable[V0])) -> 30.92279143 | AL61: =AG61*Simulator!$N$14^4+AH61*Simulator!$N$14^3+AI61*Simulator!$N$14^2+AJ61*Simulator!$N$14+AK61 -> 32.14386677 | AM61: =INDEX(MasterTable[],MATCH(Simulator!$E60,MasterTable[P/N],0),COLUMN(MasterTable[T^3])) -> 0 | AN61: =INDEX(MasterTable[],MATCH(Simulator!$E60,MasterTable[P/N],0),COLUMN(MasterTable[T^2])) -> 0 | AO61: =INDEX(MasterTable[],MATCH(Simulator!$E60,MasterTable[P/N],0),COLUMN(MasterTable[T])) -> 0 | AP61: =INDEX(MasterTable[],MATCH(Simulator!$E60,MasterTable[P/N],0),COLUMN(MasterTable[T0])) -> 0 | AQ61: 34.8 | AR61: 32.14386677 | AT61: =INDEX(MasterTable[],MATCH(Simulator!$E60,MasterTable[P/N],0),COLUMN(MasterTable['# of Die])) -> 120 | AU61: 32.14386677 | AV61: =INDEX(Tj_to_Vf6[],MATCH(Simulator!$I$8,Tj_to_Vf6[Vf],1),COLUMN(Tj_to_Vf6[Vf])) -> -0.5 | AW61: -27.85613323 | AX61: =IF(AND(Simulator!$I$8=25,Simulator!$N$14=Simulator!H60),AF61,AR61) -> 32.14386677 | AZ61: -14.9
B62: Vero 18-C | C62: =IF(Simulator!$D$10="Case",Simulator!$I$8,M62) -> 25 | D62: =Simulator!$N$14*AR62/1000 -> 7.7156928 | E62: =INDEX(MasterTable[],MATCH(Simulator!E61,MasterTable[P/N],0),COLUMN(MasterTable[Thermal Resistance])) -> 0.1120666667 | F62: 25.86467197 | H62: =IF(Simulator!$D$10="Case",F62,Simulator!$I$8) -> 25.86467197 | I62: =Simulator!$N$14*AW62/1000 -> -11.0043072 | J62: 0.1120666667 | K62: 27.097888 | M62: =IF(Simulator!$D$10="Case",Simulator!$I$8,K62) -> 25 | N62: =IF(Simulator!$D$10="Case",H62,Simulator!$I$8) -> 25.86467197 | O62: =IF(#REF!="Tj",N62,M62) ->  | Q62: =INDEX(MasterTable[],MATCH(Simulator!E61,MasterTable[P/N],0),COLUMN(MasterTable[Typical Lumens])) -> 6922 | R62: =INDEX(MasterTable[],MATCH(Simulator!$E61,MasterTable[P/N],0),COLUMN(MasterTable[I^3])) -> 4.7732e-12 | S62: =INDEX(MasterTable[],MATCH(Simulator!$E61,MasterTable[P/N],0),COLUMN(MasterTable[I^2])) -> -7.2908e-08 | T62: =INDEX(MasterTable[],MATCH(Simulator!$E61,MasterTable[P/N],0),COLUMN(MasterTable[I])) -> 0.00093304 | U62: =INDEX(MasterTable[],MATCH(Simulator!$E61,MasterTable[P/N],0),COLUMN(MasterTable[I0])) -> -1e-07 | V62: =R62*Simulator!$N$14^3+S62*Simulator!$N$14^2+T62*Simulator!$N$14+U62 -> 0.2197959839 | W62: =INDEX(MasterTable[],MATCH(Simulator!$E61,MasterTable[P/N],0),COLUMN(MasterTable[F^4])) -> 0 | X62: =INDEX(MasterTable[],MATCH(Simulator!$E61,MasterTable[P/N],0),COLUMN(MasterTable[F^3])) -> 0 | Y62: =INDEX(MasterTable[],MATCH(Simulator!$E61,MasterTable[P/N],0),COLUMN(MasterTable[F^2])) -> -3.6592e-06 | Z62: =INDEX(MasterTable[],MATCH(Simulator!$E61,MasterTable[P/N],0),COLUMN(MasterTable[F])) -> -0.0010345506 | AA62: =INDEX(MasterTable[],MATCH(Simulator!$E61,MasterTable[P/N],0),COLUMN(MasterTable[F0])) -> 1.024095626 | AB62: =IF(Simulator!$I$8=85,AE62,W62*M62^4+X62*M62^3+Y62*M62^2+Z62*M62+AA62) -> 0.9959448614 | AC62: 1515.2582 | AD62: =IF(AND(Simulator!$I$8=85,Simulator!$N$14=Simulator!H61),Q62*AE62,AC62) -> 1515.2582 | AE62: =VLOOKUP(MID(Simulator!E61,6,3),Data!N111:O134,2,FALSE) -> 0.9 | AF62: =INDEX(MasterTable[],MATCH(Simulator!$E61,MasterTable[P/N],0),COLUMN(MasterTable[Typical Voltage])) -> 34.8 | AG62: =INDEX(MasterTable[],MATCH(Simulator!$E61,MasterTable[P/N],0),COLUMN(MasterTable[V^4])) -> 0 | AH62: =INDEX(MasterTable[],MATCH(Simulator!$E61,MasterTable[P/N],0),COLUMN(MasterTable[V^3])) -> 0 | AI62: =INDEX(MasterTable[],MATCH(Simulator!$E61,MasterTable[P/N],0),COLUMN(MasterTable[V^2])) -> -3e-07 | AJ62: =INDEX(MasterTable[],MATCH(Simulator!$E61,MasterTable[P/N],0),COLUMN(MasterTable[V])) -> 0.0033 | AK62: =INDEX(MasterTable[],MATCH(Simulator!$E61,MasterTable[P/N],0),COLUMN(MasterTable[V0])) -> 31.374 | AL62: =AG62*Simulator!$N$14^4+AH62*Simulator!$N$14^3+AI62*Simulator!$N$14^2+AJ62*Simulator!$N$14+AK62 -> 32.14872 | AM62: =INDEX(MasterTable[],MATCH(Simulator!$E61,MasterTable[P/N],0),COLUMN(MasterTable[T^3])) -> 0 | AN62: =INDEX(MasterTable[],MATCH(Simulator!$E61,MasterTable[P/N],0),COLUMN(MasterTable[T^2])) -> 0 | AO62: =INDEX(MasterTable[],MATCH(Simulator!$E61,MasterTable[P/N],0),COLUMN(MasterTable[T])) -> 0 | AP62: =INDEX(MasterTable[],MATCH(Simulator!$E61,MasterTable[P/N],0),COLUMN(MasterTable[T0])) -> 0 | AQ62: 34.8 | AR62: 32.14872 | AT62: =INDEX(MasterTable[],MATCH(Simulator!$E61,MasterTable[P/N],0),COLUMN(MasterTable['# of Die])) -> 156 | AU62: 32.14872 | AV62: =INDEX(Tj_to_Vf6[],MATCH(Simulator!$I$8,Tj_to_Vf6[Vf],1),COLUMN(Tj_to_Vf6[Vf])) -> -0.5 | AW62: -45.85128 | AX62: =IF(AND(Simulator!$I$8=25,Simulator!$N$14=Simulator!H61),AF62,AR62) -> 32.14872 | AZ62: -14.9
